Workbook

Sheet Data with calculations
A1: Date (5-day ETF) | B1: Close ASHMID | C1: ASHMID | D1: Close STXIND | E1: STXIND | F1: Close GLD | G1: GLD | H1: Close NFGOVI | I1: NFGOVI | J1: Close NFILBI | K1: NFILBI | L1: Close NFTRCI | M1: NFTRCI | N1: Close NGPLT | O1: NGPLT | P1: Close ETFSAP | Q1: ETFSAP | R1: Close STX40 | S1: STX40 | T1: Close STXEMG | U1: STXEMG | V1: Close STXFIN | W1: STXFIN | X1: Close SYG4IR | Y1: SYG4IR | Z1: Close SYGWD | AA1: SYGWD | AB1: Date (7-day CX) | AC1: Close USD/ZAR (5day) | AD1: BTC USD (7day) | AE1: BTC ZAR | AF1: BTC aligned | AG1: BTC | AH1: Date ETH | AI1: Price ETH USD | AJ1: ETH ZAR | AK1: ETH Indexed | AL1: ETH | AM1: Date XRP | AN1: Price XRP USD | AO1: XRP ZAR | AP1: XRP Indexed | AQ1: XRP | AR1: Date BNB | AS1: Price BNB USD | AT1: BNB ZAR | AU1: XRP Indexed | AV1: BNB
A2: 2021-03-31 | B2: 697 | C2: =LN(B2/B3) -> -0.01565868293 | D2: 8381 | E2: =LN(D2/D3) -> -0.01574462829 | F2: 23524 | G2: =LN(F2/F3) -> -0.000425007444 | H2: 7170 | I2: =LN(H2/H3) -> 0.003632811037 | J2: 7365 | K2: =LN(J2/J3) -> 0 | L2: 2787 | M2: =LN(L2/L3) -> 0 | N2: 17066 | O2: =LN(N2/N3) -> 0.01499526297 | P2: 2957 | Q2: =LN(P2/P3) -> 0.01053893827 | R2: 6162 | S2: =LN(R2/R3) -> -0.01225821801 | T2: 5450 | U2: =LN(T2/T3) -> -0.003480175689 | V2: 1238 | W2: =LN(V2/V3) -> -0.0176145467 | X2: 5315 | Y2: =LN(X2/X3) -> 0.01746106234 | Z2: 4156 | AA2: =LN(Z2/Z3) -> -0.01457090153 | AB2: 2021-03-31 | AC2: 14.9186 | AD2: 58771.3 | AE2: =AC2*AF2 -> 876785.5162 | AF2: =INDEX(AD2:$AD$1886,MATCH(A2,AB2:$AB$1886,0)) -> 58771.3 | AG2: =LN(AE2/AE3) -> 0.02022530316 | AH2: 2021-03-31 | AI2: 1918.36 | AJ2: =AK2*AC2 -> 28619.2455 | AK2: =INDEX(AI2:$AI$1867,MATCH(A2,AH2:$AH$1867,0)) -> 1918.36 | AL2: =LN(AJ2/AJ3) -> 0.03880870787 | AM2: 2021-03-31 | AN2: 0.5739 | AO2: =AN2*AP2 -> 0.32936121 | AP2: =INDEX(AN2:$AN$2080,MATCH(A2,AM2:$AM$2080,0)) -> 0.5739 | AQ2: =LN(AO2/AO3) -> 0.02454448757 | AR2: 2021-03-31 | AS2: 302.06 | AT2: =AC2*AU2 -> 4506.312316 | AU2: =INDEX(AS2:$AS$2080,MATCH(A2,AR2:$AR$2080,0)) -> 302.06 | AV2: =LN(AU2/AU3) -> -0.03054892074
A3: 2021-03-30 | B3: 708 | C3: =LN(B3/B4) -> 0.007087201883 | D3: 8514 | E3: =LN(D3/D4) -> 0.002587323565 | F3: 23534 | G3: =LN(F3/F4) -> -0.0192742574 | H3: 7144 | I3: =LN(H3/H4) -> -0.001678322072 | J3: 7365 | K3: =LN(J3/J4) -> -0.001221249897 | L3: 2787 | M3: =LN(L3/L4) -> 0.0003588731422 | N3: 16812 | O3: =LN(N3/N4) -> -0.01217869028 | P3: 2926 | Q3: =LN(P3/P4) -> 0.007202912294 | R3: 6238 | S3: =LN(R3/R4) -> 0.001764942295 | T3: 5469 | U3: =LN(T3/T4) -> 0.005500563924 | V3: 1260 | W3: =LN(V3/V4) -> 0.0111733006 | X3: 5223 | Y3: =LN(X3/X4) -> 0.002876044548 | Z3: 4217 | AA3: =LN(Z3/Z4) -> 0.0009489917675 | AB3: 2021-03-30 | AC3: 14.913 | AD3: 57616.2 | AE3: =AC3*AF3 -> 859230.3906 | AF3: =INDEX(AD3:$AD$1886,MATCH(A3,AB3:$AB$1886,0)) -> 57616.2 | AG3: =LN(AE3/AE4) -> 0.02733699896 | AH3: 2021-03-30 | AI3: 1846.03 | AJ3: =AK3*AC3 -> 27529.84539 | AK3: =INDEX(AI3:$AI$1867,MATCH(A3,AH3:$AH$1867,0)) -> 1846.03 | AL3: =LN(AJ3/AJ4) -> 0.009059965569 | AM3: 2021-03-30 | AN3: 0.5669 | AO3: =AN3*AP3 -> 0.32137561 | AP3: =INDEX(AN3:$AN$2080,MATCH(A3,AM3:$AM$2080,0)) -> 0.5669 | AQ3: =LN(AO3/AO4) -> -0.003524851106 | AR3: 2021-03-30 | AS3: 311.43 | AT3: =AC3*AU3 -> 4644.35559 | AU3: =INDEX(AS3:$AS$2080,MATCH(A3,AR3:$AR$2080,0)) -> 311.43 | AV3: =LN(AU3/AU4) -> 0.1236401513
A4: 2021-03-29 | B4: 703 | C4: =LN(B4/B5) -> 0.01432689262 | D4: 8492 | E4: =LN(D4/D5) -> 0.007327771827 | F4: 23992 | G4: =LN(F4/F5) -> -0.01698563411 | H4: 7156 | I4: =LN(H4/H5) -> 0.001118568349 | J4: 7374 | K4: =LN(J4/J5) -> 0.001764506735 | L4: 2786 | M4: =LN(L4/L5) -> -0.002509411605 | N4: 17018 | O4: =LN(N4/N5) -> -0.003343798029 | P4: 2905 | Q4: =LN(P4/P5) -> 0.01491270917 | R4: 6227 | S4: =LN(R4/R5) -> 0.005959589194 | T4: 5439 | U4: =LN(T4/T5) -> -0.008239541259 | V4: 1246 | W4: =LN(V4/V5) -> 0.02272825108 | X4: 5208 | Y4: =LN(X4/X5) -> -0.01807679325 | Z4: 4213 | AA4: =LN(Z4/Z5) -> -0.003790575493 | AB4: 2021-03-29 | AC4: 14.9925 | AD4: 55765.2 | AE4: 836059.761 | AF4: =INDEX(AD4:$AD$1886,MATCH(A4,AB4:$AB$1886,0)) -> 55765.2 | AG4: =LN(AE4/AE5) -> 0.08275123066 | AH4: 2021-03-29 | AI4: 1819.68 | AJ4: =AK4*AC4 -> 27281.5524 | AK4: =INDEX(AI4:$AI$1867,MATCH(A4,AH4:$AH$1867,0)) -> 1819.68 | AL4: =LN(AJ4/AJ5) -> 0.06608978335 | AM4: 2021-03-29 | AN4: 0.5679 | AO4: =AN4*AP4 -> 0.32251041 | AP4: =INDEX(AN4:$AN$2080,MATCH(A4,AM4:$AM$2080,0)) -> 0.5679 | AQ4: =LN(AO4/AO5) -> 0.03198327189 | AR4: 2021-03-29 | AS4: 275.21 | AT4: 4126.085925 | AU4: =INDEX(AS4:$AS$2080,MATCH(A4,AR4:$AR$2080,0)) -> 275.21 | AV4: =LN(AU4/AU5) -> 0.07587881746
A5: 2021-03-26 | B5: 693 | C5: 0.02631730832 | D5: 8430 | E5: 0.02510491584 | F5: 24403 | G5: -0.002782667426 | H5: 7148 | I5: -0.0002797594087 | J5: 7361 | K5: 0.007773649784 | L5: 2793 | M5: 0.002868413584 | N5: 17075 | O5: 0.01036095688 | P5: 2862 | Q5: 0.01584819224 | R5: 6190 | S5: 0.03134229803 | T5: 5484 | U5: 0.01488040684 | V5: 1218 | W5: 0.02662386871 | X5: 5303 | Y5: 0.03531359068 | Z5: 4229 | AA5: 0.01621012849 | AB5: 2021-03-28 | AC5: 14.9966 | AD5: 55862.9 | AE5: 769660.0042 | AF5: =INDEX(AD5:$AD$1886,MATCH(A5,AB5:$AB$1886,0)) -> 51322.3 | AG5: -0.01877625742 | AH5: 2021-03-28 | AI5: 1691.36 | AJ5: 25536.81034 | AK5: =INDEX(AI5:$AI$1867,MATCH(A5,AH5:$AH$1867,0)) -> 1702.84 | AL5: 0.06577832916 | AM5: 2021-03-28 | AN5: 0.5508 | AO5: 0.31235868 | AP5: =INDEX(AN5:$AN$2080,MATCH(A5,AM5:$AM$2080,0)) -> 0.5671 | AQ5: 0.09225261012 | AR5: 2021-03-28 | AS5: 269.19 | AT5: 3825.63266 | AU5: =INDEX(AS5:$AS$2080,MATCH(A5,AR5:$AR$2080,0)) -> 255.1 | AV5: 0.0825383057
A6: 2021-03-25 | B6: 675 | C6: -0.00148038517 | D6: 8221 | E6: -0.01004547025 | F6: 24471 | G6: 0.01453029331 | H6: 7150 | I6: -0.001397624267 | J6: 7304 | K6: 0.002604703645 | L6: 2785 | M6: 0 | N6: 16899 | O6: -0.0008281084112 | P6: 2817 | Q6: 0.00213219697 | R6: 5999 | S6: -0.005154222068 | T6: 5403 | U6: 0.001111111225 | V6: 1186 | W6: -0.008396354953 | X6: 5119 | Y6: -0.04935745037 | Z6: 4161 | AA6: -0.003119378654 | AB6: 2021-03-27 | AC6: 14.9879 | AD6: 55036.1 | AE6: 784247.8627 | AF6: =INDEX(AD6:$AD$1886,MATCH(A6,AB6:$AB$1886,0)) -> 52325.4 | AG6: -0.0418797563 | AH6: 2021-03-27 | AI6: 1716.49 | AJ6: 23911.09614 | AK6: =INDEX(AI6:$AI$1867,MATCH(A6,AH6:$AH$1867,0)) -> 1595.36 | AL6: -0.0008098648572 | AM6: 2021-03-27 | AN6: 0.5504 | AO6: 0.284832 | AP6: =INDEX(AN6:$AN$2080,MATCH(A6,AM6:$AM$2080,0)) -> 0.5175 | AQ6: 0.02716574888 | AR6: 2021-03-27 | AS6: 269.1 | AT6: 3520.507831 | AU6: =INDEX(AS6:$AS$2080,MATCH(A6,AR6:$AR$2080,0)) -> 234.89 | AV6: -0.06174341834
A7: 2021-03-24 | B7: 676 | C7: -0.007369230107 | D7: 8304 | E7: -0.006721100673 | F7: 24118 | G7: 0.007700189969 | H7: 7160 | I7: -0.004598349913 | J7: 7285 | K7: 0.0001372777818 | L7: 2785 | M7: 0 | N7: 16913 | O7: 0.003316556194 | P7: 2811 | Q7: 0.00606603109 | R7: 6030 | S7: -0.004302505396 | T7: 5397 | U7: -0.008487135816 | V7: 1196 | W7: -0.001670844165 | X7: 5378 | Y7: -0.01219752694 | Z7: 4174 | AA7: 0.005284662791 | AB7: 2021-03-26 | AC7: 15.0184 | AD7: 51322.3 | AE7: 817789.426 | AF7: =INDEX(AD7:$AD$1886,MATCH(A7,AB7:$AB$1886,0)) -> 54452.5 | AG7: 0.003853998072 | AH7: 2021-03-26 | AI7: 1702.84 | AJ7: 23930.46874 | AK7: =INDEX(AI7:$AI$1867,MATCH(A7,AH7:$AH$1867,0)) -> 1593.41 | AL7: -0.05367704942 | AM7: 2021-03-26 | AN7: 0.5671 | AO7: 0.27719848 | AP7: =INDEX(AN7:$AN$2080,MATCH(A7,AM7:$AM$2080,0)) -> 0.4888 | AQ7: -0.03836731135 | AR7: 2021-03-26 | AS7: 255.1 | AT7: 3752.34724 | AU7: =INDEX(AS7:$AS$2080,MATCH(A7,AR7:$AR$2080,0)) -> 249.85 | AV7: -0.02310503541
A8: 2021-03-23 | B8: 681 | C8: -0.01602364947 | D8: 8360 | E8: 0.008891083441 | F8: 23933 | G8: -0.002170375242 | H8: 7193 | I8: -0.003053861341 | J8: 7284 | K8: 0 | L8: 2785 | M8: 0.0003591309071 | N8: 16857 | O8: 0.004280370366 | P8: 2794 | Q8: -0.0341282022 | R8: 6056 | S8: -0.005434348491 | T8: 5443 | U8: -0.01223424371 | V8: 1198 | W8: -0.01737735081 | X8: 5444 | Y8: -0.006773481275 | Z8: 4152 | AA8: 0.002169982768 | AB8: 2021-03-25 | AC8: 15.0419 | AD8: 52325.4 | AE8: 814643.7328 | AF8: =INDEX(AD8:$AD$1886,MATCH(A8,AB8:$AB$1886,0)) -> 54158.3 | AG8: -0.05247357904 | AH8: 2021-03-25 | AI8: 1595.36 | AJ8: 25250.08544 | AK8: =INDEX(AI8:$AI$1867,MATCH(A8,AH8:$AH$1867,0)) -> 1678.65 | AL8: -0.06942855511 | AM8: 2021-03-25 | AN8: 0.5175 | AO8: 0.2880405 | AP8: =INDEX(AN8:$AN$2080,MATCH(A8,AM8:$AM$2080,0)) -> 0.5566 | AQ8: 0.223620334 | AR8: 2021-03-25 | AS8: 234.89 | AT8: 3846.063411 | AU8: =INDEX(AS8:$AS$2080,MATCH(A8,AR8:$AR$2080,0)) -> 255.69 | AV8: -0.03221057685
A9: 2021-03-19 | B9: 692 | C9: -0.02285813808 | D9: 8286 | E9: -0.005776189345 | F9: 23985 | G9: 0.005057587742 | H9: 7215 | I9: 0.008211026579 | J9: 7284 | K9: 0.001786328197 | L9: 2784 | M9: -0.001077006028 | N9: 16785 | O9: -0.03362547345 | P9: 2891 | Q9: 0 | R9: 6089 | S9: -0.01370107879 | T9: 5510 | U9: -0.005790823276 | V9: 1219 | W9: -0.008169980085 | X9: 5481 | Y9: -0.01825956905 | Z9: 4143 | AA9: -0.01056432394 | AB9: 2021-03-24 | AC9: 14.8906 | AD9: 54452.5 | AE9: 858532.4336 | AF9: =INDEX(AD9:$AD$1886,MATCH(A9,AB9:$AB$1886,0)) -> 57656 | AG9: -0.01079313583 | AH9: 2021-03-24 | AI9: 1593.41 | AJ9: 27065.45237 | AK9: =INDEX(AI9:$AI$1867,MATCH(A9,AH9:$AH$1867,0)) -> 1817.62 | AL9: 0.03009194954 | AM9: 2021-03-24 | AN9: 0.4888 | AO9: 0.23032256 | AP9: =INDEX(AN9:$AN$2080,MATCH(A9,AM9:$AM$2080,0)) -> 0.4712 | AQ9: -0.1334947585 | AR9: 2021-03-24 | AS9: 249.85 | AT9: 3932.011836 | AU9: =INDEX(AS9:$AS$2080,MATCH(A9,AR9:$AR$2080,0)) -> 264.06 | AV9: 0.008977540515
A10: 2021-03-18 | B10: 708 | C10: 0 | D10: 8334 | E10: 0.002162163004 | F10: 23864 | G10: -0.01199614519 | H10: 7156 | I10: -0.005574150442 | J10: 7271 | K10: 0.004687077784 | L10: 2787 | M10: 0.0007178751206 | N10: 17359 | O10: 0.009259861292 | P10: 2891 | Q10: -0.009638628838 | R10: 6173 | S10: 0.00487172123 | T10: 5542 | U10: 0.005246506833 | V10: 1229 | W10: -0.007296343679 | X10: 5582 | Y10: 0.02338121917 | Z10: 4187 | AA10: -0.003576115386 | AB10: 2021-03-23 | AC10: 14.7309 | AD10: 54158.3 | AE10: 867848.8771 | AF10: =INDEX(AD10:$AD$1886,MATCH(A10,AB10:$AB$1886,0)) -> 58913.5 | AG10: 0.03670211669 | AH10: 2021-03-23 | AI10: 1678.65 | AJ10: 26263.13237 | AK10: =INDEX(AI10:$AI$1867,MATCH(A10,AH10:$AH$1867,0)) -> 1782.86 | AL10: -0.02076533897 | AM10: 2021-03-23 | AN10: 0.5566 | AO10: 0.26321614 | AP10: =INDEX(AN10:$AN$2080,MATCH(A10,AM10:$AM$2080,0)) -> 0.4729 | AQ10: 0.0131682709 | AR10: 2021-03-23 | AS10: 255.69 | AT10: 3855.07653 | AU10: =INDEX(AS10:$AS$2080,MATCH(A10,AR10:$AR$2080,0)) -> 261.7 | AV10: -0.03066743953
A11: 2021-03-17 | B11: 708 | C11: -0.002820876342 | D11: 8316 | E11: -0.00503779403 | F11: 24152 | G11: 0.001699024506 | H11: 7196 | I11: -0.01078103048 | J11: 7237 | K11: -0.004136795751 | L11: 2785 | M11: 0.0003591309071 | N11: 17199 | O11: -0.01706388323 | P11: 2919 | Q11: -0.01732086094 | R11: 6143 | S11: -0.0106866302 | T11: 5513 | U11: -0.0192227243 | V11: 1238 | W11: -0.01443489378 | X11: 5453 | Y11: -0.03672780042 | Z11: 4202 | AA11: -0.004274525625 | AB11: 2021-03-22 | AC11: 14.7052 | AD11: 57383.8 | AE11: 836574.4164 | AF11: =INDEX(AD11:$AD$1886,MATCH(A11,AB11:$AB$1886,0)) -> 56889.7 | AG11: 0.01614263632 | AH11: 2021-03-22 | AI11: 1691.33 | AJ11: 26814.19694 | AK11: =INDEX(AI11:$AI$1867,MATCH(A11,AH11:$AH$1867,0)) -> 1823.45 | AL11: 0.005725175881 | AM11: 2021-03-22 | AN11: 0.5499 | AO11: 0.25977276 | AP11: =INDEX(AN11:$AN$2080,MATCH(A11,AM11:$AM$2080,0)) -> 0.4724 | AQ11: 0.07725565583 | AR11: 2021-03-22 | AS11: 255.9 | AT11: 3968.19822 | AU11: =INDEX(AS11:$AS$2080,MATCH(A11,AR11:$AR$2080,0)) -> 269.85 | AV11: 0.04451914234
A12: 2021-03-16 | B12: 710 | C12: 0 | D12: 8358 | E12: -0.002031913685 | F12: 24111 | G12: -0.001988813583 | H12: 7274 | I12: 0.004685140167 | J12: 7267 | K12: 0 | L12: 2784 | M12: 0.0007186489709 | N12: 17495 | O12: 0.001830768862 | P12: 2970 | Q12: -0.004032263528 | R12: 6209 | S12: -0.006581611366 | T12: 5620 | U12: 0.0075013747 | V12: 1256 | W12: -0.02204813722 | X12: 5657 | Y12: -0.01212349031 | Z12: 4220 | AA12: -0.00236686501 | AB12: 2021-03-21 | AC12: 14.7546 | AD12: 58093.4 | AE12: 823178.315 | AF12: =INDEX(AD12:$AD$1886,MATCH(A12,AB12:$AB$1886,0)) -> 55791.3 | AG12: -0.05037518986 | AH12: 2021-03-21 | AI12: 1788.22 | AJ12: 26661.11956 | AK12: =INDEX(AI12:$AI$1867,MATCH(A12,AH12:$AH$1867,0)) -> 1806.97 | AL12: 0.01595609447 | AM12: 2021-03-21 | AN12: 0.5198 | AO12: 0.24045948 | AP12: =INDEX(AN12:$AN$2080,MATCH(A12,AM12:$AM$2080,0)) -> 0.4626 | AQ12: 0.04180107236 | AR12: 2021-03-21 | AS12: 264.89 | AT12: 3808.16226 | AU12: =INDEX(AS12:$AS$2080,MATCH(A12,AR12:$AR$2080,0)) -> 258.1 | AV12: 0.01341778458
A13: 2021-03-15 | B13: 710 | C13: 0 | D13: 8375 | E13: -0.0022660872 | F13: 24159 | G13: 0.009398721769 | H13: 7240 | I13: 0.004429686092 | J13: 7267 | K13: 0.0005505850105 | L13: 2782 | M13: 0 | N13: 17463 | O13: 0.01175061041 | P13: 2982 | Q13: 0.004032263528 | R13: 6250 | S13: -0.006697521448 | T13: 5578 | U13: -0.007323422925 | V13: 1284 | W13: -0.01161453242 | X13: 5726 | Y13: 0.02941909841 | Z13: 4230 | AA13: 0.004501843878 | AB13: 2021-03-20 | AC13: 14.6448 | AD13: 58088 | AE13: 865708.3138 | AF13: =INDEX(AD13:$AD$1886,MATCH(A13,AB13:$AB$1886,0)) -> 59113.7 | AG13: 0.006375161241 | AH13: 2021-03-20 | AI13: 1812.63 | AJ13: 26239.08816 | AK13: =INDEX(AI13:$AI$1867,MATCH(A13,AH13:$AH$1867,0)) -> 1791.7 | AL13: -0.005107815851 | AM13: 2021-03-20 | AN13: 0.527 | AO13: 0.2306152 | AP13: =INDEX(AN13:$AN$2080,MATCH(A13,AM13:$AM$2080,0)) -> 0.4376 | AQ13: 0.1039515602 | AR13: 2021-03-20 | AS13: 264.74 | AT13: 3729.444768 | AU13: =INDEX(AS13:$AS$2080,MATCH(A13,AR13:$AR$2080,0)) -> 254.66 | AV13: -0.03484484861
A14: 2021-03-12 | B14: 710 | C14: -0.001407459768 | D14: 8394 | E14: -0.01160737893 | F14: 23933 | G14: -0.01010214582 | H14: 7208 | I14: -0.003600613224 | J14: 7263 | K14: 0.007740190682 | L14: 2782 | M14: 0 | N14: 17259 | O14: -0.009572210097 | P14: 2970 | Q14: 0.002359684223 | R14: 6292 | S14: -0.008860817468 | T14: 5619 | U14: -0.005324826213 | V14: 1299 | W14: 0.001540832354 | X14: 5560 | Y14: 0.009033485098 | Z14: 4211 | AA14: 0.002377556993 | AB14: 2021-03-19 | AC14: 14.8826 | AD14: 57656 | AE14: 860206.8387 | AF14: =INDEX(AD14:$AD$1886,MATCH(A14,AB14:$AB$1886,0)) -> 57799.5 | AG14: 0.03427658049 | AH14: 2021-03-19 | AI14: 1817.62 | AJ14: 26373.45546 | AK14: =INDEX(AI14:$AI$1867,MATCH(A14,AH14:$AH$1867,0)) -> 1772.1 | AL14: -0.03006654533 | AM14: 2021-03-19 | AN14: 0.4712 | AO14: 0.20784632 | AP14: =INDEX(AN14:$AN$2080,MATCH(A14,AM14:$AM$2080,0)) -> 0.4411 | AQ14: -0.03022183568 | AR14: 2021-03-19 | AS14: 264.06 | AT14: 3924.392794 | AU14: =INDEX(AS14:$AS$2080,MATCH(A14,AR14:$AR$2080,0)) -> 263.69 | AV14: -0.09438235198
A15: 2021-03-11 | B15: 711 | C15: -0.002808990611 | D15: 8492 | E15: 0.01029777698 | F15: 24176 | G15: -0.009345670031 | H15: 7234 | I15: 0.005405793191 | J15: 7207 | K15: 0.002222531822 | L15: 2782 | M15: 0.0007191657987 | N15: 17425 | O15: 0.001263351495 | P15: 2963 | Q15: -0.001349072717 | R15: 6348 | S15: 0.005053706271 | T15: 5649 | U15: 0.001239925763 | V15: 1297 | W15: -0.003847638452 | X15: 5510 | Y15: -0.008313801727 | Z15: 4201 | AA15: -0.009240677057 | AB15: 2021-03-18 | AC15: 14.8826 | AD15: 58913.5 | AE15: 831221.4869 | AF15: =INDEX(AD15:$AD$1886,MATCH(A15,AB15:$AB$1886,0)) -> 55851.9 | AG15: 0.0157333995 | AH15: 2021-03-18 | AI15: 1782.86 | AJ15: 27178.45529 | AK15: =INDEX(AI15:$AI$1867,MATCH(A15,AH15:$AH$1867,0)) -> 1826.19 | AL15: 0.01306699843 | AM15: 2021-03-18 | AN15: 0.4729 | AO15: 0.2142237 | AP15: =INDEX(AN15:$AN$2080,MATCH(A15,AM15:$AM$2080,0)) -> 0.453 | AQ15: -0.02120893545 | AR15: 2021-03-18 | AS15: 261.7 | AT15: 4312.828654 | AU15: =INDEX(AS15:$AS$2080,MATCH(A15,AR15:$AR$2080,0)) -> 289.79 | AV15: 0.03665525008
A16: 2021-03-10 | B16: 713 | C16: 0 | D16: 8405 | E16: -0.004984581885 | F16: 24403 | G16: -0.0140790086 | H16: 7195 | I16: 0.003201784596 | J16: 7191 | K16: 0.001670146526 | L16: 2780 | M16: 0 | N16: 17403 | O16: -0.004643571849 | P16: 2967 | Q16: -0.01969027406 | R16: 6316 | S16: -0.005998439454 | T16: 5642 | U16: -0.008998737389 | V16: 1302 | W16: 0.01158761517 | X16: 5556 | Y16: 0.03871688042 | Z16: 4240 | AA16: -0.008220833145 | AB16: 2021-03-17 | AC16: 14.91 | AD16: 56889.7 | AE16: 818245.89 | AF16: =INDEX(AD16:$AD$1886,MATCH(A16,AB16:$AB$1886,0)) -> 54879 | AG16: 0.04742789959 | AH16: 2021-03-17 | AI16: 1823.45 | AJ16: 26825.6247 | AK16: =INDEX(AI16:$AI$1867,MATCH(A16,AH16:$AH$1867,0)) -> 1799.17 | AL16: -0.03806584668 | AM16: 2021-03-17 | AN16: 0.4724 | AO16: 0.21881568 | AP16: =INDEX(AN16:$AN$2080,MATCH(A16,AM16:$AM$2080,0)) -> 0.4632 | AQ16: -0.02708636312 | AR16: 2021-03-17 | AS16: 269.85 | AT16: 4165.2576 | AU16: =INDEX(AS16:$AS$2080,MATCH(A16,AR16:$AR$2080,0)) -> 279.36 | AV16: -0.04924007113
A17: 2021-03-09 | B17: 713 | C17: 0.0141245286 | D17: 8447 | E17: 0.01358781335 | F17: 24749 | G17: 0.01342356635 | H17: 7172 | I17: -0.0008362369825 | J17: 7179 | K17: -0.01053078874 | L17: 2780 | M17: -0.001796945677 | N17: 17484 | O17: 0.02063001135 | P17: 3026 | Q17: 0.02070190793 | R17: 6354 | S17: 0.003152587731 | T17: 5693 | U17: 0.007050972276 | V17: 1287 | W17: 0.01015237146 | X17: 5345 | Y17: 0.004124490286 | Z17: 4275 | AA17: 0.002576415525 | AB17: 2021-03-16 | AC17: 14.9174 | AD17: 55791.3 | AE17: 780344.1114 | AF17: =INDEX(AD17:$AD$1886,MATCH(A17,AB17:$AB$1886,0)) -> 52311 | AG17: 0.0234849785 | AH17: 2021-03-16 | AI17: 1806.97 | AJ17: 27866.44907 | AK17: =INDEX(AI17:$AI$1867,MATCH(A17,AH17:$AH$1867,0)) -> 1868.05 | AL17: 0.01575459249 | AM17: 2021-03-16 | AN17: 0.4626 | AO17: 0.2248236 | AP17: =INDEX(AN17:$AN$2080,MATCH(A17,AM17:$AM$2080,0)) -> 0.486 | AQ17: 0.08140303902 | AR17: 2021-03-16 | AS17: 258.1 | AT17: 4377.660204 | AU17: =INDEX(AS17:$AS$2080,MATCH(A17,AR17:$AR$2080,0)) -> 293.46 | AV17: 0.1997699752
A18: 2021-03-08 | B18: 703 | C18: 0.002849004776 | D18: 8333 | E18: -0.004310867651 | F18: 24419 | G18: 0.003692463373 | H18: 7178 | I18: -0.009980676141 | J18: 7255 | K18: -0.000964386656 | L18: 2785 | M18: 0.001796945677 | N18: 17127 | O18: 0.02434964578 | P18: 2964 | Q18: -0.001348617871 | R18: 6334 | S18: 0.002529245737 | T18: 5653 | U18: -0.01352915303 | V18: 1274 | W18: -0.001568627773 | X18: 5323 | Y18: 0.02684597205 | Z18: 4264 | AA18: 0.0201357034 | AB18: 2021-03-15 | AC18: 14.9509 | AD18: 59113.7 | AE18: 762231.2691 | AF18: =INDEX(AD18:$AD$1886,MATCH(A18,AB18:$AB$1886,0)) -> 50982.3 | AG18: 0.05937136042 | AH18: 2021-03-15 | AI18: 1791.7 | AJ18: 27430.86476 | AK18: =INDEX(AI18:$AI$1867,MATCH(A18,AH18:$AH$1867,0)) -> 1834.73 | AL18: 0.1874656277 | AM18: 2021-03-15 | AN18: 0.4376 | AO18: 0.20724736 | AP18: =INDEX(AN18:$AN$2080,MATCH(A18,AM18:$AM$2080,0)) -> 0.4736 | AQ18: 0.02304473295 | AR18: 2021-03-15 | AS18: 254.66 | AT18: 3593.000288 | AU18: =INDEX(AS18:$AS$2080,MATCH(A18,AR18:$AR$2080,0)) -> 240.32 | AV18: 0.05980053986
A19: 2021-03-05 | B19: 701 | C19: 0 | D19: 8369 | E19: -0.005956653305 | F19: 24329 | G19: 0.007094861259 | H19: 7250 | I19: -0.01111046337 | J19: 7262 | K19: 0.0002754441554 | L19: 2780 | M19: 0.001800180504 | N19: 16715 | O19: -0.02037140383 | P19: 2968 | Q19: -0.001683218711 | R19: 6318 | S19: 0.003964797835 | T19: 5730 | U19: 0.01725091187 | V19: 1276 | W19: 0.002353865347 | X19: 5182 | Y19: -0.02345868993 | Z19: 4179 | AA19: 0.006963649223 | AB19: 2021-03-14 | AC19: 14.8322 | AD19: 61195.3 | AE19: 718293.7816 | AF19: =INDEX(AD19:$AD$1886,MATCH(A19,AB19:$AB$1886,0)) -> 48428 | AG19: -0.05627855235 | AH19: 2021-03-14 | AI19: 1854.56 | AJ19: 22741.76729 | AK19: =INDEX(AI19:$AI$1867,MATCH(A19,AH19:$AH$1867,0)) -> 1533.27 | AL19: -0.02208196112 | AM19: 2021-03-14 | AN19: 0.4421 | AO19: 0.20252601 | AP19: =INDEX(AN19:$AN$2080,MATCH(A19,AM19:$AM$2080,0)) -> 0.4581 | AQ19: -0.09982790317 | AR19: 2021-03-14 | AS19: 264.64 | AT19: 3357.565114 | AU19: =INDEX(AS19:$AS$2080,MATCH(A19,AR19:$AR$2080,0)) -> 226.37 | AV19: -0.01569106527
A20: 2021-03-04 | B20: 701 | C20: 0.00859604147 | D20: 8419 | E20: -0.01391860167 | F20: 24157 | G20: 0.004106611599 | H20: 7331 | I20: -0.006119554013 | J20: 7260 | K20: -0.0001377315614 | L20: 2775 | M20: -0.001800180504 | N20: 17059 | O20: -0.007708067361 | P20: 2973 | Q20: -0.001008572955 | R20: 6293 | S20: -0.005546325921 | T20: 5632 | U20: -0.01986529244 | V20: 1273 | W20: 0.01424074699 | X20: 5305 | Y20: -0.05197166933 | Z20: 4150 | AA20: -0.00600602406 | AB20: 2021-03-13 | AC20: 15.0784 | AD20: 57265.1 | AE20: 759877.4758 | AF20: =INDEX(AD20:$AD$1886,MATCH(A20,AB20:$AB$1886,0)) -> 50395.1 | AG20: 0.04131451618 | AH20: 2021-03-13 | AI20: 1924.69 | AJ20: 23249.53574 | AK20: =INDEX(AI20:$AI$1867,MATCH(A20,AH20:$AH$1867,0)) -> 1541.91 | AL20: -0.02035264475 | AM20: 2021-03-13 | AN20: 0.4599 | AO20: 0.22378734 | AP20: =INDEX(AN20:$AN$2080,MATCH(A20,AM20:$AM$2080,0)) -> 0.4866 | AQ20: 0.1192658705 | AR20: 2021-03-13 | AS20: 276.1 | AT20: 3467.27808 | AU20: =INDEX(AS20:$AS$2080,MATCH(A20,AR20:$AR$2080,0)) -> 229.95 | AV20: -0.04730841378
A21: 2021-03-03 | B21: 695 | C21: 0.002881846375 | D21: 8537 | E21: 0.006227621326 | F21: 24058 | G21: -0.008814640449 | H21: 7376 | I21: 0.005846777143 | J21: 7261 | K21: -0.00371159956 | L21: 2780 | M21: -0.0007191657987 | N21: 17191 | O21: -0.009667504163 | P21: 2976 | Q21: 0.01285103922 | R21: 6328 | S21: 0.002056474663 | T21: 5745 | U21: 0.006986927987 | V21: 1255 | W21: -0.002387585695 | X21: 5588 | Y21: -0.023347364 | Z21: 4175 | AA21: -0.008348289391 | AB21: 2021-03-12 | AC21: 15.057 | AD21: 57799.5 | AE21: 729123.1794 | AF21: =INDEX(AD21:$AD$1886,MATCH(A21,AB21:$AB$1886,0)) -> 48424.2 | AG21: -0.03938069215 | AH21: 2021-03-12 | AI21: 1772.1 | AJ21: 23727.57345 | AK21: =INDEX(AI21:$AI$1867,MATCH(A21,AH21:$AH$1867,0)) -> 1575.85 | AL21: 0.03878826672 | AM21: 2021-03-12 | AN21: 0.4411 | AO21: 0.19862733 | AP21: =INDEX(AN21:$AN$2080,MATCH(A21,AM21:$AM$2080,0)) -> 0.4503 | AQ21: 0.003818084505 | AR21: 2021-03-12 | AS21: 263.69 | AT21: 3630.09213 | AU21: =INDEX(AS21:$AS$2080,MATCH(A21,AR21:$AR$2080,0)) -> 241.09 | AV21: 0.00653338709
A22: 2021-03-02 | B22: 693 | C22: 0.007241161257 | D22: 8484 | E22: 0.009593251756 | F22: 24271 | G22: -0.003865454274 | H22: 7333 | I22: -0.008554604413 | J22: 7288 | K22: -0.0006858240444 | L22: 2782 | M22: 0.0007191657987 | N22: 17358 | O22: -0.005687219121 | P22: 2938 | Q22: 0.007859257949 | R22: 6315 | S22: 0.01547944417 | T22: 5705 | U22: -0.002800631972 | V22: 1258 | W22: 0.005579926793 | X22: 5720 | Y22: 0.02513851619 | Z22: 4210 | AA22: 0.008348289391 | AB22: 2021-03-11 | AC22: 15.2919 | AD22: 55851.9 | AE22: 758409.4265 | AF22: =INDEX(AD22:$AD$1886,MATCH(A22,AB22:$AB$1886,0)) -> 49595.5 | AG22: 0.08915634322 | AH22: 2021-03-11 | AI22: 1826.19 | AJ22: 22824.84286 | AK22: =INDEX(AI22:$AI$1867,MATCH(A22,AH22:$AH$1867,0)) -> 1492.61 | AL22: -0.05161768917 | AM22: 2021-03-11 | AN22: 0.453 | AO22: 0.1978704 | AP22: =INDEX(AN22:$AN$2080,MATCH(A22,AM22:$AM$2080,0)) -> 0.4368 | AQ22: -0.04579729819 | AR22: 2021-03-11 | AS22: 289.79 | AT22: 3662.715888 | AU22: =INDEX(AS22:$AS$2080,MATCH(A22,AR22:$AR$2080,0)) -> 239.52 | AV22: -0.0611745904
A23: 2021-03-01 | B23: 688 | C23: 0.02204350829 | D23: 8403 | E23: 0.02226191448 | F23: 24365 | G23: -0.007604910313 | H23: 7396 | I23: 0.005694930646 | J23: 7293 | K23: -0.0141595286 | L23: 2780 | M23: 0.0007196833704 | N23: 17457 | O23: 0.0086296704 | P23: 2915 | Q23: 0.01242680817 | R23: 6218 | S23: 0.02030774037 | T23: 5721 | U23: 0.02316432812 | V23: 1251 | W23: 0.02263637478 | X23: 5578 | Y23: 0.02064916694 | Z23: 4175 | AA23: 0.007211569716 | AB23: 2021-03-10 | AC23: 15.36 | AD23: 54879 | AE23: 693719.04 | AF23: =INDEX(AD23:$AD$1886,MATCH(A23,AB23:$AB$1886,0)) -> 45164 | AG23: -0.03838344951 | AH23: 2021-03-10 | AI23: 1799.17 | AJ23: 24033.9456 | AK23: =INDEX(AI23:$AI$1867,MATCH(A23,AH23:$AH$1867,0)) -> 1564.71 | AL23: 0.07882004086 | AM23: 2021-03-10 | AN23: 0.4632 | AO23: 0.20714304 | AP23: =INDEX(AN23:$AN$2080,MATCH(A23,AM23:$AM$2080,0)) -> 0.4472 | AQ23: -0.003933299224 | AR23: 2021-03-10 | AS23: 279.36 | AT23: 3911.1168 | AU23: =INDEX(AS23:$AS$2080,MATCH(A23,AR23:$AR$2080,0)) -> 254.63 | AV23: 0.1385766105
A24: 2021-02-26 | B24: 673 | C24: -0.0132843282 | D24: 8218 | E24: -0.007999073072 | F24: 24551 | G24: -0.005321646422 | H24: 7354 | I24: 0.002859673767 | J24: 7397 | K24: 0.002707460704 | L24: 2778 | M24: 0.0003600360075 | N24: 17307 | O24: -0.03820460091 | P24: 2879 | Q24: 0 | R24: 6093 | S24: -0.02319837993 | T24: 5590 | U24: -0.02176499258 | V24: 1223 | W24: -0.01057350233 | X24: 5464 | Y24: -0.03152562256 | Z24: 4145 | AA24: -0.006732413022 | AB24: 2021-03-09 | AC24: 15.3609 | AD24: 52311 | AE24: 720863.9957 | AF24: =INDEX(AD24:$AD$1886,MATCH(A24,AB24:$AB$1886,0)) -> 46928.5 | AG24: -0.05773951137 | AH24: 2021-03-09 | AI24: 1868.05 | AJ24: 22212.32223 | AK24: =INDEX(AI24:$AI$1867,MATCH(A24,AH24:$AH$1867,0)) -> 1446.03 | AL24: -0.02072063122 | AM24: 2021-03-09 | AN24: 0.486 | AO24: 0.2079594 | AP24: =INDEX(AN24:$AN$2080,MATCH(A24,AM24:$AM$2080,0)) -> 0.4279 | AQ24: 0.01053911905 | AR24: 2021-03-09 | AS24: 293.46 | AT24: 3405.204312 | AU24: =INDEX(AS24:$AS$2080,MATCH(A24,AR24:$AR$2080,0)) -> 221.68 | AV24: -0.05361601881
A25: 2021-02-25 | B25: 682 | C25: 0.004408530285 | D25: 8284 | E25: 0.001812360793 | F25: 24682 | G25: 0.009280431309 | H25: 7333 | I25: -0.01004078992 | J25: 7377 | K25: 0.01158919509 | L25: 2777 | M25: -0.0007199424357 | N25: 17981 | O25: 0.02448964114 | P25: 2879 | Q25: 0.0006949270606 | R25: 6236 | S25: 0.02139465721 | T25: 5713 | U25: 0.02230180927 | V25: 1236 | W25: 0 | X25: 5639 | Y25: 0.02296064992 | Z25: 4173 | AA25: 0.02082399703 | AB25: 2021-03-08 | AC25: 15.3672 | AD25: 50982.3 | AE25: 763711.422 | AF25: =INDEX(AD25:$AD$1886,MATCH(A25,AB25:$AB$1886,0)) -> 49697.5 | AG25: 0.02008895958 | AH25: 2021-03-08 | AI25: 1834.73 | AJ25: 22677.37704 | AK25: =INDEX(AI25:$AI$1867,MATCH(A25,AH25:$AH$1867,0)) -> 1475.7 | AL25: -0.09320645894 | AM25: 2021-03-08 | AN25: 0.4736 | AO25: 0.2057792 | AP25: =INDEX(AN25:$AN$2080,MATCH(A25,AM25:$AM$2080,0)) -> 0.4345 | AQ25: -0.06811124068 | AR25: 2021-03-08 | AS25: 240.32 | AT25: 3594.234408 | AU25: =INDEX(AS25:$AS$2080,MATCH(A25,AR25:$AR$2080,0)) -> 233.89 | AV25: -0.08389966704
A26: 2021-02-24 | B26: 679 | C26: 0 | D26: 8269 | E26: 0.002664084889 | F26: 24454 | G26: -0.01413049336 | H26: 7407 | I26: 0.004872116824 | J26: 7292 | K26: 0.005224815956 | L26: 2779 | M26: 0.001800828868 | N26: 17546 | O26: 0.01221380475 | P26: 2877 | Q26: 0.001043296913 | R26: 6104 | S26: 0.0100437166 | T26: 5587 | U26: -0.008199689436 | V26: 1236 | W26: 0.01221016391 | X26: 5511 | Y26: 0.0644538456 | Z26: 4087 | AA26: 0.001469148158 | AB26: 2021-03-07 | AC26: 15.3037 | AD26: 48855.6 | AE26: 748522.3314 | AF26: =INDEX(AD26:$AD$1886,MATCH(A26,AB26:$AB$1886,0)) -> 48911.2 | AG26: -0.08723530181 | AH26: 2021-03-07 | AI26: 1723.15 | AJ26: 24892.69235 | AK26: =INDEX(AI26:$AI$1867,MATCH(A26,AH26:$AH$1867,0)) -> 1626.58 | AL26: 0.04908721706 | AM26: 2021-03-07 | AN26: 0.4669 | AO26: 0.22028342 | AP26: =INDEX(AN26:$AN$2080,MATCH(A26,AM26:$AM$2080,0)) -> 0.4718 | AQ26: 5.474915062e-05 | AR26: 2021-03-07 | AS26: 240.18 | AT26: 3892.649132 | AU26: =INDEX(AS26:$AS$2080,MATCH(A26,AR26:$AR$2080,0)) -> 254.36 | AV26: 0.09637616686
A27: 2021-02-23 | B27: 679 | C27: -0.005873732012 | D27: 8247 | E27: -0.02265876477 | F27: 24802 | G27: -0.01070772798 | H27: 7371 | I27: 0.009953044193 | J27: 7254 | K27: -0.002340792807 | L27: 2774 | M27: -0.0007207207519 | N27: 17333 | O27: -0.05122405989 | P27: 2874 | Q27: 0 | R27: 6043 | S27: -0.02838689791 | T27: 5633 | U27: -0.02558849742 | V27: 1221 | W27: -0.01946533479 | X27: 5167 | Y27: -0.1231232446 | Z27: 4081 | AA27: -0.02253275223 | AB27: 2021-03-06 | AC27: 15.0938 | AD27: 48792.5 | AE27: 816752.6868 | AF27: =INDEX(AD27:$AD$1886,MATCH(A27,AB27:$AB$1886,0)) -> 54111.8 | AG27: -0.04921833057 | AH27: 2021-03-06 | AI27: 1654.74 | AJ27: 23700.28476 | AK27: =INDEX(AI27:$AI$1867,MATCH(A27,AH27:$AH$1867,0)) -> 1570.2 | AL27: -0.1161653446 | AM27: 2021-03-06 | AN27: 0.4651 | AO27: 0.22027136 | AP27: =INDEX(AN27:$AN$2080,MATCH(A27,AM27:$AM$2080,0)) -> 0.4736 | AQ27: -0.1730863594 | AR27: 2021-03-06 | AS27: 226.67 | AT27: 3486.516862 | AU27: =INDEX(AS27:$AS$2080,MATCH(A27,AR27:$AR$2080,0)) -> 230.99 | AV27: -0.1467825293
A28: 2021-02-22 | B28: 683 | C28: 0.00734757163 | D28: 8436 | E28: -0.01178425138 | F28: 25069 | G28: 0.01831663631 | H28: 7298 | I28: -0.006283315304 | J28: 7271 | K28: 0.001651755365 | L28: 2776 | M28: -0.0003601656801 | N28: 18244 | O28: -0.007154786249 | P28: 2874 | Q28: 0.02323230149 | R28: 6217 | S28: -0.0006431902457 | T28: 5779 | U28: -0.006897768339 | V28: 1245 | W28: 0.006446436506 | X28: 5844 | Y28: 0.009628685119 | Z28: 4174 | AA28: 0.002879080684 | AB28: 2021-03-05 | AC28: 14.9382 | AD28: 48428 | AE28: 857957.5912 | AF28: =INDEX(AD28:$AD$1886,MATCH(A28,AB28:$AB$1886,0)) -> 57433.8 | AG28: 0.107610308 | AH28: 2021-03-05 | AI28: 1533.27 | AJ28: 26619.72302 | AK28: =INDEX(AI28:$AI$1867,MATCH(A28,AH28:$AH$1867,0)) -> 1781.99 | AL28: -0.09514140567 | AM28: 2021-03-05 | AN28: 0.4581 | AO28: 0.26189577 | AP28: =INDEX(AN28:$AN$2080,MATCH(A28,AM28:$AM$2080,0)) -> 0.5717 | AQ28: -0.05209985491 | AR28: 2021-03-05 | AS28: 226.37 | AT28: 3996.117882 | AU28: =INDEX(AS28:$AS$2080,MATCH(A28,AR28:$AR$2080,0)) -> 267.51 | AV28: -0.2178437484
A29: 2021-02-19 | B29: 678 | C29: 0.004434597068 | D29: 8536 | E29: 0.01487104001 | F29: 24614 | G29: 0.01411557099 | H29: 7344 | I29: -0.01083434217 | J29: 7259 | K29: -0.01000625167 | L29: 2777 | M29: 0 | N29: 18375 | O29: 0.02697276117 | P29: 2808 | Q29: -0.008510689668 | R29: 6221 | S29: 0.01359464213 | T29: 5819 | U29: 0.006897768339 | V29: 1237 | W29: -0.004033890101 | X29: 5788 | Y29: 0.0001727861775 | Z29: 4162 | AA29: 0.01087098518 | AB29: 2021-03-04 | AC29: 14.9359 | AD29: 50395.1 | AE29: 770426.581 | AF29: =INDEX(AD29:$AD$1886,MATCH(A29,AB29:$AB$1886,0)) -> 51582.2 | AG29: -0.02303601884 | AH29: 2021-03-04 | AI29: 1541.91 | AJ29: 29276.75374 | AK29: =INDEX(AI29:$AI$1867,MATCH(A29,AH29:$AH$1867,0)) -> 1960.16 | AL29: -0.001793606671 | AM29: 2021-03-04 | AN29: 0.4866 | AO29: 0.2759022 | AP29: =INDEX(AN29:$AN$2080,MATCH(A29,AM29:$AM$2080,0)) -> 0.567 | AQ29: 0.1404926202 | AR29: 2021-03-04 | AS29: 229.95 | AT29: 4967.979058 | AU29: =INDEX(AS29:$AS$2080,MATCH(A29,AR29:$AR$2080,0)) -> 332.62 | AV29: 0.5292432447
A30: 2021-02-18 | B30: 675 | C30: -0.004434597068 | D30: 8410 | E30: -0.01170295288 | F30: 24269 | G30: -0.0122042632 | H30: 7424 | I30: -0.001211550259 | J30: 7332 | K30: 0.002047922076 | L30: 2777 | M30: 0 | N30: 17886 | O30: -0.001843318494 | P30: 2832 | Q30: -0.002820876342 | R30: 6137 | S30: -0.007790982437 | T30: 5779 | U30: -0.02241517408 | V30: 1242 | W30: -0.003215436854 | X30: 5787 | Y30: -0.02811327494 | Z30: 4117 | AA30: -0.01518650375 | AB30: 2021-03-03 | AC30: 15.1381 | AD30: 48424.2 | AE30: 788380.1375 | AF30: =INDEX(AD30:$AD$1886,MATCH(A30,AB30:$AB$1886,0)) -> 52079.2 | AG30: 0.05825462888 | AH30: 2021-03-03 | AI30: 1575.85 | AJ30: 29329.31185 | AK30: =INDEX(AI30:$AI$1867,MATCH(A30,AH30:$AH$1867,0)) -> 1937.45 | AL30: 0.04778638767 | AM30: 2021-03-03 | AN30: 0.4503 | AO30: 0.23973972 | AP30: =INDEX(AN30:$AN$2080,MATCH(A30,AM30:$AM$2080,0)) -> 0.5324 | AQ30: 0.02463279951 | AR30: 2021-03-03 | AS30: 241.09 | AT30: 2966.007933 | AU30: =INDEX(AS30:$AS$2080,MATCH(A30,AR30:$AR$2080,0)) -> 195.93 | AV30: 0.1738139814
A31: 2021-02-17 | B31: 678 | C31: -0.02043866768 | D31: 8509 | E31: 0.001058263371 | F31: 24567 | G31: 0.001425691192 | H31: 7433 | I31: -0.002552906996 | J31: 7317 | K31: -0.003819401724 | L31: 2777 | M31: 0.001080886432 | N31: 17919 | O31: 0.0005582226337 | P31: 2840 | Q31: -0.01502736648 | R31: 6185 | S31: 0.001132411348 | T31: 5910 | U31: 0.00491901594 | V31: 1246 | W31: -0.01592390336 | X31: 5952 | Y31: -0.00869861624 | Z31: 4180 | AA31: 0.001196888234 | AB31: 2021-03-02 | AC31: 15.1265 | AD31: 49595.5 | AE31: 743765.467 | AF31: =INDEX(AD31:$AD$1886,MATCH(A31,AB31:$AB$1886,0)) -> 49169.7 | AG31: 0.02568884365 | AH31: 2021-03-02 | AI31: 1492.61 | AJ31: 27960.73019 | AK31: =INDEX(AI31:$AI$1867,MATCH(A31,AH31:$AH$1867,0)) -> 1848.46 | AL31: 0.03742286244 | AM31: 2021-03-02 | AN31: 0.4368 | AO31: 0.2339064 | AP31: =INDEX(AN31:$AN$2080,MATCH(A31,AM31:$AM$2080,0)) -> 0.5355 | AQ31: 0.004304301583 | AR31: 2021-03-02 | AS31: 239.52 | AT31: 2490.880755 | AU31: =INDEX(AS31:$AS$2080,MATCH(A31,AR31:$AR$2080,0)) -> 164.67 | AV31: 0.2359475888
A32: 2021-02-16 | B32: 692 | C32: -0.004325889947 | D32: 8500 | E32: -0.003171436264 | F32: 24532 | G32: -0.004108619631 | H32: 7452 | I32: -0.006420567803 | J32: 7345 | K32: 0.005597666333 | L32: 2774 | M32: 0.000360555259 | N32: 17909 | O32: -0.01869730317 | P32: 2883 | Q32: 0.01467531578 | R32: 6178 | S32: 0.002268677039 | T32: 5881 | U32: 0.005456109017 | V32: 1266 | W32: -0.006299233428 | X32: 6004 | Y32: 0.01510349234 | Z32: 4175 | AA32: 0.008901778979 | AB32: 2021-03-01 | AC32: 15.1222 | AD32: 45164 | AE32: 724902.3159 | AF32: =INDEX(AD32:$AD$1886,MATCH(A32,AB32:$AB$1886,0)) -> 47936.3 | AG32: -0.01464309031 | AH32: 2021-03-01 | AI32: 1564.71 | AJ32: 26933.69675 | AK32: =INDEX(AI32:$AI$1867,MATCH(A32,AH32:$AH$1867,0)) -> 1781.07 | AL32: 0.0007189274811 | AM32: 2021-03-01 | AN32: 0.4472 | AO32: 0.23290176 | AP32: =INDEX(AN32:$AN$2080,MATCH(A32,AM32:$AM$2080,0)) -> 0.5208 | AQ32: 0.02217721695 | AR32: 2021-03-01 | AS32: 254.63 | AT32: 1966.793332 | AU32: =INDEX(AS32:$AS$2080,MATCH(A32,AR32:$AR$2080,0)) -> 130.06 | AV32: 0.0037746068
A33: 2021-02-15 | B33: 695 | C33: 0.002881846375 | D33: 8527 | E33: 0.005173438934 | F33: 24633 | G33: -0.01338783656 | H33: 7500 | I33: -0.001731832845 | J33: 7304 | K33: 0.006042314456 | L33: 2773 | M33: 0 | N33: 18247 | O33: 0.04695592917 | P33: 2841 | Q33: -0.03255135041 | R33: 6164 | S33: 0.01306354306 | T33: 5849 | U33: 0.002053740239 | V33: 1274 | W33: -0.003134798805 | X33: 5914 | Y33: 0.009684894323 | Z33: 4138 | AA33: -0.001690209264 | AB33: 2021-02-28 | AC33: 15.1222 | AD33: 46136.7 | AE33: 735595.2235 | AF33: =INDEX(AD33:$AD$1886,MATCH(A33,AB33:$AB$1886,0)) -> 48643.4 | AG33: 0.01999721103 | AH33: 2021-02-28 | AI33: 1416.05 | AJ33: 26914.34034 | AK33: =INDEX(AI33:$AI$1867,MATCH(A33,AH33:$AH$1867,0)) -> 1779.79 | AL33: -0.0286985155 | AM33: 2021-02-28 | AN33: 0.415 | AO33: 0.2277935 | AP33: =INDEX(AN33:$AN$2080,MATCH(A33,AM33:$AM$2080,0)) -> 0.5489 | AQ33: -0.1567286268 | AR33: 2021-02-28 | AS33: 209.57 | AT33: 1959.383454 | AU33: =INDEX(AS33:$AS$2080,MATCH(A33,AR33:$AR$2080,0)) -> 129.57 | AV33: -0.05539462007
A34: 2021-02-12 | B34: 693 | C34: 0.004338401599 | D34: 8483 | E34: 0.004489610566 | F34: 24965 | G34: -0.01147011659 | H34: 7513 | I34: -0.001197206661 | J34: 7260 | K34: -0.006863444925 | L34: 2773 | M34: -0.0007209805648 | N34: 17410 | O34: -0.01357770873 | P34: 2935 | Q34: 0.01961184481 | R34: 6084 | S34: 0.005273578471 | T34: 5837 | U34: 0.001371507158 | V34: 1278 | W34: 0.02616082604 | X34: 5857 | Y34: -0.00900830431 | Z34: 4145 | AA34: 0.002415460112 | AB34: 2021-02-27 | AC34: 15.0244 | AD34: 46345.6 | AE34: 721031.4731 | AF34: =INDEX(AD34:$AD$1886,MATCH(A34,AB34:$AB$1886,0)) -> 47990.7 | AG34: 0.1000529155 | AH34: 2021-02-27 | AI34: 1459.97 | AJ34: 27697.93213 | AK34: =INDEX(AI34:$AI$1867,MATCH(A34,AH34:$AH$1867,0)) -> 1843.53 | AL34: 0.06499335323 | AM34: 2021-02-27 | AN34: 0.4378 | AO34: 0.26644508 | AP34: =INDEX(AN34:$AN$2080,MATCH(A34,AM34:$AM$2080,0)) -> 0.6086 | AQ34: 0.1710166615 | AR34: 2021-02-27 | AS34: 225.25 | AT34: 2057.59158 | AU34: =INDEX(AS34:$AS$2080,MATCH(A34,AR34:$AR$2080,0)) -> 136.95 | AV34: 0.09587258692
A35: 2021-02-11 | B35: 690 | C35: -0.001448226176 | D35: 8445 | E35: 0.001421969667 | F35: 25253 | G35: -0.004661828923 | H35: 7522 | I35: 0.003462515112 | J35: 7310 | K35: 0.003837724008 | L35: 2775 | M35: 0.0003604253058 | N35: 17648 | O35: 0.005796458805 | P35: 2878 | Q35: 0.001738828468 | R35: 6052 | S35: -0.00214574647 | T35: 5829 | U35: 0.005849982272 | V35: 1245 | W35: 0.0008035355997 | X35: 5910 | Y35: -0.008927878723 | Z35: 4135 | AA35: -0.004102817388 | AB35: 2021-02-26 | AC35: 14.5504 | AD35: 46928.5 | AE35: 652381.7344 | AF35: =INDEX(AD35:$AD$1886,MATCH(A35,AB35:$AB$1886,0)) -> 44836 | AG35: -0.03608276572 | AH35: 2021-02-26 | AI35: 1446.03 | AJ35: 25955.00352 | AK35: =INDEX(AI35:$AI$1867,MATCH(A35,AH35:$AH$1867,0)) -> 1783.8 | AL35: 0.0229700774 | AM35: 2021-02-26 | AN35: 0.4279 | AO35: 0.22456192 | AP35: =INDEX(AN35:$AN$2080,MATCH(A35,AM35:$AM$2080,0)) -> 0.5248 | AQ35: 0.02632573365 | AR35: 2021-02-26 | AS35: 221.68 | AT35: 1810.506272 | AU35: =INDEX(AS35:$AS$2080,MATCH(A35,AR35:$AR$2080,0)) -> 124.43 | AV35: -0.041789139
A36: 2021-02-10 | B36: 691 | C36: 0.001448226176 | D36: 8433 | E36: 0.00344479761 | F36: 25371 | G36: -0.004090789641 | H36: 7496 | I36: 0.00481413072 | J36: 7282 | K36: 0.005784343356 | L36: 2774 | M36: 0 | N36: 17546 | O36: 0.03680257458 | P36: 2873 | Q36: 0.003836098863 | R36: 6065 | S36: 0.01311113297 | T36: 5795 | U36: 0.0003451846772 | V36: 1244 | W36: -0.001606426048 | X36: 5963 | Y36: 0.01793618303 | Z36: 4152 | AA36: -0.004805391275 | AB36: 2021-02-25 | AC36: 14.5425 | AD36: 49697.5 | AE36: 676351.3155 | AF36: =INDEX(AD36:$AD$1886,MATCH(A36,AB36:$AB$1886,0)) -> 46508.6 | AG36: -0.006639509706 | AH36: 2021-02-25 | AI36: 1475.7 | AJ36: 25365.6102 | AK36: =INDEX(AI36:$AI$1867,MATCH(A36,AH36:$AH$1867,0)) -> 1744.24 | AL36: -0.02262262661 | AM36: 2021-02-25 | AN36: 0.4345 | AO36: 0.2187273 | AP36: =INDEX(AN36:$AN$2080,MATCH(A36,AM36:$AM$2080,0)) -> 0.5034 | AQ36: -0.01795312515 | AR36: 2021-02-25 | AS36: 233.89 | AT36: 1886.74395 | AU36: =INDEX(AS36:$AS$2080,MATCH(A36,AR36:$AR$2080,0)) -> 129.74 | AV36: 0.1843275755
A37: 2021-02-09 | B37: 690 | C37: 0.01459879942 | D37: 8404 | E37: 0.008484247583 | F37: 25475 | G37: -0.00141215259 | H37: 7460 | I37: 0.004029555486 | J37: 7240 | K37: 0.006790962277 | L37: 2774 | M37: 0.000721240565 | N37: 16912 | O37: 0.001005708962 | P37: 2862 | Q37: 0.02655493263 | R37: 5986 | S37: 0.002006689637 | T37: 5793 | U37: -0.0003451846772 | V37: 1246 | W37: 0.002410607837 | X37: 5857 | Y37: 0.01583237339 | Z37: 4172 | AA37: -0.00621268426 | AB37: 2021-02-24 | AC37: 14.675 | AD37: 48911.2 | AE37: 680856.8975 | AF37: =INDEX(AD37:$AD$1886,MATCH(A37,AB37:$AB$1886,0)) -> 46395.7 | AG37: 0.1750894813 | AH37: 2021-02-24 | AI37: 1626.58 | AJ37: 25945.987 | AK37: =INDEX(AI37:$AI$1867,MATCH(A37,AH37:$AH$1867,0)) -> 1768.04 | AL37: 0.009854515552 | AM37: 2021-02-24 | AN37: 0.4718 | AO37: 0.2226896 | AP37: =INDEX(AN37:$AN$2080,MATCH(A37,AM37:$AM$2080,0)) -> 0.472 | AQ37: 0.04904770374 | AR37: 2021-02-24 | AS37: 254.36 | AT37: 1583.4325 | AU37: =INDEX(AS37:$AS$2080,MATCH(A37,AR37:$AR$2080,0)) -> 107.9 | AV37: 0.3013054986
A38: 2021-02-08 | B38: 680 | C38: -0.008784829556 | D38: 8333 | E38: 0.005656191745 | F38: 25511 | G38: 0.0125832479 | H38: 7430 | I38: -0.009110459584 | J38: 7191 | K38: -0.0037476621 | L38: 2772 | M38: -0.000721240565 | N38: 16895 | O38: 0.04361270549 | P38: 2787 | Q38: 0.004315001301 | R38: 5974 | S38: 0.01195602354 | T38: 5795 | U38: 0.003457220384 | V38: 1243 | W38: -0.01516995159 | X38: 5765 | Y38: 0.02975309692 | Z38: 4198 | AA38: 0.005493863096 | AB38: 2021-02-23 | AC38: 14.7093 | AD38: 54111.8 | AE38: 571498.962 | AF38: =INDEX(AD38:$AD$1886,MATCH(A38,AB38:$AB$1886,0)) -> 38852.9 | AG38: 0.050403019 | AH38: 2021-02-23 | AI38: 1570.2 | AJ38: 25691.55757 | AK38: =INDEX(AI38:$AI$1867,MATCH(A38,AH38:$AH$1867,0)) -> 1746.62 | AL38: 0.01719770353 | AM38: 2021-02-23 | AN38: 0.4736 | AO38: 0.21203072 | AP38: =INDEX(AN38:$AN$2080,MATCH(A38,AM38:$AM$2080,0)) -> 0.4477 | AQ38: -0.1933755122 | AR38: 2021-02-23 | AS38: 230.99 | AT38: 1174.243419 | AU38: =INDEX(AS38:$AS$2080,MATCH(A38,AR38:$AR$2080,0)) -> 79.83 | AV38: 0.1625999874
A39: 2021-02-05 | B39: 686 | C39: 0.01913229808 | D39: 8286 | E39: 0.0001206927767 | F39: 25192 | G39: -0.005897153615 | H39: 7498 | I39: -0.01745152698 | J39: 7218 | K39: 0.0001385521305 | L39: 2774 | M39: 0.000360555259 | N39: 16174 | O39: 0.01878546208 | P39: 2775 | Q39: 0.01086967224 | R39: 5903 | S39: 0.006458214153 | T39: 5775 | U39: -0.005525829982 | V39: 1262 | W39: 0.03384690537 | X39: 5596 | Y39: -0.008363782184 | Z39: 4175 | AA39: 0.0004791566934 | AB39: 2021-02-22 | AC39: 14.6938 | AD39: 57433.8 | AE39: 543407.581 | AF39: =INDEX(AD39:$AD$1886,MATCH(A39,AB39:$AB$1886,0)) -> 36982.1 | AG39: -0.01115638131 | AH39: 2021-02-22 | AI39: 1781.99 | AJ39: 25253.49937 | AK39: =INDEX(AI39:$AI$1867,MATCH(A39,AH39:$AH$1867,0)) -> 1718.65 | AL39: 0.08147340839 | AM39: 2021-02-22 | AN39: 0.5717 | AO39: 0.257265 | AP39: =INDEX(AN39:$AN$2080,MATCH(A39,AM39:$AM$2080,0)) -> 0.45 | AQ39: 0.04927697146 | AR39: 2021-02-22 | AS39: 267.51 | AT39: 996.97433 | AU39: =INDEX(AS39:$AS$2080,MATCH(A39,AR39:$AR$2080,0)) -> 67.85 | AV39: 0.1931984774
A40: 2021-02-04 | B40: 673 | C40: 0.02406131116 | D40: 8285 | E40: 0.01141066035 | F40: 25341 | G40: -0.01476749843 | H40: 7630 | I40: 0.02239839181 | J40: 7217 | K40: -0.002214533777 | L40: 2773 | M40: 0.002166065829 | N40: 15873 | O40: -0.0003149507128 | P40: 2745 | Q40: 0.03258340818 | R40: 5865 | S40: 0.01166193975 | T40: 5807 | U40: 0.005006484346 | V40: 1220 | W40: 0.02742174312 | X40: 5643 | Y40: 0.02512244091 | Z40: 4173 | AA40: 0.00866431413 | AB40: 2021-02-21 | AC40: 14.5963 | AD40: 55923.7 | AE40: 549503.9868 | AF40: =INDEX(AD40:$AD$1886,MATCH(A40,AB40:$AB$1886,0)) -> 37646.8 | AG40: 0.05597889154 | AH40: 2021-02-21 | AI40: 1935.6 | AJ40: 23277.59539 | AK40: =INDEX(AI40:$AI$1867,MATCH(A40,AH40:$AH$1867,0)) -> 1594.76 | AL40: -0.04379574783 | AM40: 2021-02-21 | AN40: 0.5486 | AO40: 0.24489504 | AP40: =INDEX(AN40:$AN$2080,MATCH(A40,AM40:$AM$2080,0)) -> 0.4464 | AQ40: 0.1844943966 | AR40: 2021-02-21 | AS40: 293.92 | AT40: 816.371059 | AU40: =INDEX(AS40:$AS$2080,MATCH(A40,AR40:$AR$2080,0)) -> 55.93 | AV40: 0.06825242387
A41: 2021-02-03 | B41: 657 | C41: 0.003048782849 | D41: 8191 | E41: 0.003669280046 | F41: 25718 | G41: -0.006356610551 | H41: 7461 | I41: 0.003221911768 | J41: 7233 | K41: 0.008329910723 | L41: 2767 | M41: 0 | N41: 15878 | O41: -0.01289048573 | P41: 2657 | Q41: 0.02091728669 | R41: 5797 | S41: 0.005535388637 | T41: 5778 | U41: 0.0008657259652 | V41: 1187 | W41: 0.002530579166 | X41: 5503 | Y41: 0.02037702447 | Z41: 4137 | AA41: -0.0002416918441 | AB41: 2021-02-20 | AC41: 14.6424 | AD41: 55906.6 | AE41: 519588.4925 | AF41: =INDEX(AD41:$AD$1886,MATCH(A41,AB41:$AB$1886,0)) -> 35485.2 | AG41: 0.05586634962 | AH41: 2021-02-20 | AI41: 1919.53 | AJ41: 24319.70858 | AK41: =INDEX(AI41:$AI$1867,MATCH(A41,AH41:$AH$1867,0)) -> 1660.91 | AL41: 0.09058942853 | AM41: 2021-02-20 | AN41: 0.5175 | AO41: 0.20363625 | AP41: =INDEX(AN41:$AN$2080,MATCH(A41,AM41:$AM$2080,0)) -> 0.3935 | AQ41: -0.02787803259 | AR41: 2021-02-20 | AS41: 255.95 | AT41: 764.918976 | AU41: =INDEX(AS41:$AS$2080,MATCH(A41,AR41:$AR$2080,0)) -> 52.24 | AV41: 0.02284707315
A42: 2021-02-02 | B42: 655 | C42: 0.004590673709 | D42: 8161 | E42: 0.01034619403 | F42: 25882 | G42: -0.01761687718 | H42: 7437 | I42: 0.008100489819 | J42: 7173 | K42: 0.001813996172 | L42: 2767 | M42: -0.001805380523 | N42: 16084 | O42: -0.02000497576 | P42: 2602 | Q42: -0.005748243458 | R42: 5765 | S42: -0.003290331135 | T42: 5773 | U42: 0.02366248339 | V42: 1184 | W42: 0.01446218316 | X42: 5392 | Y42: 0.02288601106 | Z42: 4138 | AA42: 0.0163239098 | AB42: 2021-02-19 | AC42: 14.6605 | AD42: 51582.2 | AE42: 491356.9199 | AF42: =INDEX(AD42:$AD$1886,MATCH(A42,AB42:$AB$1886,0)) -> 33515.7 | AG42: 0.02634552915 | AH42: 2021-02-19 | AI42: 1960.16 | AJ42: 22213.443 | AK42: =INDEX(AI42:$AI$1867,MATCH(A42,AH42:$AH$1867,0)) -> 1515.19 | AL42: 0.1155405882 | AM42: 2021-02-19 | AN42: 0.567 | AO42: 0.2093931 | AP42: =INDEX(AN42:$AN$2080,MATCH(A42,AM42:$AM$2080,0)) -> 0.3693 | AQ42: 0.05702467491 | AR42: 2021-02-19 | AS42: 332.62 | AT42: 748.56513 | AU42: =INDEX(AS42:$AS$2080,MATCH(A42,AR42:$AR$2080,0)) -> 51.06 | AV42: -0.01071404035
A43: 2021-02-01 | B43: 652 | C43: 0 | D43: 8077 | E43: 0.002355129691 | F43: 26342 | G43: 0.005328879845 | H43: 7377 | I43: 0.006527970958 | J43: 7160 | K43: -0.0001396550522 | L43: 2772 | M43: 0 | N43: 16409 | O43: 0.0332104122 | P43: 2617 | Q43: -0.0113982997 | R43: 5784 | S43: 0.005721732125 | T43: 5638 | U43: 0.008907951297 | V43: 1167 | W43: -0.005128216367 | X43: 5270 | Y43: -0.01282068843 | Z43: 4071 | AA43: -0.00122744584 | AB43: 2021-02-18 | AC43: 14.4551 | AD43: 52079.2 | AE43: 478580.8963 | AF43: =INDEX(AD43:$AD$1886,MATCH(A43,AB43:$AB$1886,0)) -> 33108.1 | AG43: -0.008023158756 | AH43: 2021-02-18 | AI43: 1937.45 | AJ43: 19789.6101 | AK43: =INDEX(AI43:$AI$1867,MATCH(A43,AH43:$AH$1867,0)) -> 1369.04 | AL43: -0.009798156569 | AM43: 2021-02-18 | AN43: 0.5324 | AO43: 0.1977866 | AP43: =INDEX(AN43:$AN$2080,MATCH(A43,AM43:$AM$2080,0)) -> 0.3715 | AQ43: 0.2691270214 | AR43: 2021-02-18 | AS43: 195.93 | AT43: 746.027711 | AU43: =INDEX(AS43:$AS$2080,MATCH(A43,AR43:$AR$2080,0)) -> 51.61 | AV43: 0.1860098071
A44: 2021-01-29 | B44: 652 | C44: -0.007639456558 | D44: 8058 | E44: -0.01551564188 | F44: 26202 | G44: -0.00646709752 | H44: 7329 | I44: -0.007070049844 | J44: 7161 | K44: 0.002096876424 | L44: 2772 | M44: 0.001082837139 | N44: 15873 | O44: -0.008344099355 | P44: 2647 | Q44: -0.003394308369 | R44: 5751 | S44: -0.01347170633 | T44: 5588 | U44: -0.006777268673 | V44: 1173 | W44: -0.0152287207 | X44: 5338 | Y44: -0.02333007129 | Z44: 4076 | AA44: -0.01461302185 | AB44: 2021-02-17 | AC44: 14.4551 | AD44: 49169.7 | AE44: 482436.0715 | AF44: =INDEX(AD44:$AD$1886,MATCH(A44,AB44:$AB$1886,0)) -> 33374.8 | AG44: 0.08667637251 | AH44: 2021-02-17 | AI44: 1848.46 | AJ44: 19984.46485 | AK44: =INDEX(AI44:$AI$1867,MATCH(A44,AH44:$AH$1867,0)) -> 1382.52 | AL44: 0.03030797554 | AM44: 2021-02-17 | AN44: 0.5355 | AO44: 0.1511181 | AP44: =INDEX(AN44:$AN$2080,MATCH(A44,AM44:$AM$2080,0)) -> 0.2822 | AQ44: 0.09412301911 | AR44: 2021-02-17 | AS44: 164.67 | AT44: 619.401035 | AU44: =INDEX(AS44:$AS$2080,MATCH(A44,AR44:$AR$2080,0)) -> 42.85 | AV44: 0.007495935778
A45: 2021-01-28 | B45: 657 | C45: -0.009090971701 | D45: 8184 | E45: 0.00183452629 | F45: 26372 | G45: 0.001973734794 | H45: 7381 | I45: 0.0006776445336 | J45: 7146 | K45: -0.0001399286366 | L45: 2769 | M45: -0.001082837139 | N45: 16006 | O45: 0.01586935066 | P45: 2656 | Q45: -0.008622358948 | R45: 5829 | S45: 0.01138728661 | T45: 5626 | U45: -0.02162721657 | V45: 1191 | W45: 0.005050515786 | X45: 5464 | Y45: -0.007112275809 | Z45: 4136 | AA45: -0.01010352593 | AB45: 2021-02-16 | AC45: 14.5501 | AD45: 47936.3 | AE45: 442381.2404 | AF45: =INDEX(AD45:$AD$1886,MATCH(A45,AB45:$AB$1886,0)) -> 30404 | AG45: -0.06659305838 | AH45: 2021-02-16 | AI45: 1781.07 | AJ45: 19387.86275 | AK45: =INDEX(AI45:$AI$1867,MATCH(A45,AH45:$AH$1867,0)) -> 1332.49 | AL45: 0.0614945374 | AM45: 2021-02-16 | AN45: 0.5208 | AO45: 0.13754328 | AP45: =INDEX(AN45:$AN$2080,MATCH(A45,AM45:$AM$2080,0)) -> 0.2641 | AQ45: -0.005254548717 | AR45: 2021-02-16 | AS45: 130.06 | AT45: 618.815753 | AU45: =INDEX(AS45:$AS$2080,MATCH(A45,AR45:$AR$2080,0)) -> 42.53 | AV45: 0.03688157475
A46: 2021-01-27 | B46: 663 | C46: 0.003021150334 | D46: 8169 | E46: -0.0167520305 | F46: 26320 | G46: 0.002739310798 | H46: 7376 | I46: 0.003803318901 | J46: 7147 | K46: 0 | L46: 2772 | M46: 0.003614026341 | N46: 15754 | O46: -0.01998432623 | P46: 2679 | Q46: 0.00336511815 | R46: 5763 | S46: -0.02162803151 | T46: 5749 | U46: -0.0112428755 | V46: 1185 | W46: 0.01017820492 | X46: 5503 | Y46: -0.01299891927 | Z46: 4178 | AA46: -0.01142325606 | AB46: 2021-02-15 | AC46: 14.5481 | AD46: 48643.4 | AE46: 472843.801 | AF46: =INDEX(AD46:$AD$1886,MATCH(A46,AB46:$AB$1886,0)) -> 32502.1 | AG46: 0.002142542432 | AH46: 2021-02-15 | AI46: 1779.79 | AJ46: 18231.53344 | AK46: =INDEX(AI46:$AI$1867,MATCH(A46,AH46:$AH$1867,0)) -> 1253.19 | AL46: -0.08520109624 | AM46: 2021-02-15 | AN46: 0.5489 | AO46: 0.13826791 | AP46: =INDEX(AN46:$AN$2080,MATCH(A46,AM46:$AM$2080,0)) -> 0.2519 | AQ46: -0.1442351128 | AR46: 2021-02-15 | AS46: 129.57 | AT46: 596.326619 | AU46: =INDEX(AS46:$AS$2080,MATCH(A46,AR46:$AR$2080,0)) -> 40.99 | AV46: -0.01693315738
A47: 2021-01-26 | B47: 661 | C47: 0.007593050908 | D47: 8307 | E47: -0.01825064076 | F47: 26248 | G47: -0.01162825822 | H47: 7348 | I47: -0.0009521867005 | J47: 7147 | K47: 0.001820601301 | L47: 2762 | M47: -0.002169982768 | N47: 16072 | O47: -0.01989778278 | P47: 2670 | Q47: 0.01890415464 | R47: 5889 | S47: -0.01198427711 | T47: 5814 | U47: -0.01806764676 | V47: 1173 | W47: 0.01200700531 | X47: 5575 | Y47: -0.01371714748 | Z47: 4226 | AA47: -0.004956932137 | AB47: 2021-02-14 | AC47: 14.6294 | AD47: 47168.7 | AE47: 471831.7976 | AF47: =INDEX(AD47:$AD$1886,MATCH(A47,AB47:$AB$1886,0)) -> 32252.3 | AG47: -0.008370330201 | AH47: 2021-02-14 | AI47: 1805.08 | AJ47: 19852.97356 | AK47: =INDEX(AI47:$AI$1867,MATCH(A47,AH47:$AH$1867,0)) -> 1357.06 | AL47: 0.01564206848 | AM47: 2021-02-14 | AN47: 0.5942 | AO47: 0.15972096 | AP47: =INDEX(AN47:$AN$2080,MATCH(A47,AM47:$AM$2080,0)) -> 0.2688 | AQ47: -0.05803074276 | AR47: 2021-02-14 | AS47: 136.43 | AT47: 609.899686 | AU47: =INDEX(AS47:$AS$2080,MATCH(A47,AR47:$AR$2080,0)) -> 41.69 | AV47: 0.001680470927
A48: 2021-01-25 | B48: 656 | C48: -0.006079046076 | D48: 8460 | E48: 0.02744165963 | F48: 26555 | G48: 0.0190467466 | H48: 7355 | I48: 0.001632875584 | J48: 7134 | K48: 0.0004206098905 | L48: 2768 | M48: -0.0007222824438 | N48: 16395 | O48: 0.01474681102 | P48: 2620 | Q48: 0 | R48: 5960 | S48: 0.01368380166 | T48: 5920 | U48: 0.0315743456 | V48: 1159 | W48: -0.01030052026 | X48: 5652 | Y48: 0.04007033088 | Z48: 4247 | AA48: 0.0135121174 | AB48: 2021-02-13 | AC48: 14.7574 | AD48: 47371.7 | AE48: 475797.7606 | AF48: =INDEX(AD48:$AD$1886,MATCH(A48,AB48:$AB$1886,0)) -> 32241.3 | AG48: 0.04661985285 | AH48: 2021-02-13 | AI48: 1814.11 | AJ48: 19544.84813 | AK48: =INDEX(AI48:$AI$1867,MATCH(A48,AH48:$AH$1867,0)) -> 1324.41 | AL48: 0.07092643517 | AM48: 2021-02-13 | AN48: 0.629 | AO48: 0.1692639 | AP48: =INDEX(AN48:$AN$2080,MATCH(A48,AM48:$AM$2080,0)) -> 0.2691 | AQ48: 0.019314151 | AR48: 2021-02-13 | AS48: 133.45 | AT48: 614.202988 | AU48: =INDEX(AS48:$AS$2080,MATCH(A48,AR48:$AR$2080,0)) -> 41.62 | AV48: 0.01842923158
A49: 2021-01-22 | B49: 660 | C49: -0.0105502109 | D49: 8231 | E49: 0.005115723702 | F49: 26054 | G49: 0.004269483571 | H49: 7343 | I49: 0.0001361933948 | J49: 7131 | K49: 0.0005610885264 | L49: 2770 | M49: 0 | N49: 16155 | O49: -0.01389252735 | P49: 2620 | Q49: -0.01815481028 | R49: 5879 | S49: -0.005597504226 | T49: 5736 | U49: -0.001567808003 | V49: 1171 | W49: -0.02028810077 | X49: 5430 | Y49: 0.0229124301 | Z49: 4190 | AA49: 0.007666544498 | AB49: 2021-02-12 | AC49: 14.7242 | AD49: 47990.7 | AE49: 454125.2488 | AF49: =INDEX(AD49:$AD$1886,MATCH(A49,AB49:$AB$1886,0)) -> 30842.1 | AG49: -0.1505703409 | AH49: 2021-02-12 | AI49: 1843.53 | AJ49: 18206.62054 | AK49: =INDEX(AI49:$AI$1867,MATCH(A49,AH49:$AH$1867,0)) -> 1236.51 | AL49: 0.0869772931 | AM49: 2021-02-12 | AN49: 0.6086 | AO49: 0.16602608 | AP49: =INDEX(AN49:$AN$2080,MATCH(A49,AM49:$AM$2080,0)) -> 0.2728 | AQ49: 0.1625433625 | AR49: 2021-02-12 | AS49: 136.95 | AT49: 601.630812 | AU49: =INDEX(AS49:$AS$2080,MATCH(A49,AR49:$AR$2080,0)) -> 40.86 | AV49: 0.05560481436
A50: 2021-01-21 | B50: 667 | C50: 0.004507896439 | D50: 8189 | E50: -0.0008544400886 | F50: 25943 | G50: -0.00296364938 | H50: 7342 | I50: 0.002318130172 | J50: 7127 | K50: 0.0001403213361 | L50: 2770 | M50: 0 | N50: 16381 | O50: 0.02372092196 | P50: 2668 | Q50: -0.01229294676 | R50: 5912 | S50: 0.002710028759 | T50: 5745 | U50: -0.0003480682249 | V50: 1195 | W50: -0.003341690662 | X50: 5307 | Y50: -0.01291789938 | Z50: 4158 | AA50: 0.001444043572 | AB50: 2021-02-11 | AC50: 14.8809 | AD50: 44836 | AE50: 527919.2727 | AF50: =INDEX(AD50:$AD$1886,MATCH(A50,AB50:$AB$1886,0)) -> 35476.3 | AG50: -0.01919348309 | AH50: 2021-02-11 | AI50: 1783.8 | AJ50: 16689.97101 | AK50: =INDEX(AI50:$AI$1867,MATCH(A50,AH50:$AH$1867,0)) -> 1121.57 | AL50: -0.2134564461 | AM50: 2021-02-11 | AN50: 0.5248 | AO50: 0.14111872 | AP50: =INDEX(AN50:$AN$2080,MATCH(A50,AM50:$AM$2080,0)) -> 0.2689 | AQ50: -0.05607550023 | AR50: 2021-02-11 | AS50: 124.43 | AT50: 575.146785 | AU50: =INDEX(AS50:$AS$2080,MATCH(A50,AR50:$AR$2080,0)) -> 38.65 | AV50: -0.09754219248
A51: 2021-01-20 | B51: 664 | C51: -0.00600602406 | D51: 8196 | E51: 0.005382934456 | F51: 26020 | G51: 0.007754818083 | H51: 7325 | I51: 0.005201216215 | J51: 7126 | K51: 0.002951305635 | L51: 2770 | M51: 0.0003610760104 | N51: 15997 | O51: 0.01258115607 | P51: 2701 | Q51: 0.01004659613 | R51: 5896 | S51: 0.007832493643 | T51: 5747 | U51: 0.008913805416 | V51: 1199 | W51: -0.004991690897 | X51: 5376 | Y51: 0.01972450535 | Z51: 4152 | AA51: 0.005312738891 | AB51: 2021-02-10 | AC51: 14.9474 | AD51: 46508.6 | AE51: 538149.7475 | AF51: =INDEX(AD51:$AD$1886,MATCH(A51,AB51:$AB$1886,0)) -> 36002.9 | AG51: -0.01008326397 | AH51: 2021-02-10 | AI51: 1744.24 | AJ51: 20661.3426 | AK51: =INDEX(AI51:$AI$1867,MATCH(A51,AH51:$AH$1867,0)) -> 1382.27 | AL51: 0.01032809074 | AM51: 2021-02-10 | AN51: 0.5034 | AO51: 0.1492581 | AP51: =INDEX(AN51:$AN$2080,MATCH(A51,AM51:$AM$2080,0)) -> 0.2965 | AQ51: 0.07185366031 | AR51: 2021-02-10 | AS51: 129.74 | AT51: 636.908714 | AU51: =INDEX(AS51:$AS$2080,MATCH(A51,AR51:$AR$2080,0)) -> 42.61 | AV51: -0.004215462917
A52: 2021-01-19 | B52: 668 | C52: 0.02271104426 | D52: 8152 | E52: 0.004302668141 | F52: 25819 | G52: -0.01716467216 | H52: 7287 | I52: -0.0002744237119 | J52: 7105 | K52: -0.002670603878 | L52: 2769 | M52: 0 | N52: 15797 | O52: -0.01095452909 | P52: 2674 | Q52: 0.01317542116 | R52: 5850 | S52: 0.004626068389 | T52: 5696 | U52: -0.009087794107 | V52: 1205 | W52: 0.009170551972 | X52: 5271 | Y52: -0.002084716002 | Z52: 4130 | AA52: -0.01704518521 | AB52: 2021-02-09 | AC52: 14.8472 | AD52: 46395.7 | AE52: 543603.503 | AF52: =INDEX(AD52:$AD$1886,MATCH(A52,AB52:$AB$1886,0)) -> 36613.2 | AG52: 0.02135540379 | AH52: 2021-02-09 | AI52: 1768.04 | AJ52: 20449.04856 | AK52: =INDEX(AI52:$AI$1867,MATCH(A52,AH52:$AH$1867,0)) -> 1377.3 | AL52: 0.09117440355 | AM52: 2021-02-09 | AN52: 0.472 | AO52: 0.1389096 | AP52: =INDEX(AN52:$AN$2080,MATCH(A52,AM52:$AM$2080,0)) -> 0.2943 | AQ52: 0.08566809604 | AR52: 2021-02-09 | AS52: 107.9 | AT52: 635.311688 | AU52: =INDEX(AS52:$AS$2080,MATCH(A52,AR52:$AR$2080,0)) -> 42.79 | AV52: -0.05810574613
A53: 2021-01-18 | B53: 653 | C53: -0.007627802049 | D53: 8117 | E53: 0.009282819304 | F53: 26266 | G53: 0.0001522997262 | H53: 7289 | I53: -0.002466430409 | J53: 7124 | K53: 0.004501977215 | L53: 2769 | M53: 0 | N53: 15971 | O53: -0.01269226271 | P53: 2639 | Q53: -0.02728631256 | R53: 5823 | S53: -0.005821934253 | T53: 5748 | U53: 0.002787458251 | V53: 1194 | W53: -0.0008371704131 | X53: 5282 | Y53: -0.01166962236 | Z53: 4201 | AA53: 0 | AB53: 2021-02-08 | AC53: 14.8472 | AD53: 38852.9 | AE53: 532117.7091 | AF53: =INDEX(AD53:$AD$1886,MATCH(A53,AB53:$AB$1886,0)) -> 35839.6 | AG53: -0.09972201995 | AH53: 2021-02-08 | AI53: 1746.62 | AJ53: 18667.08762 | AK53: =INDEX(AI53:$AI$1867,MATCH(A53,AH53:$AH$1867,0)) -> 1257.28 | AL53: 0.05966523729 | AM53: 2021-02-08 | AN53: 0.4477 | AO53: 0.12750496 | AP53: =INDEX(AN53:$AN$2080,MATCH(A53,AM53:$AM$2080,0)) -> 0.2848 | AQ53: 0.0842119571 | AR53: 2021-02-08 | AS53: 79.83 | AT53: 673.32052 | AU53: =INDEX(AS53:$AS$2080,MATCH(A53,AR53:$AR$2080,0)) -> 45.35 | AV53: 0.1027912355
A54: 2021-01-15 | B54: 658 | C54: 0 | D54: 8042 | E54: 0.0001243549091 | F54: 26262 | G54: -0.0003045762606 | H54: 7307 | I54: 0.000136864436 | J54: 7092 | K54: 0.00395592491 | L54: 2769 | M54: 0.0003612064334 | N54: 16175 | O54: -0.008066297854 | P54: 2712 | Q54: -0.02116095012 | R54: 5857 | S54: -0.003408900523 | T54: 5732 | U54: -0.006260890017 | V54: 1195 | W54: 0 | X54: 5344 | Y54: 0.005817788766 | Z54: 4201 | AA54: -0.005459954217 | AB54: 2021-02-07 | AC54: 15.0072 | AD54: 39256.6 | AE54: 587917.565 | AF54: =INDEX(AD54:$AD$1886,MATCH(A54,AB54:$AB$1886,0)) -> 39175.7 | AG54: 0.05060052309 | AH54: 2021-02-07 | AI54: 1614.23 | AJ54: 17585.88718 | AK54: =INDEX(AI54:$AI$1867,MATCH(A54,AH54:$AH$1867,0)) -> 1171.83 | AL54: -0.03527440798 | AM54: 2021-02-07 | AN54: 0.418 | AO54: 0.1172072 | AP54: =INDEX(AN54:$AN$2080,MATCH(A54,AM54:$AM$2080,0)) -> 0.2804 | AQ54: -0.10135896 | AR54: 2021-02-07 | AS54: 68.59 | AT54: 614.094624 | AU54: =INDEX(AS54:$AS$2080,MATCH(A54,AR54:$AR$2080,0)) -> 40.92 | AV54: -0.02103813538
A55: 2021-01-14 | B55: 658 | C55: 0 | D55: 8041 | E55: 0.01188479617 | F55: 26270 | G55: -0.0118066913 | H55: 7306 | I55: -0.001094391354 | J55: 7064 | K55: 0.0004247787674 | L55: 2768 | M55: 0 | N55: 16306 | O55: 0.01128631426 | P55: 2770 | Q55: 0.006156094039 | R55: 5877 | S55: 0.005973223665 | T55: 5768 | U55: 0.007832256556 | V55: 1195 | W55: -0.009991756732 | X55: 5313 | Y55: 0.001883949314 | Z55: 4224 | AA55: -0.0026007817 | AB55: 2021-02-06 | AC55: 14.9512 | AD55: 38297.6 | AE55: 558908.7486 | AF55: =INDEX(AD55:$AD$1886,MATCH(A55,AB55:$AB$1886,0)) -> 37382.2 | AG55: 0.09259839651 | AH55: 2021-02-06 | AI55: 1677.85 | AJ55: 18217.28964 | AK55: =INDEX(AI55:$AI$1867,MATCH(A55,AH55:$AH$1867,0)) -> 1218.45 | AL55: 0.07470727353 | AM55: 2021-02-06 | AN55: 0.4391 | AO55: 0.12971014 | AP55: =INDEX(AN55:$AN$2080,MATCH(A55,AM55:$AM$2080,0)) -> 0.2954 | AQ55: -0.05846709239 | AR55: 2021-02-06 | AS55: 72.73 | AT55: 624.810648 | AU55: =INDEX(AS55:$AS$2080,MATCH(A55,AR55:$AR$2080,0)) -> 41.79 | AV55: 0.04028373309
A56: 2021-01-13 | B56: 658 | C56: 0.01069528912 | D56: 7946 | E56: -0.006897876476 | F56: 26582 | G56: -0.0004889331951 | H56: 7314 | I56: -0.0005467468698 | J56: 7061 | K56: 0.0005666525155 | L56: 2768 | M56: -0.0003612064334 | N56: 16123 | O56: 0.03214292342 | P56: 2753 | Q56: -0.0007262164444 | R56: 5842 | S56: -0.003076399623 | T56: 5723 | U56: -0.01112087916 | V56: 1207 | W56: -0.004958687847 | X56: 5303 | Y56: -0.001695714019 | Z56: 4235 | AA56: -0.009400774285 | AB56: 2021-02-05 | AC56: 14.9512 | AD56: 36982.1 | AE56: 509478.5863 | AF56: =INDEX(AD56:$AD$1886,MATCH(A56,AB56:$AB$1886,0)) -> 34076.1 | AG56: -0.05040982479 | AH56: 2021-02-05 | AI56: 1718.65 | AJ56: 16905.91989 | AK56: =INDEX(AI56:$AI$1867,MATCH(A56,AH56:$AH$1867,0)) -> 1130.74 | AL56: 0.07213264456 | AM56: 2021-02-05 | AN56: 0.45 | AO56: 0.13752 | AP56: =INDEX(AN56:$AN$2080,MATCH(A56,AM56:$AM$2080,0)) -> 0.3056 | AQ56: 0.0532130196 | AR56: 2021-02-05 | AS56: 67.85 | AT56: 600.141168 | AU56: =INDEX(AS56:$AS$2080,MATCH(A56,AR56:$AR$2080,0)) -> 40.14 | AV56: 0.05189662848
A57: 2021-01-12 | B57: 651 | C57: 0 | D57: 8001 | E57: -0.002247191957 | F57: 26595 | G57: -0.01248054463 | H57: 7318 | I57: 0.005893253539 | J57: 7057 | K57: 0.0007087674831 | L57: 2769 | M57: 0.0003612064334 | N57: 15613 | O57: 0.009459834373 | P57: 2755 | Q57: 0.03059018693 | R57: 5860 | S57: -0.002556456441 | T57: 5787 | U57: -0.001036269523 | V57: 1213 | W57: 0.002476270353 | X57: 5312 | Y57: 0.01212136053 | Z57: 4275 | AA57: -0.0100082297 | AB57: 2021-02-04 | AC57: 15.0747 | AD57: 37646.8 | AE57: 535819.6592 | AF57: =INDEX(AD57:$AD$1886,MATCH(A57,AB57:$AB$1886,0)) -> 35544.3 | AG57: -0.07972110843 | AH57: 2021-02-04 | AI57: 1594.76 | AJ57: 15729.39422 | AK57: =INDEX(AI57:$AI$1867,MATCH(A57,AH57:$AH$1867,0)) -> 1043.43 | AL57: -0.05167154609 | AM57: 2021-02-04 | AN57: 0.4464 | AO57: 0.13039344 | AP57: =INDEX(AN57:$AN$2080,MATCH(A57,AM57:$AM$2080,0)) -> 0.2921 | AQ57: 0.1371499451 | AR57: 2021-02-04 | AS57: 55.93 | AT57: 574.496817 | AU57: =INDEX(AS57:$AS$2080,MATCH(A57,AR57:$AR$2080,0)) -> 38.11 | AV57: -0.006799189373
A58: 2021-01-11 | B58: 651 | C58: -0.007651146736 | D58: 8019 | E58: 0.01419176095 | F58: 26929 | G58: 0.004689951275 | H58: 7275 | I58: -0.003704470176 | J58: 7052 | K58: 0.002413573969 | L58: 2768 | M58: 0.00144613185 | N58: 15466 | O58: -0.04278050472 | P58: 2672 | Q58: -0.03926389509 | R58: 5875 | S58: 0.001362630086 | T58: 5793 | U58: 0.008494460369 | V58: 1210 | W58: -0.0220687338 | X58: 5248 | Y58: 0.00381825588 | Z58: 4318 | AA58: 0.0100082297 | AB58: 2021-02-03 | AC58: 15.1938 | AD58: 35485.2 | AE58: 580284.6484 | AF58: =INDEX(AD58:$AD$1886,MATCH(A58,AB58:$AB$1886,0)) -> 38192.2 | AG58: -0.03065844229 | AH58: 2021-02-03 | AI58: 1660.91 | AJ58: 16563.52107 | AK58: =INDEX(AI58:$AI$1867,MATCH(A58,AH58:$AH$1867,0)) -> 1090.15 | AL58: -0.1139694476 | AM58: 2021-02-03 | AN58: 0.3935 | AO58: 0.11368215 | AP58: =INDEX(AN58:$AN$2080,MATCH(A58,AM58:$AM$2080,0)) -> 0.2889 | AQ58: -0.04871897318 | AR58: 2021-02-03 | AS58: 52.24 | AT58: 582.986106 | AU58: =INDEX(AS58:$AS$2080,MATCH(A58,AR58:$AR$2080,0)) -> 38.37 | AV58: -0.09987245798
A59: 2021-01-08 | B59: 656 | C59: 0.01691047215 | D59: 7906 | E59: 0.01375467431 | F59: 26803 | G59: -0.03205179009 | H59: 7302 | I59: -0.005054310329 | J59: 7035 | K59: 0.0009955202415 | L59: 2764 | M59: -0.001084794899 | N59: 16142 | O59: -0.02671226336 | P59: 2779 | Q59: 0.0388897136 | R59: 5867 | S59: 0.01010715242 | T59: 5744 | U59: 0.01951367183 | V59: 1237 | W59: 0.02787065642 | X59: 5228 | Y59: 0.03404666945 | Z59: 4275 | AA59: 0.0004679457268 | AB59: 2021-02-02 | AC59: 15.1634 | AD59: 33515.7 | AE59: 598350.7967 | AF59: =INDEX(AD59:$AD$1886,MATCH(A59,AB59:$AB$1886,0)) -> 39460.2 | AG59: 0.06905008497 | AH59: 2021-02-02 | AI59: 1515.19 | AJ59: 18563.03428 | AK59: =INDEX(AI59:$AI$1867,MATCH(A59,AH59:$AH$1867,0)) -> 1224.2 | AL59: -0.002137661138 | AM59: 2021-02-02 | AN59: 0.3693 | AO59: 0.11935776 | AP59: =INDEX(AN59:$AN$2080,MATCH(A59,AM59:$AM$2080,0)) -> 0.3232 | AQ59: -0.01456559702 | AR59: 2021-02-02 | AS59: 51.06 | AT59: 642.92816 | AU59: =INDEX(AS59:$AS$2080,MATCH(A59,AR59:$AR$2080,0)) -> 42.4 | AV59: -0.02446248947
A60: 2021-01-07 | B60: 645 | C60: 0.01248066122 | D60: 7798 | E60: 0.01160854001 | F60: 27676 | G60: 0.01115462561 | H60: 7339 | I60: 0.0001362676298 | J60: 7028 | K60: 0.00213660077 | L60: 2767 | M60: 0.0003614675622 | N60: 16579 | O60: 0.03031184522 | P60: 2673 | Q60: -0.03130434221 | R60: 5808 | S60: 0.01719240054 | T60: 5633 | U60: 0.01646717003 | V60: 1203 | W60: 0.02696035238 | X60: 5053 | Y60: 0.04017901901 | Z60: 4273 | AA60: 0.0313788521 | AB60: 2021-02-01 | AC60: 15.1775 | AD60: 33108.1 | AE60: 558428.793 | AF60: =INDEX(AD60:$AD$1886,MATCH(A60,AB60:$AB$1886,0)) -> 36793.2 | AG60: 0.07655082482 | AH60: 2021-02-01 | AI60: 1369.04 | AJ60: 18602.7582 | AK60: =INDEX(AI60:$AI$1867,MATCH(A60,AH60:$AH$1867,0)) -> 1225.68 | AL60: 0.0126149917 | AM60: 2021-02-01 | AN60: 0.3715 | AO60: 0.121109 | AP60: =INDEX(AN60:$AN$2080,MATCH(A60,AM60:$AM$2080,0)) -> 0.326 | AQ60: -0.01969649461 | AR60: 2021-02-01 | AS60: 51.61 | AT60: 659.462375 | AU60: =INDEX(AS60:$AS$2080,MATCH(A60,AR60:$AR$2080,0)) -> 43.45 | AV60: 0.02990178395
A61: 2021-01-06 | B61: 637 | C61: 0.004720701135 | D61: 7708 | E61: 0.003639203393 | F61: 27369 | G61: 0.002597546597 | H61: 7338 | I61: 0.004233533124 | J61: 7013 | K61: 0.0005705320366 | L61: 2766 | M61: -0.0003614675622 | N61: 16084 | O61: 0.01946197406 | P61: 2758 | Q61: 0.003632405011 | R61: 5709 | S61: 0.01999182018 | T61: 5541 | U61: 0.01015789616 | V61: 1171 | W61: 0.007715426186 | X61: 4854 | Y61: 0.03757394456 | Z61: 4141 | AA61: 0.01361557625 | AB61: 2021-01-31 | AC61: 15.2178 | AD61: 34283.1 | AE61: 517275.8487 | AF61: =INDEX(AD61:$AD$1886,MATCH(A61,AB61:$AB$1886,0)) -> 33991.5 | AG61: 0.05966858984 | AH61: 2021-01-31 | AI61: 1314.99 | AJ61: 18369.55856 | AK61: =INDEX(AI61:$AI$1867,MATCH(A61,AH61:$AH$1867,0)) -> 1207.11 | AL61: 0.09290980234 | AM61: 2021-01-31 | AN61: 0.4923 | AO61: 0.12351807 | AP61: =INDEX(AN61:$AN$2080,MATCH(A61,AM61:$AM$2080,0)) -> 0.2509 | AQ61: 0.2128449992 | AR61: 2021-01-31 | AS61: 44.28 | AT61: 641.734626 | AU61: =INDEX(AS61:$AS$2080,MATCH(A61,AR61:$AR$2080,0)) -> 42.17 | AV61: 0.01048877316
A62: 2021-01-05 | B62: 634 | C62: -0.01098050248 | D62: 7680 | E62: 0.01363419128 | F62: 27298 | G62: 0.02800970599 | H62: 7307 | I62: -0.005187016817 | J62: 7009 | K62: 0.0004281127429 | L62: 2767 | M62: 0.0007230658305 | N62: 15774 | O62: -0.01115850821 | P62: 2748 | Q62: 0.01097705863 | R62: 5596 | S62: 0.005195747602 | T62: 5485 | U62: 0.02585554925 | V62: 1162 | W62: -0.0212864572 | X62: 4675 | Y62: 0.02490653921 | Z62: 4085 | AA62: 0.01828114152 | AB62: 2021-01-30 | AC62: 15.2178 | AD62: 34301.8 | AE62: 487313.5223 | AF62: =INDEX(AD62:$AD$1886,MATCH(A62,AB62:$AB$1886,0)) -> 32022.6 | AG62: -0.01891364842 | AH62: 2021-01-30 | AI62: 1376.12 | AJ62: 16739.73218 | AK62: =INDEX(AI62:$AI$1867,MATCH(A62,AH62:$AH$1867,0)) -> 1100.01 | AL62: 0.06578320688 | AM62: 2021-01-30 | AN62: 0.4402 | AO62: 0.09983736 | AP62: =INDEX(AN62:$AN$2080,MATCH(A62,AM62:$AM$2080,0)) -> 0.2268 | AQ62: 0.401888185 | AR62: 2021-01-30 | AS62: 44.77 | AT62: 635.038794 | AU62: =INDEX(AS62:$AS$2080,MATCH(A62,AR62:$AR$2080,0)) -> 41.73 | AV62: 0.0193570041
A63: 2021-01-04 | B63: 641 | C63: -0.004669269184 | D63: 7576 | E63: 0.007951274333 | F63: 26544 | G63: 0.01648535074 | H63: 7345 | I63: 0.002044293727 | J63: 7006 | K63: -0.002708290445 | L63: 2765 | M63: 0.0003617290689 | N63: 15951 | O63: 0.03847119786 | P63: 2718 | Q63: -0.02363316681 | R63: 5567 | S63: 0.01940751944 | T63: 5345 | U63: 0.01565036186 | V63: 1187 | W63: -0.02084277202 | X63: 4560 | Y63: -0.005685560909 | Z63: 4011 | AA63: 0.002246350626 | AB63: 2021-01-29 | AC63: 15.0678 | AD63: 33374.8 | AE63: 496618.1134 | AF63: =INDEX(AD63:$AD$1886,MATCH(A63,AB63:$AB$1886,0)) -> 32958.9 | AG63: 0.1208642812 | AH63: 2021-01-29 | AI63: 1382.52 | AJ63: 15673.97759 | AK63: =INDEX(AI63:$AI$1867,MATCH(A63,AH63:$AH$1867,0)) -> 1040.23 | AL63: 0.3318852501 | AM63: 2021-01-29 | AN63: 0.2822 | AO63: 0.06679674 | AP63: =INDEX(AN63:$AN$2080,MATCH(A63,AM63:$AM$2080,0)) -> 0.2367 | AQ63: 0.1403636947 | AR63: 2021-01-29 | AS63: 42.85 | AT63: 616.725054 | AU63: =INDEX(AS63:$AS$2080,MATCH(A63,AR63:$AR$2080,0)) -> 40.93 | AV63: 0.09072748848
A64: 2020-12-31 | B64: 644 | C64: 0.006230549751 | D64: 7516 | E64: -0.00491075378 | F64: 26110 | G64: 0.006031172845 | H64: 7330 | I64: 0.005197659082 | J64: 7025 | K64: -0.004686510033 | L64: 2764 | M64: -0.0003617290689 | N64: 15349 | O64: 0.008571387577 | P64: 2783 | Q64: -0.00894300362 | R64: 5460 | S64: -0.003656311203 | T64: 5262 | U64: 0.002664130976 | V64: 1212 | W64: -0.007398307481 | X64: 4586 | Y64: 0.006124253612 | Z64: 4002 | AA64: -0.004736391754 | AB64: 2021-01-28 | AC64: 15.2442 | AD64: 30404 | AE64: 440080.2365 | AF64: =INDEX(AD64:$AD$1886,MATCH(A64,AB64:$AB$1886,0)) -> 28868.7 | AG64: 0.05898623268 | AH64: 2021-01-28 | AI64: 1332.49 | AJ64: 11247.17076 | AK64: =INDEX(AI64:$AI$1867,MATCH(A64,AH64:$AH$1867,0)) -> 737.8 | AL64: -0.01266310531 | AM64: 2021-01-28 | AN64: 0.2641 | AO64: 0.05804918 | AP64: =INDEX(AN64:$AN$2080,MATCH(A64,AM64:$AM$2080,0)) -> 0.2198 | AQ64: 0.08437124475 | AR64: 2021-01-28 | AS64: 42.53 | AT64: 569.828196 | AU64: =INDEX(AS64:$AS$2080,MATCH(A64,AR64:$AR$2080,0)) -> 37.38 | AV64: -0.02012779814
A65: 2020-12-30 | B65: 640 | C65: -0.004676547884 | D65: 7553 | E65: 0.007708703777 | F65: 25953 | G65: 0.003241869228 | H65: 7292 | I65: 0.001372307063 | J65: 7058 | K65: -0.001415829204 | L65: 2765 | M65: 0.0003617290689 | N65: 15218 | O65: 0.01770075052 | P65: 2808 | Q65: 0.01110127784 | R65: 5480 | S65: 0.006958460599 | T65: 5248 | U65: 0.01111335446 | V65: 1221 | W65: 0.003281381123 | X65: 4558 | Y65: 0.007045383612 | Z65: 4021 | AA65: -0.001242699302 | AB65: 2021-01-27 | AC65: 15.1546 | AD65: 32502.1 | AE65: 414872.3296 | AF65: =INDEX(AD65:$AD$1886,MATCH(A65,AB65:$AB$1886,0)) -> 27376 | AG65: 0.01239770415 | AH65: 2021-01-27 | AI65: 1253.19 | AJ65: 11390.50045 | AK65: =INDEX(AI65:$AI$1867,MATCH(A65,AH65:$AH$1867,0)) -> 751.62 | AL65: 0.02781262154 | AM65: 2021-01-27 | AN65: 0.2519 | AO65: 0.05335242 | AP65: =INDEX(AN65:$AN$2080,MATCH(A65,AM65:$AM$2080,0)) -> 0.2118 | AQ65: -0.1074556936 | AR65: 2021-01-27 | AS65: 40.99 | AT65: 577.996444 | AU65: =INDEX(AS65:$AS$2080,MATCH(A65,AR65:$AR$2080,0)) -> 38.14 | AV65: -0.02101517214
A66: 2020-12-29 | B66: 643 | C66: 0.001556420548 | D66: 7495 | E66: 0.008979488064 | F66: 25869 | G66: -0.0009273212673 | H66: 7282 | I66: -0.00643353119 | J66: 7068 | K66: 0.0002830055205 | L66: 2764 | M66: 0.0003618599641 | N66: 14951 | O66: 0.006374363181 | P66: 2777 | Q66: 0.005054162383 | R66: 5442 | S66: 0.005158449169 | T66: 5190 | U66: -0.01301702913 | V66: 1217 | W66: 0.001644737213 | X66: 4526 | Y66: -0.0173041225 | Z66: 4026 | AA66: 0.01149150792 | AB66: 2021-01-26 | AC66: 15.1439 | AD66: 32252.3 | AE66: 409760.6174 | AF66: =INDEX(AD66:$AD$1886,MATCH(A66,AB66:$AB$1886,0)) -> 27057.8 | AG66: 0.0291726404 | AH66: 2021-01-26 | AI66: 1357.06 | AJ66: 11078.06573 | AK66: =INDEX(AI66:$AI$1867,MATCH(A66,AH66:$AH$1867,0)) -> 731.52 | AL66: 0.0008259262636 | AM66: 2021-01-26 | AN66: 0.2688 | AO66: 0.0594048 | AP66: =INDEX(AN66:$AN$2080,MATCH(A66,AM66:$AM$2080,0)) -> 0.221 | AQ66: -0.1163814937 | AR66: 2021-01-26 | AS66: 41.69 | AT66: 589.854905 | AU66: =INDEX(AS66:$AS$2080,MATCH(A66,AR66:$AR$2080,0)) -> 38.95 | AV66: 0.08321418421
A67: 2020-12-28 | B67: 642 | C67: -0.001556420548 | D67: 7428 | E67: -0.008579141091 | F67: 25893 | G67: 0.004567632003 | H67: 7329 | I67: 0.0001364535719 | J67: 7066 | K67: -0.0002830055205 | L67: 2763 | M67: 0.0003619909542 | N67: 14856 | O67: 0.0193019449 | P67: 2763 | Q67: -0.01757892801 | R67: 5414 | S67: -0.001292109086 | T67: 5258 | U67: 0.03031412737 | V67: 1215 | W67: 0.0008233841552 | X67: 4605 | Y67: 0.005007085676 | Z67: 3980 | AA67: 0.005290351172 | AB67: 2021-01-25 | AC67: 15.1546 | AD67: 32241.3 | AE67: =AC67*AF67 -> 397979.497 | AF67: =INDEX(AD67:$AD$1886,MATCH(A67,AB67:$AB$1886,0)) -> 26261.3 | AG67: 0.1361352255 | AH67: 2021-01-25 | AI67: 1324.41 | AJ67: 11068.91984 | AK67: =INDEX(AI67:$AI$1867,MATCH(A67,AH67:$AH$1867,0)) -> 730.4 | AL67: 0.192181217 | AM67: 2021-01-25 | AN67: 0.2691 | AO67: 0.0667368 | AP67: =INDEX(AN67:$AN$2080,MATCH(A67,AM67:$AM$2080,0)) -> 0.248 | AQ67: -0.3252438223 | AR67: 2021-01-25 | AS67: 41.62 | AT67: =AC67*AU67 -> 543.140864 | AU67: =INDEX(AS67:$AS$2080,MATCH(A67,AR67:$AR$2080,0)) -> 35.84 | AV67: 0.09782449877
A68: 2020-12-24 | B68: 643 | C68: =LN(B68/B69) -> 0.0140957698 | D68: 7492 | E68: =LN(D68/D69) -> -0.005723047497 | F68: 25775 | G68: =LN(F68/F69) -> 0.003809380335 | H68: 7328 | I68: =LN(H68/H69) -> 0.001228920753 | J68: 7068 | K68: =LN(J68/J69) -> 0 | L68: 2762 | M68: =LN(L68/L69) -> 0 | N68: 14572 | O68: =LN(N68/N69) -> 0.01020839325 | P68: 2812 | Q68: =LN(P68/P69) -> -0.002840911002 | R68: 5421 | S68: =LN(R68/R69) -> 0.0007381436024 | T68: 5101 | U68: =LN(T68/T69) -> 0.004322207122 | V68: 1214 | W68: =LN(V68/V69) -> 0.002474228066 | X68: 4582 | Y68: =LN(X68/X69) -> 0.004374460169 | Z68: 3959 | AA68: =LN(Z68/Z69) -> 0.004556969911 | AB68: 2021-01-24 | AC68: 14.9337 | AD68: 32088.9 | AE68: 347326.5012 | AF68: =INDEX(AD68:$AD$1886,MATCH(A68,AB68:$AB$1886,0)) -> 23257.9 | AG68: =LN(AE68/AE69) -> -0.02266147552 | AH68: 2021-01-24 | AI68: 1391.61 | AJ68: =AK68*AC68 -> 9133.600257 | AK68: =INDEX(AI68:$AI$1867,MATCH(A68,AH68:$AH$1867,0)) -> 611.61 | AL68: =LN(AJ68/AJ69) -> 0.04804410134 | AM68: 2021-01-24 | AN68: 0.2735 | AO68: =AN68*AP68 -> 0.0923883 | AP68: =INDEX(AN68:$AN$2080,MATCH(A68,AM68:$AM$2080,0)) -> 0.3378 | AQ68: =LN(AO68/AO69) -> 0.2734066582 | AR68: 2021-01-24 | AS68: 41.88 | AT68: 485.34525 | AU68: =INDEX(AS68:$AS$2080,MATCH(A68,AR68:$AR$2080,0)) -> 32.5 | AV68: =LN(AU68/AU69) -> 0.04403227015
A69: 2020-12-23 | B69: 634 | C69: 0.006329135052 | D69: 7535 | E69: 0.008128501015 | F69: 25677 | G69: -0.002605940682 | H69: 7319 | I69: 0.003695849803 | J69: 7068 | K69: 0.0002830055205 | L69: 2762 | M69: -0.0003619909542 | N69: 14424 | O69: 0.003402899218 | P69: 2820 | Q69: 0.01069528912 | R69: 5417 | S69: 0.006667926168 | T69: 5079 | U69: 0.002760254118 | V69: 1211 | W69: 0.02170368998 | X69: 4562 | Y69: 0.013905974 | Z69: 3941 | AA69: 0.000253774903 | AB69: 2021-01-23 | AC69: 14.9135 | AD69: 33000.5 | AE69: 355287.2932 | AF69: =INDEX(AD69:$AD$1886,MATCH(A69,AB69:$AB$1886,0)) -> 23823.2 | AG69: 0.04872470895 | AH69: 2021-01-23 | AI69: 1230.99 | AJ69: 8705.159085 | AK69: =INDEX(AI69:$AI$1867,MATCH(A69,AH69:$AH$1867,0)) -> 583.71 | AL69: -0.08230000961 | AM69: 2021-01-23 | AN69: 0.2718 | AO69: 0.07028748 | AP69: =INDEX(AN69:$AN$2080,MATCH(A69,AM69:$AM$2080,0)) -> 0.2586 | AQ69: -0.5540756491 | AR69: 2021-01-23 | AS69: 40.82 | AT69: 463.80985 | AU69: =INDEX(AS69:$AS$2080,MATCH(A69,AR69:$AR$2080,0)) -> 31.1 | AV69: -0.07374042644
A70: 2020-12-22 | B70: 630 | C70: 0.003179652917 | D70: 7474 | E70: 0.0004014720696 | F70: 25744 | G70: -0.01051014312 | H70: 7292 | I70: 0.004949144004 | J70: 7066 | K70: 0 | L70: 2763 | M70: 0.0003619909542 | N70: 14375 | O70: -0.001529264861 | P70: 2790 | Q70: 0.0061118292 | R70: 5381 | S70: 0 | T70: 5065 | U70: -0.009823261703 | V70: 1185 | W70: 0.003381237372 | X70: 4499 | Y70: 0.02452592277 | Z70: 3940 | AA70: 0.00126984144 | AB70: 2021-01-22 | AC70: 14.8884 | AD70: 30842.1 | AE70: 338390.9994 | AF70: =INDEX(AD70:$AD$1886,MATCH(A70,AB70:$AB$1886,0)) -> 22728.5 | AG70: -0.03999324706 | AH70: 2021-01-22 | AI70: 1236.51 | AJ70: 9451.90074 | AK70: =INDEX(AI70:$AI$1867,MATCH(A70,AH70:$AH$1867,0)) -> 634.85 | AL70: 0.03254379343 | AM70: 2021-01-22 | AN70: 0.2728 | AO70: 0.12232352 | AP70: =INDEX(AN70:$AN$2080,MATCH(A70,AM70:$AM$2080,0)) -> 0.4484 | AQ70: -0.1277643783 | AR70: 2021-01-22 | AS70: 40.86 | AT70: 498.463632 | AU70: =INDEX(AS70:$AS$2080,MATCH(A70,AR70:$AR$2080,0)) -> 33.48 | AV70: 0.03681023956
A71: 2020-12-21 | B71: 628 | C71: -0.04056718499 | D71: 7471 | E71: -0.01619791124 | F71: 26016 | G71: 0.0106655312 | H71: 7256 | I71: -0.01395944387 | J71: 7066 | K71: -0.008315177218 | L71: 2762 | M71: 0 | N71: 14397 | O71: -0.02028327641 | P71: 2773 | Q71: -0.04305534439 | R71: 5381 | S71: -0.02296417621 | T71: 5115 | U71: -0.00875918009 | V71: 1181 | W71: -0.04955596901 | X71: 4390 | Y71: -0.0006831379066 | Z71: 3935 | AA71: -0.005322531891 | AB71: 2021-01-21 | AC71: 15.0032 | AD71: 35476.3 | AE71: 352198.6197 | AF71: =INDEX(AD71:$AD$1886,MATCH(A71,AB71:$AB$1886,0)) -> 23474.9 | AG71: 0.0178918431 | AH71: 2021-01-21 | AI71: 1121.57 | AJ71: 9149.251424 | AK71: =INDEX(AI71:$AI$1867,MATCH(A71,AH71:$AH$1867,0)) -> 609.82 | AL71: -0.08134725673 | AM71: 2021-01-21 | AN71: 0.2689 | AO71: 0.13899441 | AP71: =INDEX(AN71:$AN$2080,MATCH(A71,AM71:$AM$2080,0)) -> 0.5169 | AQ71: -0.2202727725 | AR71: 2021-01-21 | AS71: 38.65 | AT71: 484.153264 | AU71: =INDEX(AS71:$AS$2080,MATCH(A71,AR71:$AR$2080,0)) -> 32.27 | AV71: 0.04208816092
A72: 2020-12-18 | B72: 654 | C72: 0.02007789454 | D72: 7593 | E72: -0.0129540575 | F72: 25740 | G72: -0.01285409396 | H72: 7358 | I72: 0.006544882921 | J72: 7125 | K72: -0.0004209640138 | L72: 2762 | M72: 0.001449275616 | N72: 14692 | O72: -0.02334369899 | P72: 2895 | Q72: 0.002420889994 | R72: 5506 | S72: -0.006877855167 | T72: 5160 | U72: -0.002129513921 | V72: 1241 | W72: 0.01788665572 | X72: 4393 | Y72: -0.000910125205 | Z72: 3956 | AA72: -0.009810165458 | AB72: 2021-01-20 | AC72: 15.1565 | AD72: 36002.9 | AE72: 345953.1751 | AF72: =INDEX(AD72:$AD$1886,MATCH(A72,AB72:$AB$1886,0)) -> 22825.4 | AG72: 0.06203908418 | AH72: 2021-01-20 | AI72: 1382.27 | AJ72: 9924.627765 | AK72: =INDEX(AI72:$AI$1867,MATCH(A72,AH72:$AH$1867,0)) -> 654.81 | AL72: 0.01372250279 | AM72: 2021-01-20 | AN72: 0.2965 | AO72: 0.17324495 | AP72: =INDEX(AN72:$AN$2080,MATCH(A72,AM72:$AM$2080,0)) -> 0.5843 | AQ72: 0.02053991214 | AR72: 2021-01-20 | AS72: 42.61 | AT72: 468.94211 | AU72: =INDEX(AS72:$AS$2080,MATCH(A72,AR72:$AR$2080,0)) -> 30.94 | AV72: 0.02487039181
A73: 2020-12-17 | B73: 641 | C73: 0.004691173576 | D73: 7692 | E73: 0.004168843974 | F73: 26073 | G73: 0.005692542008 | H73: 7310 | I73: 0.005762123228 | J73: 7128 | K73: 0.005063301957 | L73: 2758 | M73: -0.0007249003579 | N73: 15039 | O73: 0.009688379661 | P73: 2888 | Q73: 0.009393006963 | R73: 5544 | S73: 0.0156338396 | T73: 5171 | U73: 0.002517185955 | V73: 1219 | W73: 0.006584385928 | X73: 4397 | Y73: 0.007304300907 | Z73: 3995 | AA73: -0.002250282235 | AB73: 2021-01-19 | AC73: 15.2276 | AD73: 36613.2 | AE73: 325142.7607 | AF73: =INDEX(AD73:$AD$1886,MATCH(A73,AB73:$AB$1886,0)) -> 21352.2 | AG73: 0.1024081182 | AH73: 2021-01-19 | AI73: 1377.3 | AJ73: 9789.367212 | AK73: =INDEX(AI73:$AI$1867,MATCH(A73,AH73:$AH$1867,0)) -> 642.87 | AL73: 0.08690532413 | AM73: 2021-01-19 | AN73: 0.2943 | AO73: 0.16972281 | AP73: =INDEX(AN73:$AN$2080,MATCH(A73,AM73:$AM$2080,0)) -> 0.5767 | AQ73: 0.2380404833 | AR73: 2021-01-19 | AS73: 42.79 | AT73: 459.568968 | AU73: =INDEX(AS73:$AS$2080,MATCH(A73,AR73:$AR$2080,0)) -> 30.18 | AV73: 0.02109570949
A74: 2020-12-15 | B74: 638 | C74: 0.006289328908 | D74: 7660 | E74: -0.0007829832059 | F74: 25925 | G74: 0.003516300306 | H74: 7268 | I74: 0.003169574761 | J74: 7092 | K74: 0.0002820476679 | L74: 2760 | M74: 0.001087547687 | N74: 14894 | O74: -0.002815958951 | P74: 2861 | Q74: 0.01798673072 | R74: 5458 | S74: -0.001098699982 | T74: 5158 | U74: -0.01118191717 | V74: 1211 | W74: 0.01330027919 | X74: 4365 | Y74: -0.004571436533 | Z74: 4004 | AA74: -0.005479465765 | AB74: 2021-01-18 | AC74: 15.2276 | AD74: 35839.6 | AE74: 293493.7169 | AF74: =INDEX(AD74:$AD$1886,MATCH(A74,AB74:$AB$1886,0)) -> 19273.8 | AG74: 0.01406310325 | AH74: 2021-01-18 | AI74: 1257.28 | AJ74: 8974.538336 | AK74: =INDEX(AI74:$AI$1867,MATCH(A74,AH74:$AH$1867,0)) -> 589.36 | AL74: 0.01471800572 | AM74: 2021-01-18 | AN74: 0.2848 | AO74: 0.13377056 | AP74: =INDEX(AN74:$AN$2080,MATCH(A74,AM74:$AM$2080,0)) -> 0.4697 | AQ74: -0.03157662117 | AR74: 2021-01-18 | AS74: 45.35 | AT74: 449.97558 | AU74: =INDEX(AS74:$AS$2080,MATCH(A74,AR74:$AR$2080,0)) -> 29.55 | AV74: -0.01611313814
A75: 2020-12-14 | B75: 634 | C75: 0.009508787969 | D75: 7666 | E75: 0.003921061095 | F75: 25834 | G75: -0.008019165497 | H75: 7245 | I75: 0.008733679969 | J75: 7090 | K75: -0.001268588513 | L75: 2757 | M75: 0 | N75: 14936 | O75: 0.01402396231 | P75: 2810 | Q75: 0.002137514173 | R75: 5464 | S75: 0.002198608434 | T75: 5216 | U75: -0.003636019698 | V75: 1195 | W75: 0.01347956383 | X75: 4385 | Y75: -0.003642162005 | Z75: 4026 | AA75: 0.002985076843 | AB75: 2021-01-17 | AC75: 15.0909 | AD75: 36019.5 | AE75: 289395.1711 | AF75: =INDEX(AD75:$AD$1886,MATCH(A75,AB75:$AB$1886,0)) -> 19176.8 | AG75: 0.03828436992 | AH75: 2021-01-17 | AI75: 1230.17 | AJ75: 8843.418309 | AK75: =INDEX(AI75:$AI$1867,MATCH(A75,AH75:$AH$1867,0)) -> 586.01 | AL75: 0.05967904445 | AM75: 2021-01-17 | AN75: 0.2774 | AO75: 0.13806198 | AP75: =INDEX(AN75:$AN$2080,MATCH(A75,AM75:$AM$2080,0)) -> 0.4977 | AQ75: -0.1035799478 | AR75: 2021-01-17 | AS75: 45.68 | AT75: 453.179727 | AU75: =INDEX(AS75:$AS$2080,MATCH(A75,AR75:$AR$2080,0)) -> 30.03 | AV75: 0.09311478924
A76: 2020-12-11 | B76: 628 | C76: 0 | D76: 7636 | E76: 0.004330999617 | F76: 26042 | G76: -0.0009978891636 | H76: 7182 | I76: 0.0002785127438 | J76: 7099 | K76: 0.003103839964 | L76: 2757 | M76: -0.0007251631935 | N76: 14728 | O76: -0.02699517554 | P76: 2804 | Q76: 0.01292193142 | R76: 5452 | S76: 0.004964614408 | T76: 5235 | U76: -0.0001910037252 | V76: 1179 | W76: 0.02316705928 | X76: 4401 | Y76: 0.01004804069 | Z76: 4014 | AA76: 0.002244669854 | AB76: 2021-01-16 | AC76: 15.264 | AD76: 36845.8 | AE76: 278525.2608 | AF76: =INDEX(AD76:$AD$1886,MATCH(A76,AB76:$AB$1886,0)) -> 18247.2 | AG76: -0.01422263053 | AH76: 2021-01-16 | AI76: 1233.54 | AJ76: 8331.0912 | AK76: =INDEX(AI76:$AI$1867,MATCH(A76,AH76:$AH$1867,0)) -> 545.8 | AL76: -0.02309272531 | AM76: 2021-01-16 | AN76: 0.2802 | AO76: 0.1531293 | AP76: =INDEX(AN76:$AN$2080,MATCH(A76,AM76:$AM$2080,0)) -> 0.5465 | AQ76: -0.04806493036 | AR76: 2021-01-16 | AS76: 43.17 | AT76: 417.62304 | AU76: =INDEX(AS76:$AS$2080,MATCH(A76,AR76:$AR$2080,0)) -> 27.36 | AV76: -0.01235032044
A77: 2020-12-10 | B77: 628 | C77: 0.001593625835 | D77: 7603 | E77: 0.001052770199 | F77: 26068 | G77: 0.009249333706 | H77: 7180 | I77: -0.0008353056312 | J77: 7077 | K77: 0.02012484962 | L77: 2759 | M77: 0.002540375164 | N77: 15131 | O77: 0.02110543844 | P77: 2768 | Q77: 0.02709795977 | R77: 5425 | S77: -0.002577321014 | T77: 5236 | U77: 0.007476312021 | V77: 1152 | W77: -0.02992955335 | X77: 4357 | Y77: -0.01254435426 | Z77: 4005 | AA77: -0.00099825314 | AB77: 2021-01-15 | AC77: 15.2332 | AD77: 39175.7 | AE77: 282514.9272 | AF77: =INDEX(AD77:$AD$1886,MATCH(A77,AB77:$AB$1886,0)) -> 18546 | AG77: -0.008682806165 | AH77: 2021-01-15 | AI77: 1171.83 | AJ77: 8525.717376 | AK77: =INDEX(AI77:$AI$1867,MATCH(A77,AH77:$AH$1867,0)) -> 559.68 | AL77: -0.04494125271 | AM77: 2021-01-15 | AN77: 0.2804 | AO77: 0.1606692 | AP77: =INDEX(AN77:$AN$2080,MATCH(A77,AM77:$AM$2080,0)) -> 0.573 | AQ77: -0.07044331487 | AR77: 2021-01-15 | AS77: 40.92 | AT77: 421.95964 | AU77: =INDEX(AS77:$AS$2080,MATCH(A77,AR77:$AR$2080,0)) -> 27.7 | AV77: -0.01540420931
A78: 2020-12-09 | B78: 627 | C78: 0.003194890897 | D78: 7595 | E78: 0.001053879692 | F78: 25828 | G78: -0.02103324354 | H78: 7186 | I78: 0.003205801059 | J78: 6936 | K78: -0.002735585897 | L78: 2752 | M78: -0.001815211971 | N78: 14815 | O78: -0.01739756159 | P78: 2694 | Q78: 0.01458242329 | R78: 5439 | S78: 0.000367782277 | T78: 5197 | U78: -0.003457552426 | V78: 1187 | W78: 0.01528043314 | X78: 4412 | Y78: 0.007279377003 | Z78: 4009 | AA78: 0.0004990020064 | AB78: 2021-01-14 | AC78: 15.55 | AD78: 37382.2 | AE78: 284978.63 | AF78: =INDEX(AD78:$AD$1886,MATCH(A78,AB78:$AB$1886,0)) -> 18326.6 | AG78: -0.04506166923 | AH78: 2021-01-14 | AI78: 1218.45 | AJ78: 8917.614 | AK78: =INDEX(AI78:$AI$1867,MATCH(A78,AH78:$AH$1867,0)) -> 573.48 | AL78: 0.03302914804 | AM78: 2021-01-14 | AN78: 0.2954 | AO78: 0.17239544 | AP78: =INDEX(AN78:$AN$2080,MATCH(A78,AM78:$AM$2080,0)) -> 0.5836 | AQ78: 0.009477502071 | AR78: 2021-01-14 | AS78: 41.79 | AT78: 437.4215 | AU78: =INDEX(AS78:$AS$2080,MATCH(A78,AR78:$AR$2080,0)) -> 28.13 | AV78: 0.0175726236
A79: 2020-12-08 | B79: 625 | C79: -0.001598721364 | D79: 7587 | E79: -0.007615583025 | F79: 26377 | G79: 0.004597883957 | H79: 7163 | I79: -0.001395089512 | J79: 6955 | K79: -0.0004312513543 | L79: 2757 | M79: -0.0003626473295 | N79: 15075 | O79: -0.00397219986 | P79: 2655 | Q79: 0 | R79: 5437 | S79: -0.002755075671 | T79: 5215 | U79: -0.0139010141 | V79: 1169 | W79: 0.01031823428 | X79: 4380 | Y79: -0.00387376581 | Z79: 4007 | AA79: -0.01116775473 | AB79: 2021-01-13 | AC79: 15.5505 | AD79: 34076.1 | AE79: 298113.9704 | AF79: =INDEX(AD79:$AD$1886,MATCH(A79,AB79:$AB$1886,0)) -> 19170.7 | AG79: 0.005223203995 | AH79: 2021-01-13 | AI79: 1130.74 | AJ79: 8627.883915 | AK79: =INDEX(AI79:$AI$1867,MATCH(A79,AH79:$AH$1867,0)) -> 554.83 | AL79: -0.04849798886 | AM79: 2021-01-13 | AN79: 0.3056 | AO79: 0.17076928 | AP79: =INDEX(AN79:$AN$2080,MATCH(A79,AM79:$AM$2080,0)) -> 0.5588 | AQ79: -0.04068157533 | AR79: 2021-01-13 | AS79: 40.14 | AT79: 429.81582 | AU79: =INDEX(AS79:$AS$2080,MATCH(A79,AR79:$AR$2080,0)) -> 27.64 | AV79: -0.06105017185
A80: 2020-12-07 | B80: 626 | C80: -0.003189795368 | D80: 7645 | E80: -0.0006538084574 | F80: 26256 | G80: 3.808725791e-05 | H80: 7173 | I80: 0.002512564136 | J80: 6958 | K80: 0.006633045228 | L80: 2758 | M80: 0.0003626473295 | N80: 15135 | O80: -0.04742059206 | P80: 2655 | Q80: -0.003759402924 | R80: 5452 | S80: 0.0007339449871 | T80: 5288 | U80: 0.003789318668 | V80: 1157 | W80: -0.009462436194 | X80: 4397 | Y80: 0.01097655658 | Z80: 4052 | AA80: -0.0009866799024 | AB80: 2021-01-12 | AC80: 15.3025 | AD80: 35544.3 | AE80: 296560.9198 | AF80: =INDEX(AD80:$AD$1886,MATCH(A80,AB80:$AB$1886,0)) -> 19379.9 | AG80: -0.001797095026 | AH80: 2021-01-12 | AI80: 1043.43 | AJ80: 9056.6316 | AK80: =INDEX(AI80:$AI$1867,MATCH(A80,AH80:$AH$1867,0)) -> 591.84 | AL80: 0.03969551673 | AM80: 2021-01-12 | AN80: 0.2921 | AO80: 0.17785969 | AP80: =INDEX(AN80:$AN$2080,MATCH(A80,AM80:$AM$2080,0)) -> 0.6089 | AQ80: 0.09956595796 | AR80: 2021-01-12 | AS80: 38.11 | AT80: 449.58745 | AU80: =INDEX(AS80:$AS$2080,MATCH(A80,AR80:$AR$2080,0)) -> 29.38 | AV80: 0.01060745617
A81: 2020-12-04 | B81: 628 | C81: 0.01767114256 | D81: 7650 | E81: 0.001962709168 | F81: 26255 | G81: 0.001295830656 | H81: 7155 | I81: 0.004763248008 | J81: 6912 | K81: 0.004204428086 | L81: 2757 | M81: 0 | N81: 15870 | O81: 0.04155740454 | P81: 2665 | Q81: 0.05594515609 | R81: 5448 | S81: 0.001837222637 | T81: 5268 | U81: 0.000759589858 | V81: 1168 | W81: 0.01901526611 | X81: 4349 | Y81: -0.000459770123 | Z81: 4056 | AA81: 0.001233502068 | AB81: 2021-01-11 | AC81: 15.2879 | AD81: 38192.2 | AE81: 297094.3471 | AF81: =INDEX(AD81:$AD$1886,MATCH(A81,AB81:$AB$1886,0)) -> 19433.3 | AG81: 0.01182545091 | AH81: 2021-01-11 | AI81: 1090.15 | AJ81: 8704.165865 | AK81: =INDEX(AI81:$AI$1867,MATCH(A81,AH81:$AH$1867,0)) -> 569.35 | AL81: -0.07917720983 | AM81: 2021-01-11 | AN81: 0.2889 | AO81: 0.16100397 | AP81: =INDEX(AN81:$AN$2080,MATCH(A81,AM81:$AM$2080,0)) -> 0.5573 | AQ81: -0.221907974 | AR81: 2021-01-11 | AS81: 38.37 | AT81: 444.419253 | AU81: =INDEX(AS81:$AS$2080,MATCH(A81,AR81:$AR$2080,0)) -> 29.07 | AV81: -0.05455594002
A82: 2020-12-03 | B82: 617 | C82: -0.001619433552 | D82: 7635 | E82: 0.003937012959 | F82: 26221 | G82: 0.000763038456 | H82: 7121 | I82: 0.0001404395761 | J82: 6883 | K82: 0.0007266914062 | L82: 2757 | M82: 0 | N82: 15224 | O82: 0.01122939338 | P82: 2520 | Q82: 0.009168890226 | R82: 5438 | S82: 0.01743690998 | T82: 5264 | U82: 0.008393792128 | V82: 1146 | W82: 0.01671838323 | X82: 4351 | Y82: 0.01832360208 | Z82: 4051 | AA82: 0.0004938271705 | AB82: 2021-01-10 | AC82: 15.2768 | AD82: 40151.9 | AE82: 293601.7638 | AF82: =INDEX(AD82:$AD$1886,MATCH(A82,AB82:$AB$1886,0)) -> 19218.8 | AG82: 0.03690268537 | AH82: 2021-01-10 | AI82: 1262.25 | AJ82: 9421.355328 | AK82: =INDEX(AI82:$AI$1867,MATCH(A82,AH82:$AH$1867,0)) -> 616.71 | AL82: 0.04353389238 | AM82: 2021-01-10 | AN82: 0.3183 | AO82: 0.20100645 | AP82: =INDEX(AN82:$AN$2080,MATCH(A82,AM82:$AM$2080,0)) -> 0.6315 | AQ82: -0.02412311428 | AR82: 2021-01-10 | AS82: 42.45 | AT82: 468.99776 | AU82: =INDEX(AS82:$AS$2080,MATCH(A82,AR82:$AR$2080,0)) -> 30.7 | AV82: 0.01311494208
A83: 2020-12-02 | B83: 618 | C83: 0.0179596664 | D83: 7605 | E83: 0.004084596232 | F83: 26201 | G83: 0.0105512518 | H83: 7120 | I83: -0.002384794565 | J83: 6878 | K83: 0.0007272198706 | L83: 2757 | M83: 0 | N83: 15054 | O83: 0.023524171 | P83: 2497 | Q83: 0.02227263561 | R83: 5344 | S83: 0.0131853483 | T83: 5220 | U83: 0.00943130848 | V83: 1127 | W83: 0.002665483586 | X83: 4272 | Y83: -0.02107779248 | Z83: 4049 | AA83: 0.002720417159 | AB83: 2021-01-09 | AC83: 15.0748 | AD83: 40599.3 | AE83: 282964.5484 | AF83: =INDEX(AD83:$AD$1886,MATCH(A83,AB83:$AB$1886,0)) -> 18770.7 | AG83: -0.04164280777 | AH83: 2021-01-09 | AI83: 1281.08 | AJ83: 9020.00658 | AK83: =INDEX(AI83:$AI$1867,MATCH(A83,AH83:$AH$1867,0)) -> 598.35 | AL83: 0.02518828409 | AM83: 2021-01-09 | AN83: 0.3269 | AO83: 0.20591431 | AP83: =INDEX(AN83:$AN$2080,MATCH(A83,AM83:$AM$2080,0)) -> 0.6299 | AQ83: 0.03874227322 | AR83: 2021-01-09 | AS83: 43.93 | AT83: 456.76644 | AU83: =INDEX(AS83:$AS$2080,MATCH(A83,AR83:$AR$2080,0)) -> 30.3 | AV83: 0.006290370022
A84: 2020-12-01 | B84: 607 | C84: 0.004954593125 | D84: 7574 | E84: -0.0007918701747 | F84: 25926 | G84: 0.01511794528 | H84: 7137 | I84: 0.000560616693 | J84: 6873 | K84: -0.0002909514132 | L84: 2757 | M84: 0 | N84: 14704 | O84: 0.01135365455 | P84: 2442 | Q84: -0.002862402282 | R84: 5274 | S84: 0.008760292169 | T84: 5171 | U84: -0.003089401955 | V84: 1124 | W84: 0 | X84: 4363 | Y84: -0.009353324719 | Z84: 4038 | AA84: 0.0007432181687 | AB84: 2021-01-08 | AC84: 14.9759 | AD84: 39460.2 | AE84: 294996.7758 | AF84: =INDEX(AD84:$AD$1886,MATCH(A84,AB84:$AB$1886,0)) -> 19698.1 | AG84: 0.07873641886 | AH84: 2021-01-08 | AI84: 1224.2 | AJ84: 8795.645588 | AK84: =INDEX(AI84:$AI$1867,MATCH(A84,AH84:$AH$1867,0)) -> 587.32 | AL84: -0.04695344755 | AM84: 2021-01-08 | AN84: 0.3232 | AO84: 0.19808928 | AP84: =INDEX(AN84:$AN$2080,MATCH(A84,AM84:$AM$2080,0)) -> 0.6129 | AQ84: -0.0891581189 | AR84: 2021-01-08 | AS84: 42.4 | AT84: 450.924349 | AU84: =INDEX(AS84:$AS$2080,MATCH(A84,AR84:$AR$2080,0)) -> 30.11 | AV84: -0.04163202836
A85: 2020-11-30 | B85: 604 | C85: -0.03097232085 | D85: 7580 | E85: -0.0102376534 | F85: 25537 | G85: 0.001057848748 | H85: 7133 | I85: -0.00405736828 | J85: 6875 | K85: -0.002469675113 | L85: 2757 | M85: 0 | N85: 14538 | O85: 0.02028974551 | P85: 2449 | Q85: -0.03648430306 | R85: 5228 | S85: -0.0146209763 | T85: 5187 | U85: -0.006533459059 | V85: 1124 | W85: -0.03410912207 | X85: 4404 | Y85: 0.001590728662 | Z85: 4035 | AA85: 0.002481390851 | AB85: 2021-01-07 | AC85: 14.9933 | AD85: 36793.2 | AE85: 272660.6571 | AF85: =INDEX(AD85:$AD$1886,MATCH(A85,AB85:$AB$1886,0)) -> 18185.5 | AG85: 0.08066009336 | AH85: 2021-01-07 | AI85: 1225.68 | AJ85: 9218.480572 | AK85: =INDEX(AI85:$AI$1867,MATCH(A85,AH85:$AH$1867,0)) -> 614.84 | AL85: 0.1951050276 | AM85: 2021-01-07 | AN85: 0.326 | AO85: 0.2165618 | AP85: =INDEX(AN85:$AN$2080,MATCH(A85,AM85:$AM$2080,0)) -> 0.6643 | AQ85: 0.4338907808 | AR85: 2021-01-07 | AS85: 43.45 | AT85: 470.639687 | AU85: =INDEX(AS85:$AS$2080,MATCH(A85,AR85:$AR$2080,0)) -> 31.39 | AV85: 0.09728728431
A86: 2020-11-27 | B86: 623 | C86: 0.001606426048 | D86: 7658 | E86: -0.001826484526 | F86: 25510 | G86: -0.01327875277 | H86: 7162 | I86: -0.002927851516 | J86: 6892 | K86: 0.003925279446 | L86: 2757 | M86: 0.0003627788902 | N86: 14246 | O86: 0.005490265076 | P86: 2540 | Q86: 0.007111843488 | R86: 5305 | S86: -0.0009420631879 | T86: 5221 | U86: 0.006147954043 | V86: 1163 | W86: 0.0008602151068 | X86: 4397 | Y86: 0.01189673148 | Z86: 4025 | AA86: 0.008232552421 | AB86: 2021-01-06 | AC86: 14.6563 | AD86: 33991.5 | AE86: 251531.4206 | AF86: =INDEX(AD86:$AD$1886,MATCH(A86,AB86:$AB$1886,0)) -> 17162 | AG86: -0.08739616928 | AH86: 2021-01-06 | AI86: 1207.11 | AJ86: 7584.488687 | AK86: =INDEX(AI86:$AI$1867,MATCH(A86,AH86:$AH$1867,0)) -> 517.49 | AL86: -0.002869343205 | AM86: 2021-01-06 | AN86: 0.2509 | AO86: 0.14032837 | AP86: =INDEX(AN86:$AN$2080,MATCH(A86,AM86:$AM$2080,0)) -> 0.5593 | AQ86: 0.1491504592 | AR86: 2021-01-06 | AS86: 42.17 | AT86: 417.411424 | AU86: =INDEX(AS86:$AS$2080,MATCH(A86,AR86:$AR$2080,0)) -> 28.48 | AV86: 0.0098801086
A87: 2020-11-26 | B87: 622 | C87: 0.0032206147 | D87: 7672 | E87: -0.0005212405643 | F87: 25851 | G87: -0.004708251983 | H87: 7183 | I87: 0.001114361447 | J87: 6865 | K87: -0.002182612725 | L87: 2756 | M87: -0.0003627788902 | N87: 14168 | O87: -0.002115209137 | P87: 2522 | Q87: -0.01025650017 | R87: 5310 | S87: 0.0009420631879 | T87: 5189 | U87: 0.01104555363 | V87: 1162 | W87: -0.002578428588 | X87: 4345 | Y87: 0.008784152645 | Z87: 3992 | AA87: -0.001001502337 | AB87: 2021-01-05 | AC87: 14.6613 | AD87: 32022.6 | AE87: 274503.5199 | AF87: =INDEX(AD87:$AD$1886,MATCH(A87,AB87:$AB$1886,0)) -> 18723 | AG87: -0.02268576203 | AH87: 2021-01-05 | AI87: 1100.01 | AJ87: 7606.28244 | AK87: =INDEX(AI87:$AI$1867,MATCH(A87,AH87:$AH$1867,0)) -> 518.8 | AL87: -0.09532770261 | AM87: 2021-01-05 | AN87: 0.2268 | AO87: 0.1208844 | AP87: =INDEX(AN87:$AN$2080,MATCH(A87,AM87:$AM$2080,0)) -> 0.533 | AQ87: -0.2186156111 | AR87: 2021-01-05 | AS87: 41.73 | AT87: 413.44866 | AU87: =INDEX(AS87:$AS$2080,MATCH(A87,AR87:$AR$2080,0)) -> 28.2 | AV87: -0.105573259
A88: 2020-11-25 | B88: 620 | C88: 0.0113545421 | D88: 7676 | E88: -0.002472189145 | F88: 25973 | G88: -0.0005388760715 | H88: 7175 | I88: -0.002783578694 | J88: 6880 | K88: 0.002619707509 | L88: 2757 | M88: -0.0003626473295 | N88: 14198 | O88: 0.006359097243 | P88: 2548 | Q88: 0.02987674917 | R88: 5305 | S88: 0.006239974866 | T88: 5132 | U88: -0.01354772027 | V88: 1165 | W88: -0.005136997598 | X88: 4307 | Y88: -0.002087441324 | Z88: 3996 | AA88: -0.0002502189429 | AB88: 2021-01-04 | AC88: 14.6613 | AD88: 32958.9 | AE88: 280802.0144 | AF88: =INDEX(AD88:$AD$1886,MATCH(A88,AB88:$AB$1886,0)) -> 19152.6 | AG88: 0.03903730204 | AH88: 2021-01-04 | AI88: 1040.23 | AJ88: 8367.057297 | AK88: =INDEX(AI88:$AI$1867,MATCH(A88,AH88:$AH$1867,0)) -> 570.69 | AL88: -0.05872228696 | AM88: 2021-01-04 | AN88: 0.2367 | AO88: 0.15042285 | AP88: =INDEX(AN88:$AN$2080,MATCH(A88,AM88:$AM$2080,0)) -> 0.6355 | AQ88: -0.03817449841 | AR88: 2021-01-04 | AS88: 40.93 | AT88: 459.485142 | AU88: =INDEX(AS88:$AS$2080,MATCH(A88,AR88:$AR$2080,0)) -> 31.34 | AV88: -0.07556556556
A89: 2020-11-24 | B89: 613 | C89: 0.001632653424 | D89: 7695 | E89: 0.003775800332 | F89: 25987 | G89: -0.0293865579 | H89: 7195 | I89: 0.004038721457 | J89: 6862 | K89: 0 | L89: 2758 | M89: 0.0007254262197 | N89: 14108 | O89: 0.0002835672782 | P89: 2473 | Q89: 0.0295466713 | R89: 5272 | S89: 0.002849275363 | T89: 5202 | U89: 0.002887671657 | V89: 1171 | W89: 0.03034476432 | X89: 4316 | Y89: 0.01352948092 | Z89: 3997 | AA89: 0.002755857939 | AB89: 2021-01-03 | AC89: 14.693 | AD89: 32193.3 | AE89: 270051.4628 | AF89: =INDEX(AD89:$AD$1886,MATCH(A89,AB89:$AB$1886,0)) -> 18379.6 | AG89: 0.002671392164 | AH89: 2021-01-03 | AI89: 975.51 | AJ89: 8873.1027 | AK89: =INDEX(AI89:$AI$1867,MATCH(A89,AH89:$AH$1867,0)) -> 603.9 | AL89: -0.003024574285 | AM89: 2021-01-03 | AN89: 0.2258 | AO89: 0.15627618 | AP89: =INDEX(AN89:$AN$2080,MATCH(A89,AM89:$AM$2080,0)) -> 0.6921 | AQ89: 0.1380600608 | AR89: 2021-01-03 | AS89: 41.15 | AT89: 496.6234 | AU89: =INDEX(AS89:$AS$2080,MATCH(A89,AR89:$AR$2080,0)) -> 33.8 | AV89: 0.0874418085
A90: 2020-11-23 | B90: 612 | C90: 0 | D90: 7666 | E90: 0.01313044075 | F90: 26762 | G90: -0.008187006134 | H90: 7166 | I90: 0.001815769757 | J90: 6862 | K90: -0.0007283852023 | L90: 2756 | M90: 0 | N90: 14104 | O90: -0.01296157904 | P90: 2401 | Q90: 0.01173033979 | R90: 5257 | S90: 0.01321225538 | T90: 5187 | U90: 0.01946722953 | V90: 1136 | W90: 0.009730284643 | X90: 4258 | Y90: 0.01968520817 | Z90: 3986 | AA90: 0.006796753667 | AB90: 2021-01-02 | AC90: 14.6273 | AD90: 29359.9 | AE90: 269331.0122 | AF90: =INDEX(AD90:$AD$1886,MATCH(A90,AB90:$AB$1886,0)) -> 18412.9 | AG90: 0.02742049621 | AH90: 2021-01-02 | AI90: 774.53 | AJ90: 8899.980685 | AK90: =INDEX(AI90:$AI$1867,MATCH(A90,AH90:$AH$1867,0)) -> 608.45 | AL90: 0.1707780055 | AM90: 2021-01-02 | AN90: 0.2217 | AO90: 0.1361238 | AP90: =INDEX(AN90:$AN$2080,MATCH(A90,AM90:$AM$2080,0)) -> 0.614 | AQ90: 0.5582551226 | AR90: 2021-01-02 | AS90: 38.24 | AT90: 453.007481 | AU90: =INDEX(AS90:$AS$2080,MATCH(A90,AR90:$AR$2080,0)) -> 30.97 | AV90: 0.06952347951
A91: 2020-11-20 | B91: 612 | C91: -0.02101936722 | D91: 7566 | E91: 0.001322576572 | F91: 26982 | G91: -0.002923599958 | H91: 7153 | I91: 0.001679026559 | J91: 6867 | K91: -0.002036660582 | L91: 2756 | M91: 0 | N91: 14288 | O91: 0.003154466182 | P91: 2373 | Q91: -0.02167654694 | R91: 5188 | S91: 0 | T91: 5087 | U91: -0.001178782062 | V91: 1125 | W91: -0.02023826224 | X91: 4175 | Y91: 0.001198322492 | Z91: 3959 | AA91: -0.005792737518 | AB91: 2021-01-01 | AC91: 14.7188 | AD91: 28949.4 | AE91: 262046.1558 | AF91: =INDEX(AD91:$AD$1886,MATCH(A91,AB91:$AB$1886,0)) -> 17803.5 | AG91: 0.007799010898 | AH91: 2021-01-01 | AI91: 730.37 | AJ91: 7502.761112 | AK91: =INDEX(AI91:$AI$1867,MATCH(A91,AH91:$AH$1867,0)) -> 509.74 | AL91: 0.08388042757 | AM91: 2021-01-01 | AN91: 0.2374 | AO91: 0.07789094 | AP91: =INDEX(AN91:$AN$2080,MATCH(A91,AM91:$AM$2080,0)) -> 0.3281 | AQ91: 0.15397729 | AR91: 2021-01-01 | AS91: 37.91 | AT91: 425.226132 | AU91: =INDEX(AS91:$AS$2080,MATCH(A91,AR91:$AR$2080,0)) -> 28.89 | AV91: 0.02808187336
A92: 2020-11-19 | B92: 625 | C92: -0.006379606964 | D92: 7556 | E92: -0.01131739939 | F92: 27061 | G92: -0.003651725716 | H92: 7141 | I92: 0.003507052763 | J92: 6881 | K92: -0.0002906131959 | L92: 2756 | M92: 0 | N92: 14243 | O92: 0.01229176256 | P92: 2425 | Q92: 0.001650846434 | R92: 5188 | S92: -0.01473287913 | T92: 5093 | U92: -0.01384442508 | V92: 1148 | W92: -0.01898245091 | X92: 4170 | Y92: 0.003844310357 | Z92: 3982 | AA92: -0.005759374878 | AB92: 2020-12-31 | AC92: 14.6282 | AD92: 28868.7 | AE92: 260010.4037 | AF92: =INDEX(AD92:$AD$1886,MATCH(A92,AB92:$AB$1886,0)) -> 17774.6 | AG92: 0.004105133886 | AH92: 2020-12-31 | AI92: 737.8 | AJ92: 6899.097966 | AK92: =INDEX(AI92:$AI$1867,MATCH(A92,AH92:$AH$1867,0)) -> 471.63 | AL92: -0.01874031698 | AM92: 2020-12-31 | AN92: 0.2198 | AO92: 0.06677524 | AP92: =INDEX(AN92:$AN$2080,MATCH(A92,AM92:$AM$2080,0)) -> 0.3038 | AQ92: 0.0691853908 | AR92: 2020-12-31 | AS92: 37.38 | AT92: 410.906138 | AU92: =INDEX(AS92:$AS$2080,MATCH(A92,AR92:$AR$2080,0)) -> 28.09 | AV92: 0.0003560619585
A93: 2020-11-18 | B93: 629 | C93: 0.009584737913 | D93: 7642 | E93: 0.008542006075 | F93: 27160 | G93: -0.007044349647 | H93: 7116 | I93: 0.0008435259884 | J93: 6883 | K93: 0.002764241231 | L93: 2756 | M93: 0.0007259528449 | N93: 14069 | O93: 0.00691846845 | P93: 2421 | Q93: 0.01624020702 | R93: 5265 | S93: 0.005905341478 | T93: 5164 | U93: 0.008166485207 | V93: 1170 | W93: 0.003424660881 | X93: 4154 | Y93: 0.008946982666 | Z93: 4005 | AA93: 0.006513049076 | AB93: 2020-12-30 | AC93: 14.6609 | AD93: 27376 | AE93: 258945.2141 | AF93: =INDEX(AD93:$AD$1886,MATCH(A93,AB93:$AB$1886,0)) -> 17662.3 | AG93: 0.06095439847 | AH93: 2020-12-30 | AI93: 751.62 | AJ93: 7029.608332 | AK93: =INDEX(AI93:$AI$1867,MATCH(A93,AH93:$AH$1867,0)) -> 479.48 | AL93: 0.004042714426 | AM93: 2020-12-30 | AN93: 0.2118 | AO93: 0.06231156 | AP93: =INDEX(AN93:$AN$2080,MATCH(A93,AM93:$AM$2080,0)) -> 0.2942 | AQ93: -0.07001110449 | AR93: 2020-12-30 | AS93: 38.14 | AT93: 411.678072 | AU93: =INDEX(AS93:$AS$2080,MATCH(A93,AR93:$AR$2080,0)) -> 28.08 | AV93: -0.01589858607
A94: 2020-11-17 | B94: 623 | C94: 0.003215436854 | D94: 7577 | E94: -0.005002643398 | F94: 27352 | G94: 0.003772829149 | H94: 7110 | I94: -0.003510007114 | J94: 6864 | K94: -0.003345214377 | L94: 2754 | M94: -0.0003630422984 | N94: 13972 | O94: 0.02463535686 | P94: 2382 | Q94: 0.008008472728 | R94: 5234 | S94: -0.007044293765 | T94: 5122 | U94: -0.003897121066 | V94: 1166 | W94: 0.009478743955 | X94: 4117 | Y94: 0.002675424191 | Z94: 3979 | AA94: -0.01892015612 | AB94: 2020-12-29 | AC94: 14.575 | AD94: 27057.8 | AE94: 243632.785 | AF94: =INDEX(AD94:$AD$1886,MATCH(A94,AB94:$AB$1886,0)) -> 16715.8 | AG94: 0.04670748061 | AH94: 2020-12-29 | AI94: 731.52 | AJ94: 7001.247 | AK94: =INDEX(AI94:$AI$1867,MATCH(A94,AH94:$AH$1867,0)) -> 480.36 | AL94: 0.0434397766 | AM94: 2020-12-29 | AN94: 0.221 | AO94: 0.0668304 | AP94: =INDEX(AN94:$AN$2080,MATCH(A94,AM94:$AM$2080,0)) -> 0.3024 | AQ94: -0.05775742944 | AR94: 2020-12-29 | AS94: 38.95 | AT94: 415.82475 | AU94: =INDEX(AS94:$AS$2080,MATCH(A94,AR94:$AR$2080,0)) -> 28.53 | AV94: 0.01661109055
A95: 2020-11-16 | B95: 621 | C95: 0.009708814127 | D95: 7615 | E95: -0.004585661491 | F95: 27249 | G95: -0.01515125316 | H95: 7135 | I95: 0.002807019387 | J95: 6887 | K95: 0.0002904443819 | L95: 2755 | M95: 0 | N95: 13632 | O95: 0.009656213312 | P95: 2363 | Q95: 0.02311746783 | R95: 5271 | S95: 0.004373046231 | T95: 5142 | U95: 0.003311583819 | V95: 1155 | W95: 0.006079046076 | X95: 4106 | Y95: -0.00800489417 | Z95: 4055 | AA95: 0.02143651377 | AB95: 2020-12-28 | AC95: 14.575 | AD95: 26261.3 | AE95: 232514.975 | AF95: =INDEX(AD95:$AD$1886,MATCH(A95,AB95:$AB$1886,0)) -> 15953 | AG95: -0.02596376527 | AH95: 2020-12-28 | AI95: 730.4 | AJ95: 6703.6255 | AK95: =INDEX(AI95:$AI$1867,MATCH(A95,AH95:$AH$1867,0)) -> 459.94 | AL95: -0.03621026996 | AM95: 2020-12-28 | AN95: 0.248 | AO95: 0.070804 | AP95: =INDEX(AN95:$AN$2080,MATCH(A95,AM95:$AM$2080,0)) -> 0.2855 | AQ95: -0.05826038069 | AR95: 2020-12-28 | AS95: 35.84 | AT95: 408.9745 | AU95: =INDEX(AS95:$AS$2080,MATCH(A95,AR95:$AR$2080,0)) -> 28.06 | AV95: -0.004267431796
A96: 2020-11-13 | B96: 615 | C96: -0.01292425098 | D96: 7650 | E96: 0.002093693515 | F96: 27665 | G96: 0.005146057598 | H96: 7115 | I96: -0.007142387341 | J96: 6885 | K96: -0.0001452327357 | L96: 2755 | M96: 0.0003630422984 | N96: 13501 | O96: 0.01627873462 | P96: 2309 | Q96: -0.006905508667 | R96: 5248 | S96: 0.001716411216 | T96: 5125 | U96: -0.0007801833827 | V96: 1148 | W96: -0.01641505541 | X96: 4139 | Y96: 0.01190924271 | Z96: 3969 | AA96: 0.001008318714 | AB96: 2020-12-27 | AC96: 14.6447 | AD96: 26454.4 | AE96: 238630.9931 | AF96: =INDEX(AD96:$AD$1886,MATCH(A96,AB96:$AB$1886,0)) -> 16294.7 | AG96: 0.04051055681 | AH96: 2020-12-27 | AI96: 682.64 | AJ96: 6950.813961 | AK96: =INDEX(AI96:$AI$1867,MATCH(A96,AH96:$AH$1867,0)) -> 474.63 | AL96: 0.03217963428 | AM96: 2020-12-27 | AN96: 0.283 | AO96: 0.0750516 | AP96: =INDEX(AN96:$AN$2080,MATCH(A96,AM96:$AM$2080,0)) -> 0.2652 | AQ96: -0.0008980451708 | AR96: 2020-12-27 | AS96: 33.51 | AT96: 412.687646 | AU96: =INDEX(AS96:$AS$2080,MATCH(A96,AR96:$AR$2080,0)) -> 28.18 | AV96: 0.02043448053
A97: 2020-11-12 | B97: 623 | C97: -0.01907848011 | D97: 7634 | E97: 0.001835584624 | F97: 27523 | G97: 0.000799651104 | H97: 7166 | I97: 0.0004187312504 | J97: 6886 | K97: 0.003782923179 | L97: 2754 | M97: 0.001453488628 | N97: 13283 | O97: 0.004149227031 | P97: 2325 | Q97: -0.06211623493 | R97: 5239 | S97: -0.008363477756 | T97: 5129 | U97: 0.00684733185 | V97: 1167 | W97: -0.02788520349 | X97: 4090 | Y97: 0 | Z97: 3965 | AA97: -0.01178401501 | AB97: 2020-12-26 | AC97: 14.5999 | AD97: 24689.6 | AE97: 229157.1104 | AF97: =INDEX(AD97:$AD$1886,MATCH(A97,AB97:$AB$1886,0)) -> 15695.8 | AG97: 0.01947956128 | AH97: 2020-12-26 | AI97: 635.84 | AJ97: 6730.699899 | AK97: =INDEX(AI97:$AI$1867,MATCH(A97,AH97:$AH$1867,0)) -> 461.01 | AL97: -0.01004642705 | AM97: 2020-12-26 | AN97: 0.2947 | AO97: 0.07511903 | AP97: =INDEX(AN97:$AN$2080,MATCH(A97,AM97:$AM$2080,0)) -> 0.2549 | AQ97: -0.081885231 | AR97: 2020-12-26 | AS97: 33.48 | AT97: 403.103239 | AU97: =INDEX(AS97:$AS$2080,MATCH(A97,AR97:$AR$2080,0)) -> 27.61 | AV97: -0.01259689142
A98: 2020-11-11 | B98: 635 | C98: 0.04674501282 | D98: 7620 | E98: -0.007191923775 | F98: 27501 | G98: 0.0003636892679 | H98: 7163 | I98: 0.002096290335 | J98: 6860 | K98: 0.002481209767 | L98: 2750 | M98: -0.001090314482 | N98: 13228 | O98: 0.007664617298 | P98: 2474 | Q98: 0.03287066683 | R98: 5283 | S98: 0.00151543882 | T98: 5094 | U98: 0.008081250247 | V98: 1200 | W98: 0.05657035149 | X98: 4090 | Y98: 0.01975372874 | Z98: 4012 | AA98: 0.01887085814 | AB98: 2020-12-25 | AC98: 14.6852 | AD98: 23736.5 | AE98: 224736.4267 | AF98: =INDEX(AD98:$AD$1886,MATCH(A98,AB98:$AB$1886,0)) -> 15303.6 | AG98: 0.005312503999 | AH98: 2020-12-25 | AI98: 626.41 | AJ98: 6798.660192 | AK98: =INDEX(AI98:$AI$1867,MATCH(A98,AH98:$AH$1867,0)) -> 462.96 | AL98: 0.03595787553 | AM98: 2020-12-25 | AN98: 0.3181 | AO98: 0.08152903 | AP98: =INDEX(AN98:$AN$2080,MATCH(A98,AM98:$AM$2080,0)) -> 0.2563 | AQ98: -0.05068006096 | AR98: 2020-12-25 | AS98: 33.16 | AT98: 410.598192 | AU98: =INDEX(AS98:$AS$2080,MATCH(A98,AR98:$AR$2080,0)) -> 27.96 | AV98: -0.00819238776
A99: 2020-11-10 | B99: 606 | C99: 0.008285051534 | D99: 7675 | E99: -0.01423051181 | F99: 27491 | G99: 0.02065490555 | H99: 7148 | I99: -0.003909527459 | J99: 6843 | K99: 0.003220143298 | L99: 2753 | M99: 0 | N99: 13127 | O99: 0.02600756223 | P99: 2394 | Q99: 0.01515180502 | R99: 5275 | S99: 0 | T99: 5053 | U99: -0.01102156404 | V99: 1134 | W99: 0.03408401678 | X99: 4010 | Y99: -0.006958278572 | Z99: 3937 | AA99: -0.001015486251 | AB99: 2020-12-24 | AC99: 14.5849 | AD99: 23257.9 | AE99: 223545.6793 | AF99: =INDEX(AD99:$AD$1886,MATCH(A99,AB99:$AB$1886,0)) -> 15327.2 | AG99: -0.01629700553 | AH99: 2020-12-24 | AI99: 611.61 | AJ99: 6558.537832 | AK99: =INDEX(AI99:$AI$1867,MATCH(A99,AH99:$AH$1867,0)) -> 449.68 | AL99: 0.006213185177 | AM99: 2020-12-24 | AN99: 0.3378 | AO99: 0.08576742 | AP99: =INDEX(AN99:$AN$2080,MATCH(A99,AM99:$AM$2080,0)) -> 0.2539 | AQ99: 0.2798550216 | AR99: 2020-12-24 | AS99: 32.5 | AT99: 411.148331 | AU99: =INDEX(AS99:$AS$2080,MATCH(A99,AR99:$AR$2080,0)) -> 28.19 | AV99: 0.006048764217
A100: 2020-11-09 | B100: 601 | C100: 0.01171561517 | D100: 7785 | E100: 0.02037311755 | F100: 26929 | G100: -0.06706744222 | H100: 7176 | I100: 0.01403334846 | J100: 6821 | K100: 0.003230546128 | L100: 2753 | M100: 0 | N100: 12790 | O100: -0.07571507948 | P100: 2358 | Q100: 0.0657266737 | R100: 5275 | S100: 0.01355111871 | T100: 5109 | U100: 0.003529415428 | V100: 1096 | W100: 0.07677857603 | X100: 4038 | Y100: 0.002976192673 | Z100: 3941 | AA100: 0.006874629239 | AB100: 2020-12-23 | AC100: 14.6747 | AD100: 23823.2 | AE100: 227218.6524 | AF100: =INDEX(AD100:$AD$1886,MATCH(A100,AB100:$AB$1886,0)) -> 15483.7 | AG100: 0.003019682343 | AH100: 2020-12-23 | AI100: 583.71 | AJ100: 6517.914752 | AK100: =INDEX(AI100:$AI$1867,MATCH(A100,AH100:$AH$1867,0)) -> 444.16 | AL100: -0.01382151329 | AM100: 2020-12-23 | AN100: 0.2586 | AO100: 0.06483102 | AP100: =INDEX(AN100:$AN$2080,MATCH(A100,AM100:$AM$2080,0)) -> 0.2507 | AQ100: -0.5806549916 | AR100: 2020-12-23 | AS100: 31.1 | AT100: 411.185094 | AU100: =INDEX(AS100:$AS$2080,MATCH(A100,AR100:$AR$2080,0)) -> 28.02 | AV100: -0.03506670655
A101: 2020-11-06 | B101: 594 | C101: 0.005063301957 | D101: 7628 | E101: 0.03454367595 | F101: 28797 | G101: 0.003862016177 | H101: 7076 | I101: 0.005668949422 | J101: 6799 | K101: 0.006196537974 | L101: 2753 | M101: 0.001090314482 | N101: 13796 | O101: 0.00661796532 | P101: 2208 | Q101: 0.003629768051 | R101: 5204 | S101: 0.02667863416 | T101: 5091 | U101: 0.0003929273135 | V101: 1015 | W101: 0 | X101: 4026 | Y101: 0.008230499137 | Z101: 3914 | AA101: -0.004079556907 | AB101: 2020-12-22 | AC101: 14.5334 | AD101: 22728.5 | AE101: 226533.5591 | AF101: =INDEX(AD101:$AD$1886,MATCH(A101,AB101:$AB$1886,0)) -> 15587.1 | AG101: 0.09704002742 | AH101: 2020-12-22 | AI101: 634.85 | AJ101: 6608.627648 | AK101: =INDEX(AI101:$AI$1867,MATCH(A101,AH101:$AH$1867,0)) -> 454.72 | AL101: 0.09364680325 | AM101: 2020-12-22 | AN101: 0.4484 | AO101: 0.11586656 | AP101: =INDEX(AN101:$AN$2080,MATCH(A101,AM101:$AM$2080,0)) -> 0.2584 | AQ101: -0.09217316623 | AR101: 2020-12-22 | AS101: 33.48 | AT101: 421.759268 | AU101: =INDEX(AS101:$AS$2080,MATCH(A101,AR101:$AR$2080,0)) -> 29.02 | AV101: 0.04727511671
A102: 2020-11-05 | B102: 591 | C102: 0.02918662109 | D102: 7369 | E102: 0.03521733826 | F102: 28686 | G102: 0.002128736998 | H102: 7036 | I102: 0.01763612991 | J102: 6757 | K102: 0.0002960331579 | L102: 2750 | M102: -0.001090314482 | N102: 13705 | O102: 0.01277738047 | P102: 2200 | Q102: 0.01881220883 | R102: 5067 | S102: 0.02659890839 | T102: 5089 | U102: 0.008881929504 | V102: 1015 | W102: 0.01289060983 | X102: 3993 | Y102: 0.02382271808 | Z102: 3930 | AA102: 0.01074453928 | AB102: 2020-12-21 | AC102: 14.5334 | AD102: 23474.9 | AE102: 205583.663 | AF102: =INDEX(AD102:$AD$1886,MATCH(A102,AB102:$AB$1886,0)) -> 14145.6 | AG102: 0.001645135833 | AH102: 2020-12-21 | AI102: 609.82 | AJ102: 6017.844938 | AK102: =INDEX(AI102:$AI$1867,MATCH(A102,AH102:$AH$1867,0)) -> 414.07 | AL102: 0.02195401804 | AM102: 2020-12-21 | AN102: 0.5169 | AO102: 0.12705402 | AP102: =INDEX(AN102:$AN$2080,MATCH(A102,AM102:$AM$2080,0)) -> 0.2458 | AQ102: -0.04001048912 | AR102: 2020-12-21 | AS102: 32.27 | AT102: 402.284512 | AU102: =INDEX(AS102:$AS$2080,MATCH(A102,AR102:$AR$2080,0)) -> 27.68 | AV102: 0.02746922393
A103: 2020-11-04 | B103: 574 | C103: 0.005240186664 | D103: 7114 | E103: 0.02102350158 | F103: 28625 | G103: -0.0003842056595 | H103: 6913 | I103: -0.007493910269 | J103: 6755 | K103: 0.0008886256509 | L103: 2753 | M103: 0 | N103: 13531 | O103: 0.008684411604 | P103: 2159 | Q103: 0.01446258005 | R103: 4934 | S103: 0.0083444058 | T103: 5044 | U103: 0.01739869906 | V103: 1002 | W103: 0 | X103: 3899 | Y103: 0.01005292652 | Z103: 3888 | AA103: 0.01685943188 | AB103: 2020-12-20 | AC103: 14.6396 | AD103: 23844 | AE103: 205245.728 | AF103: =INDEX(AD103:$AD$1886,MATCH(A103,AB103:$AB$1886,0)) -> 14019.9 | AG103: 0.02150224272 | AH103: 2020-12-20 | AI103: 638.29 | AJ103: 5887.168744 | AK103: =INDEX(AI103:$AI$1867,MATCH(A103,AH103:$AH$1867,0)) -> 402.14 | AL103: 0.02507842251 | AM103: 2020-12-20 | AN103: 0.5561 | AO103: 0.13224058 | AP103: =INDEX(AN103:$AN$2080,MATCH(A103,AM103:$AM$2080,0)) -> 0.2378 | AQ103: -0.04782313947 | AR103: 2020-12-20 | AS103: 34.16 | AT103: 394.244428 | AU103: =INDEX(AS103:$AS$2080,MATCH(A103,AR103:$AR$2080,0)) -> 26.93 | AV103: 0.002602715728
A104: 2020-11-03 | B104: 571 | C104: 0.02482396973 | D104: 6966 | E104: -0.005868477445 | F104: 28636 | G104: -0.006613090127 | H104: 6965 | I104: 0.00995607387 | J104: 6749 | K104: -0.001036653184 | L104: 2753 | M104: -0.000363174146 | N104: 13414 | O104: -0.00838875043 | P104: 2128 | Q104: 0.01372153064 | R104: 4893 | S104: 0.01027124889 | T104: 4957 | U104: -0.005833266063 | V104: 1002 | W104: 0.04177887267 | X104: 3860 | Y104: -0.001811829148 | Z104: 3823 | AA104: 0.002881468922 | AB104: 2020-12-19 | AC104: 14.8126 | AD104: 23127.9 | AE104: 200879.5936 | AF104: =INDEX(AD104:$AD$1886,MATCH(A104,AB104:$AB$1886,0)) -> 13561.4 | AG104: -0.01929662679 | AH104: 2020-12-19 | AI104: 659.3 | AJ104: 5741.36376 | AK104: =INDEX(AI104:$AI$1867,MATCH(A104,AH104:$AH$1867,0)) -> 387.6 | AL104: 0.006719301592 | AM104: 2020-12-19 | AN104: 0.5792 | AO104: 0.1387184 | AP104: =INDEX(AN104:$AN$2080,MATCH(A104,AM104:$AM$2080,0)) -> 0.2395 | AQ104: 0.008500513536 | AR104: 2020-12-19 | AS104: 33.3 | AT104: 397.866436 | AU104: =INDEX(AS104:$AS$2080,MATCH(A104,AR104:$AR$2080,0)) -> 26.86 | AV104: -0.0372713948
A105: 2020-11-02 | B105: 557 | C105: 0.0126469617 | D105: 7007 | E105: 0.008887673182 | F105: 28826 | G105: 0.003927775779 | H105: 6896 | I105: -0.00491827984 | J105: 6756 | K105: 0.0001480275334 | L105: 2754 | M105: 0.000363174146 | N105: 13527 | O105: 0.01100137462 | P105: 2099 | Q105: 0.01536276014 | R105: 4843 | S105: 0.01791714597 | T105: 4986 | U105: 0.005833266063 | V105: 961 | W105: 0.01256561036 | X105: 3867 | Y105: 0.02620008392 | Z105: 3812 | AA105: 0.01533204763 | AB105: 2020-12-18 | AC105: 14.8839 | AD105: 22825.4 | AE105: 204793.5337 | AF105: =INDEX(AD105:$AD$1886,MATCH(A105,AB105:$AB$1886,0)) -> 13759.4 | AG105: 0.01201411177 | AH105: 2020-12-18 | AI105: 654.81 | AJ105: 5702.915124 | AK105: =INDEX(AI105:$AI$1867,MATCH(A105,AH105:$AH$1867,0)) -> 383.16 | AL105: -0.009306084633 | AM105: 2020-12-18 | AN105: 0.5843 | AO105: 0.13754422 | AP105: =INDEX(AN105:$AN$2080,MATCH(A105,AM105:$AM$2080,0)) -> 0.2354 | AQ105: -0.002921478311 | AR105: 2020-12-18 | AS105: 30.94 | AT105: 414.963132 | AU105: =INDEX(AS105:$AS$2080,MATCH(A105,AR105:$AR$2080,0)) -> 27.88 | AV105: -0.02234531703
A106: 2020-10-30 | B106: 550 | C106: -0.0180185055 | D106: 6945 | E106: 0.004907631097 | F106: 28713 | G106: -0.0006963061243 | H106: 6930 | I106: 0.002022245381 | J106: 6755 | K106: -0.0005919787061 | L106: 2753 | M106: 0.000726744218 | N106: 13379 | O106: -0.01255262146 | P106: 2067 | Q106: -0.02106348817 | R106: 4757 | S106: -0.003357820574 | T106: 4957 | U106: -0.01561280713 | V106: 949 | W106: -0.03316366096 | X106: 3767 | Y106: -0.03007155604 | Z106: 3754 | AA106: -0.01821351655 | AB106: 2020-12-17 | AC106: 15.0364 | AD106: 21352.2 | AE106: 202347.8421 | AF106: =INDEX(AD106:$AD$1886,MATCH(A106,AB106:$AB$1886,0)) -> 13457.2 | AG106: 0.01019057745 | AH106: 2020-12-17 | AI106: 642.87 | AJ106: 5756.234648 | AK106: =INDEX(AI106:$AI$1867,MATCH(A106,AH106:$AH$1867,0)) -> 382.82 | AL106: -0.01330926236 | AM106: 2020-12-17 | AN106: 0.5767 | AO106: 0.13794664 | AP106: =INDEX(AN106:$AN$2080,MATCH(A106,AM106:$AM$2080,0)) -> 0.2392 | AQ106: 0.001268395658 | AR106: 2020-12-17 | AS106: 30.18 | AT106: 428.687764 | AU106: =INDEX(AS106:$AS$2080,MATCH(A106,AR106:$AR$2080,0)) -> 28.51 | AV106: -0.04559487241
A107: 2020-10-29 | B107: 560 | C107: -0.03509131981 | D107: 6911 | E107: -0.002601157536 | F107: 28733 | G107: -0.003647673878 | H107: 6916 | I107: 0.005945924268 | J107: 6759 | K107: -0.003986716244 | L107: 2751 | M107: 0.001819174597 | N107: 13548 | O107: -0.01806727271 | P107: 2111 | Q107: -0.01923587343 | R107: 4773 | S107: -0.0178576174 | T107: 5035 | U107: 0.005976113403 | V107: 981 | W107: -0.03111139028 | X107: 3882 | Y107: 0.00568330127 | Z107: 3823 | AA107: -0.001307018876 | AB107: 2020-12-16 | AC107: 15.0838 | AD107: 19434.9 | AE107: 200296.2718 | AF107: =INDEX(AD107:$AD$1886,MATCH(A107,AB107:$AB$1886,0)) -> 13278.9 | AG107: -0.02813447771 | AH107: 2020-12-16 | AI107: 636.18 | AJ107: 5833.357974 | AK107: =INDEX(AI107:$AI$1867,MATCH(A107,AH107:$AH$1867,0)) -> 386.73 | AL107: -0.004952420553 | AM107: 2020-12-16 | AN107: 0.5686 | AO107: 0.13777178 | AP107: =INDEX(AN107:$AN$2080,MATCH(A107,AM107:$AM$2080,0)) -> 0.2423 | AQ107: 0.1763346848 | AR107: 2020-12-16 | AS107: 30.49 | AT107: 450.100592 | AU107: =INDEX(AS107:$AS$2080,MATCH(A107,AR107:$AR$2080,0)) -> 29.84 | AV107: -0.01727617719
A108: 2020-10-28 | B108: 580 | C108: -0.01709443336 | D108: 6929 | E108: -0.02141715215 | F108: 28838 | G108: -0.0006239817168 | H108: 6875 | I108: -0.01070612078 | J108: 6786 | K108: 0.003395087769 | L108: 2746 | M108: -0.002545918815 | N108: 13795 | O108: -0.00325674252 | P108: 2152 | Q108: -0.03605227315 | R108: 4859 | S108: -0.0219833807 | T108: 5005 | U108: -0.004783744423 | V108: 1012 | W108: -0.0368615933 | X108: 3860 | Y108: -0.02025970051 | Z108: 3828 | AA108: -0.01683759504 | AB108: 2020-12-15 | AC108: 15.0838 | AD108: 19273.8 | AE108: 206011.5236 | AF108: =INDEX(AD108:$AD$1886,MATCH(A108,AB108:$AB$1886,0)) -> 13657.8 | AG108: 0.04094825703 | AH108: 2020-12-15 | AI108: 589.36 | AJ108: 5862.31887 | AK108: =INDEX(AI108:$AI$1867,MATCH(A108,AH108:$AH$1867,0)) -> 388.65 | AL108: -0.04242158442 | AM108: 2020-12-15 | AN108: 0.4697 | AO108: 0.11549923 | AP108: =INDEX(AN108:$AN$2080,MATCH(A108,AM108:$AM$2080,0)) -> 0.2459 | AQ108: -0.08597249729 | AR108: 2020-12-15 | AS108: 29.55 | AT108: 457.944168 | AU108: =INDEX(AS108:$AS$2080,MATCH(A108,AR108:$AR$2080,0)) -> 30.36 | AV108: -0.04129619037
A109: 2020-10-27 | B109: 590 | C109: -0.02510592113 | D109: 7079 | E109: -0.007879596137 | F109: 28856 | G109: -0.006115170467 | H109: 6949 | I109: 0.004760196511 | J109: 6763 | K109: -0.0004434917657 | L109: 2753 | M109: 0.001090314482 | N109: 13840 | O109: 0.005433811595 | P109: 2231 | Q109: -0.02260233599 | R109: 4967 | S109: -0.01459004596 | T109: 5029 | U109: -0.003770968049 | V109: 1050 | W109: -0.01418463499 | X109: 3939 | Y109: -0.005064584135 | Z109: 3893 | AA109: -0.01225442958 | AB109: 2020-12-14 | AC109: 15.1395 | AD109: 19176.8 | AE109: 197746.0932 | AF109: =INDEX(AD109:$AD$1886,MATCH(A109,AB109:$AB$1886,0)) -> 13061.6 | AG109: 0.01004483891 | AH109: 2020-12-14 | AI109: 586.01 | AJ109: 6116.358 | AK109: =INDEX(AI109:$AI$1867,MATCH(A109,AH109:$AH$1867,0)) -> 404 | AL109: 0.03313462456 | AM109: 2020-12-14 | AN109: 0.4977 | AO109: 0.12586833 | AP109: =INDEX(AN109:$AN$2080,MATCH(A109,AM109:$AM$2080,0)) -> 0.2529 | AQ109: -0.01060329666 | AR109: 2020-12-14 | AS109: 30.03 | AT109: 479.01378 | AU109: =INDEX(AS109:$AS$2080,MATCH(A109,AR109:$AR$2080,0)) -> 31.64 | AV109: 0.01560789767
A110: 2020-10-26 | B110: 605 | C110: -0.004946423935 | D110: 7135 | E110: -0.005869217519 | F110: 29033 | G110: 0.004383928042 | H110: 6916 | I110: -0.003175980727 | J110: 6766 | K110: -0.0002955519454 | L110: 2750 | M110: 0 | N110: 13765 | O110: -0.03917879996 | P110: 2282 | Q110: -0.01694587585 | R110: 5040 | S110: -0.007708309736 | T110: 5048 | U110: -0.004545911574 | V110: 1065 | W110: -0.01027566258 | X110: 3959 | Y110: -0.01255036554 | Z110: 3941 | AA110: -0.009344682219 | AB110: 2020-12-13 | AC110: 15.022 | AD110: 18808.9 | AE110: 195769.7084 | AF110: =INDEX(AD110:$AD$1886,MATCH(A110,AB110:$AB$1886,0)) -> 13032.2 | AG110: 0.008712508315 | AH110: 2020-12-13 | AI110: 589.66 | AJ110: 5917.01558 | AK110: =INDEX(AI110:$AI$1867,MATCH(A110,AH110:$AH$1867,0)) -> 393.89 | AL110: -0.03524145383 | AM110: 2020-12-13 | AN110: 0.5115 | AO110: 0.12721005 | AP110: =INDEX(AN110:$AN$2080,MATCH(A110,AM110:$AM$2080,0)) -> 0.2487 | AQ110: -0.01460324601 | AR110: 2020-12-13 | AS110: 29.1 | AT110: 467.9353 | AU110: =INDEX(AS110:$AS$2080,MATCH(A110,AR110:$AR$2080,0)) -> 31.15 | AV110: 0.01683432439
A111: 2020-10-23 | B111: 608 | C111: 0.04027389914 | D111: 7177 | E111: 0.01516244126 | F111: 28906 | G111: -0.000553365166 | H111: 6938 | I111: 0.003609851584 | J111: 6768 | K111: -0.001623976145 | L111: 2750 | M111: 0.0003637024954 | N111: 14315 | O111: 0.04881461435 | P111: 2321 | Q111: 0.03240213409 | R111: 5079 | S111: 0.008303725056 | T111: 5071 | U111: 0.001578843825 | V111: 1076 | W111: 0.03884903502 | X111: 4009 | Y111: 0.01381410891 | Z111: 3978 | AA111: 0.008076772831 | AB111: 2020-12-12 | AC111: 14.9578 | AD111: 18023.6 | AE111: 194071.4719 | AF111: =INDEX(AD111:$AD$1886,MATCH(A111,AB111:$AB$1886,0)) -> 12974.6 | AG111: 0.01103882807 | AH111: 2020-12-12 | AI111: 568.57 | AJ111: 6129.257706 | AK111: =INDEX(AI111:$AI$1867,MATCH(A111,AH111:$AH$1867,0)) -> 409.77 | AL111: -0.01154438166 | AM111: 2020-12-12 | AN111: 0.5064 | AO111: 0.12908136 | AP111: =INDEX(AN111:$AN$2080,MATCH(A111,AM111:$AM$2080,0)) -> 0.2549 | AQ111: -0.08363369722 | AR111: 2020-12-12 | AS111: 28.16 | AT111: 458.157414 | AU111: =INDEX(AS111:$AS$2080,MATCH(A111,AR111:$AR$2080,0)) -> 30.63 | AV111: -0.000978952599
A112: 2020-10-22 | B112: 584 | C112: 0.001713796478 | D112: 7069 | E112: -0.005642559759 | F112: 28922 | G112: -0.01856662795 | H112: 6913 | I112: 0.001013097995 | J112: 6779 | K112: 0.0002950722949 | L112: 2749 | M112: 0.000363834823 | N112: 13633 | O112: -0.03396512089 | P112: 2247 | Q112: 0.004460310695 | R112: 5037 | S112: -0.01360565206 | T112: 5063 | U112: -0.008065353055 | V112: 1035 | W112: 0.02346148668 | X112: 3954 | Y112: -0.02102179514 | Z112: 3946 | AA112: -0.01259145319 | AB112: 2020-12-11 | AC112: 14.9852 | AD112: 18247.2 | AE112: 191940.9312 | AF112: =INDEX(AD112:$AD$1886,MATCH(A112,AB112:$AB$1886,0)) -> 12808.7 | AG112: 0.0619572741 | AH112: 2020-12-11 | AI112: 545.8 | AJ112: 6200.426204 | AK112: =INDEX(AI112:$AI$1867,MATCH(A112,AH112:$AH$1867,0)) -> 413.77 | AL112: 0.0430687051 | AM112: 2020-12-11 | AN112: 0.5465 | AO112: 0.1403412 | AP112: =INDEX(AN112:$AN$2080,MATCH(A112,AM112:$AM$2080,0)) -> 0.2568 | AQ112: -0.02689436211 | AR112: 2020-12-11 | AS112: 27.36 | AT112: 459.446232 | AU112: =INDEX(AS112:$AS$2080,MATCH(A112,AR112:$AR$2080,0)) -> 30.66 | AV112: 0.02945769842
A113: 2020-10-21 | B113: 583 | C113: 0.003436429499 | D113: 7109 | E113: -0.01632404578 | F113: 29464 | G113: -0.002000441442 | H113: 6906 | I113: 0.002464662357 | J113: 6777 | K113: 0.0008857396505 | L113: 2748 | M113: 0.0007280670143 | N113: 14104 | O113: 0.00433439411 | P113: 2237 | Q113: 0.01123859885 | R113: 5106 | S113: -0.006247579868 | T113: 5104 | U113: -0.003910837992 | V113: 1011 | W113: 0.01194044037 | X113: 4038 | Y113: -0.01816000826 | Z113: 3996 | AA113: -0.008968669983 | AB113: 2020-12-10 | AC113: 15.1433 | AD113: 18546 | AE113: 180409.7045 | AF113: =INDEX(AD113:$AD$1886,MATCH(A113,AB113:$AB$1886,0)) -> 11913.5 | AG113: 0.009542443762 | AH113: 2020-12-10 | AI113: 559.68 | AJ113: 5939.050827 | AK113: =INDEX(AI113:$AI$1867,MATCH(A113,AH113:$AH$1867,0)) -> 392.19 | AL113: 0.05658323367 | AM113: 2020-12-10 | AN113: 0.573 | AO113: 0.1441668 | AP113: =INDEX(AN113:$AN$2080,MATCH(A113,AM113:$AM$2080,0)) -> 0.2516 | AQ113: 0.01398288906 | AR113: 2020-12-10 | AS113: 27.7 | AT113: 450.816041 | AU113: =INDEX(AS113:$AS$2080,MATCH(A113,AR113:$AR$2080,0)) -> 29.77 | AV113: 0.03312578789
A114: 2020-10-20 | B114: 581 | C114: 0.001722653311 | D114: 7226 | E114: 0.01085303543 | F114: 29523 | G114: 0.001491475142 | H114: 6889 | I114: -0.0008705746342 | J114: 6771 | K114: 0.001625896449 | L114: 2746 | M114: -0.0007280670143 | N114: 14043 | O114: 0.01789033598 | P114: 2212 | Q114: -0.009896616987 | R114: 5138 | S114: 0.001948179069 | T114: 5124 | U114: 0.002931693686 | V114: 999 | W114: 0 | X114: 4112 | Y114: -0.003641222618 | Z114: 4032 | AA114: -0.007412932389 | AB114: 2020-12-09 | AC114: 15.2038 | AD114: 18326.6 | AE114: 178696.3429 | AF114: =INDEX(AD114:$AD$1886,MATCH(A114,AB114:$AB$1886,0)) -> 11753.4 | AG114: 0.02119570499 | AH114: 2020-12-09 | AI114: 573.48 | AJ114: 5612.330732 | AK114: =INDEX(AI114:$AI$1867,MATCH(A114,AH114:$AH$1867,0)) -> 369.14 | AL114: -0.02883736964 | AM114: 2020-12-09 | AN114: 0.5836 | AO114: 0.14216496 | AP114: =INDEX(AN114:$AN$2080,MATCH(A114,AM114:$AM$2080,0)) -> 0.2436 | AQ114: 0.03362018917 | AR114: 2020-12-09 | AS114: 28.13 | AT114: 437.86944 | AU114: =INDEX(AS114:$AS$2080,MATCH(A114,AR114:$AR$2080,0)) -> 28.8 | AV114: -0.03848593472
A115: 2020-10-19 | B115: 580 | C115: 0.01039870722 | D115: 7148 | E115: -0.006136699872 | F115: 29479 | G115: -0.002845433985 | H115: 6895 | I115: 0.003195819106 | J115: 6760 | K115: -0.0008871803036 | L115: 2748 | M115: 0 | N115: 13794 | O115: -0.01389461179 | P115: 2234 | Q115: 0.01442766235 | R115: 5128 | S115: 0.0007803355839 | T115: 5109 | U115: -0.002931693686 | V115: 999 | W115: 0.02842831036 | X115: 4127 | Y115: -0.007002322467 | Z115: 4062 | AA115: -0.009311510552 | AB115: 2020-12-08 | AC115: 15.2038 | AD115: 19170.7 | AE115: 174948.6062 | AF115: =INDEX(AD115:$AD$1886,MATCH(A115,AB115:$AB$1886,0)) -> 11506.9 | AG115: -0.001159517252 | AH115: 2020-12-08 | AI115: 554.83 | AJ115: 5776.531772 | AK115: =INDEX(AI115:$AI$1867,MATCH(A115,AH115:$AH$1867,0)) -> 379.94 | AL115: 0.03525329241 | AM115: 2020-12-08 | AN115: 0.5588 | AO115: 0.1374648 | AP115: =INDEX(AN115:$AN$2080,MATCH(A115,AM115:$AM$2080,0)) -> 0.246 | AQ115: -0.06283508996 | AR115: 2020-12-08 | AS115: 27.64 | AT115: 455.049734 | AU115: =INDEX(AS115:$AS$2080,MATCH(A115,AR115:$AR$2080,0)) -> 29.93 | AV115: -0.002002670896
A116: 2020-10-16 | B116: 574 | C116: 0 | D116: 7192 | E116: 0.01160771022 | F116: 29563 | G116: -0.005868482272 | H116: 6873 | I116: 0.003206065119 | J116: 6766 | K116: -0.0008863939124 | L116: 2748 | M116: 0.000363967247 | N116: 13987 | O116: 0.005376549745 | P116: 2202 | Q116: 0.004551669215 | R116: 5124 | S116: 0.004694844304 | T116: 5124 | U116: 0.002149067937 | V116: 971 | W116: -0.01431517288 | X116: 4156 | Y116: 0.01113004473 | Z116: 4100 | AA116: 0.007589704691 | AB116: 2020-12-07 | AC116: 15.2266 | AD116: 19379.9 | AE116: 175151.5798 | AF116: =INDEX(AD116:$AD$1886,MATCH(A116,AB116:$AB$1886,0)) -> 11503 | AG116: 0.01102303772 | AH116: 2020-12-07 | AI116: 591.84 | AJ116: 5576.437718 | AK116: =INDEX(AI116:$AI$1867,MATCH(A116,AH116:$AH$1867,0)) -> 366.23 | AL116: -0.02633366763 | AM116: 2020-12-07 | AN116: 0.6089 | AO116: 0.14637956 | AP116: =INDEX(AN116:$AN$2080,MATCH(A116,AM116:$AM$2080,0)) -> 0.2404 | AQ116: -0.04052487065 | AR116: 2020-12-07 | AS116: 29.38 | AT116: 456.645734 | AU116: =INDEX(AS116:$AS$2080,MATCH(A116,AR116:$AR$2080,0)) -> 29.99 | AV116: -0.04275410479
A117: 2020-10-15 | B117: 574 | C117: -0.001740644478 | D117: 7109 | E117: -0.01480060528 | F117: 29737 | G117: 0.005800832428 | H117: 6851 | I117: 0.0005840268818 | J117: 6772 | K117: 0.001921514153 | L117: 2747 | M117: 0 | N117: 13912 | O117: 0.008300599826 | P117: 2192 | Q117: -0.005913139813 | R117: 5100 | S117: -0.01111447534 | T117: 5113 | U117: -0.01282567134 | V117: 985 | W117: 0.01020417017 | X117: 4110 | Y117: -0.005822432751 | Z117: 4069 | AA117: -0.00832114444 | AB117: 2020-12-06 | AC117: 15.1686 | AD117: 19146.5 | AE117: 173231.4794 | AF117: =INDEX(AD117:$AD$1886,MATCH(A117,AB117:$AB$1886,0)) -> 11420.4 | AG117: -0.005505397216 | AH117: 2020-12-06 | AI117: 601.91 | AJ117: 5725.236384 | AK117: =INDEX(AI117:$AI$1867,MATCH(A117,AH117:$AH$1867,0)) -> 377.44 | AL117: -0.01059800752 | AM117: 2020-12-06 | AN117: 0.6199 | AO117: 0.15243341 | AP117: =INDEX(AN117:$AN$2080,MATCH(A117,AM117:$AM$2080,0)) -> 0.2459 | AQ117: 0.04483941081 | AR117: 2020-12-06 | AS117: 29.54 | AT117: 474.77718 | AU117: =INDEX(AS117:$AS$2080,MATCH(A117,AR117:$AR$2080,0)) -> 31.3 | AV117: 0.0125383414
A118: 2020-10-14 | B118: 575 | C118: 0.001740644478 | D118: 7215 | E118: 0.00555943058 | F118: 29565 | G118: 0.009379210361 | H118: 6847 | I118: 0.00263235016 | J118: 6759 | K118: 0.002518333306 | L118: 2747 | M118: 0 | N118: 13797 | O118: -0.008516217752 | P118: 2205 | Q118: -0.0009066183758 | R118: 5157 | S118: 0.006029387127 | T118: 5179 | U118: 0.005615272766 | V118: 975 | W118: -0.007153837357 | X118: 4134 | Y118: 0.003149608903 | Z118: 4103 | AA118: -0.001461276441 | AB118: 2020-12-05 | AC118: 15.2478 | AD118: 18658.1 | AE118: 174187.8176 | AF118: =INDEX(AD118:$AD$1886,MATCH(A118,AB118:$AB$1886,0)) -> 11423.8 | AG118: -0.02388451435 | AH118: 2020-12-05 | AI118: 596.6 | AJ118: 5786.235144 | AK118: =INDEX(AI118:$AI$1867,MATCH(A118,AH118:$AH$1867,0)) -> 379.48 | AL118: -0.01878893161 | AM118: 2020-12-05 | AN118: 0.5844 | AO118: 0.14574936 | AP118: =INDEX(AN118:$AN$2080,MATCH(A118,AM118:$AM$2080,0)) -> 0.2494 | AQ118: 0.02019138518 | AR118: 2020-12-05 | AS118: 29.73 | AT118: 471.309498 | AU118: =INDEX(AS118:$AS$2080,MATCH(A118,AR118:$AR$2080,0)) -> 30.91 | AV118: 0.006491421691
A119: 2020-10-13 | B119: 574 | C119: -0.01555779003 | D119: 7175 | E119: -0.003200448011 | F119: 29289 | G119: -0.0171621374 | H119: 6829 | I119: 0.0007324397896 | J119: 6742 | K119: 0.002376003494 | L119: 2747 | M119: 0.001457195158 | N119: 13915 | O119: -0.01185897596 | P119: 2207 | Q119: -0.01618012826 | R119: 5126 | S119: -0.007385845043 | T119: 5150 | U119: -0.008892384133 | V119: 982 | W119: -0.02315151214 | X119: 4121 | Y119: -0.001697175823 | Z119: 4109 | AA119: -0.0002433386069 | AB119: 2020-12-04 | AC119: 15.4673 | AD119: 19433.3 | AE119: 178398.2915 | AF119: =INDEX(AD119:$AD$1886,MATCH(A119,AB119:$AB$1886,0)) -> 11533.9 | AG119: 0.02673488344 | AH119: 2020-12-04 | AI119: 569.35 | AJ119: 5895.980087 | AK119: =INDEX(AI119:$AI$1867,MATCH(A119,AH119:$AH$1867,0)) -> 381.19 | AL119: -0.004500669669 | AM119: 2020-12-04 | AN119: 0.5573 | AO119: 0.14283599 | AP119: =INDEX(AN119:$AN$2080,MATCH(A119,AM119:$AM$2080,0)) -> 0.2563 | AQ119: -0.1253843389 | AR119: 2020-12-04 | AS119: 29.07 | AT119: 475.000783 | AU119: =INDEX(AS119:$AS$2080,MATCH(A119,AR119:$AR$2080,0)) -> 30.71 | AV119: 0
A120: 2020-10-12 | B120: 583 | C120: 0.003436429499 | D120: 7198 | E120: 0.007390398275 | F120: 29796 | G120: -0.000469751376 | H120: 6824 | I120: 0.0008796364737 | J120: 6726 | K120: 0.001636783343 | L120: 2743 | M120: -0.00109309539 | N120: 14081 | O120: -0.00651237525 | P120: 2243 | Q120: -0.005335717417 | R120: 5164 | S120: 0.007190780183 | T120: 5196 | U120: 0.009475078138 | V120: 1005 | W120: 0.01000008333 | X120: 4128 | Y120: 0.006806054469 | Z120: 4110 | AA120: 0.01445926429 | AB120: 2020-12-03 | AC120: 15.275 | AD120: 19218.8 | AE120: 173692.025 | AF120: =INDEX(AD120:$AD$1886,MATCH(A120,AB120:$AB$1886,0)) -> 11371 | AG120: 0.04086114786 | AH120: 2020-12-03 | AI120: 616.71 | AJ120: 5922.57575 | AK120: =INDEX(AI120:$AI$1867,MATCH(A120,AH120:$AH$1867,0)) -> 387.73 | AL120: 0.05956298513 | AM120: 2020-12-03 | AN120: 0.6315 | AO120: 0.1619166 | AP120: =INDEX(AN120:$AN$2080,MATCH(A120,AM120:$AM$2080,0)) -> 0.2564 | AQ120: 0.01391176718 | AR120: 2020-12-03 | AS120: 30.7 | AT120: 469.09525 | AU120: =INDEX(AS120:$AS$2080,MATCH(A120,AR120:$AR$2080,0)) -> 30.71 | AV120: 0.07644017388
A121: 2020-10-09 | B121: 581 | C121: 0.001722653311 | D121: 7145 | E121: 0.00744542317 | F121: 29810 | G121: 0.01279536709 | H121: 6818 | I121: 0.0007336219242 | J121: 6715 | K121: 0.0007448789916 | L121: 2746 | M121: 0 | N121: 14173 | O121: 0.01142464085 | P121: 2255 | Q121: -0.01102547001 | R121: 5127 | S121: 0.01335185749 | T121: 5147 | U121: 0.006432143802 | V121: 995 | W121: -0.01000008333 | X121: 4100 | Y121: -0.003408817521 | Z121: 4051 | AA121: -0.003449978779 | AB121: 2020-12-02 | AC121: 15.2633 | AD121: 18770.7 | AE121: 166737.8155 | AF121: =INDEX(AD121:$AD$1886,MATCH(A121,AB121:$AB$1886,0)) -> 10924.1 | AG121: 0.02361475232 | AH121: 2020-12-02 | AI121: 598.35 | AJ121: 5580.109847 | AK121: =INDEX(AI121:$AI$1867,MATCH(A121,AH121:$AH$1867,0)) -> 365.59 | AL121: 0.04154555388 | AM121: 2020-12-02 | AN121: 0.6299 | AO121: 0.15967965 | AP121: =INDEX(AN121:$AN$2080,MATCH(A121,AM121:$AM$2080,0)) -> 0.2535 | AQ121: 0.03528011963 | AR121: 2020-12-02 | AS121: 30.3 | AT121: 434.240885 | AU121: =INDEX(AS121:$AS$2080,MATCH(A121,AR121:$AR$2080,0)) -> 28.45 | AV121: 0.0263548017
A122: 2020-10-08 | B122: 580 | C122: 0.01914766941 | D122: 7092 | E122: 0.0002820476679 | F122: 29431 | G122: -0.0005774554755 | H122: 6813 | I122: 0.002057009247 | J122: 6710 | K122: 0.001342181993 | L122: 2746 | M122: 0 | N122: 14012 | O122: 0.01292935695 | P122: 2280 | Q122: 0.01457944976 | R122: 5059 | S122: -0.002960625867 | T122: 5114 | U122: 0.005490209869 | V122: 1005 | W122: -0.009901070983 | X122: 4114 | Y122: 0.01272032807 | Z122: 4065 | AA122: 0.007159640508 | AB122: 2020-12-01 | AC122: 15.2608 | AD122: 19698.1 | AE122: 162846.4707 | AF122: =INDEX(AD122:$AD$1886,MATCH(A122,AB122:$AB$1886,0)) -> 10670.9 | AG122: 0.01066320886 | AH122: 2020-12-01 | AI122: 587.32 | AJ122: 5353.030816 | AK122: =INDEX(AI122:$AI$1867,MATCH(A122,AH122:$AH$1867,0)) -> 350.77 | AL122: 0.03011776342 | AM122: 2020-12-01 | AN122: 0.6129 | AO122: 0.15414435 | AP122: =INDEX(AN122:$AN$2080,MATCH(A122,AM122:$AM$2080,0)) -> 0.2515 | AQ122: -0.06853192018 | AR122: 2020-12-01 | AS122: 30.11 | AT122: 422.876768 | AU122: =INDEX(AS122:$AS$2080,MATCH(A122,AR122:$AR$2080,0)) -> 27.71 | AV122: 0.0003609456816
A123: 2020-10-07 | B123: 569 | C123: -0.01396183238 | D123: 7090 | E123: 0.004240289039 | F123: 29448 | G123: -0.007544141736 | H123: 6799 | I123: 0.0002942041798 | J123: 6701 | K123: 0.001194564873 | L123: 2746 | M123: 0.002187386946 | N123: 13832 | O123: -0.01085755768 | P123: 2247 | Q123: -0.02157248525 | R123: 5074 | S123: 0.007120283247 | T123: 5086 | U123: 0.0106741476 | V123: 1015 | W123: 0.007912998757 | X123: 4062 | Y123: 0.01964015896 | Z123: 4036 | AA123: 0.005964232392 | AB123: 2020-11-30 | AC123: 15.1962 | AD123: 18185.5 | AE123: 161119.2301 | AF123: =INDEX(AD123:$AD$1886,MATCH(A123,AB123:$AB$1886,0)) -> 10602.6 | AG123: -0.01340569426 | AH123: 2020-11-30 | AI123: 614.84 | AJ123: 5194.213122 | AK123: =INDEX(AI123:$AI$1867,MATCH(A123,AH123:$AH$1867,0)) -> 341.81 | AL123: 0.006969039128 | AM123: 2020-11-30 | AN123: 0.6643 | AO123: 0.16507855 | AP123: =INDEX(AN123:$AN$2080,MATCH(A123,AM123:$AM$2080,0)) -> 0.2485 | AQ123: 0.1044847843 | AR123: 2020-11-30 | AS123: 31.39 | AT123: 420.93474 | AU123: =INDEX(AS123:$AS$2080,MATCH(A123,AR123:$AR$2080,0)) -> 27.7 | AV123: -0.0003609456816
A124: 2020-10-06 | B124: 577 | C124: -0.006908490344 | D124: 7060 | E124: -0.005790567695 | F124: 29671 | G124: 0.004086393961 | H124: 6797 | I124: -0.001323237714 | J124: 6693 | K124: 0.002692999832 | L124: 2740 | M124: -0.001094291555 | N124: 13983 | O124: -0.01933556467 | P124: 2296 | Q124: -0.01082964883 | R124: 5038 | S124: -0.008695706968 | T124: 5032 | U124: 0.01280017477 | V124: 1007 | W124: -0.01282701356 | X124: 3983 | Y124: 0.01441420835 | Z124: 4012 | AA124: 0.009013581305 | AB124: 2020-11-29 | AC124: 15.1345 | AD124: 17730.7 | AE124: 163293.6877 | AF124: =INDEX(AD124:$AD$1886,MATCH(A124,AB124:$AB$1886,0)) -> 10789.5 | AG124: 0.00671158582 | AH124: 2020-11-29 | AI124: 575.76 | AJ124: 5158.14029 | AK124: =INDEX(AI124:$AI$1867,MATCH(A124,AH124:$AH$1867,0)) -> 340.82 | AL124: -0.04198346844 | AM124: 2020-11-29 | AN124: 0.6062 | AO124: 0.14870086 | AP124: =INDEX(AN124:$AN$2080,MATCH(A124,AM124:$AM$2080,0)) -> 0.2453 | AQ124: -0.0536750821 | AR124: 2020-11-29 | AS124: 30.12 | AT124: 419.376995 | AU124: =INDEX(AS124:$AS$2080,MATCH(A124,AR124:$AR$2080,0)) -> 27.71 | AV124: -0.03370906353
A125: 2020-10-05 | B125: 581 | C125: 0.00517688818 | D125: 7101 | E125: 0.01361143941 | F125: 29550 | G125: 0.003661517516 | H125: 6806 | I125: -0.009213959153 | J125: 6675 | K125: -0.004484312447 | L125: 2743 | M125: 0 | N125: 14256 | O125: 0.001895735165 | P125: 2321 | Q125: -0.000861326496 | R125: 5082 | S125: 0.005129228053 | T125: 4968 | U125: -0.00120700075 | V125: 1020 | W125: -0.01363214879 | X125: 3926 | Y125: 0.01773141663 | Z125: 3976 | AA125: 0.01316474709 | AB125: 2020-11-28 | AC125: 15.1975 | AD125: 17127.1 | AE125: 162201.3978 | AF125: =INDEX(AD125:$AD$1886,MATCH(A125,AB125:$AB$1886,0)) -> 10672.9 | AG125: -0.009385701014 | AH125: 2020-11-28 | AI125: 538.23 | AJ125: 5379.3071 | AK125: =INDEX(AI125:$AI$1867,MATCH(A125,AH125:$AH$1867,0)) -> 353.96 | AL125: 0.007744312401 | AM125: 2020-11-28 | AN125: 0.6256 | AO125: 0.15690048 | AP125: =INDEX(AN125:$AN$2080,MATCH(A125,AM125:$AM$2080,0)) -> 0.2508 | AQ125: 0.1809326217 | AR125: 2020-11-28 | AS125: 29.14 | AT125: 435.56035 | AU125: =INDEX(AS125:$AS$2080,MATCH(A125,AR125:$AR$2080,0)) -> 28.66 | AV125: 0.04898208768
A126: 2020-10-02 | B126: 578 | C126: 0.008688151958 | D126: 7005 | E126: -0.00739585223 | F126: 29442 | G126: -0.010843785 | H126: 6869 | I126: 0.004815769978 | J126: 6705 | K126: 0.002239642594 | L126: 2743 | M126: -0.001821162405 | N126: 14229 | O126: -0.01852162681 | P126: 2323 | Q126: -0.001290600308 | R126: 5056 | S126: -0.001581027997 | T126: 4974 | U126: -0.01338012972 | V126: 1034 | W126: 0.01756142693 | X126: 3857 | Y126: -0.009033485098 | Z126: 3924 | AA126: -0.01843253803 | AB126: 2020-11-27 | AC126: 15.4165 | AD126: 17162 | AE126: 163730.9382 | AF126: =INDEX(AD126:$AD$1886,MATCH(A126,AB126:$AB$1886,0)) -> 10620.5 | AG126: -0.01541992522 | AH126: 2020-11-27 | AI126: 517.49 | AJ126: 5337.80896 | AK126: =INDEX(AI126:$AI$1867,MATCH(A126,AH126:$AH$1867,0)) -> 346.24 | AL126: -0.02080590664 | AM126: 2020-11-27 | AN126: 0.5593 | AO126: 0.13093213 | AP126: =INDEX(AN126:$AN$2080,MATCH(A126,AM126:$AM$2080,0)) -> 0.2341 | AQ126: 0.03080229524 | AR126: 2020-11-27 | AS126: 28.48 | AT126: 420.716285 | AU126: =INDEX(AS126:$AS$2080,MATCH(A126,AR126:$AR$2080,0)) -> 27.29 | AV126: -0.005116970229
A127: 2020-10-01 | B127: 573 | C127: 0.01229163851 | D127: 7057 | E127: 0.002980205143 | F127: 29763 | G127: 0.002758900882 | H127: 6836 | I127: -0.001169590777 | J127: 6690 | K127: -0.001195100232 | L127: 2748 | M127: 0.001456664496 | N127: 14495 | O127: -0.009885437816 | P127: 2326 | Q127: 0.01124093116 | R127: 5064 | S127: -0.001775673743 | T127: 5041 | U127: 0.002184490989 | V127: 1016 | W127: 0.005923018303 | X127: 3892 | Y127: 0.001285512454 | Z127: 3997 | AA127: -0.002498751925 | AB127: 2020-11-26 | AC127: 15.43 | AD127: 18723 | AE127: 166275.223 | AF127: =INDEX(AD127:$AD$1886,MATCH(A127,AB127:$AB$1886,0)) -> 10776.1 | AG127: -0.004931869658 | AH127: 2020-11-26 | AI127: 518.8 | AJ127: 5450.0303 | AK127: =INDEX(AI127:$AI$1867,MATCH(A127,AH127:$AH$1867,0)) -> 353.21 | AL127: -0.0178111402 | AM127: 2020-11-26 | AN127: 0.533 | AO127: 0.1269606 | AP127: =INDEX(AN127:$AN$2080,MATCH(A127,AM127:$AM$2080,0)) -> 0.2382 | AQ127: -0.1908909477 | AR127: 2020-11-26 | AS127: 28.2 | AT127: 423.2449 | AU127: =INDEX(AS127:$AS$2080,MATCH(A127,AR127:$AR$2080,0)) -> 27.43 | AV127: -0.06560885589
A128: 2020-09-30 | B128: 566 | C128: 0.005314450063 | D128: 7036 | E128: 0.000142136309 | F128: 29681 | G128: -0.01059026621 | H128: 6844 | I128: 0.002780014959 | J128: 6698 | K128: 0.0008961912474 | L128: 2744 | M128: -0.0007285974821 | N128: 14639 | O128: 0.009954429502 | P128: 2300 | Q128: 0.0193157893 | R128: 5073 | S128: -0.001772526313 | T128: 5030 | U128: 0.00258783861 | V128: 1010 | W128: 0.006954821873 | X128: 3887 | Y128: 0.001544799483 | Z128: 4007 | AA128: -0.004730495564 | AB128: 2020-11-25 | AC128: 15.4136 | AD128: 19152.6 | AE128: 167097.2962 | AF128: =INDEX(AD128:$AD$1886,MATCH(A128,AB128:$AB$1886,0)) -> 10840.9 | AG128: 0.01314074745 | AH128: 2020-11-25 | AI128: 570.69 | AJ128: 5547.971184 | AK128: =INDEX(AI128:$AI$1867,MATCH(A128,AH128:$AH$1867,0)) -> 359.94 | AL128: -7.703708664e-05 | AM128: 2020-11-25 | AN128: 0.6355 | AO128: 0.1536639 | AP128: =INDEX(AN128:$AN$2080,MATCH(A128,AM128:$AM$2080,0)) -> 0.2418 | AQ128: -0.09109157513 | AR128: 2020-11-25 | AS128: 31.34 | AT128: 451.464344 | AU128: =INDEX(AS128:$AS$2080,MATCH(A128,AR128:$AR$2080,0)) -> 29.29 | AV128: 0.01548284842
A129: 2020-09-29 | B129: 563 | C129: 0.007130154985 | D129: 7035 | E129: -0.004538371142 | F129: 29997 | G129: -0.001432450234 | H129: 6825 | I129: -0.002487745484 | J129: 6692 | K129: 0.0002989089844 | L129: 2746 | M129: 0.0003642323843 | N129: 14494 | O129: -0.005572961549 | P129: 2256 | Q129: 0.01248901157 | R129: 5082 | S129: -0.004711433921 | T129: 5017 | U129: -0.005168997592 | V129: 1003 | W129: 0.009013581305 | X129: 3881 | Y129: -0.01101868932 | Z129: 4026 | AA129: -0.01136095203 | AB129: 2020-11-24 | AC129: 15.4225 | AD129: 18379.6 | AE129: 164915.877 | AF129: =INDEX(AD129:$AD$1886,MATCH(A129,AB129:$AB$1886,0)) -> 10693.2 | AG129: -0.006421340089 | AH129: 2020-11-24 | AI129: 603.9 | AJ129: 5548.3986 | AK129: =INDEX(AI129:$AI$1867,MATCH(A129,AH129:$AH$1867,0)) -> 359.76 | AL129: 0.01417938348 | AM129: 2020-11-24 | AN129: 0.6921 | AO129: 0.16831872 | AP129: =INDEX(AN129:$AN$2080,MATCH(A129,AM129:$AM$2080,0)) -> 0.2432 | AQ129: 0.1250952582 | AR129: 2020-11-24 | AS129: 33.8 | AT129: 444.7849 | AU129: =INDEX(AS129:$AS$2080,MATCH(A129,AR129:$AR$2080,0)) -> 28.84 | AV129: 0.06666746164
A130: 2020-09-28 | B130: 559 | C130: 0.03273019431 | D130: 7067 | E130: 0.01038342307 | F130: 30040 | G130: 6.658011254e-05 | H130: 6842 | I130: 0.002341236071 | J130: 6690 | K130: 0.0007476635862 | L130: 2745 | M130: 0.000728863006 | N130: 14575 | O130: 0.02444735965 | P130: 2228 | Q130: 0.04076589196 | R130: 5106 | S130: 0.02077842638 | T130: 5043 | U130: 0.01841156672 | V130: 994 | W130: 0.05055227916 | X130: 3924 | Y130: 0.03369067019 | Z130: 4072 | AA130: 0.02184793953 | AB130: 2020-11-23 | AC130: 15.4023 | AD130: 18412.9 | AE130: 165978.2653 | AF130: =INDEX(AD130:$AD$1886,MATCH(A130,AB130:$AB$1886,0)) -> 10776.2 | AG130: -0.0003507581457 | AH130: 2020-11-23 | AI130: 608.45 | AJ130: 5470.280868 | AK130: =INDEX(AI130:$AI$1867,MATCH(A130,AH130:$AH$1867,0)) -> 355.16 | AL130: 0.004654448386 | AM130: 2020-11-23 | AN130: 0.614 | AO130: 0.1485266 | AP130: =INDEX(AN130:$AN$2080,MATCH(A130,AM130:$AM$2080,0)) -> 0.2419 | AQ130: 0.3248462698 | AR130: 2020-11-23 | AS130: 30.97 | AT130: 415.554054 | AU130: =INDEX(AS130:$AS$2080,MATCH(A130,AR130:$AR$2080,0)) -> 26.98 | AV130: 0.08991335304
A131: 2020-09-25 | B131: 541 | C131: -0.0128560081 | D131: 6994 | E131: -0.01377373568 | F131: 30038 | G131: 0.006479432174 | H131: 6826 | I131: -0.005114353224 | J131: 6685 | K131: -0.000149577444 | L131: 2743 | M131: -0.0003644979082 | N131: 14223 | O131: 0.001547987925 | P131: 2139 | Q131: -0.02173495965 | R131: 5001 | S131: -0.01153094287 | T131: 4951 | U131: -0.0170225398 | V131: 945 | W131: -0.01990636712 | X131: 3794 | Y131: -0.01828204484 | Z131: 3984 | AA131: -0.008995562909 | AB131: 2020-11-22 | AC131: 15.4605 | AD131: 18687.2 | AE131: =AC131*AF131 -> 166036.4937 | AF131: =INDEX(AD131:$AD$1886,MATCH(A131,AB131:$AB$1886,0)) -> 10739.4 | AG131: 0.02379405824 | AH131: 2020-11-22 | AI131: 558.07 | AJ131: 5444.87889 | AK131: =INDEX(AI131:$AI$1867,MATCH(A131,AH131:$AH$1867,0)) -> 352.18 | AL131: 0.09657312627 | AM131: 2020-11-22 | AN131: 0.4437 | AO131: 0.10733103 | AP131: =INDEX(AN131:$AN$2080,MATCH(A131,AM131:$AM$2080,0)) -> 0.2419 | AQ131: 0.05708181484 | AR131: 2020-11-22 | AS131: 29.93 | AT131: =AC131*AU131 -> 381.25593 | AU131: =INDEX(AS131:$AS$2080,MATCH(A131,AR131:$AR$2080,0)) -> 24.66 | AV131: 0.07579383937
A132: 2020-09-23 | B132: 548 | C132: =LN(B132/B133) -> 0 | D132: 7091 | E132: =LN(D132/D133) -> 0.02861016195 | F132: 29844 | G132: =LN(F132/F133) -> -0.001640524666 | H132: 6861 | I132: =LN(H132/H133) -> -0.001601980973 | J132: 6686 | K132: =LN(J132/J133) -> 0.001197246476 | L132: 2744 | M132: =LN(L132/L133) -> 0 | N132: 14201 | O132: =LN(N132/N133) -> 0.003103183251 | P132: 2186 | Q132: =LN(P132/P133) -> -0.00956073752 | R132: 5059 | S132: =LN(R132/R133) -> 0.01935995004 | T132: 5036 | U132: =LN(T132/T133) -> 0.02046209807 | V132: 964 | W132: =LN(V132/V133) -> 0.008333381559 | X132: 3864 | Y132: =LN(X132/X133) -> 0.03341976585 | Z132: 4020 | AA132: =LN(Z132/Z133) -> 0.0269775594 | AB132: 2020-11-21 | AC132: 15.395 | AD132: 18675.2 | AE132: 162132.4425 | AF132: =INDEX(AD132:$AD$1886,MATCH(A132,AB132:$AB$1886,0)) -> 10531.5 | AG132: =LN(AE132/AE133) -> 0.01520806017 | AH132: 2020-11-21 | AI132: 549.49 | AJ132: =AK132*AC132 -> 4943.6424 | AK132: =INDEX(AI132:$AI$1867,MATCH(A132,AH132:$AH$1867,0)) -> 321.12 | AL132: =LN(AJ132/AJ133) -> -0.06602202394 | AM132: 2020-11-21 | AN132: 0.4583 | AO132: =AN132*AP132 -> 0.10137596 | AP132: =INDEX(AN132:$AN$2080,MATCH(A132,AM132:$AM$2080,0)) -> 0.2212 | AQ132: =LN(AO132/AO133) -> 0.2805191013 | AR132: 2020-11-21 | AS132: 30.39 | AT132: 351.9297 | AU132: =INDEX(AS132:$AS$2080,MATCH(A132,AR132:$AR$2080,0)) -> 22.86 | AV132: =LN(AU132/AU133) -> -0.05282318213
A133: 2020-09-22 | B133: 548 | C133: -0.003642991279 | D133: 6891 | E133: 0.007867173443 | F133: 29893 | G133: -0.006169668234 | H133: 6872 | I133: -0.002035180234 | J133: 6678 | K133: -0.008647735419 | L133: 2744 | M133: 0 | N133: 14157 | O133: -0.01402842673 | P133: 2207 | Q133: -0.01528806754 | R133: 4962 | S133: 0.001613554202 | T133: 4934 | U133: -0.009079049553 | V133: 956 | W133: 0.003143009397 | X133: 3737 | Y133: -0.002939213873 | Z133: 3913 | AA133: -0.00076638144 | AB133: 2020-11-20 | AC133: 15.3296 | AD133: 17803.5 | AE133: 159685.3773 | AF133: =INDEX(AD133:$AD$1886,MATCH(A133,AB133:$AB$1886,0)) -> 10416.8 | AG133: -0.0587806781 | AH133: 2020-11-20 | AI133: 509.74 | AJ133: 5281.0472 | AK133: =INDEX(AI133:$AI$1867,MATCH(A133,AH133:$AH$1867,0)) -> 344.5 | AL133: -0.00356966494 | AM133: 2020-11-20 | AN133: 0.3281 | AO133: 0.07657854 | AP133: =INDEX(AN133:$AN$2080,MATCH(A133,AM133:$AM$2080,0)) -> 0.2334 | AQ133: 0.08253425638 | AR133: 2020-11-20 | AS133: 28.89 | AT133: 369.44336 | AU133: =INDEX(AS133:$AS$2080,MATCH(A133,AR133:$AR$2080,0)) -> 24.1 | AV133: 0.03504686318
A134: 2020-09-21 | B134: 550 | C134: -0.02513597327 | D134: 6837 | E134: -0.02084313406 | F134: 30078 | G134: 0.008178844143 | H134: 6886 | I134: -0.01198137754 | J134: 6736 | K134: -0.004887088586 | L134: 2744 | M134: 0.0003644979082 | N134: 14357 | O134: -0.02381392645 | P134: 2241 | Q134: -0.03335105063 | R134: 4954 | S134: -0.02629633593 | T134: 4979 | U134: 0.01110785934 | V134: 953 | W134: -0.03404145095 | X134: 3748 | Y134: 0.0005337603543 | Z134: 3916 | AA134: 0.004094171533 | AB134: 2020-11-19 | AC134: 15.5064 | AD134: 17774.6 | AE134: 169353.1476 | AF134: =INDEX(AD134:$AD$1886,MATCH(A134,AB134:$AB$1886,0)) -> 10921.5 | AG134: -0.0006950052047 | AH134: 2020-11-19 | AI134: 471.63 | AJ134: 5299.932456 | AK134: =INDEX(AI134:$AI$1867,MATCH(A134,AH134:$AH$1867,0)) -> 341.79 | AL134: -0.1162668088 | AM134: 2020-11-19 | AN134: 0.3038 | AO134: 0.07051198 | AP134: =INDEX(AN134:$AN$2080,MATCH(A134,AM134:$AM$2080,0)) -> 0.2321 | AQ134: -0.04497890989 | AR134: 2020-11-19 | AS134: 28.09 | AT134: 360.833928 | AU134: =INDEX(AS134:$AS$2080,MATCH(A134,AR134:$AR$2080,0)) -> 23.27 | AV134: -0.1633780361
A135: 2020-09-18 | B135: 564 | C135: -0.007067167223 | D135: 6981 | E135: -0.008273941638 | F135: 29833 | G135: 0.006794052772 | H135: 6969 | I135: 0.005900571196 | J135: 6769 | K135: -0.003097576044 | L135: 2743 | M135: 0 | N135: 14703 | O135: -0.001087621615 | P135: 2317 | Q135: -0.02556594293 | R135: 5086 | S135: -0.005490209869 | T135: 4924 | U135: -0.007284532415 | V135: 986 | W135: -0.01509842471 | X135: 3746 | Y135: 0.009117789098 | Z135: 3900 | AA135: 0 | AB135: 2020-11-18 | AC135: 15.4891 | AD135: 17662.3 | AE135: 169470.8898 | AF135: =INDEX(AD135:$AD$1886,MATCH(A135,AB135:$AB$1886,0)) -> 10941.3 | AG135: -0.001659076694 | AH135: 2020-11-18 | AI135: 479.48 | AJ135: 5953.390476 | AK135: =INDEX(AI135:$AI$1867,MATCH(A135,AH135:$AH$1867,0)) -> 384.36 | AL135: -0.01296104626 | AM135: 2020-11-18 | AN135: 0.2942 | AO135: 0.07375594 | AP135: =INDEX(AN135:$AN$2080,MATCH(A135,AM135:$AM$2080,0)) -> 0.2507 | AQ135: -0.0334562545 | AR135: 2020-11-18 | AS135: 28.08 | AT135: 424.40134 | AU135: =INDEX(AS135:$AS$2080,MATCH(A135,AR135:$AR$2080,0)) -> 27.4 | AV135: 0.01507658636
A136: 2020-09-17 | B136: 568 | C136: -0.007017572659 | D136: 7039 | E136: -0.01522657361 | F136: 29631 | G136: -0.01487315127 | H136: 6928 | I136: 0.0005775339462 | J136: 6790 | K136: -0.0007361060325 | L136: 2743 | M136: 0.0003646308153 | N136: 14719 | O136: -0.04788713313 | P136: 2377 | Q136: 0.01911291989 | R136: 5114 | S136: -0.01513710253 | T136: 4960 | U136: -0.01441177866 | V136: 1001 | W136: -0.00895083052 | X136: 3712 | Y136: -0.01868215531 | Z136: 3900 | AA136: -0.01501491499 | AB136: 2020-11-17 | AC136: 15.5032 | AD136: 16715.8 | AE136: 169752.2884 | AF136: =INDEX(AD136:$AD$1886,MATCH(A136,AB136:$AB$1886,0)) -> 10949.5 | AG136: 0.01541290643 | AH136: 2020-11-17 | AI136: 480.36 | AJ136: 6031.054864 | AK136: =INDEX(AI136:$AI$1867,MATCH(A136,AH136:$AH$1867,0)) -> 389.02 | AL136: 0.06181989243 | AM136: 2020-11-17 | AN136: 0.3024 | AO136: 0.07626528 | AP136: =INDEX(AN136:$AN$2080,MATCH(A136,AM136:$AM$2080,0)) -> 0.2522 | AQ136: 0.07510906955 | AR136: 2020-11-17 | AS136: 28.53 | AT136: 418.431368 | AU136: =INDEX(AS136:$AS$2080,MATCH(A136,AR136:$AR$2080,0)) -> 26.99 | AV136: -0.03530849034
A137: 2020-09-16 | B137: 572 | C137: 0.007017572659 | D137: 7147 | E137: -0.004606694822 | F137: 30075 | G137: -0.001860280243 | H137: 6924 | I137: 0.003907102865 | J137: 6795 | K137: 0.003685960679 | L137: 2742 | M137: -0.001093493821 | N137: 15441 | O137: 0.007475576791 | P137: 2332 | Q137: 0.001716738619 | R137: 5192 | S137: -0.003268919361 | T137: 5032 | U137: -0.009099963884 | V137: 1010 | W137: 0.003968259176 | X137: 3782 | Y137: -0.0018491618 | Z137: 3959 | AA137: -0.009802767954 | AB137: 2020-11-16 | AC137: 15.4985 | AD137: 15953 | AE137: 167155.972 | AF137: =INDEX(AD137:$AD$1886,MATCH(A137,AB137:$AB$1886,0)) -> 10785.3 | AG137: -0.0007597588181 | AH137: 2020-11-16 | AI137: 459.94 | AJ137: 5669.506285 | AK137: =INDEX(AI137:$AI$1867,MATCH(A137,AH137:$AH$1867,0)) -> 365.81 | AL137: -0.008356021306 | AM137: 2020-11-16 | AN137: 0.2855 | AO137: 0.0707469 | AP137: =INDEX(AN137:$AN$2080,MATCH(A137,AM137:$AM$2080,0)) -> 0.2478 | AQ137: 0.07357640221 | AR137: 2020-11-16 | AS137: 28.06 | AT137: 433.33806 | AU137: =INDEX(AS137:$AS$2080,MATCH(A137,AR137:$AR$2080,0)) -> 27.96 | AV137: 0.02755794406
A138: 2020-09-15 | B138: 568 | C138: -0.01572084779 | D138: 7180 | E138: -0.005970996009 | F138: 30131 | G138: -0.01851265365 | H138: 6897 | I138: 0.0018866561 | J138: 6770 | K138: 0.0001477213977 | L138: 2745 | M138: 0.001458257641 | N138: 15326 | O138: -0.01083757647 | P138: 2328 | Q138: 0.003873471596 | R138: 5209 | S138: -0.004978945559 | T138: 5078 | U138: -0.003145893275 | V138: 1006 | W138: -0.01087504539 | X138: 3789 | Y138: 0.0002639567126 | Z138: 3998 | AA138: -0.009459866413 | AB138: 2020-11-15 | AC138: 15.6701 | AD138: 16071 | AE138: 167283.0185 | AF138: =INDEX(AD138:$AD$1886,MATCH(A138,AB138:$AB$1886,0)) -> 10675.3 | AG138: 0.03609871896 | AH138: 2020-11-15 | AI138: 447.56 | AJ138: 5717.079284 | AK138: =INDEX(AI138:$AI$1867,MATCH(A138,AH138:$AH$1867,0)) -> 364.84 | AL138: -0.03067116652 | AM138: 2020-11-15 | AN138: 0.2696 | AO138: 0.06572848 | AP138: =INDEX(AN138:$AN$2080,MATCH(A138,AM138:$AM$2080,0)) -> 0.2438 | AQ138: -0.005368466473 | AR138: 2020-11-15 | AS138: 27.62 | AT138: 426.22672 | AU138: =INDEX(AS138:$AS$2080,MATCH(A138,AR138:$AR$2080,0)) -> 27.2 | AV138: -0.1365598903
A139: 2020-09-14 | B139: 577 | C139: -0.005185837032 | D139: 7223 | E139: 0.004162048183 | F139: 30694 | G139: 0.001108322309 | H139: 6884 | I139: 0.002909516164 | J139: 6769 | K139: 0.0001477432225 | L139: 2741 | M139: -0.0003647638195 | N139: 15493 | O139: 0.009794143477 | P139: 2319 | Q139: 0.0008628128232 | R139: 5235 | S139: 0.003061031661 | T139: 5094 | U139: 0.006301714434 | V139: 1017 | W139: -0.005882369903 | X139: 3788 | Y139: 0.00901623716 | Z139: 4036 | AA139: 0.005216755093 | AB139: 2020-11-14 | AC139: 15.6258 | AD139: 16324.2 | AE139: 161352.0108 | AF139: =INDEX(AD139:$AD$1886,MATCH(A139,AB139:$AB$1886,0)) -> 10326 | AG139: 0.01460108559 | AH139: 2020-11-14 | AI139: 460.15 | AJ139: 5895.145566 | AK139: =INDEX(AI139:$AI$1867,MATCH(A139,AH139:$AH$1867,0)) -> 377.27 | AL139: 0.02276235993 | AM139: 2020-11-14 | AN139: 0.2683 | AO139: 0.06608229 | AP139: =INDEX(AN139:$AN$2080,MATCH(A139,AM139:$AM$2080,0)) -> 0.2463 | AQ139: 0.02387655446 | AR139: 2020-11-14 | AS139: 27.94 | AT139: 487.212444 | AU139: =INDEX(AS139:$AS$2080,MATCH(A139,AR139:$AR$2080,0)) -> 31.18 | AV139: 0.2030611206
A140: 2020-09-11 | B140: 580 | C140: 0 | D140: 7193 | E140: -0.0004169852031 | F140: 30660 | G140: -0.01038296155 | H140: 6864 | I140: -0.0008737440486 | J140: 6768 | K140: 0.0001477650538 | L140: 2742 | M140: 0.001459854274 | N140: 15342 | O140: 0.007392660668 | P140: 2317 | Q140: -0.003876808646 | R140: 5219 | S140: 0.003070430353 | T140: 5062 | U140: -0.002170696462 | V140: 1023 | W140: -0.02127739845 | X140: 3754 | Y140: -0.01533204763 | Z140: 4015 | AA140: -0.01286827953 | AB140: 2020-11-13 | AC140: 15.3789 | AD140: 16294.7 | AE140: 159013.2123 | AF140: =INDEX(AD140:$AD$1886,MATCH(A140,AB140:$AB$1886,0)) -> 10339.7 | AG140: -0.003483965062 | AH140: 2020-11-13 | AI140: 474.63 | AJ140: 5762.47383 | AK140: =INDEX(AI140:$AI$1867,MATCH(A140,AH140:$AH$1867,0)) -> 374.7 | AL140: 0.003092826593 | AM140: 2020-11-13 | AN140: 0.2652 | AO140: 0.06452316 | AP140: =INDEX(AN140:$AN$2080,MATCH(A140,AM140:$AM$2080,0)) -> 0.2433 | AQ140: 0.0387912542 | AR140: 2020-11-13 | AS140: 28.18 | AT140: 391.393005 | AU140: =INDEX(AS140:$AS$2080,MATCH(A140,AR140:$AR$2080,0)) -> 25.45 | AV140: 0.03559663972
A141: 2020-09-10 | B141: 580 | C141: 0.02620237239 | D141: 7196 | E141: 0.02547460253 | F141: 30980 | G141: 0.01814293369 | H141: 6870 | I141: -0.0001455498147 | J141: 6767 | K141: -0.003982012488 | L141: 2738 | M141: 0.001096290992 | N141: 15229 | O141: 0.02177318008 | P141: 2326 | Q141: -0.02084738339 | R141: 5203 | S141: 0.01764466523 | T141: 5073 | U141: 0.01850246755 | V141: 1045 | W141: 0.01834913867 | X141: 3812 | Y141: 0.0220138846 | Z141: 4067 | AA141: 0.01511238968 | AB141: 2020-11-12 | AC141: 15.6063 | AD141: 15695.8 | AE141: 159568.175 | AF141: =INDEX(AD141:$AD$1886,MATCH(A141,AB141:$AB$1886,0)) -> 10224.6 | AG141: 0.00963095616 | AH141: 2020-11-12 | AI141: 461.01 | AJ141: 5744.67903 | AK141: =INDEX(AI141:$AI$1867,MATCH(A141,AH141:$AH$1867,0)) -> 368.1 | AL141: 0.0472550757 | AM141: 2020-11-12 | AN141: 0.2549 | AO141: 0.06206815 | AP141: =INDEX(AN141:$AN$2080,MATCH(A141,AM141:$AM$2080,0)) -> 0.2435 | AQ141: 0.01066875429 | AR141: 2020-11-12 | AS141: 27.61 | AT141: 383.290728 | AU141: =INDEX(AS141:$AS$2080,MATCH(A141,AR141:$AR$2080,0)) -> 24.56 | AV141: 0.001222245009
A142: 2020-09-09 | B142: 565 | C142: 0.005323881253 | D142: 7015 | E142: 0.007296691648 | F142: 30423 | G142: -0.001478051213 | H142: 6871 | I142: 0.001747997532 | J142: 6794 | K142: -0.006455421479 | L142: 2735 | M142: -0.002191381447 | N142: 14901 | O142: -0.0006038039833 | P142: 2375 | Q142: 0.00252951231 | R142: 5112 | S142: 0.01339129897 | T142: 4980 | U142: -0.01078500568 | V142: 1026 | W142: 0.04893637369 | X142: 3729 | Y142: -0.007480665395 | Z142: 4006 | AA142: -0.004483195554 | AB142: 2020-11-11 | AC142: 15.6063 | AD142: 15303.6 | AE142: 158038.7576 | AF142: =INDEX(AD142:$AD$1886,MATCH(A142,AB142:$AB$1886,0)) -> 10126.6 | AG142: -0.02382046587 | AH142: 2020-11-11 | AI142: 462.96 | AJ142: 5479.527993 | AK142: =INDEX(AI142:$AI$1867,MATCH(A142,AH142:$AH$1867,0)) -> 351.11 | AL142: 0.03983389278 | AM142: 2020-11-11 | AN142: 0.2563 | AO142: 0.06140948 | AP142: =INDEX(AN142:$AN$2080,MATCH(A142,AM142:$AM$2080,0)) -> 0.2396 | AQ142: 0.02116310789 | AR142: 2020-11-11 | AS142: 27.96 | AT142: 382.822539 | AU142: =INDEX(AS142:$AS$2080,MATCH(A142,AR142:$AR$2080,0)) -> 24.53 | AV142: 0.056175707
A143: 2020-09-08 | B143: 562 | C143: 0.01253373615 | D143: 6964 | E143: 0.003740473358 | F143: 30468 | G143: 0.003550999983 | H143: 6859 | I143: -0.006539295264 | J143: 6838 | K143: 0.001609952781 | L143: 2741 | M143: 0.001095090454 | N143: 14910 | O143: 0.01364056534 | P143: 2369 | Q143: 0.003806306139 | R143: 5044 | S143: -0.001782708207 | T143: 5034 | U143: -0.006336654866 | V143: 977 | W143: 0.0269725895 | X143: 3757 | Y143: -0.001861455131 | Z143: 4024 | AA143: -0.008413808606 | AB143: 2020-11-10 | AC143: 15.597 | AD143: 15327.2 | AE143: 161848.5093 | AF143: =INDEX(AD143:$AD$1886,MATCH(A143,AB143:$AB$1886,0)) -> 10376.9 | AG143: 0.001836510161 | AH143: 2020-11-10 | AI143: 449.68 | AJ143: 5265.5472 | AK143: =INDEX(AI143:$AI$1867,MATCH(A143,AH143:$AH$1867,0)) -> 337.6 | AL143: -0.04962236492 | AM143: 2020-11-10 | AN143: 0.2539 | AO143: 0.06012352 | AP143: =INDEX(AN143:$AN$2080,MATCH(A143,AM143:$AM$2080,0)) -> 0.2368 | AQ143: -0.009864444563 | AR143: 2020-11-10 | AS143: 28.19 | AT143: 361.69443 | AU143: =INDEX(AS143:$AS$2080,MATCH(A143,AR143:$AR$2080,0)) -> 23.19 | AV143: 0.03510672066
A144: 2020-09-07 | B144: 555 | C144: 0.001803426999 | D144: 6938 | E144: 0.005202323872 | F144: 30360 | G144: 0.01079587927 | H144: 6904 | I144: 0.002610588865 | J144: 6827 | K144: 0 | L144: 2738 | M144: 0 | N144: 14708 | O144: 0.007233057805 | P144: 2360 | Q144: 0.01451156494 | R144: 5053 | S144: 0.009544713543 | T144: 5066 | U144: 0.01933293896 | V144: 951 | W144: 0.00315956029 | X144: 3764 | Y144: 0.0326747037 | Z144: 4058 | AA144: 0.02419372276 | AB144: 2020-11-09 | AC144: 15.6901 | AD144: 15483.7 | AE144: 161551.5456 | AF144: =INDEX(AD144:$AD$1886,MATCH(A144,AB144:$AB$1886,0)) -> 10296.4 | AG144: 0.001737666321 | AH144: 2020-11-09 | AI144: 444.16 | AJ144: 5533.427567 | AK144: =INDEX(AI144:$AI$1867,MATCH(A144,AH144:$AH$1867,0)) -> 352.67 | AL144: -0.1068233739 | AM144: 2020-11-09 | AN144: 0.2507 | AO144: 0.06071954 | AP144: =INDEX(AN144:$AN$2080,MATCH(A144,AM144:$AM$2080,0)) -> 0.2422 | AQ144: -0.06770639559 | AR144: 2020-11-09 | AS144: 28.02 | AT144: 351.301339 | AU144: =INDEX(AS144:$AS$2080,MATCH(A144,AR144:$AR$2080,0)) -> 22.39 | AV144: 0.0612389239
A145: 2020-09-04 | B145: 554 | C145: -0.00540055318 | D145: 6902 | E145: -0.02912827292 | F145: 30034 | G145: -0.01526545421 | H145: 6886 | I145: -0.006225137729 | J145: 6827 | K145: -0.0001464664961 | L145: 2738 | M145: 0 | N145: 14602 | O145: -0.01008457715 | P145: 2326 | Q145: -0.001718213481 | R145: 5005 | S145: -0.01448007052 | T145: 4969 | U145: -0.0218957792 | V145: 948 | W145: -0.005260401399 | X145: 3643 | Y145: -0.05552533681 | Z145: 3961 | AA145: -0.04129650954 | AB145: 2020-11-08 | AC145: 15.8594 | AD145: 14828.4 | AE145: 161271.0667 | AF145: =INDEX(AD145:$AD$1886,MATCH(A145,AB145:$AB$1886,0)) -> 10168.8 | AG145: -0.1270089977 | AH145: 2020-11-08 | AI145: 453.55 | AJ145: 6157.253456 | AK145: =INDEX(AI145:$AI$1867,MATCH(A145,AH145:$AH$1867,0)) -> 388.24 | AL145: -0.004912241118 | AM145: 2020-11-08 | AN145: 0.2539 | AO145: 0.06497301 | AP145: =INDEX(AN145:$AN$2080,MATCH(A145,AM145:$AM$2080,0)) -> 0.2559 | AQ145: 0.05410000465 | AR145: 2020-11-08 | AS145: 28.31 | AT145: 333.998964 | AU145: =INDEX(AS145:$AS$2080,MATCH(A145,AR145:$AR$2080,0)) -> 21.06 | AV145: 0.02111402812
A146: 2020-09-03 | B146: 557 | C146: -0.01248901157 | D146: 7106 | E146: -0.01563840862 | F146: 30496 | G146: -0.01173569343 | H146: 6929 | I146: 0.01000806091 | J146: 6828 | K146: 0.001612312552 | L146: 2738 | M146: 0.002559884375 | N146: 14750 | O146: -0.01085611282 | P146: 2330 | Q146: -0.00897250198 | R146: 5078 | S146: -0.0237411423 | T146: 5079 | U146: -0.0183383992 | V146: 953 | W146: -0.01974090081 | X146: 3851 | Y146: -0.03970997682 | Z146: 4128 | AA146: -0.05238281692 | AB146: 2020-11-07 | AC146: 16.0437 | AD146: 15577.9 | AE146: 183111.5612 | AF146: =INDEX(AD146:$AD$1886,MATCH(A146,AB146:$AB$1886,0)) -> 11413.3 | AG146: -0.04096386683 | AH146: 2020-11-07 | AI146: 435.71 | AJ146: 6187.573779 | AK146: =INDEX(AI146:$AI$1867,MATCH(A146,AH146:$AH$1867,0)) -> 385.67 | AL146: -0.1298370415 | AM146: 2020-11-07 | AN146: 0.2496 | AO146: 0.06155136 | AP146: =INDEX(AN146:$AN$2080,MATCH(A146,AM146:$AM$2080,0)) -> 0.2466 | AQ146: -0.1490923656 | AR146: 2020-11-07 | AS146: 27.74 | AT146: 330.821094 | AU146: =INDEX(AS146:$AS$2080,MATCH(A146,AR146:$AR$2080,0)) -> 20.62 | AV146: -0.1801368248
A147: 2020-09-02 | B147: 564 | C147: 0 | D147: 7218 | E147: 0.009605419436 | F147: 30856 | G147: 0.005166290957 | H147: 6860 | I147: -0.004218494873 | J147: 6817 | K147: 0.002349832187 | L147: 2731 | M147: -0.001463593382 | N147: 14911 | O147: -0.0270599687 | P147: 2351 | Q147: -0.005091228647 | R147: 5200 | S147: 0.000769526779 | T147: 5173 | U147: 0.0138201713 | V147: 972 | W147: -0.03039747718 | X147: 4007 | Y147: 0.01940340577 | Z147: 4350 | AA147: 0.05578005387 | AB147: 2020-11-06 | AC147: 16.0109 | AD147: 15587.1 | AE147: 190768.2724 | AF147: =INDEX(AD147:$AD$1886,MATCH(A147,AB147:$AB$1886,0)) -> 11914.9 | AG147: 0.007088150922 | AH147: 2020-11-06 | AI147: 454.72 | AJ147: 7045.436436 | AK147: =INDEX(AI147:$AI$1867,MATCH(A147,AH147:$AH$1867,0)) -> 440.04 | AL147: -0.09664904017 | AM147: 2020-11-06 | AN147: 0.2584 | AO147: 0.0714476 | AP147: =INDEX(AN147:$AN$2080,MATCH(A147,AM147:$AM$2080,0)) -> 0.2765 | AQ147: -0.01714403112 | AR147: 2020-11-06 | AS147: 29.02 | AT147: 395.309121 | AU147: =INDEX(AS147:$AS$2080,MATCH(A147,AR147:$AR$2080,0)) -> 24.69 | AV147: -0.005251476419
A148: 2020-09-01 | B148: 564 | C148: -0.003539826705 | D148: 7149 | E148: 0.006314481095 | F148: 30697 | G148: -0.01628521564 | H148: 6889 | I148: 0.006115336472 | J148: 6801 | K148: 0.0007354563838 | L148: 2735 | M148: 0 | N148: 15320 | O148: 0.0003917216215 | P148: 2363 | Q148: 0.0004232804296 | R148: 5196 | S148: 0.009863729522 | T148: 5102 | U148: -0.008003947073 | V148: 1002 | W148: 0.02424361161 | X148: 3930 | Y148: -0.005329285548 | Z148: 4114 | AA148: -0.01232048439 | AB148: 2020-11-05 | AC148: 16.2674 | AD148: 14145.6 | AE148: 189420.8591 | AF148: =INDEX(AD148:$AD$1886,MATCH(A148,AB148:$AB$1886,0)) -> 11644.2 | AG148: -0.002495794186 | AH148: 2020-11-05 | AI148: 414.07 | AJ148: 7760.36317 | AK148: =INDEX(AI148:$AI$1867,MATCH(A148,AH148:$AH$1867,0)) -> 477.05 | AL148: 0.09454715619 | AM148: 2020-11-05 | AN148: 0.2458 | AO148: 0.07268306 | AP148: =INDEX(AN148:$AN$2080,MATCH(A148,AM148:$AM$2080,0)) -> 0.2957 | AQ148: 0.08123604027 | AR148: 2020-11-05 | AS148: 27.68 | AT148: 403.756868 | AU148: =INDEX(AS148:$AS$2080,MATCH(A148,AR148:$AR$2080,0)) -> 24.82 | AV148: 0.06792862851
A149: 2020-08-31 | B149: 566 | C149: -0.01054491318 | D149: 7104 | E149: -0.007293159957 | F149: 31201 | G149: 0.01840493141 | H149: 6847 | I149: 0.002193143653 | J149: 6796 | K149: 0.005163395701 | L149: 2735 | M149: 0 | N149: 15314 | O149: 0.01951796101 | P149: 2362 | Q149: -0.03861804347 | R149: 5145 | S149: -0.007165712854 | T149: 5143 | U149: 0.001362000405 | V149: 978 | W149: -0.0321959398 | X149: 3951 | Y149: 0.01607382483 | Z149: 4165 | AA149: 0.01768242753 | AB149: 2020-11-04 | AC149: 16.2275 | AD149: 14019.9 | AE149: 189894.205 | AF149: =INDEX(AD149:$AD$1886,MATCH(A149,AB149:$AB$1886,0)) -> 11702 | AG149: 0.03177751246 | AH149: 2020-11-04 | AI149: 402.14 | AJ149: 7060.2607 | AK149: =INDEX(AI149:$AI$1867,MATCH(A149,AH149:$AH$1867,0)) -> 435.08 | AL149: 0.09368636223 | AM149: 2020-11-04 | AN149: 0.2378 | AO149: 0.06701204 | AP149: =INDEX(AN149:$AN$2080,MATCH(A149,AM149:$AM$2080,0)) -> 0.2818 | AQ149: 0.02827210057 | AR149: 2020-11-04 | AS149: 26.93 | AT149: 376.315725 | AU149: =INDEX(AS149:$AS$2080,MATCH(A149,AR149:$AR$2080,0)) -> 23.19 | AV149: 0.002590675024
A150: 2020-08-28 | B150: 572 | C150: -0.01216348619 | D150: 7156 | E150: -0.02265916233 | F150: 30632 | G150: -0.0003590371316 | H150: 6832 | I150: -0.002047083622 | J150: 6761 | K150: 0.001628303224 | L150: 2735 | M150: 0 | N150: 15018 | O150: -0.009476859422 | P150: 2455 | Q150: -0.004876076301 | R150: 5182 | S150: -0.004428619927 | T150: 5136 | U150: -0.01065179046 | V150: 1010 | W150: -0.02638159839 | X150: 3888 | Y150: -0.01910642761 | Z150: 4092 | AA150: -0.02032000249 | AB150: 2020-11-03 | AC150: 16.2398 | AD150: 13561.4 | AE150: 183954.7105 | AF150: =INDEX(AD150:$AD$1886,MATCH(A150,AB150:$AB$1886,0)) -> 11327.4 | AG150: -0.02150878305 | AH150: 2020-11-03 | AI150: 387.6 | AJ150: 6428.849626 | AK150: =INDEX(AI150:$AI$1867,MATCH(A150,AH150:$AH$1867,0)) -> 395.87 | AL150: 0.02434744645 | AM150: 2020-11-03 | AN150: 0.2395 | AO150: 0.065144 | AP150: =INDEX(AN150:$AN$2080,MATCH(A150,AM150:$AM$2080,0)) -> 0.272 | AQ150: 0.04522803702 | AR150: 2020-11-03 | AS150: 26.86 | AT150: 375.626574 | AU150: =INDEX(AS150:$AS$2080,MATCH(A150,AR150:$AR$2080,0)) -> 23.13 | AV150: 0.002164034603
A151: 2020-08-27 | B151: 579 | C151: 0.003460211065 | D151: 7320 | E151: 0.008092767575 | F151: 30643 | G151: -0.00104373929 | H151: 6846 | I151: 0.002339866525 | J151: 6750 | K151: 0.004603170946 | L151: 2735 | M151: 0 | N151: 15161 | O151: -0.003555442249 | P151: 2467 | Q151: -0.019269966 | R151: 5205 | S151: -0.006510938359 | T151: 5191 | U151: 0.001735274705 | V151: 1037 | W151: 0.006773127006 | X151: 3963 | Y151: 0.003538931904 | Z151: 4176 | AA151: 0.01301536811 | AB151: 2020-11-02 | AC151: 16.3976 | AD151: 13759.4 | AE151: 187954.2105 | AF151: =INDEX(AD151:$AD$1886,MATCH(A151,AB151:$AB$1886,0)) -> 11462.3 | AG151: 0.01228184671 | AH151: 2020-11-02 | AI151: 383.16 | AJ151: 6274.213688 | AK151: =INDEX(AI151:$AI$1867,MATCH(A151,AH151:$AH$1867,0)) -> 382.63 | AL151: -0.009772311893 | AM151: 2020-11-02 | AN151: 0.2354 | AO151: 0.0622633 | AP151: =INDEX(AN151:$AN$2080,MATCH(A151,AM151:$AM$2080,0)) -> 0.2645 | AQ151: -0.06649872966 | AR151: 2020-11-02 | AS151: 27.88 | AT151: 378.456608 | AU151: =INDEX(AS151:$AS$2080,MATCH(A151,AR151:$AR$2080,0)) -> 23.08 | AV151: 0.03527702658
A152: 2020-08-26 | B152: 577 | C152: -0.003460211065 | D152: 7261 | E152: 0.01275138553 | F152: 30675 | G152: 0.009433105224 | H152: 6830 | I152: 0.003667037479 | J152: 6719 | K152: 0.01137566525 | L152: 2735 | M152: 0 | N152: 15215 | O152: 0.001183743397 | P152: 2515 | Q152: -0.002779433991 | R152: 5239 | S152: 0.009011661024 | T152: 5182 | U152: 0.007360095205 | V152: 1030 | W152: -0.01062298739 | X152: 3949 | Y152: 0.01556749571 | Z152: 4122 | AA152: 0.01048662213 | AB152: 2020-11-01 | AC152: 16.3941 | AD152: 13797.3 | AE152: 185659.9037 | AF152: =INDEX(AD152:$AD$1886,MATCH(A152,AB152:$AB$1886,0)) -> 11324.8 | AG152: -0.02502971292 | AH152: 2020-11-01 | AI152: 396.36 | AJ152: 6335.827827 | AK152: =INDEX(AI152:$AI$1867,MATCH(A152,AH152:$AH$1867,0)) -> 386.47 | AL152: 0.01853803725 | AM152: 2020-11-01 | AN152: 0.2398 | AO152: 0.0665445 | AP152: =INDEX(AN152:$AN$2080,MATCH(A152,AM152:$AM$2080,0)) -> 0.2775 | AQ152: -0.001023302409 | AR152: 2020-11-01 | AS152: 28.46 | AT152: 365.260548 | AU152: =INDEX(AS152:$AS$2080,MATCH(A152,AR152:$AR$2080,0)) -> 22.28 | AV152: 0.03656714542
A153: 2020-08-25 | B153: 579 | C153: -0.01030936966 | D153: 7169 | E153: -0.003898097655 | F153: 30387 | G153: -0.01083391662 | H153: 6805 | I153: 0.0007350239214 | J153: 6643 | K153: 0.0006023189461 | L153: 2735 | M153: 0.000731528928 | N153: 15197 | O153: -0.005970166987 | P153: 2522 | Q153: -0.003957266739 | R153: 5192 | S153: -0.007865747988 | T153: 5144 | U153: -0.002330098142 | V153: 1041 | W153: -0.003835095784 | X153: 3888 | Y153: -0.00128518203 | Z153: 4079 | AA153: -0.004403138229 | AB153: 2020-10-31 | AC153: 16.1965 | AD153: 13559.9 | AE153: 190365.5628 | AF153: =INDEX(AD153:$AD$1886,MATCH(A153,AB153:$AB$1886,0)) -> 11753.5 | AG153: 0.009294551937 | AH153: 2020-10-31 | AI153: 386.59 | AJ153: 6219.456 | AK153: =INDEX(AI153:$AI$1867,MATCH(A153,AH153:$AH$1867,0)) -> 384 | AL153: -0.06123932695 | AM153: 2020-10-31 | AN153: 0.2397 | AO153: 0.06661263 | AP153: =INDEX(AN153:$AN$2080,MATCH(A153,AM153:$AM$2080,0)) -> 0.2779 | AQ153: -0.03776903417 | AR153: 2020-10-31 | AS153: 28.43 | AT153: 347.90082 | AU153: =INDEX(AS153:$AS$2080,MATCH(A153,AR153:$AR$2080,0)) -> 21.48 | AV153: -0.05127001665
A154: 2020-08-24 | B154: 585 | C154: 0.02422263758 | D154: 7197 | E154: 0.02092038389 | F154: 30718 | G154: -0.01470353355 | H154: 6800 | I154: -0.001763150618 | J154: 6639 | K154: 0.002714933794 | L154: 2733 | M154: 0 | N154: 15288 | O154: 0.009727958929 | P154: 2532 | Q154: 0.01954199776 | R154: 5233 | S154: 0.01424196513 | T154: 5156 | U154: -0.0007754944165 | V154: 1045 | W154: 0.02323434623 | X154: 3893 | Y154: -0.006656450589 | Z154: 4097 | AA154: -0.00195074434 | AB154: 2020-10-30 | AC154: 16.2009 | AD154: 13457.2 | AE154: 188604.3974 | AF154: =INDEX(AD154:$AD$1886,MATCH(A154,AB154:$AB$1886,0)) -> 11641.6 | AG154: -0.01919503021 | AH154: 2020-10-30 | AI154: 382.82 | AJ154: 6612.235326 | AK154: =INDEX(AI154:$AI$1867,MATCH(A154,AH154:$AH$1867,0)) -> 408.14 | AL154: 0.04682683127 | AM154: 2020-10-30 | AN154: 0.2392 | AO154: 0.06917664 | AP154: =INDEX(AN154:$AN$2080,MATCH(A154,AM154:$AM$2080,0)) -> 0.2892 | AQ154: 0.01695540117 | AR154: 2020-10-30 | AS154: 28.51 | AT154: 366.302349 | AU154: =INDEX(AS154:$AS$2080,MATCH(A154,AR154:$AR$2080,0)) -> 22.61 | AV154: 0.02145813223
A155: 2020-08-21 | B155: 571 | C155: 0.005267790935 | D155: 7048 | E155: 0.005120921575 | F155: 31173 | G155: -0.009768321305 | H155: 6812 | I155: -0.0008804109153 | J155: 6621 | K155: 0.0007554582213 | L155: 2733 | M155: -0.000731528928 | N155: 15140 | O155: -0.01273233713 | P155: 2483 | Q155: 0.005249355886 | R155: 5159 | S155: 0.003300653419 | T155: 5160 | U155: 0.00875918009 | V155: 1021 | W155: 0.02278454185 | X155: 3919 | Y155: -0.009144082002 | Z155: 4105 | AA155: -0.006797792625 | AB155: 2020-10-29 | AC155: 16.215 | AD155: 13278.9 | AE155: 192259.6335 | AF155: =INDEX(AD155:$AD$1886,MATCH(A155,AB155:$AB$1886,0)) -> 11856.9 | AG155: 0.009039714882 | AH155: 2020-10-29 | AI155: 386.73 | AJ155: 6309.74295 | AK155: =INDEX(AI155:$AI$1867,MATCH(A155,AH155:$AH$1867,0)) -> 389.13 | AL155: -0.06782891559 | AM155: 2020-10-29 | AN155: 0.2423 | AO155: 0.06801361 | AP155: =INDEX(AN155:$AN$2080,MATCH(A155,AM155:$AM$2080,0)) -> 0.2807 | AQ155: -0.05626832662 | AR155: 2020-10-29 | AS155: 29.84 | AT155: 358.83795 | AU155: =INDEX(AS155:$AS$2080,MATCH(A155,AR155:$AR$2080,0)) -> 22.13 | AV155: -0.0424654693
A156: 2020-08-20 | B156: 568 | C156: -0.01572084779 | D156: 7012 | E156: -0.012330962 | F156: 31479 | G156: -0.01133988809 | H156: 6818 | I156: 0.004704507354 | J156: 6616 | K156: 0.002875957481 | L156: 2735 | M156: 0.000731528928 | N156: 15334 | O156: -0.02771970786 | P156: 2470 | Q156: -0.002022245381 | R156: 5142 | S156: -0.01716035554 | T156: 5115 | U156: -0.01146868436 | V156: 998 | W156: -0.02376349445 | X156: 3955 | Y156: -0.003533572581 | Z156: 4133 | AA156: -0.004104798713 | AB156: 2020-10-28 | AC156: 16.215 | AD156: 13657.8 | AE156: 190529.493 | AF156: =INDEX(AD156:$AD$1886,MATCH(A156,AB156:$AB$1886,0)) -> 11750.2 | AG156: -0.01516659959 | AH156: 2020-10-28 | AI156: 388.65 | AJ156: 6752.5746 | AK156: =INDEX(AI156:$AI$1867,MATCH(A156,AH156:$AH$1867,0)) -> 416.44 | AL156: 0.02575043052 | AM156: 2020-10-28 | AN156: 0.2459 | AO156: 0.07195034 | AP156: =INDEX(AN156:$AN$2080,MATCH(A156,AM156:$AM$2080,0)) -> 0.2926 | AQ156: -0.01983305632 | AR156: 2020-10-28 | AS156: 30.36 | AT156: 374.40435 | AU156: =INDEX(AS156:$AS$2080,MATCH(A156,AR156:$AR$2080,0)) -> 23.09 | AV156: 0.03436461492
A157: 2020-08-19 | B157: 577 | C157: -0.003460211065 | D157: 7099 | E157: -0.00589889351 | F157: 31838 | G157: -0.01953284296 | H157: 6786 | I157: -0.0007365397696 | J157: 6597 | K157: -0.0001515725657 | L157: 2733 | M157: 0.0003659652374 | N157: 15765 | O157: -0.01329530312 | P157: 2475 | Q157: -0.01603240753 | R157: 5231 | S157: -0.007048319493 | T157: 5174 | U157: -0.01572419742 | V157: 1022 | W157: 0.005888142625 | X157: 3969 | Y157: 0.002522705677 | Z157: 4150 | AA157: -0.001925855193 | AB157: 2020-10-27 | AC157: 16.1908 | AD157: 13061.6 | AE157: 193441.2021 | AF157: =INDEX(AD157:$AD$1886,MATCH(A157,AB157:$AB$1886,0)) -> 11947.6 | AG157: -0.02869646358 | AH157: 2020-10-27 | AI157: 404 | AJ157: 6580.912568 | AK157: =INDEX(AI157:$AI$1867,MATCH(A157,AH157:$AH$1867,0)) -> 406.46 | AL157: -0.04251258542 | AM157: 2020-10-27 | AN157: 0.2529 | AO157: 0.07339158 | AP157: =INDEX(AN157:$AN$2080,MATCH(A157,AM157:$AM$2080,0)) -> 0.2902 | AQ157: -0.02740527138 | AR157: 2020-10-27 | AS157: 31.64 | AT157: 361.216748 | AU157: =INDEX(AS157:$AS$2080,MATCH(A157,AR157:$AR$2080,0)) -> 22.31 | AV157: -0.03349806374
A158: 2020-08-18 | B158: 579 | C158: 0.005194816877 | D158: 7141 | E158: -0.01003213095 | F158: 32466 | G158: -0.002860440243 | H158: 6791 | I158: 0.00147362243 | J158: 6598 | K158: 0.0007580926752 | L158: 2732 | M158: 0.001831837845 | N158: 15976 | O158: -0.01663601371 | P158: 2515 | Q158: -0.01185784645 | R158: 5268 | S158: -0.01282552473 | T158: 5256 | U158: -0.008525200823 | V158: 1016 | W158: 0.01287784018 | X158: 3959 | Y158: -0.005290351172 | Z158: 4158 | AA158: -0.008859150483 | AB158: 2020-10-26 | AC158: 16.2077 | AD158: 13032.2 | AE158: 199072.696 | AF158: =INDEX(AD158:$AD$1886,MATCH(A158,AB158:$AB$1886,0)) -> 12282.6 | AG158: 0.02440164738 | AH158: 2020-10-26 | AI158: 393.89 | AJ158: 6866.716259 | AK158: =INDEX(AI158:$AI$1867,MATCH(A158,AH158:$AH$1867,0)) -> 423.67 | AL158: -0.02106435368 | AM158: 2020-10-26 | AN158: 0.2487 | AO158: 0.07543071 | AP158: =INDEX(AN158:$AN$2080,MATCH(A158,AM158:$AM$2080,0)) -> 0.3033 | AQ158: -0.05514744131 | AR158: 2020-10-26 | AS158: 31.15 | AT158: 373.911639 | AU158: =INDEX(AS158:$AS$2080,MATCH(A158,AR158:$AR$2080,0)) -> 23.07 | AV158: -0.01889279037
A159: 2020-08-17 | B159: 576 | C159: -0.008643096156 | D159: 7213 | E159: 0.00597929891 | F159: 32559 | G159: 0.02506661907 | H159: 6781 | I159: -0.004414368557 | J159: 6593 | K159: 0.00562781925 | L159: 2727 | M159: -0.001465738628 | N159: 16244 | O159: 0.005927406833 | P159: 2545 | Q159: -0.0109418833 | R159: 5336 | S159: 0.01263571739 | T159: 5301 | U159: 0.01386668624 | V159: 1003 | W159: -0.01090739619 | X159: 3980 | Y159: 0.01391546806 | Z159: 4195 | AA159: 0.009580911612 | AB159: 2020-10-25 | AC159: 16.3269 | AD159: 13117.2 | AE159: 194273.7831 | AF159: =INDEX(AD159:$AD$1886,MATCH(A159,AB159:$AB$1886,0)) -> 11899 | AG159: 0.0112221743 | AH159: 2020-10-25 | AI159: 406.22 | AJ159: 7012.893357 | AK159: =INDEX(AI159:$AI$1867,MATCH(A159,AH159:$AH$1867,0)) -> 429.53 | AL159: -0.01775832533 | AM159: 2020-10-25 | AN159: 0.2532 | AO159: 0.07970736 | AP159: =INDEX(AN159:$AN$2080,MATCH(A159,AM159:$AM$2080,0)) -> 0.3148 | AQ159: 0.03426356188 | AR159: 2020-10-25 | AS159: 30.11 | AT159: 383.845419 | AU159: =INDEX(AS159:$AS$2080,MATCH(A159,AR159:$AR$2080,0)) -> 23.51 | AV159: 0.01889279037
A160: 2020-08-14 | B160: 581 | C160: -0.00171969088 | D160: 7170 | E160: -0.007364724457 | F160: 31753 | G160: 0.001008286943 | H160: 6811 | I160: -0.002492852673 | J160: 6556 | K160: -0.001676446327 | L160: 2731 | M160: 0 | N160: 16148 | O160: 0.002604329617 | P160: 2573 | Q160: -0.004652974661 | R160: 5269 | S160: -0.007374525243 | T160: 5228 | U160: -0.004960895501 | V160: 1014 | W160: -0.006879634014 | X160: 3925 | Y160: -0.007614249985 | Z160: 4155 | AA160: -0.003603607503 | AB160: 2020-10-24 | AC160: 16.3204 | AD160: 12934.1 | AE160: 192105.7964 | AF160: =INDEX(AD160:$AD$1886,MATCH(A160,AB160:$AB$1886,0)) -> 11770.9 | AG160: 0.01024802612 | AH160: 2020-10-24 | AI160: 412.46 | AJ160: 7138.54296 | AK160: =INDEX(AI160:$AI$1867,MATCH(A160,AH160:$AH$1867,0)) -> 437.4 | AL160: 0.01192369521 | AM160: 2020-10-24 | AN160: 0.2564 | AO160: 0.07702256 | AP160: =INDEX(AN160:$AN$2080,MATCH(A160,AM160:$AM$2080,0)) -> 0.3004 | AQ160: 0.0145602133 | AR160: 2020-10-24 | AS160: 30.59 | AT160: 376.511628 | AU160: =INDEX(AS160:$AS$2080,MATCH(A160,AR160:$AR$2080,0)) -> 23.07 | AV160: 0.04386085078
A161: 2020-08-13 | B161: 582 | C161: 0.006896579059 | D161: 7223 | E161: -0.00593555473 | F161: 31721 | G161: 0.002778042636 | H161: 6828 | I161: 0.009269543309 | J161: 6567 | K161: 0.001828989993 | L161: 2731 | M161: 0.0003662332947 | N161: 16106 | O161: 0.02495807686 | P161: 2585 | Q161: 0.007767029338 | R161: 5308 | S161: -0.0007532957042 | T161: 5254 | U161: 0.0009521089932 | V161: 1021 | W161: 0.001960784942 | X161: 3955 | Y161: 0.006341175338 | Z161: 4170 | AA161: -0.0007191657987 | AB161: 2020-10-23 | AC161: 16.4527 | AD161: 12974.6 | AE161: 190147.1444 | AF161: =INDEX(AD161:$AD$1886,MATCH(A161,AB161:$AB$1886,0)) -> 11557.2 | AG161: 0.01021345195 | AH161: 2020-10-23 | AI161: 409.77 | AJ161: 7053.930598 | AK161: =INDEX(AI161:$AI$1867,MATCH(A161,AH161:$AH$1867,0)) -> 428.74 | AL161: 0.08776769297 | AM161: 2020-10-23 | AN161: 0.2549 | AO161: 0.07590922 | AP161: =INDEX(AN161:$AN$2080,MATCH(A161,AM161:$AM$2080,0)) -> 0.2978 | AQ161: 0.03685761831 | AR161: 2020-10-23 | AS161: 30.63 | AT161: 363.275616 | AU161: =INDEX(AS161:$AS$2080,MATCH(A161,AR161:$AR$2080,0)) -> 22.08 | AV161: 0.01505846387
A162: 2020-08-12 | B162: 578 | C162: 0.006944472353 | D162: 7266 | E162: 0.01107124511 | F162: 31633 | G162: -0.01580713484 | H162: 6765 | I162: 0.002219756738 | J162: 6555 | K162: -0.0004575612068 | L162: 2730 | M162: 0 | N162: 15709 | O162: -0.06273059844 | P162: 2565 | Q162: -0.02159744572 | R162: 5312 | S162: 0.004906595992 | T162: 5249 | U162: -0.007591609814 | V162: 1019 | W162: -0.001960784942 | X162: 3930 | Y162: -0.01088205095 | Z162: 4173 | AA162: -0.008589888179 | AB162: 2020-10-22 | AC162: 16.524 | AD162: 12808.7 | AE162: 188214.9696 | AF162: =INDEX(AD162:$AD$1886,MATCH(A162,AB162:$AB$1886,0)) -> 11390.4 | AG162: -0.0445163505 | AH162: 2020-10-22 | AI162: 413.77 | AJ162: 6461.21448 | AK162: =INDEX(AI162:$AI$1867,MATCH(A162,AH162:$AH$1867,0)) -> 391.02 | AL162: 0.02593113566 | AM162: 2020-10-22 | AN162: 0.2568 | AO162: 0.07316232 | AP162: =INDEX(AN162:$AN$2080,MATCH(A162,AM162:$AM$2080,0)) -> 0.2849 | AQ162: 0.02221359056 | AR162: 2020-10-22 | AS162: 30.66 | AT162: 359.397 | AU162: =INDEX(AS162:$AS$2080,MATCH(A162,AR162:$AR$2080,0)) -> 21.75 | AV162: 0.02278638462
A163: 2020-08-11 | B163: 574 | C163: 0.006993035491 | D163: 7186 | E163: 0.01344934815 | F163: 32137 | G163: -0.04049210223 | H163: 6750 | I163: -0.00399202127 | J163: 6558 | K163: 0.002595619443 | L163: 2730 | M163: 0.0003663674707 | N163: 16726 | O163: 0.02463432181 | P163: 2621 | Q163: 0.01344364399 | R163: 5286 | S163: 0.009313000885 | T163: 5289 | U163: 0.00227143766 | V163: 1021 | W163: 0.02780715412 | X163: 3973 | Y163: -0.001509054612 | Z163: 4209 | AA163: 0.00882955265 | AB163: 2020-10-21 | AC163: 16.5514 | AD163: 11913.5 | AE163: 196782.9049 | AF163: =INDEX(AD163:$AD$1886,MATCH(A163,AB163:$AB$1886,0)) -> 11889.2 | AG163: 0.01102811926 | AH163: 2020-10-21 | AI163: 392.19 | AJ163: 6295.821532 | AK163: =INDEX(AI163:$AI$1867,MATCH(A163,AH163:$AH$1867,0)) -> 380.38 | AL163: 0.002144813776 | AM163: 2020-10-21 | AN163: 0.2516 | AO163: 0.07155504 | AP163: =INDEX(AN163:$AN$2080,MATCH(A163,AM163:$AM$2080,0)) -> 0.2844 | AQ163: -0.003263202824 | AR163: 2020-10-21 | AS163: 29.77 | AT163: 351.882764 | AU163: =INDEX(AS163:$AS$2080,MATCH(A163,AR163:$AR$2080,0)) -> 21.26 | AV163: -0.04820763553
A164: 2020-08-07 | B164: 570 | C164: 0 | D164: 7090 | E164: -0.01664490488 | F164: 33465 | G164: -0.01205907449 | H164: 6777 | I164: 0.003547675561 | J164: 6541 | K164: -0.006400509507 | L164: 2729 | M164: 0 | N164: 16319 | O164: -0.01797582866 | P164: 2586 | Q164: -0.000773096289 | R164: 5237 | S164: -0.01760242288 | T164: 5277 | U164: -0.003971636426 | V164: 993 | W164: 0.004036332422 | X164: 3979 | Y164: 0.008581577147 | Z164: 4172 | AA164: 0.003842463902 | AB164: 2020-10-20 | AC164: 16.5538 | AD164: 11753.4 | AE164: 194624.682 | AF164: =INDEX(AD164:$AD$1886,MATCH(A164,AB164:$AB$1886,0)) -> 11757.1 | AG164: -0.002924076742 | AH164: 2020-10-20 | AI164: 369.14 | AJ164: 6282.332638 | AK164: =INDEX(AI164:$AI$1867,MATCH(A164,AH164:$AH$1867,0)) -> 379.51 | AL164: -0.04470058638 | AM164: 2020-10-20 | AN164: 0.2436 | AO164: 0.07178892 | AP164: =INDEX(AN164:$AN$2080,MATCH(A164,AM164:$AM$2080,0)) -> 0.2947 | AQ164: -0.03955715587 | AR164: 2020-10-20 | AS164: 28.8 | AT164: 369.315278 | AU164: =INDEX(AS164:$AS$2080,MATCH(A164,AR164:$AR$2080,0)) -> 22.31 | AV164: -0.01777034767
A165: 2020-08-06 | B165: 570 | C165: -0.001752848827 | D165: 7209 | E165: 0.00361312233 | F165: 33871 | G165: 0.01649141382 | H165: 6753 | I165: -0.00177541103 | J165: 6583 | K165: 0.005025518839 | L165: 2729 | M165: 0.000366501745 | N165: 16615 | O165: 0.01004121672 | P165: 2588 | Q165: -0.005779249374 | R165: 5330 | S165: -0.000937646576 | T165: 5298 | U165: 0.01043553726 | V165: 989 | W165: -0.007052925962 | X165: 3945 | Y165: 0.01738729561 | Z165: 4156 | AA165: 0.009914239108 | AB165: 2020-10-19 | AC165: 16.6334 | AD165: 11506.9 | AE165: 195194.6123 | AF165: =INDEX(AD165:$AD$1886,MATCH(A165,AB165:$AB$1886,0)) -> 11735.1 | AG165: 0.04660174116 | AH165: 2020-10-19 | AI165: 379.94 | AJ165: 6569.527664 | AK165: =INDEX(AI165:$AI$1867,MATCH(A165,AH165:$AH$1867,0)) -> 394.96 | AL165: -0.0180830104 | AM165: 2020-10-19 | AN165: 0.246 | AO165: 0.0746856 | AP165: =INDEX(AN165:$AN$2080,MATCH(A165,AM165:$AM$2080,0)) -> 0.3036 | AQ165: 0.01655633564 | AR165: 2020-10-19 | AS165: 29.93 | AT165: 377.744514 | AU165: =INDEX(AS165:$AS$2080,MATCH(A165,AR165:$AR$2080,0)) -> 22.71 | AV165: -0.02736327074
A166: 2020-08-05 | B166: 571 | C166: 0.01056347851 | D166: 7183 | E166: 0.01387840317 | F166: 33317 | G166: 0.02642896926 | H166: 6765 | I166: 0.002516096939 | J166: 6550 | K166: 0.0006108735682 | L166: 2728 | M166: -0.0007328692157 | N166: 16449 | O166: 0.04960209318 | P166: 2603 | Q166: 0.01743892286 | R166: 5335 | S166: 0.02716990535 | T166: 5243 | U166: 0.007850686564 | V166: 996 | W166: 0.006042314456 | X166: 3877 | Y166: 0.006728803856 | Z166: 4115 | AA166: 0.00511634689 | AB166: 2020-10-18 | AC166: 16.6573 | AD166: 11362.1 | AE166: 186306.9033 | AF166: =INDEX(AD166:$AD$1886,MATCH(A166,AB166:$AB$1886,0)) -> 11184.7 | AG166: 0.007327744508 | AH166: 2020-10-18 | AI166: 378.21 | AJ166: 6689.405107 | AK166: =INDEX(AI166:$AI$1867,MATCH(A166,AH166:$AH$1867,0)) -> 401.59 | AL166: 0.04046361985 | AM166: 2020-10-18 | AN166: 0.2422 | AO166: 0.07345926 | AP166: =INDEX(AN166:$AN$2080,MATCH(A166,AM166:$AM$2080,0)) -> 0.3033 | AQ166: 0.01465658222 | AR166: 2020-10-18 | AS166: 30.66 | AT166: 388.781382 | AU166: =INDEX(AS166:$AS$2080,MATCH(A166,AR166:$AR$2080,0)) -> 23.34 | AV166: 0.0464792118
A167: 2020-08-04 | B167: 565 | C167: 0 | D167: 7084 | E167: 0.002261165463 | F167: 32448 | G167: 0.0155918306 | H167: 6748 | I167: -0.002220413909 | J167: 6546 | K167: 0.003519783265 | L167: 2730 | M167: 0.00220022091 | N167: 15653 | O167: 0.01713959483 | P167: 2558 | Q167: 0.006274530389 | R167: 5192 | S167: 0.002120891569 | T167: 5202 | U167: 0.01882271541 | V167: 990 | W167: 0.005063301957 | X167: 3851 | Y167: 0.02364797534 | Z167: 4094 | AA167: 0.01253549658 | AB167: 2020-10-17 | AC167: 16.4772 | AD167: 11322 | AE167: 184946.6837 | AF167: =INDEX(AD167:$AD$1886,MATCH(A167,AB167:$AB$1886,0)) -> 11224.4 | AG167: 0.01218197905 | AH167: 2020-10-17 | AI167: 368.86 | AJ167: 6424.130736 | AK167: =INDEX(AI167:$AI$1867,MATCH(A167,AH167:$AH$1867,0)) -> 389.88 | AL167: 0.007266364133 | AM167: 2020-10-17 | AN167: 0.2409 | AO167: 0.07239045 | AP167: =INDEX(AN167:$AN$2080,MATCH(A167,AM167:$AM$2080,0)) -> 0.3005 | AQ167: -0.02872420386 | AR167: 2020-10-17 | AS167: 30.25 | AT167: 367.112016 | AU167: =INDEX(AS167:$AS$2080,MATCH(A167,AR167:$AR$2080,0)) -> 22.28 | AV167: 0.009923401234
A168: 2020-08-03 | B168: 565 | C168: -0.00705470298 | D168: 7068 | E168: 0.004537727582 | F168: 31946 | G168: 0.0135833544 | H168: 6763 | I168: 0.001183607181 | J168: 6523 | K168: 0.001687764114 | L168: 2724 | M168: 0 | N168: 15387 | O168: 0.02593957156 | P168: 2542 | Q168: -0.02524896218 | R168: 5181 | S168: 0.009113005384 | T168: 5105 | U168: 0.0177870302 | V168: 985 | W168: -0.02901654298 | X168: 3761 | Y168: 0.03572775126 | Z168: 4043 | AA168: 0.02682201147 | AB168: 2020-10-16 | AC168: 16.5095 | AD168: 11503 | AE168: 182707.3346 | AF168: =INDEX(AD168:$AD$1886,MATCH(A168,AB168:$AB$1886,0)) -> 11066.8 | AG168: -0.003246493505 | AH168: 2020-10-16 | AI168: 366.23 | AJ168: 6377.61985 | AK168: =INDEX(AI168:$AI$1867,MATCH(A168,AH168:$AH$1867,0)) -> 386.3 | AL168: 0.1108834976 | AM168: 2020-10-16 | AN168: 0.2404 | AO168: 0.07449996 | AP168: =INDEX(AN168:$AN$2080,MATCH(A168,AM168:$AM$2080,0)) -> 0.3099 | AQ168: 0.1571870315 | AR168: 2020-10-16 | AS168: 29.99 | AT168: 364.19957 | AU168: =INDEX(AS168:$AS$2080,MATCH(A168,AR168:$AR$2080,0)) -> 22.06 | AV168: 0.06508264013
A169: 2020-07-31 | B169: 569 | C169: -0.005258557253 | D169: 7036 | E169: -0.001420253044 | F169: 31515 | G169: 0.02122963261 | H169: 6755 | I169: 0.004153692369 | J169: 6512 | K169: -0.001074361242 | L169: 2724 | M169: 0 | N169: 14993 | O169: 0.02710999218 | P169: 2607 | Q169: -0.02612300731 | R169: 5134 | S169: -0.003305788134 | T169: 5015 | U169: 0.01668883611 | V169: 1014 | W169: -0.03107046047 | X169: 3629 | Y169: 0.006635357494 | Z169: 3936 | AA169: 0.01098491056 | AB169: 2020-10-15 | AC169: 16.5193 | AD169: 11420.4 | AE169: 183301.4567 | AF169: =INDEX(AD169:$AD$1886,MATCH(A169,AB169:$AB$1886,0)) -> 11096.2 | AG169: 0.0001982571379 | AH169: 2020-10-15 | AI169: 377.44 | AJ169: 5708.244115 | AK169: =INDEX(AI169:$AI$1867,MATCH(A169,AH169:$AH$1867,0)) -> 345.55 | AL169: 0.03330349727 | AM169: 2020-10-15 | AN169: 0.2459 | AO169: 0.06366351 | AP169: =INDEX(AN169:$AN$2080,MATCH(A169,AM169:$AM$2080,0)) -> 0.2589 | AQ169: 0.04309349382 | AR169: 2020-10-15 | AS169: 31.3 | AT169: 341.453931 | AU169: =INDEX(AS169:$AS$2080,MATCH(A169,AR169:$AR$2080,0)) -> 20.67 | AV169: 0.0324512251
A170: 2020-07-30 | B170: 572 | C170: -0.01388911216 | D170: 7046 | E170: -0.005802039909 | F170: 30853 | G170: 0.01485717358 | H170: 6727 | I170: -0.006814841189 | J170: 6519 | K170: 0.0007672830884 | L170: 2724 | M170: -0.0003670398279 | N170: 14592 | O170: -0.01368066258 | P170: 2676 | Q170: 0.000373761918 | R170: 5151 | S170: -0.01138898518 | T170: 4932 | U170: 0.003859832116 | V170: 1046 | W170: -0.02548509801 | X170: 3605 | Y170: 0.01621959495 | Z170: 3893 | AA170: 0.009290389402 | AB170: 2020-10-14 | AC170: 16.5016 | AD170: 11423.8 | AE170: 183265.1194 | AF170: =INDEX(AD170:$AD$1886,MATCH(A170,AB170:$AB$1886,0)) -> 11105.9 | AG170: 0.02092017946 | AH170: 2020-10-14 | AI170: 379.48 | AJ170: 5521.270344 | AK170: =INDEX(AI170:$AI$1867,MATCH(A170,AH170:$AH$1867,0)) -> 334.59 | AL170: 0.05324319572 | AM170: 2020-10-14 | AN170: 0.2494 | AO170: 0.0609783 | AP170: =INDEX(AN170:$AN$2080,MATCH(A170,AM170:$AM$2080,0)) -> 0.2445 | AQ170: -0.02154817253 | AR170: 2020-10-14 | AS170: 30.91 | AT170: 330.197016 | AU170: =INDEX(AS170:$AS$2080,MATCH(A170,AR170:$AR$2080,0)) -> 20.01 | AV170: 0.005512416865
A171: 2020-07-29 | B171: 580 | C171: 0.01214238683 | D171: 7087 | E171: 0.0120662973 | F171: 30398 | G171: 0.002107621145 | H171: 6773 | I171: -0.004860455846 | J171: 6514 | K171: -0.001993712799 | L171: 2725 | M171: 0.0003670398279 | N171: 14793 | O171: -0.03225978921 | P171: 2675 | Q171: 0.005247388352 | R171: 5210 | S171: 0.005388773625 | T171: 4913 | U171: 0.008790816092 | V171: 1073 | W171: 0.0188152305 | X171: 3547 | Y171: -0.00253414186 | Z171: 3857 | AA171: 0.001556824393 | AB171: 2020-10-13 | AC171: 16.4524 | AD171: 11533.9 | AE171: 179471.0054 | AF171: =INDEX(AD171:$AD$1886,MATCH(A171,AB171:$AB$1886,0)) -> 10908.5 | AG171: -0.01873421072 | AH171: 2020-10-13 | AI171: 381.19 | AJ171: 5234.989156 | AK171: =INDEX(AI171:$AI$1867,MATCH(A171,AH171:$AH$1867,0)) -> 318.19 | AL171: -0.003490612069 | AM171: 2020-10-13 | AN171: 0.2563 | AO171: 0.06230653 | AP171: =INDEX(AN171:$AN$2080,MATCH(A171,AM171:$AM$2080,0)) -> 0.2431 | AQ171: 0.05369998282 | AR171: 2020-10-13 | AS171: 30.71 | AT171: 327.40276 | AU171: =INDEX(AS171:$AS$2080,MATCH(A171,AR171:$AR$2080,0)) -> 19.9 | AV171: -0.01347662024
A172: 2020-07-28 | B172: 573 | C172: 0 | D172: 7002 | E172: 0.0004285408251 | F172: 30334 | G172: 0.01087183396 | H172: 6806 | I172: -0.0008811867217 | J172: 6527 | K172: -0.0001531980087 | L172: 2724 | M172: 0 | N172: 15278 | O172: 0.01463730228 | P172: 2661 | Q172: 0.01324021611 | R172: 5182 | S172: -0.001735274705 | T172: 4870 | U172: 0.005559573673 | V172: 1053 | W172: 0.01627608931 | X172: 3556 | Y172: 0.007621772959 | Z172: 3851 | AA172: 0.007559009015 | AB172: 2020-10-12 | AC172: 16.5897 | AD172: 11371 | AE172: 182864.9452 | AF172: =INDEX(AD172:$AD$1886,MATCH(A172,AB172:$AB$1886,0)) -> 11022.8 | AG172: 0.1019258301 | AH172: 2020-10-12 | AI172: 387.73 | AJ172: 5253.294402 | AK172: =INDEX(AI172:$AI$1867,MATCH(A172,AH172:$AH$1867,0)) -> 316.66 | AL172: -0.01742782042 | AM172: 2020-10-12 | AN172: 0.2564 | AO172: 0.05904892 | AP172: =INDEX(AN172:$AN$2080,MATCH(A172,AM172:$AM$2080,0)) -> 0.2303 | AQ172: 0.03181078108 | AR172: 2020-10-12 | AS172: 30.71 | AT172: 334.614249 | AU172: =INDEX(AS172:$AS$2080,MATCH(A172,AR172:$AR$2080,0)) -> 20.17 | AV172: 0.02764689783
A173: 2020-07-27 | B173: 573 | C173: -0.001743679605 | D173: 6999 | E173: -0.002140870011 | F173: 30006 | G173: 0.006285123659 | H173: 6812 | I173: -0.001906578271 | J173: 6528 | K173: -0.002447981639 | L173: 2724 | M173: 0.001101928486 | N173: 15056 | O173: 0.003459750623 | P173: 2626 | Q173: -0.01773966128 | R173: 5191 | S173: 0.0126007289 | T173: 4843 | U173: -0.006380591782 | V173: 1036 | W173: 0.003868476778 | X173: 3529 | Y173: -0.005087631098 | Z173: 3822 | AA173: -0.009115833408 | AB173: 2020-10-11 | AC173: 16.6267 | AD173: 11298.4 | AE173: 165144.6977 | AF173: =INDEX(AD173:$AD$1886,MATCH(A173,AB173:$AB$1886,0)) -> 9932.5 | AG173: 0.02777756114 | AH173: 2020-10-11 | AI173: 375.14 | AJ173: 5345.650317 | AK173: =INDEX(AI173:$AI$1867,MATCH(A173,AH173:$AH$1867,0)) -> 321.51 | AL173: 0.1347154292 | AM173: 2020-10-11 | AN173: 0.2557 | AO173: 0.05720009 | AP173: =INDEX(AN173:$AN$2080,MATCH(A173,AM173:$AM$2080,0)) -> 0.2237 | AQ173: 0.09767608452 | AR173: 2020-10-11 | AS173: 28.56 | AT173: 326.215854 | AU173: =INDEX(AS173:$AS$2080,MATCH(A173,AR173:$AR$2080,0)) -> 19.62 | AV173: 0.02424673851
A174: 2020-07-24 | B174: 574 | C174: -0.001740644478 | D174: 7014 | E174: -0.0135940921 | F174: 29818 | G174: 0.01633089563 | H174: 6825 | I174: 0.001759789279 | J174: 6544 | K174: 0.002447981639 | L174: 2721 | M174: -0.001468968314 | N174: 15004 | O174: 0.01335187067 | P174: 2673 | Q174: -0.006339756457 | R174: 5126 | S174: -0.008933832968 | T174: 4874 | U174: 0.0006157003786 | V174: 1032 | W174: -0.01060250896 | X174: 3547 | Y174: -0.01981921118 | Z174: 3857 | AA174: -0.006203173161 | AB174: 2020-10-10 | AC174: 16.732 | AD174: 11054.2 | AE174: 160620.5072 | AF174: =INDEX(AD174:$AD$1886,MATCH(A174,AB174:$AB$1886,0)) -> 9599.6 | AG174: 0.01823510432 | AH174: 2020-10-10 | AI174: 370.97 | AJ174: 4671.90904 | AK174: =INDEX(AI174:$AI$1867,MATCH(A174,AH174:$AH$1867,0)) -> 279.22 | AL174: 0.02560335088 | AM174: 2020-10-10 | AN174: 0.2543 | AO174: 0.0518772 | AP174: =INDEX(AN174:$AN$2080,MATCH(A174,AM174:$AM$2080,0)) -> 0.204 | AQ174: -0.01434230805 | AR174: 2020-10-10 | AS174: 28.31 | AT174: 320.4178 | AU174: =INDEX(AS174:$AS$2080,MATCH(A174,AR174:$AR$2080,0)) -> 19.15 | AV174: 0.02538475807
A175: 2020-07-23 | B175: 575 | C175: -0.003472225711 | D175: 7110 | E175: 0.003522370673 | F175: 29335 | G175: 0.02181453563 | H175: 6813 | I175: 0.009141909732 | J175: 6528 | K175: 0.000612932903 | L175: 2725 | M175: 0.0007342144236 | N175: 14805 | O175: 0.02337129746 | P175: 2690 | Q175: -0.01878162371 | R175: 5172 | S175: 0.005234091624 | T175: 4871 | U175: 0.01094035063 | V175: 1043 | W175: -0.0180527468 | X175: 3618 | Y175: 0.01559920211 | Z175: 3881 | AA175: 0.0111414548 | AB175: 2020-10-09 | AC175: 16.578 | AD175: 10924.1 | AE175: 157718.1186 | AF175: =INDEX(AD175:$AD$1886,MATCH(A175,AB175:$AB$1886,0)) -> 9513.7 | AG175: 0.01582718571 | AH175: 2020-10-09 | AI175: 365.59 | AJ175: 4553.81082 | AK175: =INDEX(AI175:$AI$1867,MATCH(A175,AH175:$AH$1867,0)) -> 274.69 | AL175: 0.04902578992 | AM175: 2020-10-09 | AN175: 0.2535 | AO175: 0.0526266 | AP175: =INDEX(AN175:$AN$2080,MATCH(A175,AM175:$AM$2080,0)) -> 0.2076 | AQ175: 0.02885126415 | AR175: 2020-10-09 | AS175: 28.45 | AT175: 309.51126 | AU175: =INDEX(AS175:$AS$2080,MATCH(A175,AR175:$AR$2080,0)) -> 18.67 | AV175: 0.03155865815
A176: 2020-07-22 | B176: 577 | C176: 0.001734605812 | D176: 7085 | E176: -0.01457220686 | F176: 28702 | G176: 0.00927569261 | H176: 6751 | I176: 0.005793672895 | J176: 6524 | K176: 0.0009201043434 | L176: 2723 | M176: 0.0003673094623 | N176: 14463 | O176: 0.03153683414 | P176: 2741 | Q176: -0.01340842701 | R176: 5145 | S176: -0.009863729522 | T176: 4818 | U176: -0.01646805434 | V176: 1062 | W176: -0.008438868646 | X176: 3562 | Y176: -0.006436289184 | Z176: 3838 | AA176: -0.006233786421 | AB176: 2020-10-08 | AC176: 16.5374 | AD176: 10670.9 | AE176: 155241.535 | AF176: =INDEX(AD176:$AD$1886,MATCH(A176,AB176:$AB$1886,0)) -> 9387.3 | AG176: 0.02379614416 | AH176: 2020-10-08 | AI176: 350.77 | AJ176: 4335.940906 | AK176: =INDEX(AI176:$AI$1867,MATCH(A176,AH176:$AH$1867,0)) -> 262.19 | AL176: 0.06727617724 | AM176: 2020-10-08 | AN176: 0.2515 | AO176: 0.05112995 | AP176: =INDEX(AN176:$AN$2080,MATCH(A176,AM176:$AM$2080,0)) -> 0.2033 | AQ176: 0.03337803991 | AR176: 2020-10-08 | AS176: 27.71 | AT176: 299.161566 | AU176: =INDEX(AS176:$AS$2080,MATCH(A176,AR176:$AR$2080,0)) -> 18.09 | AV176: 0.02066535423
A177: 2020-07-21 | B177: 576 | C177: -0.01036278704 | D177: 7189 | E177: 0.01062798425 | F177: 28437 | G177: -0.000984148264 | H177: 6712 | I177: 0.008829088405 | J177: 6518 | K177: -0.0003067955232 | L177: 2722 | M177: 0.0003674444282 | N177: 14014 | O177: 0.01401237313 | P177: 2778 | Q177: -0.007530966201 | R177: 5196 | S177: -0.001154068218 | T177: 4898 | U177: 0.003271986559 | V177: 1071 | W177: 0.005617992304 | X177: 3585 | Y177: 0.0002789789389 | Z177: 3862 | AA177: -0.004392204452 | AB177: 2020-10-07 | AC177: 16.5449 | AD177: 10602.6 | AE177: 151590.9918 | AF177: =INDEX(AD177:$AD$1886,MATCH(A177,AB177:$AB$1886,0)) -> 9162.4 | AG177: -0.004372015278 | AH177: 2020-10-07 | AI177: 341.81 | AJ177: 4053.831398 | AK177: =INDEX(AI177:$AI$1867,MATCH(A177,AH177:$AH$1867,0)) -> 245.02 | AL177: 0.03746514656 | AM177: 2020-10-07 | AN177: 0.2485 | AO177: 0.0494515 | AP177: =INDEX(AN177:$AN$2080,MATCH(A177,AM177:$AM$2080,0)) -> 0.199 | AQ177: 0.03275347137 | AR177: 2020-10-07 | AS177: 27.7 | AT177: 293.175628 | AU177: =INDEX(AS177:$AS$2080,MATCH(A177,AR177:$AR$2080,0)) -> 17.72 | AV177: 0.01363657495
A178: 2020-07-20 | B178: 582 | C178: -0.0051413995 | D178: 7113 | E178: 0.002533785139 | F178: 28465 | G178: 0.004365742948 | H178: 6653 | I178: -0.007487306616 | J178: 6520 | K178: 0.0006136851988 | L178: 2721 | M178: 0 | N178: 13819 | O178: 0.01428491604 | P178: 2799 | Q178: -0.004633763415 | R178: 5202 | S178: 0.01043487729 | T178: 4882 | U178: 0.01215883088 | V178: 1065 | W178: 0.004705891037 | X178: 3584 | Y178: 0.01603184386 | Z178: 3879 | AA178: 0.01114723144 | AB178: 2020-10-06 | AC178: 16.5351 | AD178: 10789.5 | AE178: 152255.2008 | AF178: =INDEX(AD178:$AD$1886,MATCH(A178,AB178:$AB$1886,0)) -> 9208 | AG178: 0.004358798881 | AH178: 2020-10-06 | AI178: 340.82 | AJ178: 3904.763865 | AK178: =INDEX(AI178:$AI$1867,MATCH(A178,AH178:$AH$1867,0)) -> 236.15 | AL178: 0.01084851224 | AM178: 2020-10-06 | AN178: 0.2453 | AO178: 0.04785803 | AP178: =INDEX(AN178:$AN$2080,MATCH(A178,AM178:$AM$2080,0)) -> 0.1951 | AQ178: -0.01806496625 | AR178: 2020-10-06 | AS178: 27.71 | AT178: 289.033548 | AU178: =INDEX(AS178:$AS$2080,MATCH(A178,AR178:$AR$2080,0)) -> 17.48 | AV178: 0.02314918187
A179: 2020-07-17 | B179: 585 | C179: -0.001707942345 | D179: 7095 | E179: 0.001269304169 | F179: 28341 | G179: 0.005803477133 | H179: 6703 | I179: 0.0001491980607 | J179: 6516 | K179: 0.0009212345193 | L179: 2721 | M179: 0.0003675794932 | N179: 13623 | O179: 0.01136879217 | P179: 2812 | Q179: -0.01307208157 | R179: 5148 | S179: 0.00116618089 | T179: 4823 | U179: 0.009792764997 | V179: 1060 | W179: -0.01591049005 | X179: 3527 | Y179: 0.004831613776 | Z179: 3836 | AA179: 0.0005215123977 | AB179: 2020-10-05 | AC179: 16.5942 | AD179: 10672.9 | AE179: 151592.9953 | AF179: =INDEX(AD179:$AD$1886,MATCH(A179,AB179:$AB$1886,0)) -> 9135.3 | AG179: -0.01655962418 | AH179: 2020-10-05 | AI179: 353.96 | AJ179: 3862.631934 | AK179: =INDEX(AI179:$AI$1867,MATCH(A179,AH179:$AH$1867,0)) -> 232.77 | AL179: -0.01337411207 | AM179: 2020-10-05 | AN179: 0.2508 | AO179: 0.04873044 | AP179: =INDEX(AN179:$AN$2080,MATCH(A179,AM179:$AM$2080,0)) -> 0.1943 | AQ179: 0.01398266958 | AR179: 2020-10-05 | AS179: 28.66 | AT179: 283.428936 | AU179: =INDEX(AS179:$AS$2080,MATCH(A179,AR179:$AR$2080,0)) -> 17.08 | AV179: -0.003506724809
A180: 2020-07-16 | B180: 586 | C180: -0.003407158322 | D180: 7086 | E180: -0.02080935364 | F180: 28177 | G180: 0.001527232987 | H180: 6702 | I180: -0.0004475274185 | J180: 6510 | K180: 0.001383444998 | L180: 2720 | M180: 0 | N180: 13469 | O180: 0.007601765627 | P180: 2849 | Q180: 0.01307208157 | R180: 5142 | S180: -0.00620397492 | T180: 4776 | U180: -0.01372448243 | V180: 1077 | W180: 0.02063863125 | X180: 3510 | Y180: -0.007662872746 | Z180: 3834 | AA180: -0.004424210209 | AB180: 2020-10-04 | AC180: 16.755 | AD180: 10544.2 | AE180: 154124.2185 | AF180: =INDEX(AD180:$AD$1886,MATCH(A180,AB180:$AB$1886,0)) -> 9198.7 | AG180: -0.003658326364 | AH180: 2020-10-04 | AI180: 352.58 | AJ180: 3914.6382 | AK180: =INDEX(AI180:$AI$1867,MATCH(A180,AH180:$AH$1867,0)) -> 233.64 | AL180: -0.01798179965 | AM180: 2020-10-04 | AN180: 0.2477 | AO180: 0.0480538 | AP180: =INDEX(AN180:$AN$2080,MATCH(A180,AM180:$AM$2080,0)) -> 0.194 | AQ180: 0.04575610451 | AR180: 2020-10-04 | AS180: 28.94 | AT180: 287.1807 | AU180: =INDEX(AS180:$AS$2080,MATCH(A180,AR180:$AR$2080,0)) -> 17.14 | AV180: -0.02591564558
A181: 2020-07-15 | B181: 588 | C181: 0.01542447033 | D181: 7235 | E181: 0.006656521597 | F181: 28134 | G181: -0.01274982395 | H181: 6705 | I181: 0.006734032181 | J181: 6501 | K181: -0.0003075976647 | L181: 2720 | M181: -0.0003675794932 | N181: 13367 | O181: -0.007750243727 | P181: 2812 | Q181: -0.0141245286 | R181: 5174 | S181: 0.002321982467 | T181: 4842 | U181: 0.001860465653 | V181: 1055 | W181: -0.03447011039 | X181: 3537 | Y181: 0.00709323445 | Z181: 3851 | AA181: 0.004685068434 | AB181: 2020-10-03 | AC181: 16.717 | AD181: 10572.3 | AE181: 154689.0878 | AF181: =INDEX(AD181:$AD$1886,MATCH(A181,AB181:$AB$1886,0)) -> 9253.4 | AG181: -0.01903383984 | AH181: 2020-10-03 | AI181: 346.52 | AJ181: 3985.66714 | AK181: =INDEX(AI181:$AI$1867,MATCH(A181,AH181:$AH$1867,0)) -> 238.42 | AL181: -0.02757318769 | AM181: 2020-10-03 | AN181: 0.2329 | AO181: 0.04590459 | AP181: =INDEX(AN181:$AN$2080,MATCH(A181,AM181:$AM$2080,0)) -> 0.1971 | AQ181: -0.01372727767 | AR181: 2020-10-03 | AS181: 28.2 | AT181: 294.05203 | AU181: =INDEX(AS181:$AS$2080,MATCH(A181,AR181:$AR$2080,0)) -> 17.59 | AV181: -0.02747579621
A182: 2020-07-14 | B182: 579 | C182: -0.003448279279 | D182: 7187 | E182: -0.01189502269 | F182: 28495 | G182: 0.006548857994 | H182: 6660 | I182: -0.005241494591 | J182: 6503 | K182: 0.0006152899748 | L182: 2721 | M182: 0 | N182: 13471 | O182: -0.01320029491 | P182: 2852 | Q182: -0.005245684349 | R182: 5162 | S182: -0.01213069655 | T182: 4833 | U182: -0.01845070791 | V182: 1092 | W182: -0.01092907053 | X182: 3512 | Y182: -0.009916500019 | Z182: 3833 | AA182: -0.01089787641 | AB182: 2020-10-02 | AC182: 17.0563 | AD182: 10620.5 | AE182: 157661.6147 | AF182: =INDEX(AD182:$AD$1886,MATCH(A182,AB182:$AB$1886,0)) -> 9243.6 | AG182: -0.01045148421 | AH182: 2020-10-02 | AI182: 346.24 | AJ182: 4097.093823 | AK182: =INDEX(AI182:$AI$1867,MATCH(A182,AH182:$AH$1867,0)) -> 240.21 | AL182: -0.001739811894 | AM182: 2020-10-02 | AN182: 0.2341 | AO182: 0.04653908 | AP182: =INDEX(AN182:$AN$2080,MATCH(A182,AM182:$AM$2080,0)) -> 0.1988 | AQ182: -0.01635573981 | AR182: 2020-10-02 | AS182: 27.29 | AT182: 308.377904 | AU182: =INDEX(AS182:$AS$2080,MATCH(A182,AR182:$AR$2080,0)) -> 18.08 | AV182: -0.01808764028
A183: 2020-07-13 | B183: 581 | C183: 0.01038071605 | D183: 7273 | E183: 0.008977340866 | F183: 28309 | G183: -0.003772591517 | H183: 6695 | I183: 0.006443417812 | J183: 6499 | K183: -0.001230201601 | L183: 2721 | M183: 0 | N183: 13650 | O183: -0.01201543674 | P183: 2867 | Q183: 0.01937021295 | R183: 5225 | S183: 0.01213069655 | T183: 4923 | U183: 0.006725797289 | V183: 1104 | W183: 0.02197890672 | X183: 3547 | Y183: 0.006789276432 | Z183: 3875 | AA183: 0.01455705456 | AB183: 2020-10-01 | AC183: 17.1295 | AD183: 10776.1 | AE183: 159318.0536 | AF183: =INDEX(AD183:$AD$1886,MATCH(A183,AB183:$AB$1886,0)) -> 9300.8 | AG183: 0.007660540277 | AH183: 2020-10-01 | AI183: 353.21 | AJ183: 4104.2282 | AK183: =INDEX(AI183:$AI$1867,MATCH(A183,AH183:$AH$1867,0)) -> 239.6 | AL183: -0.005106544571 | AM183: 2020-10-01 | AN183: 0.2382 | AO183: 0.04730652 | AP183: =INDEX(AN183:$AN$2080,MATCH(A183,AM183:$AM$2080,0)) -> 0.1986 | AQ183: -0.01550367921 | AR183: 2020-10-01 | AS183: 27.43 | AT183: 315.354095 | AU183: =INDEX(AS183:$AS$2080,MATCH(A183,AR183:$AR$2080,0)) -> 18.41 | AV183: 0.06450230959
A184: 2020-07-10 | B184: 575 | C184: -0.005203827875 | D184: 7208 | E184: -0.01978086475 | F184: 28416 | G184: -0.01029312732 | H184: 6652 | I184: 0.008757416681 | J184: 6507 | K184: -0.001228690064 | L184: 2721 | M184: 0.0007352941508 | N184: 13815 | O184: 0.01150274768 | P184: 2812 | Q184: -0.008145963231 | R184: 5162 | S184: -0.009447674631 | T184: 4890 | U184: -0.01381013013 | V184: 1080 | W184: 0.009302392662 | X184: 3523 | Y184: 0.004266824849 | Z184: 3819 | AA184: -0.003659178155 | AB184: 2020-09-30 | AC184: 17.1186 | AD184: 10840.9 | AE184: 158102.254 | AF184: =INDEX(AD184:$AD$1886,MATCH(A184,AB184:$AB$1886,0)) -> 9235.7 | AG184: -0.02080908276 | AH184: 2020-09-30 | AI184: 359.94 | AJ184: 4125.240228 | AK184: =INDEX(AI184:$AI$1867,MATCH(A184,AH184:$AH$1867,0)) -> 240.98 | AL184: -0.008429801985 | AM184: 2020-09-30 | AN184: 0.2418 | AO184: 0.04804566 | AP184: =INDEX(AN184:$AN$2080,MATCH(A184,AM184:$AM$2080,0)) -> 0.1987 | AQ184: -0.02669030919 | AR184: 2020-09-30 | AS184: 29.29 | AT184: 295.467036 | AU184: =INDEX(AS184:$AS$2080,MATCH(A184,AR184:$AR$2080,0)) -> 17.26 | AV184: 0.02226219649
A185: 2020-07-09 | B185: 578 | C185: -0.01203797856 | D185: 7352 | E185: -0.001630878317 | F185: 28710 | G185: -0.010395104 | H185: 6594 | I185: 0.006695095002 | J185: 6515 | K185: -0.002759045282 | L185: 2719 | M185: 0.0007358352061 | N185: 13657 | O185: -0.03057416024 | P185: 2835 | Q185: 0.0007057163313 | R185: 5211 | S185: 0.003267662687 | T185: 4958 | U185: 0.008303845183 | V185: 1070 | W185: 0.004683849312 | X185: 3508 | Y185: -0.01133798994 | Z185: 3833 | AA185: -0.01296026435 | AB185: 2020-09-29 | AC185: 17.1186 | AD185: 10693.2 | AE185: 161426.6861 | AF185: =INDEX(AD185:$AD$1886,MATCH(A185,AB185:$AB$1886,0)) -> 9429.9 | AG185: 0.02904827741 | AH185: 2020-09-29 | AI185: 359.76 | AJ185: 4160.162172 | AK185: =INDEX(AI185:$AI$1867,MATCH(A185,AH185:$AH$1867,0)) -> 243.02 | AL185: -0.004472891305 | AM185: 2020-09-29 | AN185: 0.2432 | AO185: 0.04934528 | AP185: =INDEX(AN185:$AN$2080,MATCH(A185,AM185:$AM$2080,0)) -> 0.2029 | AQ185: -0.003472513359 | AR185: 2020-09-29 | AS185: 28.84 | AT185: 288.961968 | AU185: =INDEX(AS185:$AS$2080,MATCH(A185,AR185:$AR$2080,0)) -> 16.88 | AV185: -0.02052256137
A186: 2020-07-08 | B186: 585 | C186: 0.01376958072 | D186: 7364 | E186: 0.00722320006 | F186: 29010 | G186: 0.003799003015 | H186: 6550 | I186: -0.00426569812 | J186: 6533 | K186: -0.003666925423 | L186: 2717 | M186: 0 | N186: 14081 | O186: 0.01128422201 | P186: 2833 | Q186: -0.007034851383 | R186: 5194 | S186: 0.01278839362 | T186: 4917 | U186: -0.0002033553642 | V186: 1065 | W186: 0.01800143352 | X186: 3548 | Y186: -0.004779989419 | Z186: 3883 | AA186: -0.005649732542 | AB186: 2020-09-28 | AC186: 16.9409 | AD186: 10776.2 | AE186: 156804.9704 | AF186: =INDEX(AD186:$AD$1886,MATCH(A186,AB186:$AB$1886,0)) -> 9256 | AG186: -0.01668292755 | AH186: 2020-09-28 | AI186: 355.16 | AJ186: 4178.811803 | AK186: =INDEX(AI186:$AI$1867,MATCH(A186,AH186:$AH$1867,0)) -> 246.67 | AL186: 0.02349744968 | AM186: 2020-09-28 | AN186: 0.2419 | AO186: 0.04951693 | AP186: =INDEX(AN186:$AN$2080,MATCH(A186,AM186:$AM$2080,0)) -> 0.2047 | AQ186: 0.09855769189 | AR186: 2020-09-28 | AS186: 26.98 | AT186: 291.891707 | AU186: =INDEX(AS186:$AS$2080,MATCH(A186,AR186:$AR$2080,0)) -> 17.23 | AV186: 0.0270604747
A187: 2020-07-07 | B187: 577 | C187: -0.001731602164 | D187: 7311 | E187: 0.001916758528 | F187: 28900 | G187: 0.0168188479 | H187: 6578 | I187: -0.002277732364 | J187: 6557 | K187: 0.0003050640658 | L187: 2717 | M187: -0.0003679852847 | N187: 13923 | O187: 0.02627038467 | P187: 2853 | Q187: -0.01080714719 | R187: 5128 | S187: 0.006848671716 | T187: 4918 | U187: 0.001017190607 | V187: 1046 | W187: -0.009514819641 | X187: 3565 | Y187: 0.002527736215 | Z187: 3905 | AA187: 0.005907298545 | AB187: 2020-09-27 | AC187: 17.0728 | AD187: 10727.9 | AE187: 159442.8792 | AF187: =INDEX(AD187:$AD$1886,MATCH(A187,AB187:$AB$1886,0)) -> 9339 | AG187: 0.04482515657 | AH187: 2020-09-27 | AI187: 357.44 | AJ187: 4081.765024 | AK187: =INDEX(AI187:$AI$1867,MATCH(A187,AH187:$AH$1867,0)) -> 239.08 | AL187: 0.006697638999 | AM187: 2020-09-27 | AN187: 0.2428 | AO187: 0.04486944 | AP187: =INDEX(AN187:$AN$2080,MATCH(A187,AM187:$AM$2080,0)) -> 0.1848 | AQ187: -0.01787998293 | AR187: 2020-09-27 | AS187: 26.2 | AT187: 286.310856 | AU187: =INDEX(AS187:$AS$2080,MATCH(A187,AR187:$AR$2080,0)) -> 16.77 | AV187: 0.02842646802
A188: 2020-07-06 | B188: 578 | C188: 0 | D188: 7297 | E188: 0.003569471116 | F188: 28418 | G188: -0.001687645433 | H188: 6593 | I188: -0.01430639565 | J188: 6555 | K188: -0.005628675392 | L188: 2718 | M188: -0.0014705885 | N188: 13562 | O188: 0.01380970792 | P188: 2884 | Q188: 0.002777779564 | R188: 5093 | S188: 0.003934689318 | T188: 4913 | U188: 0.02306052364 | V188: 1056 | W188: 0.002844952132 | X188: 3556 | Y188: 0.0193078116 | Z188: 3882 | AA188: 0.01244184012 | AB188: 2020-09-26 | AC188: 16.7882 | AD188: 10688.8 | AE188: 152453.6442 | AF188: =INDEX(AD188:$AD$1886,MATCH(A188,AB188:$AB$1886,0)) -> 9081 | AG188: 0.0001623242169 | AH188: 2020-09-26 | AI188: 355.49 | AJ188: 4054.518182 | AK188: =INDEX(AI188:$AI$1867,MATCH(A188,AH188:$AH$1867,0)) -> 241.51 | AL188: 0.06969235951 | AM188: 2020-09-26 | AN188: 0.2422 | AO188: 0.04567892 | AP188: =INDEX(AN188:$AN$2080,MATCH(A188,AM188:$AM$2080,0)) -> 0.1886 | AQ188: 0.0686806943 | AR188: 2020-09-26 | AS188: 26.22 | AT188: 273.64766 | AU188: =INDEX(AS188:$AS$2080,MATCH(A188,AR188:$AR$2080,0)) -> 16.3 | AV188: 0.06396608787
A189: 2020-07-03 | B189: 578 | C189: 0.01921456494 | D189: 7271 | E189: 0.003996422324 | F189: 28466 | G189: 0.001863605736 | H189: 6688 | I189: -0.01041211251 | J189: 6592 | K189: -0.004691646896 | L189: 2722 | M189: 0.001838573785 | N189: 13376 | O189: -0.001568744953 | P189: 2876 | Q189: 0.01824612023 | R189: 5073 | S189: -0.004719772773 | T189: 4801 | U189: 0.01447628343 | V189: 1053 | W189: -0.006625674972 | X189: 3488 | Y189: -0.0005732301676 | Z189: 3834 | AA189: -0.004424210209 | AB189: 2020-09-25 | AC189: 16.7779 | AD189: 10739.4 | AE189: 152428.8993 | AF189: =INDEX(AD189:$AD$1886,MATCH(A189,AB189:$AB$1886,0)) -> 9085.1 | AG189: 0.01371089387 | AH189: 2020-09-25 | AI189: 352.18 | AJ189: 3781.570881 | AK189: =INDEX(AI189:$AI$1867,MATCH(A189,AH189:$AH$1867,0)) -> 225.39 | AL189: 0.01193202244 | AM189: 2020-09-25 | AN189: 0.2419 | AO189: 0.04264697 | AP189: =INDEX(AN189:$AN$2080,MATCH(A189,AM189:$AM$2080,0)) -> 0.1763 | AQ189: 0.03282329196 | AR189: 2020-09-25 | AS189: 24.66 | AT189: 256.534091 | AU189: =INDEX(AS189:$AS$2080,MATCH(A189,AR189:$AR$2080,0)) -> 15.29 | AV189: -0.016218325
A190: 2020-07-02 | B190: 567 | C190: -0.001762114993 | D190: 7242 | E190: 0.0119462457 | F190: 28413 | G190: 0.003561043869 | H190: 6758 | I190: -0.006489698293 | J190: 6623 | K190: 0.002116083015 | L190: 2717 | M190: 0 | N190: 13397 | O190: -0.004617225957 | P190: 2824 | Q190: 0.03789015398 | R190: 5097 | S190: 0.01761549756 | T190: 4732 | U190: 0.01619123569 | V190: 1060 | W190: 0.02290176429 | X190: 3490 | Y190: 0.01617597374 | Z190: 3851 | AA190: 0.005990381242 | AB190: 2020-09-24 | AC190: 16.2898 | AD190: 10237.3 | AE190: 150353.225 | AF190: =INDEX(AD190:$AD$1886,MATCH(A190,AB190:$AB$1886,0)) -> 9229.9 | AG190: 0.008285858708 | AH190: 2020-09-24 | AI190: 349.36 | AJ190: 3736.717222 | AK190: =INDEX(AI190:$AI$1867,MATCH(A190,AH190:$AH$1867,0)) -> 229.39 | AL190: -0.0094755549 | AM190: 2020-09-24 | AN190: 0.2329 | AO190: 0.04126988 | AP190: =INDEX(AN190:$AN$2080,MATCH(A190,AM190:$AM$2080,0)) -> 0.1772 | AQ190: 0.05267121284 | AR190: 2020-09-24 | AS190: 24.61 | AT190: 253.143492 | AU190: =INDEX(AS190:$AS$2080,MATCH(A190,AR190:$AR$2080,0)) -> 15.54 | AV190: -0.01848952895
A191: 2020-07-01 | B191: 568 | C191: 0.007067167223 | D191: 7156 | E191: -0.0006984703783 | F191: 28312 | G191: -0.0256294647 | H191: 6802 | I191: -0.0002939879486 | J191: 6609 | K191: -0.003624834055 | L191: 2717 | M191: 0.0003681207478 | N191: 13459 | O191: -0.03661970075 | P191: 2719 | Q191: 0.004423155018 | R191: 5008 | S191: -0.005972544133 | T191: 4656 | U191: -0.005355051889 | V191: 1036 | W191: -0.004814645796 | X191: 3434 | Y191: -0.005228010746 | Z191: 3828 | AA191: -0.003390275773 | AB191: 2020-09-23 | AC191: 16.3225 | AD191: 10531.5 | AE191: 149112.5665 | AF191: =INDEX(AD191:$AD$1886,MATCH(A191,AB191:$AB$1886,0)) -> 9135.4 | AG191: -0.005801316342 | AH191: 2020-09-23 | AI191: 321.12 | AJ191: 3772.292975 | AK191: =INDEX(AI191:$AI$1867,MATCH(A191,AH191:$AH$1867,0)) -> 231.11 | AL191: 0.020645021 | AM191: 2020-09-23 | AN191: 0.2212 | AO191: 0.0391524 | AP191: =INDEX(AN191:$AN$2080,MATCH(A191,AM191:$AM$2080,0)) -> 0.177 | AQ191: -0.04745236937 | AR191: 2020-09-23 | AS191: 22.86 | AT191: 258.385175 | AU191: =INDEX(AS191:$AS$2080,MATCH(A191,AR191:$AR$2080,0)) -> 15.83 | AV191: 0.02689022456
A192: 2020-06-30 | B192: 564 | C192: 0.001774623358 | D192: 7161 | E192: 0.003777549088 | F192: 29047 | G192: 0.00933875077 | H192: 6804 | I192: -0.005861681496 | J192: 6633 | K192: -0.0001507499814 | L192: 2716 | M192: 0 | N192: 13961 | O192: 0.02018662767 | P192: 2707 | Q192: -0.004790869676 | R192: 5038 | S192: -0.001388475875 | T192: 4681 | U192: -0.0008541533725 | V192: 1041 | W192: -0.00479157601 | X192: 3452 | Y192: 0.0142963777 | Z192: 3841 | AA192: 0.008103560225 | AB192: 2020-09-22 | AC192: 16.3281 | AD192: 10416.8 | AE192: 149980.1297 | AF192: =INDEX(AD192:$AD$1886,MATCH(A192,AB192:$AB$1886,0)) -> 9185.4 | AG192: 0.01729063557 | AH192: 2020-09-22 | AI192: 344.5 | AJ192: 3695.212311 | AK192: =INDEX(AI192:$AI$1867,MATCH(A192,AH192:$AH$1867,0)) -> 226.31 | AL192: 0.002310798546 | AM192: 2020-09-22 | AN192: 0.2334 | AO192: 0.04105506 | AP192: =INDEX(AN192:$AN$2080,MATCH(A192,AM192:$AM$2080,0)) -> 0.1759 | AQ192: -0.006282491977 | AR192: 2020-09-22 | AS192: 24.1 | AT192: 251.616021 | AU192: =INDEX(AS192:$AS$2080,MATCH(A192,AR192:$AR$2080,0)) -> 15.41 | AV192: -0.006468327856
A193: 2020-06-29 | B193: 563 | C193: 0.00534284441 | D193: 7134 | E193: -0.0001401639921 | F193: 28777 | G193: 0.006659369484 | H193: 6844 | I193: 0.006302695836 | J193: 6634 | K193: -0.004812039361 | L193: 2716 | M193: 0 | N193: 13682 | O193: 0.02681443523 | P193: 2720 | Q193: 0.001839926922 | R193: 5045 | S193: 0.009760061542 | T193: 4685 | U193: 0.001709036947 | V193: 1046 | W193: 0.01153858956 | X193: 3403 | Y193: 0.01093229975 | Z193: 3810 | AA193: 0.003681308391 | AB193: 2020-09-21 | AC193: 16.1562 | AD193: 10921.5 | AE193: 147409.1688 | AF193: =INDEX(AD193:$AD$1886,MATCH(A193,AB193:$AB$1886,0)) -> 9124 | AG193: -0.01393379716 | AH193: 2020-09-21 | AI193: 341.79 | AJ193: 3686.683278 | AK193: =INDEX(AI193:$AI$1867,MATCH(A193,AH193:$AH$1867,0)) -> 228.19 | AL193: -0.006953737628 | AM193: 2020-09-21 | AN193: 0.2321 | AO193: 0.0413138 | AP193: =INDEX(AN193:$AN$2080,MATCH(A193,AM193:$AM$2080,0)) -> 0.178 | AQ193: -0.08706662335 | AR193: 2020-09-21 | AS193: 23.27 | AT193: 250.582662 | AU193: =INDEX(AS193:$AS$2080,MATCH(A193,AR193:$AR$2080,0)) -> 15.51 | AV193: -0.01535538808
A194: 2020-06-26 | B194: 560 | C194: -0.001784121794 | D194: 7135 | E194: 0.002807019387 | F194: 28586 | G194: -0.001642811324 | H194: 6801 | I194: 0.006342671901 | J194: 6666 | K194: -0.003892803239 | L194: 2716 | M194: 0 | N194: 13320 | O194: -0.009563730994 | P194: 2715 | Q194: -0.009530863935 | R194: 4996 | S194: -0.004393855681 | T194: 4677 | U194: -0.0006412311858 | V194: 1034 | W194: -0.01630731581 | X194: 3366 | Y194: 0.0005943536579 | Z194: 3796 | AA194: -0.001579363319 | AB194: 2020-09-20 | AC194: 16.1641 | AD194: 11081.8 | AE194: 149477.5148 | AF194: =INDEX(AD194:$AD$1886,MATCH(A194,AB194:$AB$1886,0)) -> 9247.5 | AG194: -0.01266448403 | AH194: 2020-09-20 | AI194: 371.05 | AJ194: 3712.408847 | AK194: =INDEX(AI194:$AI$1867,MATCH(A194,AH194:$AH$1867,0)) -> 229.67 | AL194: -0.0209257116 | AM194: 2020-09-20 | AN194: 0.2467 | AO194: 0.04507209 | AP194: =INDEX(AN194:$AN$2080,MATCH(A194,AM194:$AM$2080,0)) -> 0.1827 | AQ194: -0.02497889341 | AR194: 2020-09-20 | AS194: 26.39 | AT194: 254.584575 | AU194: =INDEX(AS194:$AS$2080,MATCH(A194,AR194:$AR$2080,0)) -> 15.75 | AV194: -0.01073581514
A195: 2020-06-25 | B195: 561 | C195: -0.01063839821 | D195: 7115 | E195: -0.01686333599 | F195: 28633 | G195: -0.006683167344 | H195: 6758 | I195: -0.005165681917 | J195: 6692 | K195: -0.005959493204 | L195: 2716 | M195: -0.0007361060325 | N195: 13448 | O195: -0.003637042421 | P195: 2741 | Q195: 0.01026778364 | R195: 5018 | S195: -0.008137387366 | T195: 4680 | U195: -0.007662872746 | V195: 1051 | W195: -0.002850358224 | X195: 3364 | Y195: -0.01475388226 | Z195: 3802 | AA195: -0.01046582028 | AB195: 2020-09-19 | AC195: 16.2742 | AD195: 10933 | AE195: =AC195*AF195 -> 151382.6084 | AF195: =INDEX(AD195:$AD$1886,MATCH(A195,AB195:$AB$1886,0)) -> 9302 | AG195: -0.04252463291 | AH195: 2020-09-19 | AI195: 385.54 | AJ195: 3790.912148 | AK195: =INDEX(AI195:$AI$1867,MATCH(A195,AH195:$AH$1867,0)) -> 232.94 | AL195: -0.02050758671 | AM195: 2020-09-19 | AN195: 0.2517 | AO195: 0.04621212 | AP195: =INDEX(AN195:$AN$2080,MATCH(A195,AM195:$AM$2080,0)) -> 0.1836 | AQ195: 0.0001755104876 | AR195: 2020-09-19 | AS195: 27.25 | AT195: =AC195*AU195 -> 259.085264 | AU195: =INDEX(AS195:$AS$2080,MATCH(A195,AR195:$AR$2080,0)) -> 15.92 | AV195: -0.006885786205
A196: 2020-06-24 | B196: 567 | C196: =LN(B196/B197) -> -0.01748296278 | D196: 7236 | E196: =LN(D196/D197) -> -0.01889173228 | F196: 28825 | G196: =LN(F196/F197) -> 0.009270943302 | H196: 6793 | I196: =LN(H196/H197) -> -0.02443047198 | J196: 6732 | K196: =LN(J196/J197) -> 0.003422367748 | L196: 2718 | M196: =LN(L196/L197) -> 0.0003679852847 | N196: 13497 | O196: =LN(N196/N197) -> -0.02682811389 | P196: 2713 | Q196: =LN(P196/P197) -> -0.01753789927 | R196: 5059 | S196: =LN(R196/R197) -> -0.01996152386 | T196: 4716 | U196: =LN(T196/T197) -> -0.009076579464 | V196: 1054 | W196: =LN(V196/V197) -> -0.007561472701 | X196: 3414 | Y196: =LN(X196/X197) -> -0.01569343455 | Z196: 3842 | AA196: =LN(Z196/Z197) -> -0.01421396201 | AB196: 2020-09-18 | AC196: 16.412 | AD196: 10941.3 | AE196: 157958.9352 | AF196: =INDEX(AD196:$AD$1886,MATCH(A196,AB196:$AB$1886,0)) -> 9624.6 | AG196: =LN(AE196/AE197) -> -0.02024887384 | AH196: 2020-09-18 | AI196: 384.36 | AJ196: =AK196*AC196 -> 3869.45724 | AK196: =INDEX(AI196:$AI$1867,MATCH(A196,AH196:$AH$1867,0)) -> 235.77 | AL196: =LN(AJ196/AJ197) -> -0.04901221274 | AM196: 2020-09-18 | AN196: 0.2507 | AO196: =AN196*AP196 -> 0.04620401 | AP196: =INDEX(AN196:$AN$2080,MATCH(A196,AM196:$AM$2080,0)) -> 0.1843 | AQ196: =LN(AO196/AO197) -> -0.02955900607 | AR196: 2020-09-18 | AS196: 27.4 | AT196: 263.08436 | AU196: =INDEX(AS196:$AS$2080,MATCH(A196,AR196:$AR$2080,0)) -> 16.03 | AV196: =LN(AU196/AU197) -> -0.0240381374
A197: 2020-06-23 | B197: 577 | C197: 0 | D197: 7374 | E197: 0.02207534629 | F197: 28559 | G197: 0.001787373213 | H197: 6961 | I197: -0.02440876111 | J197: 6709 | K197: 0.002836034441 | L197: 2717 | M197: 0.0003681207478 | N197: 13864 | O197: -0.005610314651 | P197: 2761 | Q197: -0.01687955322 | R197: 5161 | S197: 0.02630697446 | T197: 4759 | U197: 0.01077437274 | V197: 1062 | W197: -0.003759402924 | X197: 3468 | Y197: -0.009184909577 | Z197: 3897 | AA197: 0.008762942672 | AB197: 2020-09-17 | AC197: 16.6455 | AD197: 10949.5 | AE197: 161190.0284 | AF197: =INDEX(AD197:$AD$1886,MATCH(A197,AB197:$AB$1886,0)) -> 9683.7 | AG197: 0.03512580765 | AH197: 2020-09-17 | AI197: 389.02 | AJ197: 4063.83237 | AK197: =INDEX(AI197:$AI$1867,MATCH(A197,AH197:$AH$1867,0)) -> 244.14 | AL197: 0.0009253936086 | AM197: 2020-09-17 | AN197: 0.2522 | AO197: 0.04759014 | AP197: =INDEX(AN197:$AN$2080,MATCH(A197,AM197:$AM$2080,0)) -> 0.1887 | AQ197: 0.0144258485 | AR197: 2020-09-17 | AS197: 26.99 | AT197: 273.31911 | AU197: =INDEX(AS197:$AS$2080,MATCH(A197,AR197:$AR$2080,0)) -> 16.42 | AV197: -0.003647420457
A198: 2020-06-22 | B198: 577 | C198: -0.008628181223 | D198: 7213 | E198: 0.004864160796 | F198: 28508 | G198: 0.004112556105 | H198: 7133 | I198: -0.003778077677 | J198: 6690 | K198: -0.001493652257 | L198: 2716 | M198: 0.0007366482838 | N198: 13942 | O198: 0.0007892943401 | P198: 2808 | Q198: 0.003925071944 | R198: 5027 | S198: 0.002788846429 | T198: 4708 | U198: -0.0004247186303 | V198: 1066 | W198: -0.02042782269 | X198: 3500 | Y198: 0.004008021398 | Z198: 3863 | AA198: -0.01362664098 | AB198: 2020-09-16 | AC198: 16.7405 | AD198: 10785.3 | AE198: 155626.3842 | AF198: =INDEX(AD198:$AD$1886,MATCH(A198,AB198:$AB$1886,0)) -> 9296.4 | AG198: -0.0102457036 | AH198: 2020-09-16 | AI198: 365.81 | AJ198: 4060.073465 | AK198: =INDEX(AI198:$AI$1867,MATCH(A198,AH198:$AH$1867,0)) -> 242.53 | AL198: 0.06512884439 | AM198: 2020-09-16 | AN198: 0.2478 | AO198: 0.04690854 | AP198: =INDEX(AN198:$AN$2080,MATCH(A198,AM198:$AM$2080,0)) -> 0.1893 | AQ198: 0.02956828457 | AR198: 2020-09-16 | AS198: 27.96 | AT198: 275.88344 | AU198: =INDEX(AS198:$AS$2080,MATCH(A198,AR198:$AR$2080,0)) -> 16.48 | AV198: 0.03519968213
A199: 2020-06-19 | B199: 582 | C199: -0.003430535097 | D199: 7178 | E199: 0.001394117053 | F199: 28391 | G199: 0.006963004186 | H199: 7160 | I199: 0.02088701391 | J199: 6700 | K199: 0.001194743272 | L199: 2714 | M199: 0.001474926521 | N199: 13931 | O199: 0.02529756188 | P199: 2797 | Q199: 0.002864305574 | R199: 5013 | S199: 0.004598628518 | T199: 4710 | U199: 0.003189795368 | V199: 1088 | W199: 0.0009195402947 | X199: 3486 | Y199: 0.00517688818 | Z199: 3916 | AA199: 0.001789137857 | AB199: 2020-09-15 | AC199: 16.7477 | AD199: 10675.3 | AE199: 157229.0824 | AF199: =INDEX(AD199:$AD$1886,MATCH(A199,AB199:$AB$1886,0)) -> 9388.1 | AG199: -0.017422685 | AH199: 2020-09-15 | AI199: 364.84 | AJ199: 3804.072578 | AK199: =INDEX(AI199:$AI$1867,MATCH(A199,AH199:$AH$1867,0)) -> 227.14 | AL199: -0.03090883784 | AM199: 2020-09-15 | AN199: 0.2438 | AO199: 0.04554184 | AP199: =INDEX(AN199:$AN$2080,MATCH(A199,AM199:$AM$2080,0)) -> 0.1868 | AQ199: -0.03243699033 | AR199: 2020-09-15 | AS199: 27.2 | AT199: 266.455907 | AU199: =INDEX(AS199:$AS$2080,MATCH(A199,AR199:$AR$2080,0)) -> 15.91 | AV199: -0.0186804934
A200: 2020-06-18 | B200: 584 | C200: 0 | D200: 7168 | E200: 0.009672746615 | F200: 28194 | G200: 0.01425304094 | H200: 7012 | I200: 0.02206130854 | J200: 6692 | K200: -0.0004481960186 | L200: 2710 | M200: 0 | N200: 13583 | O200: -0.01410893685 | P200: 2789 | Q200: 0.006114027318 | R200: 4990 | S200: 0.0006013831994 | T200: 4695 | U200: 0.01718624471 | V200: 1087 | W200: -0.02273858769 | X200: 3468 | Y200: 0.02097979047 | Z200: 3909 | AA200: 0.01287350426 | AB200: 2020-09-14 | AC200: 16.9043 | AD200: 10326 | AE200: 159992.4378 | AF200: =INDEX(AD200:$AD$1886,MATCH(A200,AB200:$AB$1886,0)) -> 9464.6 | AG200: 0.01137725989 | AH200: 2020-09-14 | AI200: 377.27 | AJ200: 3923.48803 | AK200: =INDEX(AI200:$AI$1867,MATCH(A200,AH200:$AH$1867,0)) -> 232.1 | AL200: 0.01358227802 | AM200: 2020-09-14 | AN200: 0.2463 | AO200: 0.0470433 | AP200: =INDEX(AN200:$AN$2080,MATCH(A200,AM200:$AM$2080,0)) -> 0.191 | AQ200: 0.005952211973 | AR200: 2020-09-14 | AS200: 31.18 | AT200: 274.018703 | AU200: =INDEX(AS200:$AS$2080,MATCH(A200,AR200:$AR$2080,0)) -> 16.21 | AV200: -0.01165299908
... 362 more rows

Sheet T1
A1: Date | B1: ASHMID | C1: ETFSAP | D1: GLD | E1: NFGOVI | F1: NFILBI | G1: NFTRCI | H1: NGPLT | I1: STX40 | J1: STXEMG | K1: STXFIN | L1: STXIND | M1: SYG4IR | N1: SYGWD | O1: BNB | P1: BTC | Q1: ETH | R1: XRP | U1: ETF Descriptive Statistics
A2: 2021-03-31 | B2: -0.01565868293 | C2: 0.01053893827 | D2: -0.000425007444 | E2: 0.003632811037 | F2: 0 | G2: 0 | H2: 0.01499526297 | I2: -0.01225821801 | J2: -0.003480175689 | K2: -0.0176145467 | L2: -0.01574462829 | M2: 0.01746106234 | N2: -0.01457090153 | O2: -0.03054892074 | P2: 0.02022530316 | Q2: 0.03880870787 | R2: 0.02454448757 | U2: ASHMID | V2: ETFSAP | W2: GLD | X2: NFGOVI | Y2: NFILBI | Z2: NFTRCI | AA2: NGPLT | AB2: STX40 | AC2: STXEMG | AD2: STXFIN | AE2: STXIND | AF2: SYG4IR | AG2: SYGWD
A3: 2021-03-30 | B3: 0.007087201883 | C3: 0.007202912294 | D3: -0.0192742574 | E3: -0.001678322072 | F3: -0.001221249897 | G3: 0.0003588731422 | H3: -0.01217869028 | I3: 0.001764942295 | J3: 0.005500563924 | K3: 0.0111733006 | L3: 0.002587323565 | M3: 0.002876044548 | N3: 0.0009489917675 | O3: 0.1236401513 | P3: 0.02733699896 | Q3: 0.009059965569 | R3: -0.003524851106
A4: 2021-03-29 | B4: 0.01432689262 | C4: 0.01491270917 | D4: -0.01698563411 | E4: 0.001118568349 | F4: 0.001764506735 | G4: -0.002509411605 | H4: -0.003343798029 | I4: 0.005959589194 | J4: -0.008239541259 | K4: 0.02272825108 | L4: 0.007327771827 | M4: -0.01807679325 | N4: -0.003790575493 | O4: 0.07587881746 | P4: 0.08275123066 | Q4: 0.06608978335 | R4: 0.03198327189 | T4: Mean | U4: -0.0001681964717 | V4: -0.001045847852 | W4: 0.0005208616212 | X4: 0.0002677424869 | Y4: 0.0001198543177 | Z4: 0.0002375942969 | AA4: 0.0004950550584 | AB4: 0.0001846553538 | AC4: 0.0004457280761 | AD4: -0.0004527099784 | AE4: 5.545175039e-05 | AF4: 0.001127857729 | AG4: 0.0005672606994
A5: 2021-03-26 | B5: 0.02631730832 | C5: 0.01584819224 | D5: -0.002782667426 | E5: -0.0002797594087 | F5: 0.007773649784 | G5: 0.002868413584 | H5: 0.01036095688 | I5: 0.03134229803 | J5: 0.01488040684 | K5: 0.02662386871 | L5: 0.02510491584 | M5: 0.03531359068 | N5: 0.01621012849 | O5: 0.0825383057 | P5: -0.01877625742 | Q5: 0.06577832916 | R5: 0.09225261012 | T5: Standard Error | U5: 0.0005472068722 | V5: 0.001751958411 | W5: 0.0004124134192 | X5: 0.0003304864046 | Y5: 0.0002860031234 | Z5: 0.0001401668739 | AA5: 0.0006953519236 | AB5: 0.0004816371245 | AC5: 0.0004191583917 | AD5: 0.0006796944345 | AE5: 0.0004518698999 | AF5: 0.0005798526434 | AG5: 0.0004075678279
A6: 2021-03-25 | B6: -0.00148038517 | C6: 0.00213219697 | D6: 0.01453029331 | E6: -0.001397624267 | F6: 0.002604703645 | G6: 0 | H6: -0.0008281084112 | I6: -0.005154222068 | J6: 0.001111111225 | K6: -0.008396354953 | L6: -0.01004547025 | M6: -0.04935745037 | N6: -0.003119378654 | O6: -0.06174341834 | P6: -0.0418797563 | Q6: -0.0008098648572 | R6: 0.02716574888 | T6: Median | U6: 0 | V6: -0.0008577399342 | W6: 0.0002331401962 | X6: 0.0004322316864 | Y6: 0.000151354632 | Z6: 0.0003595834573 | AA6: 0.0006760795734 | AB6: 0.0007360442948 | AC6: 0.0006379195158 | AD6: 0 | AE6: 0.0005318409998 | AF6: 0.001277676947 | AG6: 0.0003622703808
A7: 2021-03-24 | B7: -0.007369230107 | C7: 0.00606603109 | D7: 0.007700189969 | E7: -0.004598349913 | F7: 0.0001372777818 | G7: 0 | H7: 0.003316556194 | I7: -0.004302505396 | J7: -0.008487135816 | K7: -0.001670844165 | L7: -0.006721100673 | M7: -0.01219752694 | N7: 0.005284662791 | O7: -0.02310503541 | P7: 0.003853998072 | Q7: -0.05367704942 | R7: -0.03836731135 | T7: Mode | U7: 0 | V7: 0 | W7: 0 | X7: 0 | Y7: 0 | Z7: 0 | AA7: 0 | AB7: 0 | AC7: 0 | AD7: 0 | AE7: 0 | AF7: 0 | AG7: 0
A8: 2021-03-23 | B8: -0.01602364947 | C8: -0.0341282022 | D8: -0.002170375242 | E8: -0.003053861341 | F8: 0 | G8: 0.0003591309071 | H8: 0.004280370366 | I8: -0.005434348491 | J8: -0.01223424371 | K8: -0.01737735081 | L8: 0.008891083441 | M8: -0.006773481275 | N8: 0.002169982768 | O8: -0.03221057685 | P8: -0.05247357904 | Q8: -0.06942855511 | R8: 0.223620334 | T8: Standard Deviation | U8: 0.01559299564 | V8: 0.0499231301 | W8: 0.01175197348 | X8: 0.009417412918 | Y8: 0.00814983452 | Z8: 0.003994141091 | AA8: 0.0198144798 | AB8: 0.01372454544 | AC8: 0.01194417561 | AD8: 0.01936831004 | AE8: 0.01287631011 | AF8: 0.01652325693 | AG8: 0.01161389538
A9: 2021-03-19 | B9: -0.02285813808 | C9: 0 | D9: 0.005057587742 | E9: 0.008211026579 | F9: 0.001786328197 | G9: -0.001077006028 | H9: -0.03362547345 | I9: -0.01370107879 | J9: -0.005790823276 | K9: -0.008169980085 | L9: -0.005776189345 | M9: -0.01825956905 | N9: -0.01056432394 | O9: 0.008977540515 | P9: -0.01079313583 | Q9: 0.03009194954 | R9: -0.1334947585 | T9: Sample Variance | U9: 0.0002431415131 | V9: 0.002492318919 | W9: 0.0001381088806 | X9: 8.868766608e-05 | Y9: 6.64198027e-05 | Z9: 1.595316306e-05 | AA9: 0.0003926136097 | AB9: 0.0001883631476 | AC9: 0.000142663331 | AD9: 0.0003751314337 | AE9: 0.000165799362 | AF9: 0.0002730180195 | AG9: 0.0001348825659
A10: 2021-03-18 | B10: 0 | C10: -0.009638628838 | D10: -0.01199614519 | E10: -0.005574150442 | F10: 0.004687077784 | G10: 0.0007178751206 | H10: 0.009259861292 | I10: 0.00487172123 | J10: 0.005246506833 | K10: -0.007296343679 | L10: 0.002162163004 | M10: 0.02338121917 | N10: -0.003576115386 | O10: -0.03066743953 | P10: 0.03670211669 | Q10: -0.02076533897 | R10: 0.0131682709 | T10: Kurtosis | U10: 18.01474819 | V10: 170.9106323 | W10: 3.607825371 | X10: 26.61474263 | Y10: 117.3116129 | Z10: 364.7696867 | AA10: 28.86404652 | AB10: 7.134253979 | AC10: 6.533367853 | AD10: 5.613031101 | AE10: 4.33888223 | AF10: 7.806645191 | AG10: 3.907076301
A11: 2021-03-17 | B11: -0.002820876342 | C11: -0.01732086094 | D11: 0.001699024506 | E11: -0.01078103048 | F11: -0.004136795751 | G11: 0.0003591309071 | H11: -0.01706388323 | I11: -0.0106866302 | J11: -0.0192227243 | K11: -0.01443489378 | L11: -0.00503779403 | M11: -0.03672780042 | N11: -0.004274525625 | O11: 0.04451914234 | P11: 0.01614263632 | Q11: 0.005725175881 | R11: 0.07725565583 | T11: Skewness | U11: -1.660951632 | V11: 0.8429014877 | W11: 0.2612928457 | X11: 0.01037061741 | Y11: -2.80239663 | Z11: -0.01185348398 | AA11: -1.730314833 | AB11: -0.3957146696 | AC11: -0.485978469 | AD11: -0.5564888657 | AE11: -0.428912381 | AF11: -0.4493674369 | AG11: -0.09660330292
A12: 2021-03-16 | B12: 0 | C12: -0.004032263528 | D12: -0.001988813583 | E12: 0.004685140167 | F12: 0 | G12: 0.0007186489709 | H12: 0.001830768862 | I12: -0.006581611366 | J12: 0.0075013747 | K12: -0.02204813722 | L12: -0.002031913685 | M12: -0.01212349031 | N12: -0.00236686501 | O12: 0.01341778458 | P12: -0.05037518986 | Q12: 0.01595609447 | R12: 0.04180107236 | T12: Range | U12: 0.2240538483 | V12: 1.597327109 | W12: 0.12973523 | X12: 0.1717727174 | Y12: 0.2171948183 | Z12: 0.1566861593 | AA12: 0.3655937694 | AB12: 0.1858305222 | AC12: 0.1508371435 | AD12: 0.1924071868 | AE12: 0.1508894715 | AF12: 0.2138220737 | AG12: 0.1264808677
A13: 2021-03-15 | B13: 0 | C13: 0.004032263528 | D13: 0.009398721769 | E13: 0.004429686092 | F13: 0.0005505850105 | G13: 0 | H13: 0.01175061041 | I13: -0.006697521448 | J13: -0.007323422925 | K13: -0.01161453242 | L13: -0.0022660872 | M13: 0.02941909841 | N13: 0.004501843878 | O13: -0.03484484861 | P13: 0.006375161241 | Q13: -0.005107815851 | R13: 0.1039515602 | T13: Minimum | U13: -0.1436893386 | V13: -0.7595743749 | W13: -0.06706744222 | X13: -0.0829282308 | Y13: -0.1231346486 | Z13: -0.07812592439 | AA13: -0.2151399515 | AB13: -0.1010961169 | AC13: -0.09119145805 | AD13: -0.1150091088 | AE13: -0.08438447291 | AF13: -0.1231232446 | AG13: -0.07070081383
A14: 2021-03-12 | B14: -0.001407459768 | C14: 0.002359684223 | D14: -0.01010214582 | E14: -0.003600613224 | F14: 0.007740190682 | G14: 0 | H14: -0.009572210097 | I14: -0.008860817468 | J14: -0.005324826213 | K14: 0.001540832354 | L14: -0.01160737893 | M14: 0.009033485098 | N14: 0.002377556993 | O14: -0.09438235198 | P14: 0.03427658049 | Q14: -0.03006654533 | R14: -0.03022183568 | T14: Maximum | U14: 0.08036450977 | V14: 0.8377527342 | W14: 0.06266778778 | X14: 0.08884448657 | Y14: 0.09406016975 | Z14: 0.07856023493 | AA14: 0.1504538179 | AB14: 0.08473440529 | AC14: 0.05964568546 | AD14: 0.07739807803 | AE14: 0.06650499858 | AF14: 0.09069882916 | AG14: 0.05578005387
A15: 2021-03-11 | B15: -0.002808990611 | C15: -0.001349072717 | D15: -0.009345670031 | E15: 0.005405793191 | F15: 0.002222531822 | G15: 0.0007191657987 | H15: 0.001263351495 | I15: 0.005053706271 | J15: 0.001239925763 | K15: -0.003847638452 | L15: 0.01029777698 | M15: -0.008313801727 | N15: -0.009240677057 | O15: 0.03665525008 | P15: 0.0157333995 | Q15: 0.01306699843 | R15: -0.02120893545 | T15: Sum | U15: -0.136575535 | V15: -0.8492284561 | W15: 0.4229396364 | X15: 0.2174068993 | Y15: 0.09732170598 | Z15: 0.1929265691 | AA15: 0.4019847074 | AB15: 0.1499401473 | AC15: 0.3619311978 | AD15: -0.3676005025 | AE15: 0.04502682131 | AF15: 0.9158204756 | AG15: 0.4606156879
A16: 2021-03-10 | B16: 0 | C16: -0.01969027406 | D16: -0.0140790086 | E16: 0.003201784596 | F16: 0.001670146526 | G16: 0 | H16: -0.004643571849 | I16: -0.005998439454 | J16: -0.008998737389 | K16: 0.01158761517 | L16: -0.004984581885 | M16: 0.03871688042 | N16: -0.008220833145 | O16: -0.04924007113 | P16: 0.04742789959 | Q16: -0.03806584668 | R16: -0.02708636312 | T16: Count | U16: 812 | V16: 812 | W16: 812 | X16: 812 | Y16: 812 | Z16: 812 | AA16: 812 | AB16: 812 | AC16: 812 | AD16: 812 | AE16: 812 | AF16: 812 | AG16: 812
A17: 2021-03-09 | B17: 0.0141245286 | C17: 0.02070190793 | D17: 0.01342356635 | E17: -0.0008362369825 | F17: -0.01053078874 | G17: -0.001796945677 | H17: 0.02063001135 | I17: 0.003152587731 | J17: 0.007050972276 | K17: 0.01015237146 | L17: 0.01358781335 | M17: 0.004124490286 | N17: 0.002576415525 | O17: 0.1997699752 | P17: 0.0234849785 | Q17: 0.01575459249 | R17: 0.08140303902
A18: 2021-03-08 | B18: 0.002849004776 | C18: -0.001348617871 | D18: 0.003692463373 | E18: -0.009980676141 | F18: -0.000964386656 | G18: 0.001796945677 | H18: 0.02434964578 | I18: 0.002529245737 | J18: -0.01352915303 | K18: -0.001568627773 | L18: -0.004310867651 | M18: 0.02684597205 | N18: 0.0201357034 | O18: 0.05980053986 | P18: 0.05937136042 | Q18: 0.1874656277 | R18: 0.02304473295 | U18: CX Descriptive Statistics
A19: 2021-03-05 | B19: 0 | C19: -0.001683218711 | D19: 0.007094861259 | E19: -0.01111046337 | F19: 0.0002754441554 | G19: 0.001800180504 | H19: -0.02037140383 | I19: 0.003964797835 | J19: 0.01725091187 | K19: 0.002353865347 | L19: -0.005956653305 | M19: -0.02345868993 | N19: 0.006963649223 | O19: -0.01569106527 | P19: -0.05627855235 | Q19: -0.02208196112 | R19: -0.09982790317 | U19: BNB | V19: BTC | W19: ETH | X19: XRP
A20: 2021-03-04 | B20: 0.00859604147 | C20: -0.001008572955 | D20: 0.004106611599 | E20: -0.006119554013 | F20: -0.0001377315614 | G20: -0.001800180504 | H20: -0.007708067361 | I20: -0.005546325921 | J20: -0.01986529244 | K20: 0.01424074699 | L20: -0.01391860167 | M20: -0.05197166933 | N20: -0.00600602406 | O20: -0.04730841378 | P20: 0.04131451618 | Q20: -0.02035264475 | R20: 0.1192658705
A21: 2021-03-03 | B21: 0.002881846375 | C21: 0.01285103922 | D21: -0.008814640449 | E21: 0.005846777143 | F21: -0.00371159956 | G21: -0.0007191657987 | H21: -0.009667504163 | I21: 0.002056474663 | J21: 0.006986927987 | K21: -0.002387585695 | L21: 0.006227621326 | M21: -0.023347364 | N21: -0.008348289391 | O21: 0.00653338709 | P21: -0.03938069215 | Q21: 0.03878826672 | R21: 0.003818084505 | T21: Mean | U21: 0.004348939405 | V21: 0.001867948073 | W21: 0.001004915399 | X21: -0.001264822652
A22: 2021-03-02 | B22: 0.007241161257 | C22: 0.007859257949 | D22: -0.003865454274 | E22: -0.008554604413 | F22: -0.0006858240444 | G22: 0.0007191657987 | H22: -0.005687219121 | I22: 0.01547944417 | J22: -0.002800631972 | K22: 0.005579926793 | L22: 0.009593251756 | M22: 0.02513851619 | N22: 0.008348289391 | O22: -0.0611745904 | P22: 0.08915634322 | Q22: -0.05161768917 | R22: -0.04579729819 | T22: Standard Error | U22: 0.002508380497 | V22: 0.001728369653 | W22: 0.002212137806 | X22: 0.003098275488
A23: 2021-03-01 | B23: 0.02204350829 | C23: 0.01242680817 | D23: -0.007604910313 | E23: 0.005694930646 | F23: -0.0141595286 | G23: 0.0007196833704 | H23: 0.0086296704 | I23: 0.02030774037 | J23: 0.02316432812 | K23: 0.02263637478 | L23: 0.02226191448 | M23: 0.02064916694 | N23: 0.007211569716 | O23: 0.1385766105 | P23: -0.03838344951 | Q23: 0.07882004086 | R23: -0.003933299224 | T23: Median | U23: 0.002128042788 | V23: 0.002032505255 | W23: 6.055584672e-05 | X23: -0.002046438734
A24: 2021-02-26 | B24: -0.0132843282 | C24: 0 | D24: -0.005321646422 | E24: 0.002859673767 | F24: 0.002707460704 | G24: 0.0003600360075 | H24: -0.03820460091 | I24: -0.02319837993 | J24: -0.02176499258 | K24: -0.01057350233 | L24: -0.007999073072 | M24: -0.03152562256 | N24: -0.006732413022 | O24: -0.05361601881 | P24: -0.05773951137 | Q24: -0.02072063122 | R24: 0.01053911905 | T24: Mode | U24: 0 | V24: - | W24: - | X24: -
A25: 2021-02-25 | B25: 0.004408530285 | C25: 0.0006949270606 | D25: 0.009280431309 | E25: -0.01004078992 | F25: 0.01158919509 | G25: -0.0007199424357 | H25: 0.02448964114 | I25: 0.02139465721 | J25: 0.02230180927 | K25: 0 | L25: 0.001812360793 | M25: 0.02296064992 | N25: 0.02082399703 | O25: -0.08389966704 | P25: 0.02008895958 | Q25: -0.09320645894 | R25: -0.06811124068 | T25: Standard Deviation | U25: 0.07147784166 | V25: 0.04925095397 | W25: 0.06303622435 | X25: 0.08828726143
A26: 2021-02-24 | B26: 0 | C26: 0.001043296913 | D26: -0.01413049336 | E26: 0.004872116824 | F26: 0.005224815956 | G26: 0.001800828868 | H26: 0.01221380475 | I26: 0.0100437166 | J26: -0.008199689436 | K26: 0.01221016391 | L26: 0.002664084889 | M26: 0.0644538456 | N26: 0.001469148158 | O26: 0.09637616686 | P26: -0.08723530181 | Q26: 0.04908721706 | R26: 5.474915062e-05 | T26: Sample Variance | U26: 0.005109081849 | V26: 0.002425656467 | W26: 0.003973565581 | X26: 0.007794640531
A27: 2021-02-23 | B27: -0.005873732012 | C27: 0 | D27: -0.01070772798 | E27: 0.009953044193 | F27: -0.002340792807 | G27: -0.0007207207519 | H27: -0.05122405989 | I27: -0.02838689791 | J27: -0.02558849742 | K27: -0.01946533479 | L27: -0.02265876477 | M27: -0.1231232446 | N27: -0.02253275223 | O27: -0.1467825293 | P27: -0.04921833057 | Q27: -0.1161653446 | R27: -0.1730863594 | T27: Kurtosis | U27: 12.22521908 | V27: 15.91740677 | W27: 9.271406203 | X27: 8.294391573
A28: 2021-02-22 | B28: 0.00734757163 | C28: 0.02323230149 | D28: 0.01831663631 | E28: -0.006283315304 | F28: 0.001651755365 | G28: -0.0003601656801 | H28: -0.007154786249 | I28: -0.0006431902457 | J28: -0.006897768339 | K28: 0.006446436506 | L28: -0.01178425138 | M28: 0.009628685119 | N28: 0.002879080684 | O28: -0.2178437484 | P28: 0.107610308 | Q28: -0.09514140567 | R28: -0.05209985491 | T28: Skewness | U28: 0.2549638477 | V28: -1.334390919 | W28: -0.756084632 | X28: -0.1401287186
A29: 2021-02-19 | B29: 0.004434597068 | C29: -0.008510689668 | D29: 0.01411557099 | E29: -0.01083434217 | F29: -0.01000625167 | G29: 0 | H29: 0.02697276117 | I29: 0.01359464213 | J29: 0.006897768339 | K29: -0.004033890101 | L29: 0.01487104001 | M29: 0.0001727861775 | N29: 0.01087098518 | O29: 0.5292432447 | P29: -0.02303601884 | Q29: -0.001793606671 | R29: 0.1404926202 | T29: Range | U29: 1.072051914 | V29: 0.7626913827 | W29: 0.8825464987 | X29: 1.138910114
A30: 2021-02-18 | B30: -0.004434597068 | C30: -0.002820876342 | D30: -0.0122042632 | E30: -0.001211550259 | F30: 0.002047922076 | G30: 0 | H30: -0.001843318494 | I30: -0.007790982437 | J30: -0.02241517408 | K30: -0.003215436854 | L30: -0.01170295288 | M30: -0.02811327494 | N30: -0.01518650375 | O30: 0.1738139814 | P30: 0.05825462888 | Q30: 0.04778638767 | R30: 0.02463279951 | T30: Minimum | U30: -0.5428086696 | V30: -0.5108417531 | W30: -0.5506612486 | X30: -0.5806549916
A31: 2021-02-17 | B31: -0.02043866768 | C31: -0.01502736648 | D31: 0.001425691192 | E31: -0.002552906996 | F31: -0.003819401724 | G31: 0.001080886432 | H31: 0.0005582226337 | I31: 0.001132411348 | J31: 0.00491901594 | K31: -0.01592390336 | L31: 0.001058263371 | M31: -0.00869861624 | N31: 0.001196888234 | O31: 0.2359475888 | P31: 0.02568884365 | Q31: 0.03742286244 | R31: 0.004304301583 | T31: Maximum | U31: 0.5292432447 | V31: 0.2518496295 | W31: 0.3318852501 | X31: 0.5582551226
A32: 2021-02-16 | B32: -0.004325889947 | C32: 0.01467531578 | D32: -0.004108619631 | E32: -0.006420567803 | F32: 0.005597666333 | G32: 0.000360555259 | H32: -0.01869730317 | I32: 0.002268677039 | J32: 0.005456109017 | K32: -0.006299233428 | L32: -0.003171436264 | M32: 0.01510349234 | N32: 0.008901778979 | O32: 0.0037746068 | P32: -0.01464309031 | Q32: 0.0007189274811 | R32: 0.02217721695 | T32: Sum | U32: 3.531338796 | V32: 1.516773835 | W32: 0.8159913037 | X32: -1.027035993
A33: 2021-02-15 | B33: 0.002881846375 | C33: -0.03255135041 | D33: -0.01338783656 | E33: -0.001731832845 | F33: 0.006042314456 | G33: 0 | H33: 0.04695592917 | I33: 0.01306354306 | J33: 0.002053740239 | K33: -0.003134798805 | L33: 0.005173438934 | M33: 0.009684894323 | N33: -0.001690209264 | O33: -0.05539462007 | P33: 0.01999721103 | Q33: -0.0286985155 | R33: -0.1567286268 | T33: Count | U33: 812 | V33: 812 | W33: 812 | X33: 812
A34: 2021-02-12 | B34: 0.004338401599 | C34: 0.01961184481 | D34: -0.01147011659 | E34: -0.001197206661 | F34: -0.006863444925 | G34: -0.0007209805648 | H34: -0.01357770873 | I34: 0.005273578471 | J34: 0.001371507158 | K34: 0.02616082604 | L34: 0.004489610566 | M34: -0.00900830431 | N34: 0.002415460112 | O34: 0.09587258692 | P34: 0.1000529155 | Q34: 0.06499335323 | R34: 0.1710166615
A35: 2021-02-11 | B35: -0.001448226176 | C35: 0.001738828468 | D35: -0.004661828923 | E35: 0.003462515112 | F35: 0.003837724008 | G35: 0.0003604253058 | H35: 0.005796458805 | I35: -0.00214574647 | J35: 0.005849982272 | K35: 0.0008035355997 | L35: 0.001421969667 | M35: -0.008927878723 | N35: -0.004102817388 | O35: -0.041789139 | P35: -0.03608276572 | Q35: 0.0229700774 | R35: 0.02632573365 | U35: Variance-Covariance Matrix
A36: 2021-02-10 | B36: 0.001448226176 | C36: 0.003836098863 | D36: -0.004090789641 | E36: 0.00481413072 | F36: 0.005784343356 | G36: 0 | H36: 0.03680257458 | I36: 0.01311113297 | J36: 0.0003451846772 | K36: -0.001606426048 | L36: 0.00344479761 | M36: 0.01793618303 | N36: -0.004805391275 | O36: 0.1843275755 | P36: -0.006639509706 | Q36: -0.02262262661 | R36: -0.01795312515 | U36: ASHMID | V36: ETFSAP | W36: GLD | X36: NFGOVI | Y36: NFILBI | Z36: NFTRCI | AA36: NGPLT | AB36: STX40 | AC36: STXEMG | AD36: STXFIN | AE36: STXIND | AF36: SYG4IR | AG36: SYGWD | AH36: BNB | AI36: BTC | AJ36: ETH | AK36: XRP
A37: 2021-02-09 | B37: 0.01459879942 | C37: 0.02655493263 | D37: -0.00141215259 | E37: 0.004029555486 | F37: 0.006790962277 | G37: 0.000721240565 | H37: 0.001005708962 | I37: 0.002006689637 | J37: -0.0003451846772 | K37: 0.002410607837 | L37: 0.008484247583 | M37: 0.01583237339 | N37: -0.00621268426 | O37: 0.3013054986 | P37: 0.1750894813 | Q37: 0.009854515552 | R37: 0.04904770374 | T37: ASHMID | U37: =VAR('T1'!$B$2:$B$813) -> 0.0002431415131 | V37: 0.0001229969317 | W37: -1.517873126e-05 | X37: 4.301233466e-05 | Y37: -2.125754369e-05 | Z37: -2.13958608e-06 | AA37: 9.448261354e-05 | AB37: 0.0001340506516 | AC37: 8.075540573e-05 | AD37: 0.0001983238831 | AE37: 0.000112565175 | AF37: 7.377483127e-05 | AG37: 5.635629247e-05 | AH37: 0.0001576056422 | AI37: 6.533716773e-05 | AJ37: 0.000144931529 | AK37: 8.734772275e-05
A38: 2021-02-08 | B38: -0.008784829556 | C38: 0.004315001301 | D38: 0.0125832479 | E38: -0.009110459584 | F38: -0.0037476621 | G38: -0.000721240565 | H38: 0.04361270549 | I38: 0.01195602354 | J38: 0.003457220384 | K38: -0.01516995159 | L38: 0.005656191745 | M38: 0.02975309692 | N38: 0.005493863096 | O38: 0.1625999874 | P38: 0.050403019 | Q38: 0.01719770353 | R38: -0.1933755122 | T38: ETFSAP | U38: 0.0001229969317 | V38: =VAR('T1'!$C$2:$C$813) -> 0.002492318919 | W38: -8.459549365e-05 | X38: 4.59534726e-05 | Y38: 3.407011682e-06 | Z38: -8.867940062e-07 | AA38: -3.398147891e-06 | AB38: 0.0001016542576 | AC38: 6.203263353e-05 | AD38: 0.0002353367642 | AE38: 0.0001031914315 | AF38: 3.39603552e-05 | AG38: 1.591545681e-05 | AH38: 0.0001352581291 | AI38: -9.487378718e-05 | AJ38: 2.610046396e-05 | AK38: 6.733698987e-05
A39: 2021-02-05 | B39: 0.01913229808 | C39: 0.01086967224 | D39: -0.005897153615 | E39: -0.01745152698 | F39: 0.0001385521305 | G39: 0.000360555259 | H39: 0.01878546208 | I39: 0.006458214153 | J39: -0.005525829982 | K39: 0.03384690537 | L39: 0.0001206927767 | M39: -0.008363782184 | N39: 0.0004791566934 | O39: 0.1931984774 | P39: -0.01115638131 | Q39: 0.08147340839 | R39: 0.04927697146 | T39: GLD | U39: -1.517873126e-05 | V39: -8.459549365e-05 | W39: =VAR('T1'!$D$2:$D$813) -> 0.0001381088806 | X39: -2.375347277e-05 | Y39: -9.303597409e-06 | Z39: 1.413235767e-06 | AA39: 0.0001128368661 | AB39: -1.39957652e-05 | AC39: 1.855255836e-05 | AD39: -7.808493625e-05 | AE39: -1.534884038e-05 | AF39: 2.254572854e-05 | AG39: 3.432612404e-05 | AH39: 5.832681856e-05 | AI39: 9.718508368e-07 | AJ39: 2.202776883e-05 | AK39: 5.191116748e-05
A40: 2021-02-04 | B40: 0.02406131116 | C40: 0.03258340818 | D40: -0.01476749843 | E40: 0.02239839181 | F40: -0.002214533777 | G40: 0.002166065829 | H40: -0.0003149507128 | I40: 0.01166193975 | J40: 0.005006484346 | K40: 0.02742174312 | L40: 0.01141066035 | M40: 0.02512244091 | N40: 0.00866431413 | O40: 0.06825242387 | P40: 0.05597889154 | Q40: -0.04379574783 | R40: 0.1844943966 | T40: NFGOVI | U40: 4.301233466e-05 | V40: 4.59534726e-05 | W40: -2.375347277e-05 | X40: =VAR('T1'!$E$2:$E$813) -> 8.868766608e-05 | Y40: 1.198632592e-05 | Z40: 7.513329537e-07 | AA40: 2.631597148e-06 | AB40: 3.483366414e-05 | AC40: 1.316266189e-05 | AD40: 5.899103065e-05 | AE40: 2.903256558e-05 | AF40: 4.992418119e-06 | AG40: -1.14347797e-06 | AH40: 4.920224863e-05 | AI40: 8.409359722e-06 | AJ40: 4.355704103e-05 | AK40: 2.997745754e-05
A41: 2021-02-03 | B41: 0.003048782849 | C41: 0.02091728669 | D41: -0.006356610551 | E41: 0.003221911768 | F41: 0.008329910723 | G41: 0 | H41: -0.01289048573 | I41: 0.005535388637 | J41: 0.0008657259652 | K41: 0.002530579166 | L41: 0.003669280046 | M41: 0.02037702447 | N41: -0.0002416918441 | O41: 0.02284707315 | P41: 0.05586634962 | Q41: 0.09058942853 | R41: -0.02787803259 | T41: NFILBI | U41: -2.125754369e-05 | V41: 3.407011682e-06 | W41: -9.303597409e-06 | X41: 1.198632592e-05 | Y41: =VAR('T1'!$F$2:$F$813) -> 6.64198027e-05 | Z41: -1.480786731e-06 | AA41: -4.171193275e-05 | AB41: 7.119072576e-07 | AC41: -4.398639208e-06 | AD41: 4.89470975e-06 | AE41: -6.834527236e-06 | AF41: -1.586134685e-06 | AG41: -8.380416022e-07 | AH41: -4.677425679e-05 | AI41: 2.450170714e-06 | AJ41: -3.711590876e-05 | AK41: -3.241929637e-05
A42: 2021-02-02 | B42: 0.004590673709 | C42: -0.005748243458 | D42: -0.01761687718 | E42: 0.008100489819 | F42: 0.001813996172 | G42: -0.001805380523 | H42: -0.02000497576 | I42: -0.003290331135 | J42: 0.02366248339 | K42: 0.01446218316 | L42: 0.01034619403 | M42: 0.02288601106 | N42: 0.0163239098 | O42: -0.01071404035 | P42: 0.02634552915 | Q42: 0.1155405882 | R42: 0.05702467491 | T42: NFTRCI | U42: -2.13958608e-06 | V42: -8.867940062e-07 | W42: 1.413235767e-06 | X42: 7.513329537e-07 | Y42: -1.480786731e-06 | Z42: =VAR('T1'!$G$2:$G$813) -> 1.595316306e-05 | AA42: 1.011993234e-06 | AB42: -8.89182029e-07 | AC42: 7.40602341e-07 | AD42: -4.645058618e-06 | AE42: 3.20230654e-07 | AF42: 5.255818634e-07 | AG42: 2.224407524e-07 | AH42: 3.608045903e-06 | AI42: 6.483613196e-07 | AJ42: -8.794125866e-08 | AK42: -2.131914217e-05
A43: 2021-02-01 | B43: 0 | C43: -0.0113982997 | D43: 0.005328879845 | E43: 0.006527970958 | F43: -0.0001396550522 | G43: 0 | H43: 0.0332104122 | I43: 0.005721732125 | J43: 0.008907951297 | K43: -0.005128216367 | L43: 0.002355129691 | M43: -0.01282068843 | N43: -0.00122744584 | O43: 0.1860098071 | P43: -0.008023158756 | Q43: -0.009798156569 | R43: 0.2691270214 | T43: NGPLT | U43: 9.448261354e-05 | V43: -3.398147891e-06 | W43: 0.0001128368661 | X43: 2.631597148e-06 | Y43: -4.171193275e-05 | Z43: 1.011993234e-06 | AA43: =VAR('T1'!$H$2:$H$813) -> 0.0003926136097 | AB43: 7.9713845e-05 | AC43: 7.648474198e-05 | AD43: 3.983672424e-05 | AE43: 5.650021693e-05 | AF43: 8.285252746e-05 | AG43: 6.078186026e-05 | AH43: 0.0002440082015 | AI43: -1.09189616e-05 | AJ43: 0.000192829437 | AK43: 0.0001622335205
A44: 2021-01-29 | B44: -0.007639456558 | C44: -0.003394308369 | D44: -0.00646709752 | E44: -0.007070049844 | F44: 0.002096876424 | G44: 0.001082837139 | H44: -0.008344099355 | I44: -0.01347170633 | J44: -0.006777268673 | K44: -0.0152287207 | L44: -0.01551564188 | M44: -0.02333007129 | N44: -0.01461302185 | O44: 0.007495935778 | P44: 0.08667637251 | Q44: 0.03030797554 | R44: 0.09412301911 | T44: STX40 | U44: 0.0001340506516 | V44: 0.0001016542576 | W44: -1.39957652e-05 | X44: 3.483366414e-05 | Y44: 7.119072576e-07 | Z44: -8.89182029e-07 | AA44: 7.9713845e-05 | AB44: =VAR('T1'!$I$2:$I$813) -> 0.0001883631476 | AC44: 0.0001101537296 | AD44: 0.0001769645976 | AE44: 0.0001462082404 | AF44: 0.0001095957511 | AG44: 7.742752262e-05 | AH44: 0.0001816961485 | AI44: 7.744664294e-05 | AJ44: 0.0001595778942 | AK44: 0.0001457145793
A45: 2021-01-28 | B45: -0.009090971701 | C45: -0.008622358948 | D45: 0.001973734794 | E45: 0.0006776445336 | F45: -0.0001399286366 | G45: -0.001082837139 | H45: 0.01586935066 | I45: 0.01138728661 | J45: -0.02162721657 | K45: 0.005050515786 | L45: 0.00183452629 | M45: -0.007112275809 | N45: -0.01010352593 | O45: 0.03688157475 | P45: -0.06659305838 | Q45: 0.0614945374 | R45: -0.005254548717 | T45: STXEMG | U45: 8.075540573e-05 | V45: 6.203263353e-05 | W45: 1.855255836e-05 | X45: 1.316266189e-05 | Y45: -4.398639208e-06 | Z45: 7.40602341e-07 | AA45: 7.648474198e-05 | AB45: 0.0001101537296 | AC45: =VAR('T1'!$J$2:$J$813) -> 0.000142663331 | AD45: 8.486494999e-05 | AE45: 0.0001055072592 | AF45: 0.0001216055636 | AG45: 9.507310524e-05 | AH45: 0.0001636778214 | AI45: 2.360448584e-05 | AJ45: 0.0001540489673 | AK45: 0.0001087608826
A46: 2021-01-27 | B46: 0.003021150334 | C46: 0.00336511815 | D46: 0.002739310798 | E46: 0.003803318901 | F46: 0 | G46: 0.003614026341 | H46: -0.01998432623 | I46: -0.02162803151 | J46: -0.0112428755 | K46: 0.01017820492 | L46: -0.0167520305 | M46: -0.01299891927 | N46: -0.01142325606 | O46: -0.01693315738 | P46: 0.002142542432 | Q46: -0.08520109624 | R46: -0.1442351128 | T46: STXFIN | U46: 0.0001983238831 | V46: 0.0002353367642 | W46: -7.808493625e-05 | X46: 5.899103065e-05 | Y46: 4.89470975e-06 | Z46: -4.645058618e-06 | AA46: 3.983672424e-05 | AB46: 0.0001769645976 | AC46: 8.486494999e-05 | AD46: =VAR('T1'!$K$2:$K$813) -> 0.0003751314337 | AE46: 0.0001456749304 | AF46: 7.600505452e-05 | AG46: 4.009736318e-05 | AH46: 0.0001290479589 | AI46: 9.048150584e-05 | AJ46: 0.0001179353278 | AK46: 6.167970642e-05
A47: 2021-01-26 | B47: 0.007593050908 | C47: 0.01890415464 | D47: -0.01162825822 | E47: -0.0009521867005 | F47: 0.001820601301 | G47: -0.002169982768 | H47: -0.01989778278 | I47: -0.01198427711 | J47: -0.01806764676 | K47: 0.01200700531 | L47: -0.01825064076 | M47: -0.01371714748 | N47: -0.004956932137 | O47: 0.001680470927 | P47: -0.008370330201 | Q47: 0.01564206848 | R47: -0.05803074276 | T47: STXIND | U47: 0.000112565175 | V47: 0.0001031914315 | W47: -1.534884038e-05 | X47: 2.903256558e-05 | Y47: -6.834527236e-06 | Z47: 3.20230654e-07 | AA47: 5.650021693e-05 | AB47: 0.0001462082404 | AC47: 0.0001055072592 | AD47: 0.0001456749304 | AE47: =VAR('T1'!$L$2:$L$813) -> 0.000165799362 | AF47: 9.896519629e-05 | AG47: 6.975565672e-05 | AH47: 0.0001648106774 | AI47: 5.990186245e-05 | AJ47: 0.0001312328078 | AK47: 0.0001266318667
A48: 2021-01-25 | B48: -0.006079046076 | C48: 0 | D48: 0.0190467466 | E48: 0.001632875584 | F48: 0.0004206098905 | G48: -0.0007222824438 | H48: 0.01474681102 | I48: 0.01368380166 | J48: 0.0315743456 | K48: -0.01030052026 | L48: 0.02744165963 | M48: 0.04007033088 | N48: 0.0135121174 | O48: 0.01842923158 | P48: 0.04661985285 | Q48: 0.07092643517 | R48: 0.019314151 | T48: SYG4IR | U48: 7.377483127e-05 | V48: 3.39603552e-05 | W48: 2.254572854e-05 | X48: 4.992418119e-06 | Y48: -1.586134685e-06 | Z48: 5.255818634e-07 | AA48: 8.285252746e-05 | AB48: 0.0001095957511 | AC48: 0.0001216055636 | AD48: 7.600505452e-05 | AE48: 9.896519629e-05 | AF48: =VAR('T1'!$M$2:$M$813) -> 0.0002730180195 | AG48: 0.0001421568029 | AH48: 0.0001609017971 | AI48: 9.122378144e-05 | AJ48: 0.0001343135155 | AK48: 0.0001018631436
A49: 2021-01-22 | B49: -0.0105502109 | C49: -0.01815481028 | D49: 0.004269483571 | E49: 0.0001361933948 | F49: 0.0005610885264 | G49: 0 | H49: -0.01389252735 | I49: -0.005597504226 | J49: -0.001567808003 | K49: -0.02028810077 | L49: 0.005115723702 | M49: 0.0229124301 | N49: 0.007666544498 | O49: 0.05560481436 | P49: -0.1505703409 | Q49: 0.0869772931 | R49: 0.1625433625 | T49: SYGWD | U49: 5.635629247e-05 | V49: 1.591545681e-05 | W49: 3.432612404e-05 | X49: -1.14347797e-06 | Y49: -8.380416022e-07 | Z49: 2.224407524e-07 | AA49: 6.078186026e-05 | AB49: 7.742752262e-05 | AC49: 9.507310524e-05 | AD49: 4.009736318e-05 | AE49: 6.975565672e-05 | AF49: 0.0001421568029 | AG49: =VAR('T1'!$N$2:$N$813) -> 0.0001348825659 | AH49: 0.0001113062919 | AI49: 3.604618476e-05 | AJ49: 7.019918677e-05 | AK49: 6.918899689e-05
A50: 2021-01-21 | B50: 0.004507896439 | C50: -0.01229294676 | D50: -0.00296364938 | E50: 0.002318130172 | F50: 0.0001403213361 | G50: 0 | H50: 0.02372092196 | I50: 0.002710028759 | J50: -0.0003480682249 | K50: -0.003341690662 | L50: -0.0008544400886 | M50: -0.01291789938 | N50: 0.001444043572 | O50: -0.09754219248 | P50: -0.01919348309 | Q50: -0.2134564461 | R50: -0.05607550023 | T50: BNB | U50: 0.0001576056422 | V50: 0.0001352581291 | W50: 5.832681856e-05 | X50: 4.920224863e-05 | Y50: -4.677425679e-05 | Z50: 3.608045903e-06 | AA50: 0.0002440082015 | AB50: 0.0001816961485 | AC50: 0.0001636778214 | AD50: 0.0001290479589 | AE50: 0.0001648106774 | AF50: 0.0001609017971 | AG50: 0.0001113062919 | AH50: =VAR('T1'!$O$2:$O$813) -> 0.005109081849 | AI50: 0.0001415070574 | AJ50: 0.002872082193 | AK50: 0.002558725631
A51: 2021-01-20 | B51: -0.00600602406 | C51: 0.01004659613 | D51: 0.007754818083 | E51: 0.005201216215 | F51: 0.002951305635 | G51: 0.0003610760104 | H51: 0.01258115607 | I51: 0.007832493643 | J51: 0.008913805416 | K51: -0.004991690897 | L51: 0.005382934456 | M51: 0.01972450535 | N51: 0.005312738891 | O51: -0.004215462917 | P51: -0.01008326397 | Q51: 0.01032809074 | R51: 0.07185366031 | T51: BTC | U51: 6.533716773e-05 | V51: -9.487378718e-05 | W51: 9.718508368e-07 | X51: 8.409359722e-06 | Y51: 2.450170714e-06 | Z51: 6.483613196e-07 | AA51: -1.09189616e-05 | AB51: 7.744664294e-05 | AC51: 2.360448584e-05 | AD51: 9.048150584e-05 | AE51: 5.990186245e-05 | AF51: 9.122378144e-05 | AG51: 3.604618476e-05 | AH51: 0.0001415070574 | AI51: =VAR('T1'!$P$2:$P$813) -> 0.002425656467 | AJ51: 0.0002871167544 | AK51: -4.056822718e-05
A52: 2021-01-19 | B52: 0.02271104426 | C52: 0.01317542116 | D52: -0.01716467216 | E52: -0.0002744237119 | F52: -0.002670603878 | G52: 0 | H52: -0.01095452909 | I52: 0.004626068389 | J52: -0.009087794107 | K52: 0.009170551972 | L52: 0.004302668141 | M52: -0.002084716002 | N52: -0.01704518521 | O52: -0.05810574613 | P52: 0.02135540379 | Q52: 0.09117440355 | R52: 0.08566809604 | T52: ETH | U52: 0.000144931529 | V52: 2.610046396e-05 | W52: 2.202776883e-05 | X52: 4.355704103e-05 | Y52: -3.711590876e-05 | Z52: -8.794125866e-08 | AA52: 0.000192829437 | AB52: 0.0001595778942 | AC52: 0.0001540489673 | AD52: 0.0001179353278 | AE52: 0.0001312328078 | AF52: 0.0001343135155 | AG52: 7.019918677e-05 | AH52: 0.002872082193 | AI52: 0.0002871167544 | AJ52: =VAR('T1'!$Q$2:$Q$813) -> 0.003973565581 | AK52: 0.002966792423
A53: 2021-01-18 | B53: -0.007627802049 | C53: -0.02728631256 | D53: 0.0001522997262 | E53: -0.002466430409 | F53: 0.004501977215 | G53: 0 | H53: -0.01269226271 | I53: -0.005821934253 | J53: 0.002787458251 | K53: -0.0008371704131 | L53: 0.009282819304 | M53: -0.01166962236 | N53: 0 | O53: 0.1027912355 | P53: -0.09972201995 | Q53: 0.05966523729 | R53: 0.0842119571 | T53: XRP | U53: 8.734772275e-05 | V53: 6.733698987e-05 | W53: 5.191116748e-05 | X53: 2.997745754e-05 | Y53: -3.241929637e-05 | Z53: -2.131914217e-05 | AA53: 0.0001622335205 | AB53: 0.0001457145793 | AC53: 0.0001087608826 | AD53: 6.167970642e-05 | AE53: 0.0001266318667 | AF53: 0.0001018631436 | AG53: 6.918899689e-05 | AH53: 0.002558725631 | AI53: -4.056822718e-05 | AJ53: 0.002966792423 | AK53: =VAR('T1'!$R$2:$R$813) -> 0.007794640531
A54: 2021-01-15 | B54: 0 | C54: -0.02116095012 | D54: -0.0003045762606 | E54: 0.000136864436 | F54: 0.00395592491 | G54: 0.0003612064334 | H54: -0.008066297854 | I54: -0.003408900523 | J54: -0.006260890017 | K54: 0 | L54: 0.0001243549091 | M54: 0.005817788766 | N54: -0.005459954217 | O54: -0.02103813538 | P54: 0.05060052309 | Q54: -0.03527440798 | R54: -0.10135896
A55: 2021-01-14 | B55: 0 | C55: 0.006156094039 | D55: -0.0118066913 | E55: -0.001094391354 | F55: 0.0004247787674 | G55: 0 | H55: 0.01128631426 | I55: 0.005973223665 | J55: 0.007832256556 | K55: -0.009991756732 | L55: 0.01188479617 | M55: 0.001883949314 | N55: -0.0026007817 | O55: 0.04028373309 | P55: 0.09259839651 | Q55: 0.07470727353 | R55: -0.05846709239
A56: 2021-01-13 | B56: 0.01069528912 | C56: -0.0007262164444 | D56: -0.0004889331951 | E56: -0.0005467468698 | F56: 0.0005666525155 | G56: -0.0003612064334 | H56: 0.03214292342 | I56: -0.003076399623 | J56: -0.01112087916 | K56: -0.004958687847 | L56: -0.006897876476 | M56: -0.001695714019 | N56: -0.009400774285 | O56: 0.05189662848 | P56: -0.05040982479 | Q56: 0.07213264456 | R56: 0.0532130196 | T56: Instrument | U56: Coefficient of variation
A57: 2021-01-12 | B57: 0 | C57: 0.03059018693 | D57: -0.01248054463 | E57: 0.005893253539 | F57: 0.0007087674831 | G57: 0.0003612064334 | H57: 0.009459834373 | I57: -0.002556456441 | J57: -0.001036269523 | K57: 0.002476270353 | L57: -0.002247191957 | M57: 0.01212136053 | N57: -0.0100082297 | O57: -0.006799189373 | P57: -0.07972110843 | Q57: -0.05167154609 | R57: 0.1371499451 | T57: ASHMID | U57: =V57/W57 -> -92.70703176 | V57: =STDEV(B2:B813) -> 0.01559299564 | W57: =AVERAGE(B2:B813) -> -0.0001681964717
A58: 2021-01-11 | B58: -0.007651146736 | C58: -0.03926389509 | D58: 0.004689951275 | E58: -0.003704470176 | F58: 0.002413573969 | G58: 0.00144613185 | H58: -0.04278050472 | I58: 0.001362630086 | J58: 0.008494460369 | K58: -0.0220687338 | L58: 0.01419176095 | M58: 0.00381825588 | N58: 0.0100082297 | O58: -0.09987245798 | P58: -0.03065844229 | Q58: -0.1139694476 | R58: -0.04871897318 | T58: ETFSAP | U58: =V58/W58 -> -47.73460116 | V58: =STDEV(C2:C813) -> 0.0499231301 | W58: =AVERAGE(C2:C813) -> -0.001045847852
A59: 2021-01-08 | B59: 0.01691047215 | C59: 0.0388897136 | D59: -0.03205179009 | E59: -0.005054310329 | F59: 0.0009955202415 | G59: -0.001084794899 | H59: -0.02671226336 | I59: 0.01010715242 | J59: 0.01951367183 | K59: 0.02787065642 | L59: 0.01375467431 | M59: 0.03404666945 | N59: 0.0004679457268 | O59: -0.02446248947 | P59: 0.06905008497 | Q59: -0.002137661138 | R59: -0.01456559702 | T59: GLD | U59: =V59/W59 -> 22.56256364 | V59: =STDEV(D2:D813) -> 0.01175197348 | W59: =AVERAGE(D2:D813) -> 0.0005208616212
A60: 2021-01-07 | B60: 0.01248066122 | C60: -0.03130434221 | D60: 0.01115462561 | E60: 0.0001362676298 | F60: 0.00213660077 | G60: 0.0003614675622 | H60: 0.03031184522 | I60: 0.01719240054 | J60: 0.01646717003 | K60: 0.02696035238 | L60: 0.01160854001 | M60: 0.04017901901 | N60: 0.0313788521 | O60: 0.02990178395 | P60: 0.07655082482 | Q60: 0.0126149917 | R60: -0.01969649461 | T60: NFGOVI | U60: 35.1733975 | V60: =STDEV(E2:E813) -> 0.009417412918 | W60: =AVERAGE(E2:E813) -> 0.0002677424869
A61: 2021-01-06 | B61: 0.004720701135 | C61: 0.003632405011 | D61: 0.002597546597 | E61: 0.004233533124 | F61: 0.0005705320366 | G61: -0.0003614675622 | H61: 0.01946197406 | I61: 0.01999182018 | J61: 0.01015789616 | K61: 0.007715426186 | L61: 0.003639203393 | M61: 0.03757394456 | N61: 0.01361557625 | O61: 0.01048877316 | P61: 0.05966858984 | Q61: 0.09290980234 | R61: 0.2128449992 | T61: NFILBI | U61: 67.99783834 | V61: =STDEV(F2:F813) -> 0.00814983452 | W61: =AVERAGE(F2:F813) -> 0.0001198543177
A62: 2021-01-05 | B62: -0.01098050248 | C62: 0.01097705863 | D62: 0.02800970599 | E62: -0.005187016817 | F62: 0.0004281127429 | G62: 0.0007230658305 | H62: -0.01115850821 | I62: 0.005195747602 | J62: 0.02585554925 | K62: -0.0212864572 | L62: 0.01363419128 | M62: 0.02490653921 | N62: 0.01828114152 | O62: 0.0193570041 | P62: -0.01891364842 | Q62: 0.06578320688 | R62: 0.401888185 | T62: NFTRCI | U62: 16.81076164 | V62: =STDEV(G2:G813) -> 0.003994141091 | W62: =AVERAGE(G2:G813) -> 0.0002375942969
A63: 2021-01-04 | B63: -0.004669269184 | C63: -0.02363316681 | D63: 0.01648535074 | E63: 0.002044293727 | F63: -0.002708290445 | G63: 0.0003617290689 | H63: 0.03847119786 | I63: 0.01940751944 | J63: 0.01565036186 | K63: -0.02084277202 | L63: 0.007951274333 | M63: -0.005685560909 | N63: 0.002246350626 | O63: 0.09072748848 | P63: 0.1208642812 | Q63: 0.3318852501 | R63: 0.1403636947 | T63: NGPLT | U63: 40.0248002 | V63: =STDEV(H2:H813) -> 0.0198144798 | W63: =AVERAGE(H2:H813) -> 0.0004950550584
A64: 2020-12-31 | B64: 0.006230549751 | C64: -0.00894300362 | D64: 0.006031172845 | E64: 0.005197659082 | F64: -0.004686510033 | G64: -0.0003617290689 | H64: 0.008571387577 | I64: -0.003656311203 | J64: 0.002664130976 | K64: -0.007398307481 | L64: -0.00491075378 | M64: 0.006124253612 | N64: -0.004736391754 | O64: -0.02012779814 | P64: 0.05898623268 | Q64: -0.01266310531 | R64: 0.08437124475 | T64: STX40 | U64: 74.32519642 | V64: =STDEV(I2:I813) -> 0.01372454544 | W64: =AVERAGE(I2:I813) -> 0.0001846553538
A65: 2020-12-30 | B65: -0.004676547884 | C65: 0.01110127784 | D65: 0.003241869228 | E65: 0.001372307063 | F65: -0.001415829204 | G65: 0.0003617290689 | H65: 0.01770075052 | I65: 0.006958460599 | J65: 0.01111335446 | K65: 0.003281381123 | L65: 0.007708703777 | M65: 0.007045383612 | N65: -0.001242699302 | O65: -0.02101517214 | P65: 0.01239770415 | Q65: 0.02781262154 | R65: -0.1074556936 | T65: STXEMG | U65: 26.79700079 | V65: =STDEV(J2:J813) -> 0.01194417561 | W65: =AVERAGE(J2:J813) -> 0.0004457280761
A66: 2020-12-29 | B66: 0.001556420548 | C66: 0.005054162383 | D66: -0.0009273212673 | E66: -0.00643353119 | F66: 0.0002830055205 | G66: 0.0003618599641 | H66: 0.006374363181 | I66: 0.005158449169 | J66: -0.01301702913 | K66: 0.001644737213 | L66: 0.008979488064 | M66: -0.0173041225 | N66: 0.01149150792 | O66: 0.08321418421 | P66: 0.0291726404 | Q66: 0.0008259262636 | R66: -0.1163814937 | T66: STXFIN | U66: -42.78304204 | V66: =STDEV(K2:K813) -> 0.01936831004 | W66: =AVERAGE(K2:K813) -> -0.0004527099784
A67: 2020-12-28 | B67: -0.001556420548 | C67: -0.01757892801 | D67: 0.004567632003 | E67: 0.0001364535719 | F67: -0.0002830055205 | G67: 0.0003619909542 | H67: 0.0193019449 | I67: -0.001292109086 | J67: 0.03031412737 | K67: 0.0008233841552 | L67: -0.008579141091 | M67: 0.005007085676 | N67: 0.005290351172 | O67: 0.09782449877 | P67: 0.1361352255 | Q67: 0.192181217 | R67: -0.3252438223 | T67: STXIND | U67: 232.20746 | V67: =STDEV(L2:L813) -> 0.01287631011 | W67: =AVERAGE(L2:L813) -> 5.545175039e-05
A68: 2020-12-24 | B68: 0.0140957698 | C68: -0.002840911002 | D68: 0.003809380335 | E68: 0.001228920753 | F68: 0 | G68: 0 | H68: 0.01020839325 | I68: 0.0007381436024 | J68: 0.004322207122 | K68: 0.002474228066 | L68: -0.005723047497 | M68: 0.004374460169 | N68: 0.004556969911 | O68: 0.04403227015 | P68: -0.02266147552 | Q68: 0.04804410134 | R68: 0.2734066582 | T68: SYG4IR | U68: 14.6501252 | V68: =STDEV(M2:M813) -> 0.01652325693 | W68: =AVERAGE(M2:M813) -> 0.001127857729
A69: 2020-12-23 | B69: 0.006329135052 | C69: 0.01069528912 | D69: -0.002605940682 | E69: 0.003695849803 | F69: 0.0002830055205 | G69: -0.0003619909542 | H69: 0.003402899218 | I69: 0.006667926168 | J69: 0.002760254118 | K69: 0.02170368998 | L69: 0.008128501015 | M69: 0.013905974 | N69: 0.000253774903 | O69: -0.07374042644 | P69: 0.04872470895 | Q69: -0.08230000961 | R69: -0.5540756491 | T69: SYGWD | U69: 20.47364711 | V69: =STDEV(N2:N813) -> 0.01161389538 | W69: =AVERAGE(N2:N813) -> 0.0005672606994
A70: 2020-12-22 | B70: 0.003179652917 | C70: 0.0061118292 | D70: -0.01051014312 | E70: 0.004949144004 | F70: 0 | G70: 0.0003619909542 | H70: -0.001529264861 | I70: 0 | J70: -0.009823261703 | K70: 0.003381237372 | L70: 0.0004014720696 | M70: 0.02452592277 | N70: 0.00126984144 | O70: 0.03681023956 | P70: -0.03999324706 | Q70: 0.03254379343 | R70: -0.1277643783 | T70: BNB | U70: 16.43569501 | V70: =STDEV(O2:O813) -> 0.07147784166 | W70: =AVERAGE(O2:O813) -> 0.004348939405
A71: 2020-12-21 | B71: -0.04056718499 | C71: -0.04305534439 | D71: 0.0106655312 | E71: -0.01395944387 | F71: -0.008315177218 | G71: 0 | H71: -0.02028327641 | I71: -0.02296417621 | J71: -0.00875918009 | K71: -0.04955596901 | L71: -0.01619791124 | M71: -0.0006831379066 | N71: -0.005322531891 | O71: 0.04208816092 | P71: 0.0178918431 | Q71: -0.08134725673 | R71: -0.2202727725 | T71: BTC | U71: 26.36633999 | V71: =STDEV(P2:P813) -> 0.04925095397 | W71: =AVERAGE(P2:P813) -> 0.001867948073
A72: 2020-12-18 | B72: 0.02007789454 | C72: 0.002420889994 | D72: -0.01285409396 | E72: 0.006544882921 | F72: -0.0004209640138 | G72: 0.001449275616 | H72: -0.02334369899 | I72: -0.006877855167 | J72: -0.002129513921 | K72: 0.01788665572 | L72: -0.0129540575 | M72: -0.000910125205 | N72: -0.009810165458 | O72: 0.02487039181 | P72: 0.06203908418 | Q72: 0.01372250279 | R72: 0.02053991214 | T72: ETH | U72: 62.72789176 | V72: =STDEV(Q2:Q813) -> 0.06303622435 | W72: =AVERAGE(Q2:Q813) -> 0.001004915399
A73: 2020-12-17 | B73: 0.004691173576 | C73: 0.009393006963 | D73: 0.005692542008 | E73: 0.005762123228 | F73: 0.005063301957 | G73: -0.0007249003579 | H73: 0.009688379661 | I73: 0.0156338396 | J73: 0.002517185955 | K73: 0.006584385928 | L73: 0.004168843974 | M73: 0.007304300907 | N73: -0.002250282235 | O73: 0.02109570949 | P73: 0.1024081182 | Q73: 0.08690532413 | R73: 0.2380404833 | T73: XRP | U73: -69.8020875 | V73: =STDEV(R2:R813) -> 0.08828726143 | W73: =AVERAGE(R2:R813) -> -0.001264822652
A74: 2020-12-15 | B74: 0.006289328908 | C74: 0.01798673072 | D74: 0.003516300306 | E74: 0.003169574761 | F74: 0.0002820476679 | G74: 0.001087547687 | H74: -0.002815958951 | I74: -0.001098699982 | J74: -0.01118191717 | K74: 0.01330027919 | L74: -0.0007829832059 | M74: -0.004571436533 | N74: -0.005479465765 | O74: -0.01611313814 | P74: 0.01406310325 | Q74: 0.01471800572 | R74: -0.03157662117
A75: 2020-12-14 | B75: 0.009508787969 | C75: 0.002137514173 | D75: -0.008019165497 | E75: 0.008733679969 | F75: -0.001268588513 | G75: 0 | H75: 0.01402396231 | I75: 0.002198608434 | J75: -0.003636019698 | K75: 0.01347956383 | L75: 0.003921061095 | M75: -0.003642162005 | N75: 0.002985076843 | O75: 0.09311478924 | P75: 0.03828436992 | Q75: 0.05967904445 | R75: -0.1035799478 | U75: Correlation Matrix
A76: 2020-12-11 | B76: 0 | C76: 0.01292193142 | D76: -0.0009978891636 | E76: 0.0002785127438 | F76: 0.003103839964 | G76: -0.0007251631935 | H76: -0.02699517554 | I76: 0.004964614408 | J76: -0.0001910037252 | K76: 0.02316705928 | L76: 0.004330999617 | M76: 0.01004804069 | N76: 0.002244669854 | O76: -0.01235032044 | P76: -0.01422263053 | Q76: -0.02309272531 | R76: -0.04806493036 | U76: ASHMID | V76: ETFSAP | W76: GLD | X76: NFGOVI | Y76: NFILBI | Z76: NFTRCI | AA76: NGPLT | AB76: STX40 | AC76: STXEMG | AD76: STXFIN | AE76: STXIND | AF76: SYG4IR | AG76: SYGWD | AH76: BNB | AI76: BTC | AJ76: ETH | AK76: XRP
A77: 2020-12-10 | B77: 0.001593625835 | C77: 0.02709795977 | D77: 0.009249333706 | E77: -0.0008353056312 | F77: 0.02012484962 | G77: 0.002540375164 | H77: 0.02110543844 | I77: -0.002577321014 | J77: 0.007476312021 | K77: -0.02992955335 | L77: 0.001052770199 | M77: -0.01254435426 | N77: -0.00099825314 | O77: -0.01540420931 | P77: -0.008682806165 | Q77: -0.04494125271 | R77: -0.07044331487 | T77: ASHMID | U77: 1
A78: 2020-12-09 | B78: 0.003194890897 | C78: 0.01458242329 | D78: -0.02103324354 | E78: 0.003205801059 | F78: -0.002735585897 | G78: -0.001815211971 | H78: -0.01739756159 | I78: 0.000367782277 | J78: -0.003457552426 | K78: 0.01528043314 | L78: 0.001053879692 | M78: 0.007279377003 | N78: 0.0004990020064 | O78: 0.0175726236 | P78: -0.04506166923 | Q78: 0.03302914804 | R78: 0.009477502071 | T78: ETFSAP | U78: 0.1581969434 | V78: 1
A79: 2020-12-08 | B79: -0.001598721364 | C79: 0 | D79: 0.004597883957 | E79: -0.001395089512 | F79: -0.0004312513543 | G79: -0.0003626473295 | H79: -0.00397219986 | I79: -0.002755075671 | J79: -0.0139010141 | K79: 0.01031823428 | L79: -0.007615583025 | M79: -0.00387376581 | N79: -0.01116775473 | O79: -0.06105017185 | P79: 0.005223203995 | Q79: -0.04849798886 | R79: -0.04068157533 | T79: GLD | U79: -0.08293355588 | V79: -0.1443676192 | W79: 1
A80: 2020-12-07 | B80: -0.003189795368 | C80: -0.003759402924 | D80: 3.808725791e-05 | E80: 0.002512564136 | F80: 0.006633045228 | G80: 0.0003626473295 | H80: -0.04742059206 | I80: 0.0007339449871 | J80: 0.003789318668 | K80: -0.009462436194 | L80: -0.0006538084574 | M80: 0.01097655658 | N80: -0.0009866799024 | O80: 0.01060745617 | P80: -0.001797095026 | Q80: 0.03969551673 | R80: 0.09956595796 | T80: NFGOVI | U80: 0.2932695823 | V80: 0.09786335278 | W80: -0.2148918141 | X80: 1
A81: 2020-12-04 | B81: 0.01767114256 | C81: 0.05594515609 | D81: 0.001295830656 | E81: 0.004763248008 | F81: 0.004204428086 | G81: 0 | H81: 0.04155740454 | I81: 0.001837222637 | J81: 0.000759589858 | K81: 0.01901526611 | L81: 0.001962709168 | M81: -0.000459770123 | N81: 0.001233502068 | O81: -0.05455594002 | P81: 0.01182545091 | Q81: -0.07917720983 | R81: -0.221907974 | T81: NFILBI | U81: -0.1674826821 | V81: 0.00838413379 | W81: -0.09725825896 | X81: 0.1563654697 | Y81: 1
A82: 2020-12-03 | B82: -0.001619433552 | C82: 0.009168890226 | D82: 0.000763038456 | E82: 0.0001404395761 | F82: 0.0007266914062 | G82: 0 | H82: 0.01122939338 | I82: 0.01743690998 | J82: 0.008393792128 | K82: 0.01671838323 | L82: 0.003937012959 | M82: 0.01832360208 | N82: 0.0004938271705 | O82: 0.01311494208 | P82: 0.03690268537 | Q82: 0.04353389238 | R82: -0.02412311428 | T82: NFTRCI | U82: -0.03439631989 | V82: -0.004452795139 | W82: 0.03014502099 | X82: 0.0199991988 | Y82: -0.04554655107 | Z82: 1
A83: 2020-12-02 | B83: 0.0179596664 | C83: 0.02227263561 | D83: 0.0105512518 | E83: -0.002384794565 | F83: 0.0007272198706 | G83: 0 | H83: 0.023524171 | I83: 0.0131853483 | J83: 0.00943130848 | K83: 0.002665483586 | L83: 0.004084596232 | M83: -0.02107779248 | N83: 0.002720417159 | O83: 0.006290370022 | P83: -0.04164280777 | Q83: 0.02518828409 | R83: 0.03874227322 | T83: NGPLT | U83: 0.3061786054 | V83: -0.003439481428 | W83: 0.4851686306 | X83: 0.01412018198 | Y83: -0.2586211407 | Z83: 0.01280285146 | AA83: 1
A84: 2020-12-01 | B84: 0.004954593125 | C84: -0.002862402282 | D84: 0.01511794528 | E84: 0.000560616693 | F84: -0.0002909514132 | G84: 0 | H84: 0.01135365455 | I84: 0.008760292169 | J84: -0.003089401955 | K84: 0 | L84: -0.0007918701747 | M84: -0.009353324719 | N84: 0.0007432181687 | O84: -0.04163202836 | P84: 0.07873641886 | Q84: -0.04695344755 | R84: -0.0891581189 | T84: STX40 | U84: 0.6271574379 | V84: 0.1485460033 | W84: -0.08688064787 | X84: 0.269839021 | Y84: 0.006372529218 | Z84: -0.01624069013 | AA84: 0.2934866077 | AB84: 1
A85: 2020-11-30 | B85: -0.03097232085 | C85: -0.03648430306 | D85: 0.001057848748 | E85: -0.00405736828 | F85: -0.002469675113 | G85: 0 | H85: 0.02028974551 | I85: -0.0146209763 | J85: -0.006533459059 | K85: -0.03410912207 | L85: -0.0102376534 | M85: 0.001590728662 | N85: 0.002481390851 | O85: 0.09728728431 | P85: 0.08066009336 | Q85: 0.1951050276 | R85: 0.4338907808 | T85: STXEMG | U85: 0.4341312423 | V85: 0.1041591452 | W85: 0.1323341703 | X85: 0.1171631684 | Y85: -0.04524270319 | Z85: 0.01554320852 | AA85: 0.3235721436 | AB85: 0.6727910908 | AC85: 1
A86: 2020-11-27 | B86: 0.001606426048 | C86: 0.007111843488 | D86: -0.01327875277 | E86: -0.002927851516 | F86: 0.003925279446 | G86: 0.0003627788902 | H86: 0.005490265076 | I86: -0.0009420631879 | J86: 0.006147954043 | K86: 0.0008602151068 | L86: -0.001826484526 | M86: 0.01189673148 | N86: 0.008232552421 | O86: 0.0098801086 | P86: -0.08739616928 | Q86: -0.002869343205 | R86: 0.1491504592 | T86: STXFIN | U86: 0.6574896282 | V86: 0.2436864702 | W86: -0.343478774 | X86: 0.3238156374 | Y86: 0.03104713998 | Z86: -0.06011893014 | AA86: 0.1039308289 | AB86: 0.6665486756 | AC86: 0.3672955158 | AD86: 1
A87: 2020-11-26 | B87: 0.0032206147 | C87: -0.01025650017 | D87: -0.004708251983 | E87: 0.001114361447 | F87: -0.002182612725 | G87: -0.0003627788902 | H87: -0.002115209137 | I87: 0.0009420631879 | J87: 0.01104555363 | K87: -0.002578428588 | L87: -0.0005212405643 | M87: 0.008784152645 | N87: -0.001001502337 | O87: -0.105573259 | P87: -0.02268576203 | Q87: -0.09532770261 | R87: -0.2186156111 | T87: STXIND | U87: 0.5613299837 | V87: 0.1607257931 | W87: -0.1015566846 | X87: 0.2397162914 | Y87: -0.06520838367 | Z87: 0.00623423613 | AA87: 0.2217232254 | AB87: 0.8283571559 | AC87: 0.6868626625 | AD87: 0.5848396899 | AE87: 1
A88: 2020-11-25 | B88: 0.0113545421 | C88: 0.02987674917 | D88: -0.0005388760715 | E88: -0.002783578694 | F88: 0.002619707509 | G88: -0.0003626473295 | H88: 0.006359097243 | I88: 0.006239974866 | J88: -0.01354772027 | K88: -0.005136997598 | L88: -0.002472189145 | M88: -0.002087441324 | N88: -0.0002502189429 | O88: -0.07556556556 | P88: 0.03903730204 | Q88: -0.05872228696 | R88: -0.03817449841 | T88: SYG4IR | U88: 0.2866937244 | V88: 0.04122018494 | W88: 0.1162500076 | X88: 0.03212320408 | Y88: -0.01179317629 | Z88: 0.007973637491 | AA88: 0.2533743254 | AB88: 0.4838773202 | AC88: 0.6169312706 | AD88: 0.2377881814 | AE88: 0.4657261051 | AF88: 1
A89: 2020-11-24 | B89: 0.001632653424 | C89: 0.0295466713 | D89: -0.0293865579 | E89: 0.004038721457 | F89: 0 | G89: 0.0007254262197 | H89: 0.0002835672782 | I89: 0.002849275363 | J89: 0.002887671657 | K89: 0.03034476432 | L89: 0.003775800332 | M89: 0.01352948092 | N89: 0.002755857939 | O89: 0.0874418085 | P89: 0.002671392164 | Q89: -0.003024574285 | R89: 0.1380600608 | T89: SYGWD | U89: 0.3115803941 | V89: 0.02748365996 | W89: 0.2518089896 | X89: -0.01046775271 | Y89: -0.008864904336 | Z89: 0.004801182549 | AA89: 0.2644530488 | AB89: 0.4863564275 | AC89: 0.6862127205 | AD89: 0.1784766276 | AE89: 0.4670305281 | AF89: 0.7417016708 | AG89: 1
A90: 2020-11-23 | B90: 0 | C90: 0.01173033979 | D90: -0.008187006134 | E90: 0.001815769757 | F90: -0.0007283852023 | G90: 0 | H90: -0.01296157904 | I90: 0.01321225538 | J90: 0.01946722953 | K90: 0.009730284643 | L90: 0.01313044075 | M90: 0.01968520817 | N90: 0.006796753667 | O90: 0.06952347951 | P90: 0.02742049621 | Q90: 0.1707780055 | R90: 0.5582551226 | T90: BNB | U90: 0.1415813172 | V90: 0.03795118263 | W90: 0.06952183566 | X90: 0.07318415844 | Y90: -0.0803936691 | Z90: 0.01265355034 | AA90: 0.1724985679 | AB90: 0.1854434493 | AC90: 0.1919541036 | AD90: 0.09333040628 | AE90: 0.1792906583 | AF90: 0.1364045897 | AG90: 0.134247297 | AH90: 1
A91: 2020-11-20 | B91: -0.02101936722 | C91: -0.02167654694 | D91: -0.002923599958 | E91: 0.001679026559 | F91: -0.002036660582 | G91: 0 | H91: 0.003154466182 | I91: 0 | J91: -0.001178782062 | K91: -0.02023826224 | L91: 0.001322576572 | M91: 0.001198322492 | N91: -0.005792737518 | O91: 0.02808187336 | P91: 0.007799010898 | Q91: 0.08388042757 | R91: 0.15397729 | T91: BTC | U91: 0.08518267517 | V91: -0.03863358035 | W91: 0.001681161123 | X91: 0.01815314369 | Y91: 0.006111785193 | Z91: 0.003300002154 | AA91: -0.01120260935 | AB91: 0.1147163065 | AC91: 0.04017527822 | AD91: 0.094970477 | AE91: 0.0945734922 | AF91: 0.112236197 | AG91: 0.06309601382 | AH91: 0.04024641469 | AI91: 1
A92: 2020-11-19 | B92: -0.006379606964 | C92: 0.001650846434 | D92: -0.003651725716 | E92: 0.003507052763 | F92: -0.0002906131959 | G92: 0 | H92: 0.01229176256 | I92: -0.01473287913 | J92: -0.01384442508 | K92: -0.01898245091 | L92: -0.01131739939 | M92: 0.003844310357 | N92: -0.005759374878 | O92: 0.0003560619585 | P92: 0.004105133886 | Q92: -0.01874031698 | R92: 0.0691853908 | T92: ETH | U92: 0.1476312507 | V92: 0.008304077673 | W92: 0.02977177239 | X92: 0.07346352082 | Y92: -0.0723362999 | Z92: -0.0003497149976 | AA92: 0.1545737135 | AB92: 0.1846799477 | AC92: 0.2048554836 | AD92: 0.09671574299 | AE92: 0.1618810362 | AF92: 0.1291127237 | AG92: 0.09600617208 | AH92: 0.6382200103 | AI92: 0.09259528473 | AJ92: 1
A93: 2020-11-18 | B93: 0.009584737913 | C93: 0.01624020702 | D93: -0.007044349647 | E93: 0.0008435259884 | F93: 0.002764241231 | G93: 0.0007259528449 | H93: 0.00691846845 | I93: 0.005905341478 | J93: 0.008166485207 | K93: 0.003424660881 | L93: 0.008542006075 | M93: 0.008946982666 | N93: 0.006513049076 | O93: -0.01589858607 | P93: 0.06095439847 | Q93: 0.004042714426 | R93: -0.07001110449 | T93: XRP | U93: 0.06352711878 | V93: 0.01529639256 | W93: 0.05009416282 | X93: 0.03609942735 | Y93: -0.04511198356 | Z93: -0.06053178111 | AA93: 0.09285280903 | AB93: 0.1204043469 | AC93: 0.1032651244 | AD93: 0.03611500662 | AE93: 0.1115292317 | AF93: 0.06991309819 | AG93: 0.06756102876 | AH93: 0.405965772 | AI93: -0.009341325639 | AJ93: 0.533745342 | AK93: 1
A94: 2020-11-17 | B94: 0.003215436854 | C94: 0.008008472728 | D94: 0.003772829149 | E94: -0.003510007114 | F94: -0.003345214377 | G94: -0.0003630422984 | H94: 0.02463535686 | I94: -0.007044293765 | J94: -0.003897121066 | K94: 0.009478743955 | L94: -0.005002643398 | M94: 0.002675424191 | N94: -0.01892015612 | O94: 0.01661109055 | P94: 0.04670748061 | Q94: 0.0434397766 | R94: -0.05775742944
A95: 2020-11-16 | B95: 0.009708814127 | C95: 0.02311746783 | D95: -0.01515125316 | E95: 0.002807019387 | F95: 0.0002904443819 | G95: 0 | H95: 0.009656213312 | I95: 0.004373046231 | J95: 0.003311583819 | K95: 0.006079046076 | L95: -0.004585661491 | M95: -0.00800489417 | N95: 0.02143651377 | O95: -0.004267431796 | P95: -0.02596376527 | Q95: -0.03621026996 | R95: -0.05826038069
A96: 2020-11-13 | B96: -0.01292425098 | C96: -0.006905508667 | D96: 0.005146057598 | E96: -0.007142387341 | F96: -0.0001452327357 | G96: 0.0003630422984 | H96: 0.01627873462 | I96: 0.001716411216 | J96: -0.0007801833827 | K96: -0.01641505541 | L96: 0.002093693515 | M96: 0.01190924271 | N96: 0.001008318714 | O96: 0.02043448053 | P96: 0.04051055681 | Q96: 0.03217963428 | R96: -0.0008980451708
A97: 2020-11-12 | B97: -0.01907848011 | C97: -0.06211623493 | D97: 0.000799651104 | E97: 0.0004187312504 | F97: 0.003782923179 | G97: 0.001453488628 | H97: 0.004149227031 | I97: -0.008363477756 | J97: 0.00684733185 | K97: -0.02788520349 | L97: 0.001835584624 | M97: 0 | N97: -0.01178401501 | O97: -0.01259689142 | P97: 0.01947956128 | Q97: -0.01004642705 | R97: -0.081885231
A98: 2020-11-11 | B98: 0.04674501282 | C98: 0.03287066683 | D98: 0.0003636892679 | E98: 0.002096290335 | F98: 0.002481209767 | G98: -0.001090314482 | H98: 0.007664617298 | I98: 0.00151543882 | J98: 0.008081250247 | K98: 0.05657035149 | L98: -0.007191923775 | M98: 0.01975372874 | N98: 0.01887085814 | O98: -0.00819238776 | P98: 0.005312503999 | Q98: 0.03595787553 | R98: -0.05068006096
A99: 2020-11-10 | B99: 0.008285051534 | C99: 0.01515180502 | D99: 0.02065490555 | E99: -0.003909527459 | F99: 0.003220143298 | G99: 0 | H99: 0.02600756223 | I99: 0 | J99: -0.01102156404 | K99: 0.03408401678 | L99: -0.01423051181 | M99: -0.006958278572 | N99: -0.001015486251 | O99: 0.006048764217 | P99: -0.01629700553 | Q99: 0.006213185177 | R99: 0.2798550216
A100: 2020-11-09 | B100: 0.01171561517 | C100: 0.0657266737 | D100: -0.06706744222 | E100: 0.01403334846 | F100: 0.003230546128 | G100: 0 | H100: -0.07571507948 | I100: 0.01355111871 | J100: 0.003529415428 | K100: 0.07677857603 | L100: 0.02037311755 | M100: 0.002976192673 | N100: 0.006874629239 | O100: -0.03506670655 | P100: 0.003019682343 | Q100: -0.01382151329 | R100: -0.5806549916
A101: 2020-11-06 | B101: 0.005063301957 | C101: 0.003629768051 | D101: 0.003862016177 | E101: 0.005668949422 | F101: 0.006196537974 | G101: 0.001090314482 | H101: 0.00661796532 | I101: 0.02667863416 | J101: 0.0003929273135 | K101: 0 | L101: 0.03454367595 | M101: 0.008230499137 | N101: -0.004079556907 | O101: 0.04727511671 | P101: 0.09704002742 | Q101: 0.09364680325 | R101: -0.09217316623
A102: 2020-11-05 | B102: 0.02918662109 | C102: 0.01881220883 | D102: 0.002128736998 | E102: 0.01763612991 | F102: 0.0002960331579 | G102: -0.001090314482 | H102: 0.01277738047 | I102: 0.02659890839 | J102: 0.008881929504 | K102: 0.01289060983 | L102: 0.03521733826 | M102: 0.02382271808 | N102: 0.01074453928 | O102: 0.02746922393 | P102: 0.001645135833 | Q102: 0.02195401804 | R102: -0.04001048912
A103: 2020-11-04 | B103: 0.005240186664 | C103: 0.01446258005 | D103: -0.0003842056595 | E103: -0.007493910269 | F103: 0.0008886256509 | G103: 0 | H103: 0.008684411604 | I103: 0.0083444058 | J103: 0.01739869906 | K103: 0 | L103: 0.02102350158 | M103: 0.01005292652 | N103: 0.01685943188 | O103: 0.002602715728 | P103: 0.02150224272 | Q103: 0.02507842251 | R103: -0.04782313947
A104: 2020-11-03 | B104: 0.02482396973 | C104: 0.01372153064 | D104: -0.006613090127 | E104: 0.00995607387 | F104: -0.001036653184 | G104: -0.000363174146 | H104: -0.00838875043 | I104: 0.01027124889 | J104: -0.005833266063 | K104: 0.04177887267 | L104: -0.005868477445 | M104: -0.001811829148 | N104: 0.002881468922 | O104: -0.0372713948 | P104: -0.01929662679 | Q104: 0.006719301592 | R104: 0.008500513536
A105: 2020-11-02 | B105: 0.0126469617 | C105: 0.01536276014 | D105: 0.003927775779 | E105: -0.00491827984 | F105: 0.0001480275334 | G105: 0.000363174146 | H105: 0.01100137462 | I105: 0.01791714597 | J105: 0.005833266063 | K105: 0.01256561036 | L105: 0.008887673182 | M105: 0.02620008392 | N105: 0.01533204763 | O105: -0.02234531703 | P105: 0.01201411177 | Q105: -0.009306084633 | R105: -0.002921478311
A106: 2020-10-30 | B106: -0.0180185055 | C106: -0.02106348817 | D106: -0.0006963061243 | E106: 0.002022245381 | F106: -0.0005919787061 | G106: 0.000726744218 | H106: -0.01255262146 | I106: -0.003357820574 | J106: -0.01561280713 | K106: -0.03316366096 | L106: 0.004907631097 | M106: -0.03007155604 | N106: -0.01821351655 | O106: -0.04559487241 | P106: 0.01019057745 | Q106: -0.01330926236 | R106: 0.001268395658
A107: 2020-10-29 | B107: -0.03509131981 | C107: -0.01923587343 | D107: -0.003647673878 | E107: 0.005945924268 | F107: -0.003986716244 | G107: 0.001819174597 | H107: -0.01806727271 | I107: -0.0178576174 | J107: 0.005976113403 | K107: -0.03111139028 | L107: -0.002601157536 | M107: 0.00568330127 | N107: -0.001307018876 | O107: -0.01727617719 | P107: -0.02813447771 | Q107: -0.004952420553 | R107: 0.1763346848
A108: 2020-10-28 | B108: -0.01709443336 | C108: -0.03605227315 | D108: -0.0006239817168 | E108: -0.01070612078 | F108: 0.003395087769 | G108: -0.002545918815 | H108: -0.00325674252 | I108: -0.0219833807 | J108: -0.004783744423 | K108: -0.0368615933 | L108: -0.02141715215 | M108: -0.02025970051 | N108: -0.01683759504 | O108: -0.04129619037 | P108: 0.04094825703 | Q108: -0.04242158442 | R108: -0.08597249729
A109: 2020-10-27 | B109: -0.02510592113 | C109: -0.02260233599 | D109: -0.006115170467 | E109: 0.004760196511 | F109: -0.0004434917657 | G109: 0.001090314482 | H109: 0.005433811595 | I109: -0.01459004596 | J109: -0.003770968049 | K109: -0.01418463499 | L109: -0.007879596137 | M109: -0.005064584135 | N109: -0.01225442958 | O109: 0.01560789767 | P109: 0.01004483891 | Q109: 0.03313462456 | R109: -0.01060329666
A110: 2020-10-26 | B110: -0.004946423935 | C110: -0.01694587585 | D110: 0.004383928042 | E110: -0.003175980727 | F110: -0.0002955519454 | G110: 0 | H110: -0.03917879996 | I110: -0.007708309736 | J110: -0.004545911574 | K110: -0.01027566258 | L110: -0.005869217519 | M110: -0.01255036554 | N110: -0.009344682219 | O110: 0.01683432439 | P110: 0.008712508315 | Q110: -0.03524145383 | R110: -0.01460324601
A111: 2020-10-23 | B111: 0.04027389914 | C111: 0.03240213409 | D111: -0.000553365166 | E111: 0.003609851584 | F111: -0.001623976145 | G111: 0.0003637024954 | H111: 0.04881461435 | I111: 0.008303725056 | J111: 0.001578843825 | K111: 0.03884903502 | L111: 0.01516244126 | M111: 0.01381410891 | N111: 0.008076772831 | O111: -0.000978952599 | P111: 0.01103882807 | Q111: -0.01154438166 | R111: -0.08363369722
A112: 2020-10-22 | B112: 0.001713796478 | C112: 0.004460310695 | D112: -0.01856662795 | E112: 0.001013097995 | F112: 0.0002950722949 | G112: 0.000363834823 | H112: -0.03396512089 | I112: -0.01360565206 | J112: -0.008065353055 | K112: 0.02346148668 | L112: -0.005642559759 | M112: -0.02102179514 | N112: -0.01259145319 | O112: 0.02945769842 | P112: 0.0619572741 | Q112: 0.0430687051 | R112: -0.02689436211
A113: 2020-10-21 | B113: 0.003436429499 | C113: 0.01123859885 | D113: -0.002000441442 | E113: 0.002464662357 | F113: 0.0008857396505 | G113: 0.0007280670143 | H113: 0.00433439411 | I113: -0.006247579868 | J113: -0.003910837992 | K113: 0.01194044037 | L113: -0.01632404578 | M113: -0.01816000826 | N113: -0.008968669983 | O113: 0.03312578789 | P113: 0.009542443762 | Q113: 0.05658323367 | R113: 0.01398288906
A114: 2020-10-20 | B114: 0.001722653311 | C114: -0.009896616987 | D114: 0.001491475142 | E114: -0.0008705746342 | F114: 0.001625896449 | G114: -0.0007280670143 | H114: 0.01789033598 | I114: 0.001948179069 | J114: 0.002931693686 | K114: 0 | L114: 0.01085303543 | M114: -0.003641222618 | N114: -0.007412932389 | O114: -0.03848593472 | P114: 0.02119570499 | Q114: -0.02883736964 | R114: 0.03362018917
A115: 2020-10-19 | B115: 0.01039870722 | C115: 0.01442766235 | D115: -0.002845433985 | E115: 0.003195819106 | F115: -0.0008871803036 | G115: 0 | H115: -0.01389461179 | I115: 0.0007803355839 | J115: -0.002931693686 | K115: 0.02842831036 | L115: -0.006136699872 | M115: -0.007002322467 | N115: -0.009311510552 | O115: -0.002002670896 | P115: -0.001159517252 | Q115: 0.03525329241 | R115: -0.06283508996
A116: 2020-10-16 | B116: 0 | C116: 0.004551669215 | D116: -0.005868482272 | E116: 0.003206065119 | F116: -0.0008863939124 | G116: 0.000363967247 | H116: 0.005376549745 | I116: 0.004694844304 | J116: 0.002149067937 | K116: -0.01431517288 | L116: 0.01160771022 | M116: 0.01113004473 | N116: 0.007589704691 | O116: -0.04275410479 | P116: 0.01102303772 | Q116: -0.02633366763 | R116: -0.04052487065
A117: 2020-10-15 | B117: -0.001740644478 | C117: -0.005913139813 | D117: 0.005800832428 | E117: 0.0005840268818 | F117: 0.001921514153 | G117: 0 | H117: 0.008300599826 | I117: -0.01111447534 | J117: -0.01282567134 | K117: 0.01020417017 | L117: -0.01480060528 | M117: -0.005822432751 | N117: -0.00832114444 | O117: 0.0125383414 | P117: -0.005505397216 | Q117: -0.01059800752 | R117: 0.04483941081
A118: 2020-10-14 | B118: 0.001740644478 | C118: -0.0009066183758 | D118: 0.009379210361 | E118: 0.00263235016 | F118: 0.002518333306 | G118: 0 | H118: -0.008516217752 | I118: 0.006029387127 | J118: 0.005615272766 | K118: -0.007153837357 | L118: 0.00555943058 | M118: 0.003149608903 | N118: -0.001461276441 | O118: 0.006491421691 | P118: -0.02388451435 | Q118: -0.01878893161 | R118: 0.02019138518
A119: 2020-10-13 | B119: -0.01555779003 | C119: -0.01618012826 | D119: -0.0171621374 | E119: 0.0007324397896 | F119: 0.002376003494 | G119: 0.001457195158 | H119: -0.01185897596 | I119: -0.007385845043 | J119: -0.008892384133 | K119: -0.02315151214 | L119: -0.003200448011 | M119: -0.001697175823 | N119: -0.0002433386069 | O119: 0 | P119: 0.02673488344 | Q119: -0.004500669669 | R119: -0.1253843389
A120: 2020-10-12 | B120: 0.003436429499 | C120: -0.005335717417 | D120: -0.000469751376 | E120: 0.0008796364737 | F120: 0.001636783343 | G120: -0.00109309539 | H120: -0.00651237525 | I120: 0.007190780183 | J120: 0.009475078138 | K120: 0.01000008333 | L120: 0.007390398275 | M120: 0.006806054469 | N120: 0.01445926429 | O120: 0.07644017388 | P120: 0.04086114786 | Q120: 0.05956298513 | R120: 0.01391176718
A121: 2020-10-09 | B121: 0.001722653311 | C121: -0.01102547001 | D121: 0.01279536709 | E121: 0.0007336219242 | F121: 0.0007448789916 | G121: 0 | H121: 0.01142464085 | I121: 0.01335185749 | J121: 0.006432143802 | K121: -0.01000008333 | L121: 0.00744542317 | M121: -0.003408817521 | N121: -0.003449978779 | O121: 0.0263548017 | P121: 0.02361475232 | Q121: 0.04154555388 | R121: 0.03528011963
A122: 2020-10-08 | B122: 0.01914766941 | C122: 0.01457944976 | D122: -0.0005774554755 | E122: 0.002057009247 | F122: 0.001342181993 | G122: 0 | H122: 0.01292935695 | I122: -0.002960625867 | J122: 0.005490209869 | K122: -0.009901070983 | L122: 0.0002820476679 | M122: 0.01272032807 | N122: 0.007159640508 | O122: 0.0003609456816 | P122: 0.01066320886 | Q122: 0.03011776342 | R122: -0.06853192018
A123: 2020-10-07 | B123: -0.01396183238 | C123: -0.02157248525 | D123: -0.007544141736 | E123: 0.0002942041798 | F123: 0.001194564873 | G123: 0.002187386946 | H123: -0.01085755768 | I123: 0.007120283247 | J123: 0.0106741476 | K123: 0.007912998757 | L123: 0.004240289039 | M123: 0.01964015896 | N123: 0.005964232392 | O123: -0.0003609456816 | P123: -0.01340569426 | Q123: 0.006969039128 | R123: 0.1044847843
A124: 2020-10-06 | B124: -0.006908490344 | C124: -0.01082964883 | D124: 0.004086393961 | E124: -0.001323237714 | F124: 0.002692999832 | G124: -0.001094291555 | H124: -0.01933556467 | I124: -0.008695706968 | J124: 0.01280017477 | K124: -0.01282701356 | L124: -0.005790567695 | M124: 0.01441420835 | N124: 0.009013581305 | O124: -0.03370906353 | P124: 0.00671158582 | Q124: -0.04198346844 | R124: -0.0536750821
A125: 2020-10-05 | B125: 0.00517688818 | C125: -0.000861326496 | D125: 0.003661517516 | E125: -0.009213959153 | F125: -0.004484312447 | G125: 0 | H125: 0.001895735165 | I125: 0.005129228053 | J125: -0.00120700075 | K125: -0.01363214879 | L125: 0.01361143941 | M125: 0.01773141663 | N125: 0.01316474709 | O125: 0.04898208768 | P125: -0.009385701014 | Q125: 0.007744312401 | R125: 0.1809326217
A126: 2020-10-02 | B126: 0.008688151958 | C126: -0.001290600308 | D126: -0.010843785 | E126: 0.004815769978 | F126: 0.002239642594 | G126: -0.001821162405 | H126: -0.01852162681 | I126: -0.001581027997 | J126: -0.01338012972 | K126: 0.01756142693 | L126: -0.00739585223 | M126: -0.009033485098 | N126: -0.01843253803 | O126: -0.005116970229 | P126: -0.01541992522 | Q126: -0.02080590664 | R126: 0.03080229524
A127: 2020-10-01 | B127: 0.01229163851 | C127: 0.01124093116 | D127: 0.002758900882 | E127: -0.001169590777 | F127: -0.001195100232 | G127: 0.001456664496 | H127: -0.009885437816 | I127: -0.001775673743 | J127: 0.002184490989 | K127: 0.005923018303 | L127: 0.002980205143 | M127: 0.001285512454 | N127: -0.002498751925 | O127: -0.06560885589 | P127: -0.004931869658 | Q127: -0.0178111402 | R127: -0.1908909477
A128: 2020-09-30 | B128: 0.005314450063 | C128: 0.0193157893 | D128: -0.01059026621 | E128: 0.002780014959 | F128: 0.0008961912474 | G128: -0.0007285974821 | H128: 0.009954429502 | I128: -0.001772526313 | J128: 0.00258783861 | K128: 0.006954821873 | L128: 0.000142136309 | M128: 0.001544799483 | N128: -0.004730495564 | O128: 0.01548284842 | P128: 0.01314074745 | Q128: -7.703708664e-05 | R128: -0.09109157513
A129: 2020-09-29 | B129: 0.007130154985 | C129: 0.01248901157 | D129: -0.001432450234 | E129: -0.002487745484 | F129: 0.0002989089844 | G129: 0.0003642323843 | H129: -0.005572961549 | I129: -0.004711433921 | J129: -0.005168997592 | K129: 0.009013581305 | L129: -0.004538371142 | M129: -0.01101868932 | N129: -0.01136095203 | O129: 0.06666746164 | P129: -0.006421340089 | Q129: 0.01417938348 | R129: 0.1250952582
A130: 2020-09-28 | B130: 0.03273019431 | C130: 0.04076589196 | D130: 6.658011254e-05 | E130: 0.002341236071 | F130: 0.0007476635862 | G130: 0.000728863006 | H130: 0.02444735965 | I130: 0.02077842638 | J130: 0.01841156672 | K130: 0.05055227916 | L130: 0.01038342307 | M130: 0.03369067019 | N130: 0.02184793953 | O130: 0.08991335304 | P130: -0.0003507581457 | Q130: 0.004654448386 | R130: 0.3248462698
A131: 2020-09-25 | B131: -0.0128560081 | C131: -0.02173495965 | D131: 0.006479432174 | E131: -0.005114353224 | F131: -0.000149577444 | G131: -0.0003644979082 | H131: 0.001547987925 | I131: -0.01153094287 | J131: -0.0170225398 | K131: -0.01990636712 | L131: -0.01377373568 | M131: -0.01828204484 | N131: -0.008995562909 | O131: 0.07579383937 | P131: 0.02379405824 | Q131: 0.09657312627 | R131: 0.05708181484
A132: 2020-09-23 | B132: 0 | C132: -0.00956073752 | D132: -0.001640524666 | E132: -0.001601980973 | F132: 0.001197246476 | G132: 0 | H132: 0.003103183251 | I132: 0.01935995004 | J132: 0.02046209807 | K132: 0.008333381559 | L132: 0.02861016195 | M132: 0.03341976585 | N132: 0.0269775594 | O132: -0.05282318213 | P132: 0.01520806017 | Q132: -0.06602202394 | R132: 0.2805191013
A133: 2020-09-22 | B133: -0.003642991279 | C133: -0.01528806754 | D133: -0.006169668234 | E133: -0.002035180234 | F133: -0.008647735419 | G133: 0 | H133: -0.01402842673 | I133: 0.001613554202 | J133: -0.009079049553 | K133: 0.003143009397 | L133: 0.007867173443 | M133: -0.002939213873 | N133: -0.00076638144 | O133: 0.03504686318 | P133: -0.0587806781 | Q133: -0.00356966494 | R133: 0.08253425638
A134: 2020-09-21 | B134: -0.02513597327 | C134: -0.03335105063 | D134: 0.008178844143 | E134: -0.01198137754 | F134: -0.004887088586 | G134: 0.0003644979082 | H134: -0.02381392645 | I134: -0.02629633593 | J134: 0.01110785934 | K134: -0.03404145095 | L134: -0.02084313406 | M134: 0.0005337603543 | N134: 0.004094171533 | O134: -0.1633780361 | P134: -0.0006950052047 | Q134: -0.1162668088 | R134: -0.04497890989
A135: 2020-09-18 | B135: -0.007067167223 | C135: -0.02556594293 | D135: 0.006794052772 | E135: 0.005900571196 | F135: -0.003097576044 | G135: 0 | H135: -0.001087621615 | I135: -0.005490209869 | J135: -0.007284532415 | K135: -0.01509842471 | L135: -0.008273941638 | M135: 0.009117789098 | N135: 0 | O135: 0.01507658636 | P135: -0.001659076694 | Q135: -0.01296104626 | R135: -0.0334562545
A136: 2020-09-17 | B136: -0.007017572659 | C136: 0.01911291989 | D136: -0.01487315127 | E136: 0.0005775339462 | F136: -0.0007361060325 | G136: 0.0003646308153 | H136: -0.04788713313 | I136: -0.01513710253 | J136: -0.01441177866 | K136: -0.00895083052 | L136: -0.01522657361 | M136: -0.01868215531 | N136: -0.01501491499 | O136: -0.03530849034 | P136: 0.01541290643 | Q136: 0.06181989243 | R136: 0.07510906955
A137: 2020-09-16 | B137: 0.007017572659 | C137: 0.001716738619 | D137: -0.001860280243 | E137: 0.003907102865 | F137: 0.003685960679 | G137: -0.001093493821 | H137: 0.007475576791 | I137: -0.003268919361 | J137: -0.009099963884 | K137: 0.003968259176 | L137: -0.004606694822 | M137: -0.0018491618 | N137: -0.009802767954 | O137: 0.02755794406 | P137: -0.0007597588181 | Q137: -0.008356021306 | R137: 0.07357640221
A138: 2020-09-15 | B138: -0.01572084779 | C138: 0.003873471596 | D138: -0.01851265365 | E138: 0.0018866561 | F138: 0.0001477213977 | G138: 0.001458257641 | H138: -0.01083757647 | I138: -0.004978945559 | J138: -0.003145893275 | K138: -0.01087504539 | L138: -0.005970996009 | M138: 0.0002639567126 | N138: -0.009459866413 | O138: -0.1365598903 | P138: 0.03609871896 | Q138: -0.03067116652 | R138: -0.005368466473
A139: 2020-09-14 | B139: -0.005185837032 | C139: 0.0008628128232 | D139: 0.001108322309 | E139: 0.002909516164 | F139: 0.0001477432225 | G139: -0.0003647638195 | H139: 0.009794143477 | I139: 0.003061031661 | J139: 0.006301714434 | K139: -0.005882369903 | L139: 0.004162048183 | M139: 0.00901623716 | N139: 0.005216755093 | O139: 0.2030611206 | P139: 0.01460108559 | Q139: 0.02276235993 | R139: 0.02387655446
A140: 2020-09-11 | B140: 0 | C140: -0.003876808646 | D140: -0.01038296155 | E140: -0.0008737440486 | F140: 0.0001477650538 | G140: 0.001459854274 | H140: 0.007392660668 | I140: 0.003070430353 | J140: -0.002170696462 | K140: -0.02127739845 | L140: -0.0004169852031 | M140: -0.01533204763 | N140: -0.01286827953 | O140: 0.03559663972 | P140: -0.003483965062 | Q140: 0.003092826593 | R140: 0.0387912542
A141: 2020-09-10 | B141: 0.02620237239 | C141: -0.02084738339 | D141: 0.01814293369 | E141: -0.0001455498147 | F141: -0.003982012488 | G141: 0.001096290992 | H141: 0.02177318008 | I141: 0.01764466523 | J141: 0.01850246755 | K141: 0.01834913867 | L141: 0.02547460253 | M141: 0.0220138846 | N141: 0.01511238968 | O141: 0.001222245009 | P141: 0.00963095616 | Q141: 0.0472550757 | R141: 0.01066875429
A142: 2020-09-09 | B142: 0.005323881253 | C142: 0.00252951231 | D142: -0.001478051213 | E142: 0.001747997532 | F142: -0.006455421479 | G142: -0.002191381447 | H142: -0.0006038039833 | I142: 0.01339129897 | J142: -0.01078500568 | K142: 0.04893637369 | L142: 0.007296691648 | M142: -0.007480665395 | N142: -0.004483195554 | O142: 0.056175707 | P142: -0.02382046587 | Q142: 0.03983389278 | R142: 0.02116310789
A143: 2020-09-08 | B143: 0.01253373615 | C143: 0.003806306139 | D143: 0.003550999983 | E143: -0.006539295264 | F143: 0.001609952781 | G143: 0.001095090454 | H143: 0.01364056534 | I143: -0.001782708207 | J143: -0.006336654866 | K143: 0.0269725895 | L143: 0.003740473358 | M143: -0.001861455131 | N143: -0.008413808606 | O143: 0.03510672066 | P143: 0.001836510161 | Q143: -0.04962236492 | R143: -0.009864444563
A144: 2020-09-07 | B144: 0.001803426999 | C144: 0.01451156494 | D144: 0.01079587927 | E144: 0.002610588865 | F144: 0 | G144: 0 | H144: 0.007233057805 | I144: 0.009544713543 | J144: 0.01933293896 | K144: 0.00315956029 | L144: 0.005202323872 | M144: 0.0326747037 | N144: 0.02419372276 | O144: 0.0612389239 | P144: 0.001737666321 | Q144: -0.1068233739 | R144: -0.06770639559
A145: 2020-09-04 | B145: -0.00540055318 | C145: -0.001718213481 | D145: -0.01526545421 | E145: -0.006225137729 | F145: -0.0001464664961 | G145: 0 | H145: -0.01008457715 | I145: -0.01448007052 | J145: -0.0218957792 | K145: -0.005260401399 | L145: -0.02912827292 | M145: -0.05552533681 | N145: -0.04129650954 | O145: 0.02111402812 | P145: -0.1270089977 | Q145: -0.004912241118 | R145: 0.05410000465
A146: 2020-09-03 | B146: -0.01248901157 | C146: -0.00897250198 | D146: -0.01173569343 | E146: 0.01000806091 | F146: 0.001612312552 | G146: 0.002559884375 | H146: -0.01085611282 | I146: -0.0237411423 | J146: -0.0183383992 | K146: -0.01974090081 | L146: -0.01563840862 | M146: -0.03970997682 | N146: -0.05238281692 | O146: -0.1801368248 | P146: -0.04096386683 | Q146: -0.1298370415 | R146: -0.1490923656
A147: 2020-09-02 | B147: 0 | C147: -0.005091228647 | D147: 0.005166290957 | E147: -0.004218494873 | F147: 0.002349832187 | G147: -0.001463593382 | H147: -0.0270599687 | I147: 0.000769526779 | J147: 0.0138201713 | K147: -0.03039747718 | L147: 0.009605419436 | M147: 0.01940340577 | N147: 0.05578005387 | O147: -0.005251476419 | P147: 0.007088150922 | Q147: -0.09664904017 | R147: -0.01714403112
A148: 2020-09-01 | B148: -0.003539826705 | C148: 0.0004232804296 | D148: -0.01628521564 | E148: 0.006115336472 | F148: 0.0007354563838 | G148: 0 | H148: 0.0003917216215 | I148: 0.009863729522 | J148: -0.008003947073 | K148: 0.02424361161 | L148: 0.006314481095 | M148: -0.005329285548 | N148: -0.01232048439 | O148: 0.06792862851 | P148: -0.002495794186 | Q148: 0.09454715619 | R148: 0.08123604027
A149: 2020-08-31 | B149: -0.01054491318 | C149: -0.03861804347 | D149: 0.01840493141 | E149: 0.002193143653 | F149: 0.005163395701 | G149: 0 | H149: 0.01951796101 | I149: -0.007165712854 | J149: 0.001362000405 | K149: -0.0321959398 | L149: -0.007293159957 | M149: 0.01607382483 | N149: 0.01768242753 | O149: 0.002590675024 | P149: 0.03177751246 | Q149: 0.09368636223 | R149: 0.02827210057
A150: 2020-08-28 | B150: -0.01216348619 | C150: -0.004876076301 | D150: -0.0003590371316 | E150: -0.002047083622 | F150: 0.001628303224 | G150: 0 | H150: -0.009476859422 | I150: -0.004428619927 | J150: -0.01065179046 | K150: -0.02638159839 | L150: -0.02265916233 | M150: -0.01910642761 | N150: -0.02032000249 | O150: 0.002164034603 | P150: -0.02150878305 | Q150: 0.02434744645 | R150: 0.04522803702
A151: 2020-08-27 | B151: 0.003460211065 | C151: -0.019269966 | D151: -0.00104373929 | E151: 0.002339866525 | F151: 0.004603170946 | G151: 0 | H151: -0.003555442249 | I151: -0.006510938359 | J151: 0.001735274705 | K151: 0.006773127006 | L151: 0.008092767575 | M151: 0.003538931904 | N151: 0.01301536811 | O151: 0.03527702658 | P151: 0.01228184671 | Q151: -0.009772311893 | R151: -0.06649872966
A152: 2020-08-26 | B152: -0.003460211065 | C152: -0.002779433991 | D152: 0.009433105224 | E152: 0.003667037479 | F152: 0.01137566525 | G152: 0 | H152: 0.001183743397 | I152: 0.009011661024 | J152: 0.007360095205 | K152: -0.01062298739 | L152: 0.01275138553 | M152: 0.01556749571 | N152: 0.01048662213 | O152: 0.03656714542 | P152: -0.02502971292 | Q152: 0.01853803725 | R152: -0.001023302409
A153: 2020-08-25 | B153: -0.01030936966 | C153: -0.003957266739 | D153: -0.01083391662 | E153: 0.0007350239214 | F153: 0.0006023189461 | G153: 0.000731528928 | H153: -0.005970166987 | I153: -0.007865747988 | J153: -0.002330098142 | K153: -0.003835095784 | L153: -0.003898097655 | M153: -0.00128518203 | N153: -0.004403138229 | O153: -0.05127001665 | P153: 0.009294551937 | Q153: -0.06123932695 | R153: -0.03776903417
A154: 2020-08-24 | B154: 0.02422263758 | C154: 0.01954199776 | D154: -0.01470353355 | E154: -0.001763150618 | F154: 0.002714933794 | G154: 0 | H154: 0.009727958929 | I154: 0.01424196513 | J154: -0.0007754944165 | K154: 0.02323434623 | L154: 0.02092038389 | M154: -0.006656450589 | N154: -0.00195074434 | O154: 0.02145813223 | P154: -0.01919503021 | Q154: 0.04682683127 | R154: 0.01695540117
A155: 2020-08-21 | B155: 0.005267790935 | C155: 0.005249355886 | D155: -0.009768321305 | E155: -0.0008804109153 | F155: 0.0007554582213 | G155: -0.000731528928 | H155: -0.01273233713 | I155: 0.003300653419 | J155: 0.00875918009 | K155: 0.02278454185 | L155: 0.005120921575 | M155: -0.009144082002 | N155: -0.006797792625 | O155: -0.0424654693 | P155: 0.009039714882 | Q155: -0.06782891559 | R155: -0.05626832662
A156: 2020-08-20 | B156: -0.01572084779 | C156: -0.002022245381 | D156: -0.01133988809 | E156: 0.004704507354 | F156: 0.002875957481 | G156: 0.000731528928 | H156: -0.02771970786 | I156: -0.01716035554 | J156: -0.01146868436 | K156: -0.02376349445 | L156: -0.012330962 | M156: -0.003533572581 | N156: -0.004104798713 | O156: 0.03436461492 | P156: -0.01516659959 | Q156: 0.02575043052 | R156: -0.01983305632
A157: 2020-08-19 | B157: -0.003460211065 | C157: -0.01603240753 | D157: -0.01953284296 | E157: -0.0007365397696 | F157: -0.0001515725657 | G157: 0.0003659652374 | H157: -0.01329530312 | I157: -0.007048319493 | J157: -0.01572419742 | K157: 0.005888142625 | L157: -0.00589889351 | M157: 0.002522705677 | N157: -0.001925855193 | O157: -0.03349806374 | P157: -0.02869646358 | Q157: -0.04251258542 | R157: -0.02740527138
A158: 2020-08-18 | B158: 0.005194816877 | C158: -0.01185784645 | D158: -0.002860440243 | E158: 0.00147362243 | F158: 0.0007580926752 | G158: 0.001831837845 | H158: -0.01663601371 | I158: -0.01282552473 | J158: -0.008525200823 | K158: 0.01287784018 | L158: -0.01003213095 | M158: -0.005290351172 | N158: -0.008859150483 | O158: -0.01889279037 | P158: 0.02440164738 | Q158: -0.02106435368 | R158: -0.05514744131
A159: 2020-08-17 | B159: -0.008643096156 | C159: -0.0109418833 | D159: 0.02506661907 | E159: -0.004414368557 | F159: 0.00562781925 | G159: -0.001465738628 | H159: 0.005927406833 | I159: 0.01263571739 | J159: 0.01386668624 | K159: -0.01090739619 | L159: 0.00597929891 | M159: 0.01391546806 | N159: 0.009580911612 | O159: 0.01889279037 | P159: 0.0112221743 | Q159: -0.01775832533 | R159: 0.03426356188
A160: 2020-08-14 | B160: -0.00171969088 | C160: -0.004652974661 | D160: 0.001008286943 | E160: -0.002492852673 | F160: -0.001676446327 | G160: 0 | H160: 0.002604329617 | I160: -0.007374525243 | J160: -0.004960895501 | K160: -0.006879634014 | L160: -0.007364724457 | M160: -0.007614249985 | N160: -0.003603607503 | O160: 0.04386085078 | P160: 0.01024802612 | Q160: 0.01192369521 | R160: 0.0145602133
A161: 2020-08-13 | B161: 0.006896579059 | C161: 0.007767029338 | D161: 0.002778042636 | E161: 0.009269543309 | F161: 0.001828989993 | G161: 0.0003662332947 | H161: 0.02495807686 | I161: -0.0007532957042 | J161: 0.0009521089932 | K161: 0.001960784942 | L161: -0.00593555473 | M161: 0.006341175338 | N161: -0.0007191657987 | O161: 0.01505846387 | P161: 0.01021345195 | Q161: 0.08776769297 | R161: 0.03685761831
A162: 2020-08-12 | B162: 0.006944472353 | C162: -0.02159744572 | D162: -0.01580713484 | E162: 0.002219756738 | F162: -0.0004575612068 | G162: 0 | H162: -0.06273059844 | I162: 0.004906595992 | J162: -0.007591609814 | K162: -0.001960784942 | L162: 0.01107124511 | M162: -0.01088205095 | N162: -0.008589888179 | O162: 0.02278638462 | P162: -0.0445163505 | Q162: 0.02593113566 | R162: 0.02221359056
A163: 2020-08-11 | B163: 0.006993035491 | C163: 0.01344364399 | D163: -0.04049210223 | E163: -0.00399202127 | F163: 0.002595619443 | G163: 0.0003663674707 | H163: 0.02463432181 | I163: 0.009313000885 | J163: 0.00227143766 | K163: 0.02780715412 | L163: 0.01344934815 | M163: -0.001509054612 | N163: 0.00882955265 | O163: -0.04820763553 | P163: 0.01102811926 | Q163: 0.002144813776 | R163: -0.003263202824
A164: 2020-08-07 | B164: 0 | C164: -0.000773096289 | D164: -0.01205907449 | E164: 0.003547675561 | F164: -0.006400509507 | G164: 0 | H164: -0.01797582866 | I164: -0.01760242288 | J164: -0.003971636426 | K164: 0.004036332422 | L164: -0.01664490488 | M164: 0.008581577147 | N164: 0.003842463902 | O164: -0.01777034767 | P164: -0.002924076742 | Q164: -0.04470058638 | R164: -0.03955715587
A165: 2020-08-06 | B165: -0.001752848827 | C165: -0.005779249374 | D165: 0.01649141382 | E165: -0.00177541103 | F165: 0.005025518839 | G165: 0.000366501745 | H165: 0.01004121672 | I165: -0.000937646576 | J165: 0.01043553726 | K165: -0.007052925962 | L165: 0.00361312233 | M165: 0.01738729561 | N165: 0.009914239108 | O165: -0.02736327074 | P165: 0.04660174116 | Q165: -0.0180830104 | R165: 0.01655633564
A166: 2020-08-05 | B166: 0.01056347851 | C166: 0.01743892286 | D166: 0.02642896926 | E166: 0.002516096939 | F166: 0.0006108735682 | G166: -0.0007328692157 | H166: 0.04960209318 | I166: 0.02716990535 | J166: 0.007850686564 | K166: 0.006042314456 | L166: 0.01387840317 | M166: 0.006728803856 | N166: 0.00511634689 | O166: 0.0464792118 | P166: 0.007327744508 | Q166: 0.04046361985 | R166: 0.01465658222
A167: 2020-08-04 | B167: 0 | C167: 0.006274530389 | D167: 0.0155918306 | E167: -0.002220413909 | F167: 0.003519783265 | G167: 0.00220022091 | H167: 0.01713959483 | I167: 0.002120891569 | J167: 0.01882271541 | K167: 0.005063301957 | L167: 0.002261165463 | M167: 0.02364797534 | N167: 0.01253549658 | O167: 0.009923401234 | P167: 0.01218197905 | Q167: 0.007266364133 | R167: -0.02872420386
A168: 2020-08-03 | B168: -0.00705470298 | C168: -0.02524896218 | D168: 0.0135833544 | E168: 0.001183607181 | F168: 0.001687764114 | G168: 0 | H168: 0.02593957156 | I168: 0.009113005384 | J168: 0.0177870302 | K168: -0.02901654298 | L168: 0.004537727582 | M168: 0.03572775126 | N168: 0.02682201147 | O168: 0.06508264013 | P168: -0.003246493505 | Q168: 0.1108834976 | R168: 0.1571870315
A169: 2020-07-31 | B169: -0.005258557253 | C169: -0.02612300731 | D169: 0.02122963261 | E169: 0.004153692369 | F169: -0.001074361242 | G169: 0 | H169: 0.02710999218 | I169: -0.003305788134 | J169: 0.01668883611 | K169: -0.03107046047 | L169: -0.001420253044 | M169: 0.006635357494 | N169: 0.01098491056 | O169: 0.0324512251 | P169: 0.0001982571379 | Q169: 0.03330349727 | R169: 0.04309349382
A170: 2020-07-30 | B170: -0.01388911216 | C170: 0.000373761918 | D170: 0.01485717358 | E170: -0.006814841189 | F170: 0.0007672830884 | G170: -0.0003670398279 | H170: -0.01368066258 | I170: -0.01138898518 | J170: 0.003859832116 | K170: -0.02548509801 | L170: -0.005802039909 | M170: 0.01621959495 | N170: 0.009290389402 | O170: 0.005512416865 | P170: 0.02092017946 | Q170: 0.05324319572 | R170: -0.02154817253
A171: 2020-07-29 | B171: 0.01214238683 | C171: 0.005247388352 | D171: 0.002107621145 | E171: -0.004860455846 | F171: -0.001993712799 | G171: 0.0003670398279 | H171: -0.03225978921 | I171: 0.005388773625 | J171: 0.008790816092 | K171: 0.0188152305 | L171: 0.0120662973 | M171: -0.00253414186 | N171: 0.001556824393 | O171: -0.01347662024 | P171: -0.01873421072 | Q171: -0.003490612069 | R171: 0.05369998282
